Workbook

Sheet Resumen
E1: Nota: Los resultados que arroja este simulador son una proyección aproximada que no comprometen a ICETEX a mantener las condiciones de plazo, tasa o monto de la deuda, entre otras. No comprenden el Aporte de Invalidez y muerte- AFIM, costos de transacción ni cualquier otro costo que pueda generar el crédito. Tampoco implica la obligación para la entidad de otorgar efectivamente la operación simulada. Los valores reales al momento de otorgar el crédito podrán ser modificados de conformidad con la variación de las tasas de interés.
E3: meses | F3: =+(F8*6)-5 -> 1 | G3: 7 | H3: 13 | I3: 19 | J3: 25 | K3: 31 | L3: 37 | M3: 43 | N3: 49 | O3: 55 | P3: 61 | Q3: 67 | R3: 73 | S3: 79 | T3: 85 | U3: 91 | V3: 97 | W3: 103 | X3: 109 | Y3: 115 | Z3: 121 | AA3: 127 | AB3: 133 | AC3: 139 | AD3: 145 | AE3: 151 | AF3: 157 | AG3: 163 | AH3: 169 | AI3: 175 | AJ3: 181 | AK3: 187 | AL3: 193 | AM3: 199 | AN3: 205 | AO3: 211 | AP3: 217 | AQ3: 223 | AR3: -5
A4: Supuestos Generales
A6: Línea de Crédito | C6: Posgrado País 40% con y sin DS | E6: Años | F6: 1 | H6: =+F6+1 -> 2 | J6: =+H6+1 -> 3 | L6: =+J6+1 -> 4 | N6: =+L6+1 -> 5 | P6: =+N6+1 -> 6 | R6: =+P6+1 -> 7 | T6: =+R6+1 -> 8 | V6: =+T6+1 -> 9 | X6: =+V6+1 -> 10 | Z6: =+X6+1 -> 11 | AB6: =+Z6+1 -> 12 | AD6: =+AB6+1 -> 13 | AF6: =+AD6+1 -> 14 | AH6: =+AF6+1 -> 15 | AJ6: =+AH6+1 -> 16 | AL6: =+AJ6+1 -> 17 | AN6: =+AL6+1 -> 18 | AP6: =+AN6+1 -> 19
A8: Subsidio de Tasa | C8: NO | E8: Semestres | F8: 1 | G8: =+F8+1 -> 2 | H8: =+G8+1 -> 3 | I8: 4 | J8: 5 | K8: 6 | L8: 7 | M8: 8 | N8: 9 | O8: 10 | P8: 11 | Q8: 12 | R8: 13 | S8: 14 | T8: 15 | U8: 16 | V8: 17 | W8: 18 | X8: 19 | Y8: 20 | Z8: 21 | AA8: 22 | AB8: 23 | AC8: 24 | AD8: 25 | AE8: 26 | AF8: 27 | AG8: 28 | AH8: 29 | AI8: 30 | AJ8: 31 | AK8: 32 | AL8: 33 | AM8: 34 | AN8: 35 | AO8: 36 | AP8: 37 | AQ8: 38
A10: Valor Semestre | C10: 5000000 | E10: Estudio | F10: 1 | G10: =+IF($C$14-F8>0,1,0) -> 0 | H10: =+IF($C$14-G8>0,1,0) -> 0 | I10: 0 | J10: 0 | K10: 0 | L10: 0 | M10: 0 | N10: 0 | O10: 0 | P10: 0 | Q10: 0 | R10: 0 | S10: 0 | T10: 0 | U10: 0 | V10: 0 | W10: 0 | X10: 0 | Y10: 0 | Z10: 0 | AA10: 0 | AB10: 0 | AC10: 0 | AD10: 0 | AE10: 0 | AF10: 0 | AG10: 0 | AH10: 0 | AI10: 0 | AJ10: 0 | AK10: 0 | AL10: 0 | AM10: 0 | AN10: =+IF($C$14-AM8>0,1,0) -> 0 | AO10: 0 | AP10: 0 | AQ10: 0 | AR10: =+SUM(F10:AQ10) -> 1
A12: IPC año anterior E.A. | C12: 0.0928 | E12: Gracia | G12: =+IF($C$26=0,0,IF(AND(F10=1,G10=0),1,IF(AND(F12=1,$C$26/6>1,SUM($F$12:F12)<($C$26/6)),1,0))) -> 0 | H12: =+IF($C$26=0,0,IF(AND(G10=1,H10=0),1,IF(AND(G12=1,$C$26/6>1,SUM($F$12:G12)<($C$26/6)),1,0))) -> 0 | I12: =+IF($C$26=0,0,IF(AND(H10=1,I10=0),1,IF(AND(H12=1,$C$26/6>1,SUM($F$12:H12)<($C$26/6)),1,0))) -> 0 | J12: =+IF($C$26=0,0,IF(AND(I10=1,J10=0),1,IF(AND(I12=1,$C$26/6>1,SUM($F$12:I12)<($C$26/6)),1,0))) -> 0 | K12: =+IF($C$26=0,0,IF(AND(J10=1,K10=0),1,IF(AND(J12=1,$C$26/6>1,SUM($F$12:J12)<($C$26/6)),1,0))) -> 0 | L12: =+IF($C$26=0,0,IF(AND(K10=1,L10=0),1,IF(AND(K12=1,$C$26/6>1,SUM($F$12:K12)<($C$26/6)),1,0))) -> 0 | M12: =+IF($C$26=0,0,IF(AND(L10=1,M10=0),1,IF(AND(L12=1,$C$26/6>1,SUM($F$12:L12)<($C$26/6)),1,0))) -> 0 | N12: =+IF($C$26=0,0,IF(AND(M10=1,N10=0),1,IF(AND(M12=1,$C$26/6>1,SUM($F$12:M12)<($C$26/6)),1,0))) -> 0 | O12: =+IF($C$26=0,0,IF(AND(N10=1,O10=0),1,IF(AND(N12=1,$C$26/6>1,SUM($F$12:N12)<($C$26/6)),1,0))) -> 0 | P12: =+IF($C$26=0,0,IF(AND(O10=1,P10=0),1,IF(AND(O12=1,$C$26/6>1,SUM($F$12:O12)<($C$26/6)),1,0))) -> 0 | Q12: =+IF($C$26=0,0,IF(AND(P10=1,Q10=0),1,IF(AND(P12=1,$C$26/6>1,SUM($F$12:P12)<($C$26/6)),1,0))) -> 0 | R12: =+IF($C$26=0,0,IF(AND(Q10=1,R10=0),1,IF(AND(Q12=1,$C$26/6>1,SUM($F$12:Q12)<($C$26/6)),1,0))) -> 0 | S12: =+IF($C$26=0,0,IF(AND(R10=1,S10=0),1,IF(AND(R12=1,$C$26/6>1,SUM($F$12:R12)<($C$26/6)),1,0))) -> 0 | T12: =+IF($C$26=0,0,IF(AND(S10=1,T10=0),1,IF(AND(S12=1,$C$26/6>1,SUM($F$12:S12)<($C$26/6)),1,0))) -> 0 | U12: =+IF($C$26=0,0,IF(AND(T10=1,U10=0),1,IF(AND(T12=1,$C$26/6>1,SUM($F$12:T12)<($C$26/6)),1,0))) -> 0 | V12: =+IF($C$26=0,0,IF(AND(U10=1,V10=0),1,IF(AND(U12=1,$C$26/6>1,SUM($F$12:U12)<($C$26/6)),1,0))) -> 0 | W12: =+IF($C$26=0,0,IF(AND(V10=1,W10=0),1,IF(AND(V12=1,$C$26/6>1,SUM($F$12:V12)<($C$26/6)),1,0))) -> 0 | X12: =+IF($C$26=0,0,IF(AND(W10=1,X10=0),1,IF(AND(W12=1,$C$26/6>1,SUM($F$12:W12)<($C$26/6)),1,0))) -> 0 | Y12: =+IF($C$26=0,0,IF(AND(X10=1,Y10=0),1,IF(AND(X12=1,$C$26/6>1,SUM($F$12:X12)<($C$26/6)),1,0))) -> 0 | Z12: =+IF($C$26=0,0,IF(AND(Y10=1,Z10=0),1,IF(AND(Y12=1,$C$26/6>1,SUM($F$12:Y12)<($C$26/6)),1,0))) -> 0 | AA12: =+IF($C$26=0,0,IF(AND(Z10=1,AA10=0),1,IF(AND(Z12=1,$C$26/6>1,SUM($F$12:Z12)<($C$26/6)),1,0))) -> 0 | AB12: =+IF($C$26=0,0,IF(AND(AA10=1,AB10=0),1,IF(AND(AA12=1,$C$26/6>1,SUM($F$12:AA12)<($C$26/6)),1,0))) -> 0 | AC12: =+IF($C$26=0,0,IF(AND(AB10=1,AC10=0),1,IF(AND(AB12=1,$C$26/6>1,SUM($F$12:AB12)<($C$26/6)),1,0))) -> 0 | AD12: =+IF($C$26=0,0,IF(AND(AC10=1,AD10=0),1,IF(AND(AC12=1,$C$26/6>1,SUM($F$12:AC12)<($C$26/6)),1,0))) -> 0 | AE12: =+IF($C$26=0,0,IF(AND(AD10=1,AE10=0),1,IF(AND(AD12=1,$C$26/6>1,SUM($F$12:AD12)<($C$26/6)),1,0))) -> 0 | AF12: =+IF($C$26=0,0,IF(AND(AE10=1,AF10=0),1,IF(AND(AE12=1,$C$26/6>1,SUM($F$12:AE12)<($C$26/6)),1,0))) -> 0 | AG12: =+IF($C$26=0,0,IF(AND(AF10=1,AG10=0),1,IF(AND(AF12=1,$C$26/6>1,SUM($F$12:AF12)<($C$26/6)),1,0))) -> 0 | AH12: =+IF($C$26=0,0,IF(AND(AG10=1,AH10=0),1,IF(AND(AG12=1,$C$26/6>1,SUM($F$12:AG12)<($C$26/6)),1,0))) -> 0 | AI12: =+IF($C$26=0,0,IF(AND(AH10=1,AI10=0),1,IF(AND(AH12=1,$C$26/6>1,SUM($F$12:AH12)<($C$26/6)),1,0))) -> 0 | AJ12: =+IF($C$26=0,0,IF(AND(AI10=1,AJ10=0),1,IF(AND(AI12=1,$C$26/6>1,SUM($F$12:AI12)<($C$26/6)),1,0))) -> 0 | AK12: =+IF($C$26=0,0,IF(AND(AJ10=1,AK10=0),1,IF(AND(AJ12=1,$C$26/6>1,SUM($F$12:AJ12)<($C$26/6)),1,0))) -> 0 | AL12: =+IF($C$26=0,0,IF(AND(AK10=1,AL10=0),1,IF(AND(AK12=1,$C$26/6>1,SUM($F$12:AK12)<($C$26/6)),1,0))) -> 0 | AM12: =+IF($C$26=0,0,IF(AND(AL10=1,AM10=0),1,IF(AND(AL12=1,$C$26/6>1,SUM($F$12:AL12)<($C$26/6)),1,0))) -> 0 | AN12: =+IF($C$26=0,0,IF(AND(AM10=1,AN10=0),1,IF(AND(AM12=1,$C$26/6>1,SUM($F$12:AM12)<($C$26/6)),1,0))) -> 0 | AO12: =+IF($C$26=0,0,IF(AND(AN10=1,AO10=0),1,IF(AND(AN12=1,$C$26/6>1,SUM($F$12:AN12)<($C$26/6)),1,0))) -> 0 | AP12: =+IF($C$26=0,0,IF(AND(AO10=1,AP10=0),1,IF(AND(AO12=1,$C$26/6>1,SUM($F$12:AO12)<($C$26/6)),1,0))) -> 0 | AQ12: =+IF($C$26=0,0,IF(AND(AP10=1,AQ10=0),1,IF(AND(AP12=1,$C$26/6>1,SUM($F$12:AP12)<($C$26/6)),1,0))) -> 0 | AR12: =+SUM(F12:AQ12) -> 0
A14: Número de semestres financiados | C14: 1 | E14: Amortización | F14: =+IF(F8=$C$38,1,0) -> 0 | G14: =+IF(G8<$C$38,0,IF(AND($C$36=0,G8<=$C$14),1,IF(SUM($F$14:F14)>=$C$36/6,0,1))) -> 1 | H14: =+IF(H8<$C$38,0,IF(AND($C$36=0,H8<=$C$14),1,IF(SUM($F$14:G14)>=$C$36/6,0,1))) -> 1 | I14: =+IF(I8<$C$38,0,IF(AND($C$36=0,I8<=$C$14),1,IF(SUM($F$14:H14)>=$C$36/6,0,1))) -> 0 | J14: =+IF(J8<$C$38,0,IF(AND($C$36=0,J8<=$C$14),1,IF(SUM($F$14:I14)>=$C$36/6,0,1))) -> 0 | K14: =+IF(K8<$C$38,0,IF(AND($C$36=0,K8<=$C$14),1,IF(SUM($F$14:J14)>=$C$36/6,0,1))) -> 0 | L14: =+IF(L8<$C$38,0,IF(AND($C$36=0,L8<=$C$14),1,IF(SUM($F$14:K14)>=$C$36/6,0,1))) -> 0 | M14: =+IF(M8<$C$38,0,IF(AND($C$36=0,M8<=$C$14),1,IF(SUM($F$14:L14)>=$C$36/6,0,1))) -> 0 | N14: =+IF(N8<$C$38,0,IF(AND($C$36=0,N8<=$C$14),1,IF(SUM($F$14:M14)>=$C$36/6,0,1))) -> 0 | O14: =+IF(O8<$C$38,0,IF(AND($C$36=0,O8<=$C$14),1,IF(SUM($F$14:N14)>=$C$36/6,0,1))) -> 0 | P14: =+IF(P8<$C$38,0,IF(AND($C$36=0,P8<=$C$14),1,IF(SUM($F$14:O14)>=$C$36/6,0,1))) -> 0 | Q14: =+IF(Q8<$C$38,0,IF(AND($C$36=0,Q8<=$C$14),1,IF(SUM($F$14:P14)>=$C$36/6,0,1))) -> 0 | R14: =+IF(R8<$C$38,0,IF(AND($C$36=0,R8<=$C$14),1,IF(SUM($F$14:Q14)>=$C$36/6,0,1))) -> 0 | S14: =+IF(S8<$C$38,0,IF(AND($C$36=0,S8<=$C$14),1,IF(SUM($F$14:R14)>=$C$36/6,0,1))) -> 0 | T14: =+IF(T8<$C$38,0,IF(AND($C$36=0,T8<=$C$14),1,IF(SUM($F$14:S14)>=$C$36/6,0,1))) -> 0 | U14: =+IF(U8<$C$38,0,IF(AND($C$36=0,U8<=$C$14),1,IF(SUM($F$14:T14)>=$C$36/6,0,1))) -> 0 | V14: =+IF(V8<$C$38,0,IF(AND($C$36=0,V8<=$C$14),1,IF(SUM($F$14:U14)>=$C$36/6,0,1))) -> 0 | W14: =+IF(W8<$C$38,0,IF(AND($C$36=0,W8<=$C$14),1,IF(SUM($F$14:V14)>=$C$36/6,0,1))) -> 0 | X14: =+IF(X8<$C$38,0,IF(AND($C$36=0,X8<=$C$14),1,IF(SUM($F$14:W14)>=$C$36/6,0,1))) -> 0 | Y14: =+IF(Y8<$C$38,0,IF(AND($C$36=0,Y8<=$C$14),1,IF(SUM($F$14:X14)>=$C$36/6,0,1))) -> 0 | Z14: =+IF(Z8<$C$38,0,IF(AND($C$36=0,Z8<=$C$14),1,IF(SUM($F$14:Y14)>=$C$36/6,0,1))) -> 0 | AA14: =+IF(AA8<$C$38,0,IF(AND($C$36=0,AA8<=$C$14),1,IF(SUM($F$14:Z14)>=$C$36/6,0,1))) -> 0 | AB14: =+IF(AB8<$C$38,0,IF(AND($C$36=0,AB8<=$C$14),1,IF(SUM($F$14:AA14)>=$C$36/6,0,1))) -> 0 | AC14: =+IF(AC8<$C$38,0,IF(AND($C$36=0,AC8<=$C$14),1,IF(SUM($F$14:AB14)>=$C$36/6,0,1))) -> 0 | AD14: =+IF(AD8<$C$38,0,IF(AND($C$36=0,AD8<=$C$14),1,IF(SUM($F$14:AC14)>=$C$36/6,0,1))) -> 0 | AE14: =+IF(AE8<$C$38,0,IF(AND($C$36=0,AE8<=$C$14),1,IF(SUM($F$14:AD14)>=$C$36/6,0,1))) -> 0 | AF14: =+IF(AF8<$C$38,0,IF(AND($C$36=0,AF8<=$C$14),1,IF(SUM($F$14:AE14)>=$C$36/6,0,1))) -> 0 | AG14: =+IF(AG8<$C$38,0,IF(AND($C$36=0,AG8<=$C$14),1,IF(SUM($F$14:AF14)>=$C$36/6,0,1))) -> 0 | AH14: =+IF(AH8<$C$38,0,IF(AND($C$36=0,AH8<=$C$14),1,IF(SUM($F$14:AG14)>=$C$36/6,0,1))) -> 0 | AI14: =+IF(AI8<$C$38,0,IF(AND($C$36=0,AI8<=$C$14),1,IF(SUM($F$14:AH14)>=$C$36/6,0,1))) -> 0 | AJ14: =+IF(AJ8<$C$38,0,IF(AND($C$36=0,AJ8<=$C$14),1,IF(SUM($F$14:AI14)>=$C$36/6,0,1))) -> 0 | AK14: =+IF(AK8<$C$38,0,IF(AND($C$36=0,AK8<=$C$14),1,IF(SUM($F$14:AJ14)>=$C$36/6,0,1))) -> 0 | AL14: =+IF(AL8<$C$38,0,IF(AND($C$36=0,AL8<=$C$14),1,IF(SUM($F$14:AK14)>=$C$36/6,0,1))) -> 0 | AM14: =+IF(AM8<$C$38,0,IF(AND($C$36=0,AM8<=$C$14),1,IF(SUM($F$14:AL14)>=$C$36/6,0,1))) -> 0 | AN14: =+IF(AN8<$C$38,0,IF(AND($C$36=0,AN8<=$C$14),1,IF(SUM($F$14:AM14)>=$C$36/6,0,1))) -> 0 | AO14: =+IF(AO8<$C$38,0,IF(AND($C$36=0,AO8<=$C$14),1,IF(SUM($F$14:AN14)>=$C$36/6,0,1))) -> 0 | AP14: =+IF(AP8<$C$38,0,IF(AND($C$36=0,AP8<=$C$14),1,IF(SUM($F$14:AO14)>=$C$36/6,0,1))) -> 0 | AQ14: =+IF(AQ8<$C$38,0,IF(AND($C$36=0,AQ8<=$C$14),1,IF(SUM($F$14:AP14)>=$C$36/6,0,1))) -> 0 | AR14: =+SUM(F14:AQ14) -> 2
A16: Incremento anual matrículas (IPC+2%) | C16: =+C12+2% -> 0.1128
A18: Condonación por graduación | C18: NO
A20: Plazo para pago de intereses | C20: SI
A22: Condiciones del Crédito
A24: % de Pago en periodo de estudios | C24: =+VLOOKUP(C6,$A$1019:$B$1026,2,0) -> 0.4
A26: Plazo de Gracia | C26: =+VLOOKUP(C6,A1019:E1026,5,0) -> 0
A28: Tasa de Interés indexada | C28: =+CONCATENATE("IPC + ",VLOOKUP($C$6,$A$1019:$D$1026,IF(C8="SI",3,4),0)*100,"%") -> IPC + 8%
A30: Tasa de Interés E.A | C30: =+(1+C12)*(1+VLOOKUP($C$6,$A$1019:$D$1026,IF(C8="SI",3,4),0))-1 -> 0.180224
A32: Tasa de interés N.A.M.V | C32: =+NOMINAL(C30,12) -> 0.1668536144
A34: Tasa de Interés Mes Vencido | C34: =+NOMINAL(C30,12)/12 -> 0.01390446787
A36: Plazo amortización | C36: =+IF(OR(C6="Posgrado Exterior",C6="Idiomas, pasantías"),VLOOKUP(C6,$A$1019:$F$1026,6,0),C14*VLOOKUP(C6,$A$1019:$F$1026,6,0)*6) -> 12
A38: Paso al Cobro | C38: =+IF(C36=0,1,C14+(C26/6)+1) -> 2
A40: Mes finalización | C40: =+(C14*6)+C26+C36 -> 18
A42: Valor Estimado Desembolsos | C42: =+Amortizacion!Y231 -> 5000000 | E42: =+CONCATENATE("Giros por: $",ROUND(C42/1000000,1)," millones") -> Giros por: $5 millones
A44: Abono a K durante estudios | C44: =+Amortizacion!U231 -> 2000000 | E44: Cuota mes periodo de estudio | G44: =+Amortizacion!T2 -> 349741.8596 | I44: =+CONCATENATE("Cuota inicial periodo de estudio: ",TEXT(ROUND(G44,0),"$#.#")) -> Cuota inicial periodo de estudio: $349742.
A46: Int. periodo de estudio + gracia | C46: =+Amortizacion!H231 -> 250280.4 | E46: =+CONCATENATE("Int. periodo de estudio: $",ROUND(C46/1000000,1)," millones") -> Int. periodo de estudio: $0.3 millones
A48: Capital Paso al Cobro | C48: =+IF(C18="no",C42-C44+C46-Amortizacion!$M$231,C42-C44+C46-Amortizacion!$O$231-Amortizacion!$M$231) -> 3250280.4 | E48: Cuota periodo de amortización | G48: =+MAX(Amortizacion!K2:K230) -> 295955.9115 | I48: =+CONCATENATE("Cuota periodo amortización: ",TEXT(ROUND(G48,0),"$#.#")) -> Cuota periodo amortización: $295956.
A50: Cuota por millón amortización | C50: =+IF(C24=100%,"N.A",G48/C42*1000000) -> 59191.1823
A1016: SI
A1017: NO
C1018: Tasa con subsidio | D1018: Puntos | E1018: P. Gracia | F1018: Amortización
A1019: Tu Eliges 30% | B1019: 0.3 | C1019: 0 | D1019: 0.09 | E1019: 6 | F1019: 1.5
A1020: Tu Eliges 60% | B1020: 0.6 | C1020: 0 | D1020: 0.07 | E1020: 0 | F1020: 1
A1021: Tu Eliges 100% | B1021: 1 | C1021: 0 | D1021: 0.07 | E1021: 0 | F1021: 0
A1022: Posgrado País - Medicina | B1022: 0.2 | C1022: 0 | D1022: 0.08 | E1022: 0 | F1022: 2
A1023: Posgrado País 40% con y sin DS | B1023: 0.4 | C1023: 0 | D1023: 0.08 | E1023: 0 | F1023: 2
A1024: Posgrado país | B1024: 0.4 | C1024: 0 | D1024: 0.08 | E1024: 0 | F1024: 2
A1025: Posgrado Exterior | B1025: 0 | C1025: 0 | D1025: 0.08 | E1025: 0 | F1025: 60
A1026: Idiomas, pasantías | B1026: 0 | C1026: 0 | D1026: 0.08 | E1026: 0 | F1026: 60

Sheet Valores Mensuales
A2: Nota: Los resultados que arroja este simulador son una proyección aproximada que no comprometen a ICETEX a mantener las condiciones de plazo, tasa o monto de la deuda, entre otras. No comprenden las primas de seguros, costos de transacción ni cualquier otro costo que pueda generar el crédito. Tampoco implica la obligación para la entidad de otorgar efectivamente la operación simulada. Los valores reales al momento de otorgar el crédito podrán ser modificados de conformidad con la variación de las tasas de interés.
A3: =+"Tabla de amortización simulación "&Resumen!C6 -> Tabla de amortización simulación Posgrado País 40% con y sin DS | K3: pesos | L3: 1
A4: Cifras en | B4: pesos | K4: miles de $ | L4: 1000
A5: =+VLOOKUP(B4,$K$3:$L$4,2,0) -> 1 | F5: Flujo de Pago del Estudiante
A6: Mes | B6: Pagos de Matrícula | C6: Intereses causados en estudio | D6: Intereses del crédito | E6: Condonación 25% | F6: Abono a Capital | G6: Pago de intereses | H6: Cuota
A7: 1 | B7: =-Amortizacion!Y2/$A$5 -> -5000000 | C7: =-Amortizacion!H2/$A$5 -> -41713.4 | D7: =(-Amortizacion!I2-Amortizacion!R2)/$A$5 -> -27808.93573 | E7: =Amortizacion!O2/$A$5 -> 0 | F7: =(+Amortizacion!L2+Amortizacion!U2)/$A$5 -> 321932.9239 | G7: =Amortizacion!AA2/$A$5 -> 27808.93573 | H7: =+F7+G7 -> 349741.8596
A8: 2 | B8: =-Amortizacion!Y3/$A$5 -> 0 | C8: =-Amortizacion!H3/$A$5 -> -41713.4 | D8: =(-Amortizacion!I3-Amortizacion!R3)/$A$5 -> -23332.62974 | E8: =Amortizacion!O3/$A$5 -> 0 | F8: =(+Amortizacion!L3+Amortizacion!U3)/$A$5 -> 326409.2299 | G8: =Amortizacion!AA3/$A$5 -> 23332.62974 | H8: =+F8+G8 -> 349741.8596
A9: 3 | B9: =-Amortizacion!Y4/$A$5 -> 0 | C9: =-Amortizacion!H4/$A$5 -> -41713.4 | D9: =(-Amortizacion!I4-Amortizacion!R4)/$A$5 -> -18794.08309 | E9: =Amortizacion!O4/$A$5 -> 0 | F9: =(+Amortizacion!L4+Amortizacion!U4)/$A$5 -> 330947.7765 | G9: =Amortizacion!AA4/$A$5 -> 18794.08309 | H9: 349741.8596
A10: 4 | B10: =-Amortizacion!Y5/$A$5 -> 0 | C10: =-Amortizacion!H5/$A$5 -> -41713.4 | D10: =(-Amortizacion!I5-Amortizacion!R5)/$A$5 -> -14192.43036 | E10: =Amortizacion!O5/$A$5 -> 0 | F10: =(+Amortizacion!L5+Amortizacion!U5)/$A$5 -> 335549.4293 | G10: =Amortizacion!AA5/$A$5 -> 14192.43036 | H10: 349741.8596
A11: 5 | B11: =-Amortizacion!Y6/$A$5 -> 0 | C11: =-Amortizacion!H6/$A$5 -> -41713.4 | D11: =(-Amortizacion!I6-Amortizacion!R6)/$A$5 -> -9526.794108 | E11: =Amortizacion!O6/$A$5 -> 0 | F11: =(+Amortizacion!L6+Amortizacion!U6)/$A$5 -> 340215.0655 | G11: =Amortizacion!AA6/$A$5 -> 9526.794108 | H11: 349741.8596
A12: 6 | B12: =-Amortizacion!Y7/$A$5 -> 0 | C12: =-Amortizacion!H7/$A$5 -> -41713.4 | D12: =(-Amortizacion!I7-Amortizacion!R7)/$A$5 -> -4796.284662 | E12: =Amortizacion!O7/$A$5 -> 0 | F12: =(+Amortizacion!L7+Amortizacion!U7)/$A$5 -> 344945.575 | G12: =Amortizacion!AA7/$A$5 -> 4796.284662 | H12: 349741.8596
A13: 7 | B13: =-Amortizacion!Y8/$A$5 -> 0 | C13: =-Amortizacion!H8/$A$5 -> 0 | D13: =(-Amortizacion!I8-Amortizacion!R8)/$A$5 -> -45193.41938 | E13: =Amortizacion!O8/$A$5 -> 0 | F13: =(+Amortizacion!L8+Amortizacion!U8)/$A$5 -> 250762.4921 | G13: =Amortizacion!AA8/$A$5 -> 45193.41938 | H13: 295955.9115
A14: 8 | B14: =-Amortizacion!Y9/$A$5 -> 0 | C14: =-Amortizacion!H9/$A$5 -> 0 | D14: =(-Amortizacion!I9-Amortizacion!R9)/$A$5 -> -41706.70036 | E14: =Amortizacion!O9/$A$5 -> 0 | F14: =(+Amortizacion!L9+Amortizacion!U9)/$A$5 -> 254249.2111 | G14: =Amortizacion!AA9/$A$5 -> 41706.70036 | H14: 295955.9115
A15: 9 | B15: =-Amortizacion!Y10/$A$5 -> 0 | C15: =-Amortizacion!H10/$A$5 -> 0 | D15: =(-Amortizacion!I10-Amortizacion!R10)/$A$5 -> -38171.50038 | E15: =Amortizacion!O10/$A$5 -> 0 | F15: =(+Amortizacion!L10+Amortizacion!U10)/$A$5 -> 257784.4111 | G15: =Amortizacion!AA10/$A$5 -> 38171.50038 | H15: 295955.9115
A16: 10 | B16: =-Amortizacion!Y11/$A$5 -> 0 | C16: =-Amortizacion!H11/$A$5 -> 0 | D16: =(-Amortizacion!I11-Amortizacion!R11)/$A$5 -> -34587.14532 | E16: =Amortizacion!O11/$A$5 -> 0 | F16: =(+Amortizacion!L11+Amortizacion!U11)/$A$5 -> 261368.7662 | G16: =Amortizacion!AA11/$A$5 -> 34587.14532 | H16: 295955.9115
A17: 11 | B17: =-Amortizacion!Y12/$A$5 -> 0 | C17: =-Amortizacion!H12/$A$5 -> 0 | D17: =(-Amortizacion!I12-Amortizacion!R12)/$A$5 -> -30952.95171 | E17: =Amortizacion!O12/$A$5 -> 0 | F17: =(+Amortizacion!L12+Amortizacion!U12)/$A$5 -> 265002.9598 | G17: =Amortizacion!AA12/$A$5 -> 30952.95171 | H17: 295955.9115
A18: 12 | B18: =-Amortizacion!Y13/$A$5 -> 0 | C18: =-Amortizacion!H13/$A$5 -> 0 | D18: =(-Amortizacion!I13-Amortizacion!R13)/$A$5 -> -27268.22657 | E18: =Amortizacion!O13/$A$5 -> 0 | F18: =(+Amortizacion!L13+Amortizacion!U13)/$A$5 -> 268687.6849 | G18: =Amortizacion!AA13/$A$5 -> 27268.22657 | H18: 295955.9115
A19: 13 | B19: =-Amortizacion!Y14/$A$5 -> 0 | C19: =-Amortizacion!H14/$A$5 -> 0 | D19: =(-Amortizacion!I14-Amortizacion!R14)/$A$5 -> -23532.26729 | E19: =Amortizacion!O14/$A$5 -> 0 | F19: =(+Amortizacion!L14+Amortizacion!U14)/$A$5 -> 272423.6442 | G19: =Amortizacion!AA14/$A$5 -> 23532.26729 | H19: 295955.9115
A20: 14 | B20: =-Amortizacion!Y15/$A$5 -> 0 | C20: =-Amortizacion!H15/$A$5 -> 0 | D20: =(-Amortizacion!I15-Amortizacion!R15)/$A$5 -> -19744.36148 | E20: =Amortizacion!O15/$A$5 -> 0 | F20: =(+Amortizacion!L15+Amortizacion!U15)/$A$5 -> 276211.55 | G20: =Amortizacion!AA15/$A$5 -> 19744.36148 | H20: 295955.9115
A21: 15 | B21: =-Amortizacion!Y16/$A$5 -> 0 | C21: =-Amortizacion!H16/$A$5 -> 0 | D21: =(-Amortizacion!I16-Amortizacion!R16)/$A$5 -> -15903.78686 | E21: =Amortizacion!O16/$A$5 -> 0 | F21: =(+Amortizacion!L16+Amortizacion!U16)/$A$5 -> 280052.1246 | G21: =Amortizacion!AA16/$A$5 -> 15903.78686 | H21: 295955.9115
A22: 16 | B22: =-Amortizacion!Y17/$A$5 -> 0 | C22: =-Amortizacion!H17/$A$5 -> 0 | D22: =(-Amortizacion!I17-Amortizacion!R17)/$A$5 -> -12009.81109 | E22: =Amortizacion!O17/$A$5 -> 0 | F22: =(+Amortizacion!L17+Amortizacion!U17)/$A$5 -> 283946.1004 | G22: =Amortizacion!AA17/$A$5 -> 12009.81109 | H22: 295955.9115
A23: 17 | B23: =-Amortizacion!Y18/$A$5 -> 0 | C23: =-Amortizacion!H18/$A$5 -> 0 | D23: =(-Amortizacion!I18-Amortizacion!R18)/$A$5 -> -8061.691663 | E23: =Amortizacion!O18/$A$5 -> 0 | F23: =(+Amortizacion!L18+Amortizacion!U18)/$A$5 -> 287894.2198 | G23: =Amortizacion!AA18/$A$5 -> 8061.691663 | H23: 295955.9115
A24: 18 | B24: =-Amortizacion!Y19/$A$5 -> 0 | C24: =-Amortizacion!H19/$A$5 -> 0 | D24: =(-Amortizacion!I19-Amortizacion!R19)/$A$5 -> -4058.675735 | E24: =Amortizacion!O19/$A$5 -> 0 | F24: =(+Amortizacion!L19+Amortizacion!U19)/$A$5 -> 291897.2358 | G24: =Amortizacion!AA19/$A$5 -> 4058.675735 | H24: 295955.9115
A25: 19 | B25: =-Amortizacion!Y20/$A$5 -> 0 | C25: =-Amortizacion!H20/$A$5 -> 0 | D25: =(-Amortizacion!I20-Amortizacion!R20)/$A$5 -> 0 | E25: =Amortizacion!O20/$A$5 -> 0 | F25: =(+Amortizacion!L20+Amortizacion!U20)/$A$5 -> 0 | G25: =Amortizacion!AA20/$A$5 -> 0 | H25: 0
A26: 20 | B26: =-Amortizacion!Y21/$A$5 -> 0 | C26: =-Amortizacion!H21/$A$5 -> 0 | D26: =(-Amortizacion!I21-Amortizacion!R21)/$A$5 -> 0 | E26: =Amortizacion!O21/$A$5 -> 0 | F26: =(+Amortizacion!L21+Amortizacion!U21)/$A$5 -> 0 | G26: =Amortizacion!AA21/$A$5 -> 0 | H26: 0
A27: 21 | B27: =-Amortizacion!Y22/$A$5 -> 0 | C27: =-Amortizacion!H22/$A$5 -> 0 | D27: =(-Amortizacion!I22-Amortizacion!R22)/$A$5 -> 0 | E27: =Amortizacion!O22/$A$5 -> 0 | F27: =(+Amortizacion!L22+Amortizacion!U22)/$A$5 -> 0 | G27: =Amortizacion!AA22/$A$5 -> 0 | H27: 0
A28: 22 | B28: =-Amortizacion!Y23/$A$5 -> 0 | C28: =-Amortizacion!H23/$A$5 -> 0 | D28: =(-Amortizacion!I23-Amortizacion!R23)/$A$5 -> 0 | E28: =Amortizacion!O23/$A$5 -> 0 | F28: =(+Amortizacion!L23+Amortizacion!U23)/$A$5 -> 0 | G28: =Amortizacion!AA23/$A$5 -> 0 | H28: 0
A29: 23 | B29: =-Amortizacion!Y24/$A$5 -> 0 | C29: =-Amortizacion!H24/$A$5 -> 0 | D29: =(-Amortizacion!I24-Amortizacion!R24)/$A$5 -> 0 | E29: =Amortizacion!O24/$A$5 -> 0 | F29: =(+Amortizacion!L24+Amortizacion!U24)/$A$5 -> 0 | G29: =Amortizacion!AA24/$A$5 -> 0 | H29: 0
A30: 24 | B30: =-Amortizacion!Y25/$A$5 -> 0 | C30: =-Amortizacion!H25/$A$5 -> 0 | D30: =(-Amortizacion!I25-Amortizacion!R25)/$A$5 -> 0 | E30: =Amortizacion!O25/$A$5 -> 0 | F30: =(+Amortizacion!L25+Amortizacion!U25)/$A$5 -> 0 | G30: =Amortizacion!AA25/$A$5 -> 0 | H30: 0
A31: 25 | B31: =-Amortizacion!Y26/$A$5 -> 0 | C31: =-Amortizacion!H26/$A$5 -> 0 | D31: =(-Amortizacion!I26-Amortizacion!R26)/$A$5 -> 0 | E31: =Amortizacion!O26/$A$5 -> 0 | F31: =(+Amortizacion!L26+Amortizacion!U26)/$A$5 -> 0 | G31: =Amortizacion!AA26/$A$5 -> 0 | H31: 0
A32: 26 | B32: =-Amortizacion!Y27/$A$5 -> 0 | C32: =-Amortizacion!H27/$A$5 -> 0 | D32: =(-Amortizacion!I27-Amortizacion!R27)/$A$5 -> 0 | E32: =Amortizacion!O27/$A$5 -> 0 | F32: =(+Amortizacion!L27+Amortizacion!U27)/$A$5 -> 0 | G32: =Amortizacion!AA27/$A$5 -> 0 | H32: 0
A33: 27 | B33: =-Amortizacion!Y28/$A$5 -> 0 | C33: =-Amortizacion!H28/$A$5 -> 0 | D33: =(-Amortizacion!I28-Amortizacion!R28)/$A$5 -> 0 | E33: =Amortizacion!O28/$A$5 -> 0 | F33: =(+Amortizacion!L28+Amortizacion!U28)/$A$5 -> 0 | G33: =Amortizacion!AA28/$A$5 -> 0 | H33: 0
A34: 28 | B34: =-Amortizacion!Y29/$A$5 -> 0 | C34: =-Amortizacion!H29/$A$5 -> 0 | D34: =(-Amortizacion!I29-Amortizacion!R29)/$A$5 -> 0 | E34: =Amortizacion!O29/$A$5 -> 0 | F34: =(+Amortizacion!L29+Amortizacion!U29)/$A$5 -> 0 | G34: =Amortizacion!AA29/$A$5 -> 0 | H34: 0
A35: 29 | B35: =-Amortizacion!Y30/$A$5 -> 0 | C35: =-Amortizacion!H30/$A$5 -> 0 | D35: =(-Amortizacion!I30-Amortizacion!R30)/$A$5 -> 0 | E35: =Amortizacion!O30/$A$5 -> 0 | F35: =(+Amortizacion!L30+Amortizacion!U30)/$A$5 -> 0 | G35: =Amortizacion!AA30/$A$5 -> 0 | H35: 0
A36: 30 | B36: =-Amortizacion!Y31/$A$5 -> 0 | C36: =-Amortizacion!H31/$A$5 -> 0 | D36: =(-Amortizacion!I31-Amortizacion!R31)/$A$5 -> 0 | E36: =Amortizacion!O31/$A$5 -> 0 | F36: =(+Amortizacion!L31+Amortizacion!U31)/$A$5 -> 0 | G36: =Amortizacion!AA31/$A$5 -> 0 | H36: 0
A37: 31 | B37: =-Amortizacion!Y32/$A$5 -> 0 | C37: =-Amortizacion!H32/$A$5 -> 0 | D37: =(-Amortizacion!I32-Amortizacion!R32)/$A$5 -> 0 | E37: =Amortizacion!O32/$A$5 -> 0 | F37: =(+Amortizacion!L32+Amortizacion!U32)/$A$5 -> 0 | G37: =Amortizacion!AA32/$A$5 -> 0 | H37: 0
A38: 32 | B38: =-Amortizacion!Y33/$A$5 -> 0 | C38: =-Amortizacion!H33/$A$5 -> 0 | D38: =(-Amortizacion!I33-Amortizacion!R33)/$A$5 -> 0 | E38: =Amortizacion!O33/$A$5 -> 0 | F38: =(+Amortizacion!L33+Amortizacion!U33)/$A$5 -> 0 | G38: =Amortizacion!AA33/$A$5 -> 0 | H38: 0
A39: 33 | B39: =-Amortizacion!Y34/$A$5 -> 0 | C39: =-Amortizacion!H34/$A$5 -> 0 | D39: =(-Amortizacion!I34-Amortizacion!R34)/$A$5 -> 0 | E39: =Amortizacion!O34/$A$5 -> 0 | F39: =(+Amortizacion!L34+Amortizacion!U34)/$A$5 -> 0 | G39: =Amortizacion!AA34/$A$5 -> 0 | H39: 0
A40: 34 | B40: =-Amortizacion!Y35/$A$5 -> 0 | C40: =-Amortizacion!H35/$A$5 -> 0 | D40: =(-Amortizacion!I35-Amortizacion!R35)/$A$5 -> 0 | E40: =Amortizacion!O35/$A$5 -> 0 | F40: =(+Amortizacion!L35+Amortizacion!U35)/$A$5 -> 0 | G40: =Amortizacion!AA35/$A$5 -> 0 | H40: 0
A41: 35 | B41: =-Amortizacion!Y36/$A$5 -> 0 | C41: =-Amortizacion!H36/$A$5 -> 0 | D41: =(-Amortizacion!I36-Amortizacion!R36)/$A$5 -> 0 | E41: =Amortizacion!O36/$A$5 -> 0 | F41: =(+Amortizacion!L36+Amortizacion!U36)/$A$5 -> 0 | G41: =Amortizacion!AA36/$A$5 -> 0 | H41: 0
A42: 36 | B42: =-Amortizacion!Y37/$A$5 -> 0 | C42: =-Amortizacion!H37/$A$5 -> 0 | D42: =(-Amortizacion!I37-Amortizacion!R37)/$A$5 -> 0 | E42: =Amortizacion!O37/$A$5 -> 0 | F42: =(+Amortizacion!L37+Amortizacion!U37)/$A$5 -> 0 | G42: =Amortizacion!AA37/$A$5 -> 0 | H42: 0
A43: 37 | B43: =-Amortizacion!Y38/$A$5 -> 0 | C43: =-Amortizacion!H38/$A$5 -> 0 | D43: =(-Amortizacion!I38-Amortizacion!R38)/$A$5 -> 0 | E43: =Amortizacion!O38/$A$5 -> 0 | F43: =(+Amortizacion!L38+Amortizacion!U38)/$A$5 -> 0 | G43: =Amortizacion!AA38/$A$5 -> 0 | H43: 0
A44: 38 | B44: =-Amortizacion!Y39/$A$5 -> 0 | C44: =-Amortizacion!H39/$A$5 -> 0 | D44: =(-Amortizacion!I39-Amortizacion!R39)/$A$5 -> 0 | E44: =Amortizacion!O39/$A$5 -> 0 | F44: =(+Amortizacion!L39+Amortizacion!U39)/$A$5 -> 0 | G44: =Amortizacion!AA39/$A$5 -> 0 | H44: 0
A45: 39 | B45: =-Amortizacion!Y40/$A$5 -> 0 | C45: =-Amortizacion!H40/$A$5 -> 0 | D45: =(-Amortizacion!I40-Amortizacion!R40)/$A$5 -> 0 | E45: =Amortizacion!O40/$A$5 -> 0 | F45: =(+Amortizacion!L40+Amortizacion!U40)/$A$5 -> 0 | G45: =Amortizacion!AA40/$A$5 -> 0 | H45: 0
A46: 40 | B46: =-Amortizacion!Y41/$A$5 -> 0 | C46: =-Amortizacion!H41/$A$5 -> 0 | D46: =(-Amortizacion!I41-Amortizacion!R41)/$A$5 -> 0 | E46: =Amortizacion!O41/$A$5 -> 0 | F46: =(+Amortizacion!L41+Amortizacion!U41)/$A$5 -> 0 | G46: =Amortizacion!AA41/$A$5 -> 0 | H46: 0
A47: 41 | B47: =-Amortizacion!Y42/$A$5 -> 0 | C47: =-Amortizacion!H42/$A$5 -> 0 | D47: =(-Amortizacion!I42-Amortizacion!R42)/$A$5 -> 0 | E47: =Amortizacion!O42/$A$5 -> 0 | F47: =(+Amortizacion!L42+Amortizacion!U42)/$A$5 -> 0 | G47: =Amortizacion!AA42/$A$5 -> 0 | H47: 0
A48: 42 | B48: =-Amortizacion!Y43/$A$5 -> 0 | C48: =-Amortizacion!H43/$A$5 -> 0 | D48: =(-Amortizacion!I43-Amortizacion!R43)/$A$5 -> 0 | E48: =Amortizacion!O43/$A$5 -> 0 | F48: =(+Amortizacion!L43+Amortizacion!U43)/$A$5 -> 0 | G48: =Amortizacion!AA43/$A$5 -> 0 | H48: 0
A49: 43 | B49: =-Amortizacion!Y44/$A$5 -> 0 | C49: =-Amortizacion!H44/$A$5 -> 0 | D49: =(-Amortizacion!I44-Amortizacion!R44)/$A$5 -> 0 | E49: =Amortizacion!O44/$A$5 -> 0 | F49: =(+Amortizacion!L44+Amortizacion!U44)/$A$5 -> 0 | G49: =Amortizacion!AA44/$A$5 -> 0 | H49: 0
A50: 44 | B50: =-Amortizacion!Y45/$A$5 -> 0 | C50: =-Amortizacion!H45/$A$5 -> 0 | D50: =(-Amortizacion!I45-Amortizacion!R45)/$A$5 -> 0 | E50: =Amortizacion!O45/$A$5 -> 0 | F50: =(+Amortizacion!L45+Amortizacion!U45)/$A$5 -> 0 | G50: =Amortizacion!AA45/$A$5 -> 0 | H50: 0
A51: 45 | B51: =-Amortizacion!Y46/$A$5 -> 0 | C51: =-Amortizacion!H46/$A$5 -> 0 | D51: =(-Amortizacion!I46-Amortizacion!R46)/$A$5 -> 0 | E51: =Amortizacion!O46/$A$5 -> 0 | F51: =(+Amortizacion!L46+Amortizacion!U46)/$A$5 -> 0 | G51: =Amortizacion!AA46/$A$5 -> 0 | H51: 0
A52: 46 | B52: =-Amortizacion!Y47/$A$5 -> 0 | C52: =-Amortizacion!H47/$A$5 -> 0 | D52: =(-Amortizacion!I47-Amortizacion!R47)/$A$5 -> 0 | E52: =Amortizacion!O47/$A$5 -> 0 | F52: =(+Amortizacion!L47+Amortizacion!U47)/$A$5 -> 0 | G52: =Amortizacion!AA47/$A$5 -> 0 | H52: 0
A53: 47 | B53: =-Amortizacion!Y48/$A$5 -> 0 | C53: =-Amortizacion!H48/$A$5 -> 0 | D53: =(-Amortizacion!I48-Amortizacion!R48)/$A$5 -> 0 | E53: =Amortizacion!O48/$A$5 -> 0 | F53: =(+Amortizacion!L48+Amortizacion!U48)/$A$5 -> 0 | G53: =Amortizacion!AA48/$A$5 -> 0 | H53: 0
A54: 48 | B54: =-Amortizacion!Y49/$A$5 -> 0 | C54: =-Amortizacion!H49/$A$5 -> 0 | D54: =(-Amortizacion!I49-Amortizacion!R49)/$A$5 -> 0 | E54: =Amortizacion!O49/$A$5 -> 0 | F54: =(+Amortizacion!L49+Amortizacion!U49)/$A$5 -> 0 | G54: =Amortizacion!AA49/$A$5 -> 0 | H54: 0
A55: 49 | B55: =-Amortizacion!Y50/$A$5 -> 0 | C55: =-Amortizacion!H50/$A$5 -> 0 | D55: =(-Amortizacion!I50-Amortizacion!R50)/$A$5 -> 0 | E55: =Amortizacion!O50/$A$5 -> 0 | F55: =(+Amortizacion!L50+Amortizacion!U50)/$A$5 -> 0 | G55: =Amortizacion!AA50/$A$5 -> 0 | H55: 0
A56: 50 | B56: =-Amortizacion!Y51/$A$5 -> 0 | C56: =-Amortizacion!H51/$A$5 -> 0 | D56: =(-Amortizacion!I51-Amortizacion!R51)/$A$5 -> 0 | E56: =Amortizacion!O51/$A$5 -> 0 | F56: =(+Amortizacion!L51+Amortizacion!U51)/$A$5 -> 0 | G56: =Amortizacion!AA51/$A$5 -> 0 | H56: 0
A57: 51 | B57: =-Amortizacion!Y52/$A$5 -> 0 | C57: =-Amortizacion!H52/$A$5 -> 0 | D57: =(-Amortizacion!I52-Amortizacion!R52)/$A$5 -> 0 | E57: =Amortizacion!O52/$A$5 -> 0 | F57: =(+Amortizacion!L52+Amortizacion!U52)/$A$5 -> 0 | G57: =Amortizacion!AA52/$A$5 -> 0 | H57: 0
A58: 52 | B58: =-Amortizacion!Y53/$A$5 -> 0 | C58: =-Amortizacion!H53/$A$5 -> 0 | D58: =(-Amortizacion!I53-Amortizacion!R53)/$A$5 -> 0 | E58: =Amortizacion!O53/$A$5 -> 0 | F58: =(+Amortizacion!L53+Amortizacion!U53)/$A$5 -> 0 | G58: =Amortizacion!AA53/$A$5 -> 0 | H58: 0
A59: 53 | B59: =-Amortizacion!Y54/$A$5 -> 0 | C59: =-Amortizacion!H54/$A$5 -> 0 | D59: =(-Amortizacion!I54-Amortizacion!R54)/$A$5 -> 0 | E59: =Amortizacion!O54/$A$5 -> 0 | F59: =(+Amortizacion!L54+Amortizacion!U54)/$A$5 -> 0 | G59: =Amortizacion!AA54/$A$5 -> 0 | H59: 0
A60: 54 | B60: =-Amortizacion!Y55/$A$5 -> 0 | C60: =-Amortizacion!H55/$A$5 -> 0 | D60: =(-Amortizacion!I55-Amortizacion!R55)/$A$5 -> 0 | E60: =Amortizacion!O55/$A$5 -> 0 | F60: =(+Amortizacion!L55+Amortizacion!U55)/$A$5 -> 0 | G60: =Amortizacion!AA55/$A$5 -> 0 | H60: 0
A61: 55 | B61: =-Amortizacion!Y56/$A$5 -> 0 | C61: =-Amortizacion!H56/$A$5 -> 0 | D61: =(-Amortizacion!I56-Amortizacion!R56)/$A$5 -> 0 | E61: =Amortizacion!O56/$A$5 -> 0 | F61: =(+Amortizacion!L56+Amortizacion!U56)/$A$5 -> 0 | G61: =Amortizacion!AA56/$A$5 -> 0 | H61: 0
A62: 56 | B62: =-Amortizacion!Y57/$A$5 -> 0 | C62: =-Amortizacion!H57/$A$5 -> 0 | D62: =(-Amortizacion!I57-Amortizacion!R57)/$A$5 -> 0 | E62: =Amortizacion!O57/$A$5 -> 0 | F62: =(+Amortizacion!L57+Amortizacion!U57)/$A$5 -> 0 | G62: =Amortizacion!AA57/$A$5 -> 0 | H62: 0
A63: 57 | B63: =-Amortizacion!Y58/$A$5 -> 0 | C63: =-Amortizacion!H58/$A$5 -> 0 | D63: =(-Amortizacion!I58-Amortizacion!R58)/$A$5 -> 0 | E63: =Amortizacion!O58/$A$5 -> 0 | F63: =(+Amortizacion!L58+Amortizacion!U58)/$A$5 -> 0 | G63: =Amortizacion!AA58/$A$5 -> 0 | H63: 0
A64: 58 | B64: =-Amortizacion!Y59/$A$5 -> 0 | C64: =-Amortizacion!H59/$A$5 -> 0 | D64: =(-Amortizacion!I59-Amortizacion!R59)/$A$5 -> 0 | E64: =Amortizacion!O59/$A$5 -> 0 | F64: =(+Amortizacion!L59+Amortizacion!U59)/$A$5 -> 0 | G64: =Amortizacion!AA59/$A$5 -> 0 | H64: 0
A65: 59 | B65: =-Amortizacion!Y60/$A$5 -> 0 | C65: =-Amortizacion!H60/$A$5 -> 0 | D65: =(-Amortizacion!I60-Amortizacion!R60)/$A$5 -> 0 | E65: =Amortizacion!O60/$A$5 -> 0 | F65: =(+Amortizacion!L60+Amortizacion!U60)/$A$5 -> 0 | G65: =Amortizacion!AA60/$A$5 -> 0 | H65: 0
A66: 60 | B66: =-Amortizacion!Y61/$A$5 -> 0 | C66: =-Amortizacion!H61/$A$5 -> 0 | D66: =(-Amortizacion!I61-Amortizacion!R61)/$A$5 -> 0 | E66: =Amortizacion!O61/$A$5 -> 0 | F66: =(+Amortizacion!L61+Amortizacion!U61)/$A$5 -> 0 | G66: =Amortizacion!AA61/$A$5 -> 0 | H66: 0
A67: 61 | B67: =-Amortizacion!Y62/$A$5 -> 0 | C67: =-Amortizacion!H62/$A$5 -> 0 | D67: =(-Amortizacion!I62-Amortizacion!R62)/$A$5 -> 0 | E67: =Amortizacion!O62/$A$5 -> 0 | F67: =(+Amortizacion!L62+Amortizacion!U62)/$A$5 -> 0 | G67: =Amortizacion!AA62/$A$5 -> 0 | H67: =+F67+G67 -> 0
A68: 62 | B68: =-Amortizacion!Y63/$A$5 -> 0 | C68: =-Amortizacion!H63/$A$5 -> 0 | D68: =(-Amortizacion!I63-Amortizacion!R63)/$A$5 -> 0 | E68: =Amortizacion!O63/$A$5 -> 0 | F68: =(+Amortizacion!L63+Amortizacion!U63)/$A$5 -> 0 | G68: =Amortizacion!AA63/$A$5 -> 0 | H68: 0
A69: 63 | B69: =-Amortizacion!Y64/$A$5 -> 0 | C69: =-Amortizacion!H64/$A$5 -> 0 | D69: =(-Amortizacion!I64-Amortizacion!R64)/$A$5 -> 0 | E69: =Amortizacion!O64/$A$5 -> 0 | F69: =(+Amortizacion!L64+Amortizacion!U64)/$A$5 -> 0 | G69: =Amortizacion!AA64/$A$5 -> 0 | H69: 0
A70: 64 | B70: =-Amortizacion!Y65/$A$5 -> 0 | C70: =-Amortizacion!H65/$A$5 -> 0 | D70: =(-Amortizacion!I65-Amortizacion!R65)/$A$5 -> 0 | E70: =Amortizacion!O65/$A$5 -> 0 | F70: =(+Amortizacion!L65+Amortizacion!U65)/$A$5 -> 0 | G70: =Amortizacion!AA65/$A$5 -> 0 | H70: 0
A71: 65 | B71: =-Amortizacion!Y66/$A$5 -> 0 | C71: =-Amortizacion!H66/$A$5 -> 0 | D71: =(-Amortizacion!I66-Amortizacion!R66)/$A$5 -> 0 | E71: =Amortizacion!O66/$A$5 -> 0 | F71: =(+Amortizacion!L66+Amortizacion!U66)/$A$5 -> 0 | G71: =Amortizacion!AA66/$A$5 -> 0 | H71: 0
A72: 66 | B72: =-Amortizacion!Y67/$A$5 -> 0 | C72: =-Amortizacion!H67/$A$5 -> 0 | D72: =(-Amortizacion!I67-Amortizacion!R67)/$A$5 -> 0 | E72: =Amortizacion!O67/$A$5 -> 0 | F72: =(+Amortizacion!L67+Amortizacion!U67)/$A$5 -> 0 | G72: =Amortizacion!AA67/$A$5 -> 0 | H72: =+F72+G72 -> 0
A73: 67 | B73: =-Amortizacion!Y68/$A$5 -> 0 | C73: =-Amortizacion!H68/$A$5 -> 0 | D73: =(-Amortizacion!I68-Amortizacion!R68)/$A$5 -> 0 | E73: =Amortizacion!O68/$A$5 -> 0 | F73: =(+Amortizacion!L68+Amortizacion!U68)/$A$5 -> 0 | G73: =Amortizacion!AA68/$A$5 -> 0 | H73: 0
A74: 68 | B74: =-Amortizacion!Y69/$A$5 -> 0 | C74: =-Amortizacion!H69/$A$5 -> 0 | D74: =(-Amortizacion!I69-Amortizacion!R69)/$A$5 -> 0 | E74: =Amortizacion!O69/$A$5 -> 0 | F74: =(+Amortizacion!L69+Amortizacion!U69)/$A$5 -> 0 | G74: =Amortizacion!AA69/$A$5 -> 0 | H74: 0
A75: 69 | B75: =-Amortizacion!Y70/$A$5 -> 0 | C75: =-Amortizacion!H70/$A$5 -> 0 | D75: =(-Amortizacion!I70-Amortizacion!R70)/$A$5 -> 0 | E75: =Amortizacion!O70/$A$5 -> 0 | F75: =(+Amortizacion!L70+Amortizacion!U70)/$A$5 -> 0 | G75: =Amortizacion!AA70/$A$5 -> 0 | H75: 0
A76: 70 | B76: =-Amortizacion!Y71/$A$5 -> 0 | C76: =-Amortizacion!H71/$A$5 -> 0 | D76: =(-Amortizacion!I71-Amortizacion!R71)/$A$5 -> 0 | E76: =Amortizacion!O71/$A$5 -> 0 | F76: =(+Amortizacion!L71+Amortizacion!U71)/$A$5 -> 0 | G76: =Amortizacion!AA71/$A$5 -> 0 | H76: 0
A77: 71 | B77: =-Amortizacion!Y72/$A$5 -> 0 | C77: =-Amortizacion!H72/$A$5 -> 0 | D77: =(-Amortizacion!I72-Amortizacion!R72)/$A$5 -> 0 | E77: =Amortizacion!O72/$A$5 -> 0 | F77: =(+Amortizacion!L72+Amortizacion!U72)/$A$5 -> 0 | G77: =Amortizacion!AA72/$A$5 -> 0 | H77: 0
A78: 72 | B78: =-Amortizacion!Y73/$A$5 -> 0 | C78: =-Amortizacion!H73/$A$5 -> 0 | D78: =(-Amortizacion!I73-Amortizacion!R73)/$A$5 -> 0 | E78: =Amortizacion!O73/$A$5 -> 0 | F78: =(+Amortizacion!L73+Amortizacion!U73)/$A$5 -> 0 | G78: =Amortizacion!AA73/$A$5 -> 0 | H78: 0
A79: 73 | B79: =-Amortizacion!Y74/$A$5 -> 0 | C79: =-Amortizacion!H74/$A$5 -> 0 | D79: =(-Amortizacion!I74-Amortizacion!R74)/$A$5 -> 0 | E79: =Amortizacion!O74/$A$5 -> 0 | F79: =(+Amortizacion!L74+Amortizacion!U74)/$A$5 -> 0 | G79: =Amortizacion!AA74/$A$5 -> 0 | H79: 0
A80: 74 | B80: =-Amortizacion!Y75/$A$5 -> 0 | C80: =-Amortizacion!H75/$A$5 -> 0 | D80: =(-Amortizacion!I75-Amortizacion!R75)/$A$5 -> 0 | E80: =Amortizacion!O75/$A$5 -> 0 | F80: =(+Amortizacion!L75+Amortizacion!U75)/$A$5 -> 0 | G80: =Amortizacion!AA75/$A$5 -> 0 | H80: 0
A81: 75 | B81: =-Amortizacion!Y76/$A$5 -> 0 | C81: =-Amortizacion!H76/$A$5 -> 0 | D81: =(-Amortizacion!I76-Amortizacion!R76)/$A$5 -> 0 | E81: =Amortizacion!O76/$A$5 -> 0 | F81: =(+Amortizacion!L76+Amortizacion!U76)/$A$5 -> 0 | G81: =Amortizacion!AA76/$A$5 -> 0 | H81: 0
A82: 76 | B82: =-Amortizacion!Y77/$A$5 -> 0 | C82: =-Amortizacion!H77/$A$5 -> 0 | D82: =(-Amortizacion!I77-Amortizacion!R77)/$A$5 -> 0 | E82: =Amortizacion!O77/$A$5 -> 0 | F82: =(+Amortizacion!L77+Amortizacion!U77)/$A$5 -> 0 | G82: =Amortizacion!AA77/$A$5 -> 0 | H82: 0
A83: 77 | B83: =-Amortizacion!Y78/$A$5 -> 0 | C83: =-Amortizacion!H78/$A$5 -> 0 | D83: =(-Amortizacion!I78-Amortizacion!R78)/$A$5 -> 0 | E83: =Amortizacion!O78/$A$5 -> 0 | F83: =(+Amortizacion!L78+Amortizacion!U78)/$A$5 -> 0 | G83: =Amortizacion!AA78/$A$5 -> 0 | H83: 0
A84: 78 | B84: =-Amortizacion!Y79/$A$5 -> 0 | C84: =-Amortizacion!H79/$A$5 -> 0 | D84: =(-Amortizacion!I79-Amortizacion!R79)/$A$5 -> 0 | E84: =Amortizacion!O79/$A$5 -> 0 | F84: =(+Amortizacion!L79+Amortizacion!U79)/$A$5 -> 0 | G84: =Amortizacion!AA79/$A$5 -> 0 | H84: 0
A85: 79 | B85: =-Amortizacion!Y80/$A$5 -> 0 | C85: =-Amortizacion!H80/$A$5 -> 0 | D85: =(-Amortizacion!I80-Amortizacion!R80)/$A$5 -> 0 | E85: =Amortizacion!O80/$A$5 -> 0 | F85: =(+Amortizacion!L80+Amortizacion!U80)/$A$5 -> 0 | G85: =Amortizacion!AA80/$A$5 -> 0 | H85: 0
A86: 80 | B86: =-Amortizacion!Y81/$A$5 -> 0 | C86: =-Amortizacion!H81/$A$5 -> 0 | D86: =(-Amortizacion!I81-Amortizacion!R81)/$A$5 -> 0 | E86: =Amortizacion!O81/$A$5 -> 0 | F86: =(+Amortizacion!L81+Amortizacion!U81)/$A$5 -> 0 | G86: =Amortizacion!AA81/$A$5 -> 0 | H86: 0
A87: 81 | B87: =-Amortizacion!Y82/$A$5 -> 0 | C87: =-Amortizacion!H82/$A$5 -> 0 | D87: =(-Amortizacion!I82-Amortizacion!R82)/$A$5 -> 0 | E87: =Amortizacion!O82/$A$5 -> 0 | F87: =(+Amortizacion!L82+Amortizacion!U82)/$A$5 -> 0 | G87: =Amortizacion!AA82/$A$5 -> 0 | H87: 0
A88: 82 | B88: =-Amortizacion!Y83/$A$5 -> 0 | C88: =-Amortizacion!H83/$A$5 -> 0 | D88: =(-Amortizacion!I83-Amortizacion!R83)/$A$5 -> 0 | E88: =Amortizacion!O83/$A$5 -> 0 | F88: =(+Amortizacion!L83+Amortizacion!U83)/$A$5 -> 0 | G88: =Amortizacion!AA83/$A$5 -> 0 | H88: 0
A89: 83 | B89: =-Amortizacion!Y84/$A$5 -> 0 | C89: =-Amortizacion!H84/$A$5 -> 0 | D89: =(-Amortizacion!I84-Amortizacion!R84)/$A$5 -> 0 | E89: =Amortizacion!O84/$A$5 -> 0 | F89: =(+Amortizacion!L84+Amortizacion!U84)/$A$5 -> 0 | G89: =Amortizacion!AA84/$A$5 -> 0 | H89: 0
A90: 84 | B90: =-Amortizacion!Y85/$A$5 -> 0 | C90: =-Amortizacion!H85/$A$5 -> 0 | D90: =(-Amortizacion!I85-Amortizacion!R85)/$A$5 -> 0 | E90: =Amortizacion!O85/$A$5 -> 0 | F90: =(+Amortizacion!L85+Amortizacion!U85)/$A$5 -> 0 | G90: =Amortizacion!AA85/$A$5 -> 0 | H90: 0
A91: 85 | B91: =-Amortizacion!Y86/$A$5 -> 0 | C91: =-Amortizacion!H86/$A$5 -> 0 | D91: =(-Amortizacion!I86-Amortizacion!R86)/$A$5 -> 0 | E91: =Amortizacion!O86/$A$5 -> 0 | F91: =(+Amortizacion!L86+Amortizacion!U86)/$A$5 -> 0 | G91: =Amortizacion!AA86/$A$5 -> 0 | H91: 0
A92: 86 | B92: =-Amortizacion!Y87/$A$5 -> 0 | C92: =-Amortizacion!H87/$A$5 -> 0 | D92: =(-Amortizacion!I87-Amortizacion!R87)/$A$5 -> 0 | E92: =Amortizacion!O87/$A$5 -> 0 | F92: =(+Amortizacion!L87+Amortizacion!U87)/$A$5 -> 0 | G92: =Amortizacion!AA87/$A$5 -> 0 | H92: 0
A93: 87 | B93: =-Amortizacion!Y88/$A$5 -> 0 | C93: =-Amortizacion!H88/$A$5 -> 0 | D93: =(-Amortizacion!I88-Amortizacion!R88)/$A$5 -> 0 | E93: =Amortizacion!O88/$A$5 -> 0 | F93: =(+Amortizacion!L88+Amortizacion!U88)/$A$5 -> 0 | G93: =Amortizacion!AA88/$A$5 -> 0 | H93: 0
A94: 88 | B94: =-Amortizacion!Y89/$A$5 -> 0 | C94: =-Amortizacion!H89/$A$5 -> 0 | D94: =(-Amortizacion!I89-Amortizacion!R89)/$A$5 -> 0 | E94: =Amortizacion!O89/$A$5 -> 0 | F94: =(+Amortizacion!L89+Amortizacion!U89)/$A$5 -> 0 | G94: =Amortizacion!AA89/$A$5 -> 0 | H94: 0
A95: 89 | B95: =-Amortizacion!Y90/$A$5 -> 0 | C95: =-Amortizacion!H90/$A$5 -> 0 | D95: =(-Amortizacion!I90-Amortizacion!R90)/$A$5 -> 0 | E95: =Amortizacion!O90/$A$5 -> 0 | F95: =(+Amortizacion!L90+Amortizacion!U90)/$A$5 -> 0 | G95: =Amortizacion!AA90/$A$5 -> 0 | H95: 0
A96: 90 | B96: =-Amortizacion!Y91/$A$5 -> 0 | C96: =-Amortizacion!H91/$A$5 -> 0 | D96: =(-Amortizacion!I91-Amortizacion!R91)/$A$5 -> 0 | E96: =Amortizacion!O91/$A$5 -> 0 | F96: =(+Amortizacion!L91+Amortizacion!U91)/$A$5 -> 0 | G96: =Amortizacion!AA91/$A$5 -> 0 | H96: 0
A97: 91 | B97: =-Amortizacion!Y92/$A$5 -> 0 | C97: =-Amortizacion!H92/$A$5 -> 0 | D97: =(-Amortizacion!I92-Amortizacion!R92)/$A$5 -> 0 | E97: =Amortizacion!O92/$A$5 -> 0 | F97: =(+Amortizacion!L92+Amortizacion!U92)/$A$5 -> 0 | G97: =Amortizacion!AA92/$A$5 -> 0 | H97: 0
A98: 92 | B98: =-Amortizacion!Y93/$A$5 -> 0 | C98: =-Amortizacion!H93/$A$5 -> 0 | D98: =(-Amortizacion!I93-Amortizacion!R93)/$A$5 -> 0 | E98: =Amortizacion!O93/$A$5 -> 0 | F98: =(+Amortizacion!L93+Amortizacion!U93)/$A$5 -> 0 | G98: =Amortizacion!AA93/$A$5 -> 0 | H98: 0
A99: 93 | B99: =-Amortizacion!Y94/$A$5 -> 0 | C99: =-Amortizacion!H94/$A$5 -> 0 | D99: =(-Amortizacion!I94-Amortizacion!R94)/$A$5 -> 0 | E99: =Amortizacion!O94/$A$5 -> 0 | F99: =(+Amortizacion!L94+Amortizacion!U94)/$A$5 -> 0 | G99: =Amortizacion!AA94/$A$5 -> 0 | H99: 0
A100: 94 | B100: =-Amortizacion!Y95/$A$5 -> 0 | C100: =-Amortizacion!H95/$A$5 -> 0 | D100: =(-Amortizacion!I95-Amortizacion!R95)/$A$5 -> 0 | E100: =Amortizacion!O95/$A$5 -> 0 | F100: =(+Amortizacion!L95+Amortizacion!U95)/$A$5 -> 0 | G100: =Amortizacion!AA95/$A$5 -> 0 | H100: 0
A101: 95 | B101: =-Amortizacion!Y96/$A$5 -> 0 | C101: =-Amortizacion!H96/$A$5 -> 0 | D101: =(-Amortizacion!I96-Amortizacion!R96)/$A$5 -> 0 | E101: =Amortizacion!O96/$A$5 -> 0 | F101: =(+Amortizacion!L96+Amortizacion!U96)/$A$5 -> 0 | G101: =Amortizacion!AA96/$A$5 -> 0 | H101: 0
A102: 96 | B102: =-Amortizacion!Y97/$A$5 -> 0 | C102: =-Amortizacion!H97/$A$5 -> 0 | D102: =(-Amortizacion!I97-Amortizacion!R97)/$A$5 -> 0 | E102: =Amortizacion!O97/$A$5 -> 0 | F102: =(+Amortizacion!L97+Amortizacion!U97)/$A$5 -> 0 | G102: =Amortizacion!AA97/$A$5 -> 0 | H102: 0
A103: 97 | B103: =-Amortizacion!Y98/$A$5 -> 0 | C103: =-Amortizacion!H98/$A$5 -> 0 | D103: =(-Amortizacion!I98-Amortizacion!R98)/$A$5 -> 0 | E103: =Amortizacion!O98/$A$5 -> 0 | F103: =(+Amortizacion!L98+Amortizacion!U98)/$A$5 -> 0 | G103: =Amortizacion!AA98/$A$5 -> 0 | H103: 0
A104: 98 | B104: =-Amortizacion!Y99/$A$5 -> 0 | C104: =-Amortizacion!H99/$A$5 -> 0 | D104: =(-Amortizacion!I99-Amortizacion!R99)/$A$5 -> 0 | E104: =Amortizacion!O99/$A$5 -> 0 | F104: =(+Amortizacion!L99+Amortizacion!U99)/$A$5 -> 0 | G104: =Amortizacion!AA99/$A$5 -> 0 | H104: 0
A105: 99 | B105: =-Amortizacion!Y100/$A$5 -> 0 | C105: =-Amortizacion!H100/$A$5 -> 0 | D105: =(-Amortizacion!I100-Amortizacion!R100)/$A$5 -> 0 | E105: =Amortizacion!O100/$A$5 -> 0 | F105: =(+Amortizacion!L100+Amortizacion!U100)/$A$5 -> 0 | G105: =Amortizacion!AA100/$A$5 -> 0 | H105: 0
A106: 100 | B106: =-Amortizacion!Y101/$A$5 -> 0 | C106: =-Amortizacion!H101/$A$5 -> 0 | D106: =(-Amortizacion!I101-Amortizacion!R101)/$A$5 -> 0 | E106: =Amortizacion!O101/$A$5 -> 0 | F106: =(+Amortizacion!L101+Amortizacion!U101)/$A$5 -> 0 | G106: =Amortizacion!AA101/$A$5 -> 0 | H106: 0
A107: 101 | B107: =-Amortizacion!Y102/$A$5 -> 0 | C107: =-Amortizacion!H102/$A$5 -> 0 | D107: =(-Amortizacion!I102-Amortizacion!R102)/$A$5 -> 0 | E107: =Amortizacion!O102/$A$5 -> 0 | F107: =(+Amortizacion!L102+Amortizacion!U102)/$A$5 -> 0 | G107: =Amortizacion!AA102/$A$5 -> 0 | H107: 0
A108: 102 | B108: =-Amortizacion!Y103/$A$5 -> 0 | C108: =-Amortizacion!H103/$A$5 -> 0 | D108: =(-Amortizacion!I103-Amortizacion!R103)/$A$5 -> 0 | E108: =Amortizacion!O103/$A$5 -> 0 | F108: =(+Amortizacion!L103+Amortizacion!U103)/$A$5 -> 0 | G108: =Amortizacion!AA103/$A$5 -> 0 | H108: 0
A109: 103 | B109: =-Amortizacion!Y104/$A$5 -> 0 | C109: =-Amortizacion!H104/$A$5 -> 0 | D109: =(-Amortizacion!I104-Amortizacion!R104)/$A$5 -> 0 | E109: =Amortizacion!O104/$A$5 -> 0 | F109: =(+Amortizacion!L104+Amortizacion!U104)/$A$5 -> 0 | G109: =Amortizacion!AA104/$A$5 -> 0 | H109: 0
A110: 104 | B110: =-Amortizacion!Y105/$A$5 -> 0 | C110: =-Amortizacion!H105/$A$5 -> 0 | D110: =(-Amortizacion!I105-Amortizacion!R105)/$A$5 -> 0 | E110: =Amortizacion!O105/$A$5 -> 0 | F110: =(+Amortizacion!L105+Amortizacion!U105)/$A$5 -> 0 | G110: =Amortizacion!AA105/$A$5 -> 0 | H110: 0
A111: 105 | B111: =-Amortizacion!Y106/$A$5 -> 0 | C111: =-Amortizacion!H106/$A$5 -> 0 | D111: =(-Amortizacion!I106-Amortizacion!R106)/$A$5 -> 0 | E111: =Amortizacion!O106/$A$5 -> 0 | F111: =(+Amortizacion!L106+Amortizacion!U106)/$A$5 -> 0 | G111: =Amortizacion!AA106/$A$5 -> 0 | H111: 0
A112: 106 | B112: =-Amortizacion!Y107/$A$5 -> 0 | C112: =-Amortizacion!H107/$A$5 -> 0 | D112: =(-Amortizacion!I107-Amortizacion!R107)/$A$5 -> 0 | E112: =Amortizacion!O107/$A$5 -> 0 | F112: =(+Amortizacion!L107+Amortizacion!U107)/$A$5 -> 0 | G112: =Amortizacion!AA107/$A$5 -> 0 | H112: 0
A113: 107 | B113: =-Amortizacion!Y108/$A$5 -> 0 | C113: =-Amortizacion!H108/$A$5 -> 0 | D113: =(-Amortizacion!I108-Amortizacion!R108)/$A$5 -> 0 | E113: =Amortizacion!O108/$A$5 -> 0 | F113: =(+Amortizacion!L108+Amortizacion!U108)/$A$5 -> 0 | G113: =Amortizacion!AA108/$A$5 -> 0 | H113: 0
A114: 108 | B114: =-Amortizacion!Y109/$A$5 -> 0 | C114: =-Amortizacion!H109/$A$5 -> 0 | D114: =(-Amortizacion!I109-Amortizacion!R109)/$A$5 -> 0 | E114: =Amortizacion!O109/$A$5 -> 0 | F114: =(+Amortizacion!L109+Amortizacion!U109)/$A$5 -> 0 | G114: =Amortizacion!AA109/$A$5 -> 0 | H114: 0
A115: 109 | B115: =-Amortizacion!Y110/$A$5 -> 0 | C115: =-Amortizacion!H110/$A$5 -> 0 | D115: =(-Amortizacion!I110-Amortizacion!R110)/$A$5 -> 0 | E115: =Amortizacion!O110/$A$5 -> 0 | F115: =(+Amortizacion!L110+Amortizacion!U110)/$A$5 -> 0 | G115: =Amortizacion!AA110/$A$5 -> 0 | H115: 0
A116: 110 | B116: =-Amortizacion!Y111/$A$5 -> 0 | C116: =-Amortizacion!H111/$A$5 -> 0 | D116: =(-Amortizacion!I111-Amortizacion!R111)/$A$5 -> 0 | E116: =Amortizacion!O111/$A$5 -> 0 | F116: =(+Amortizacion!L111+Amortizacion!U111)/$A$5 -> 0 | G116: =Amortizacion!AA111/$A$5 -> 0 | H116: 0
A117: 111 | B117: =-Amortizacion!Y112/$A$5 -> 0 | C117: =-Amortizacion!H112/$A$5 -> 0 | D117: =(-Amortizacion!I112-Amortizacion!R112)/$A$5 -> 0 | E117: =Amortizacion!O112/$A$5 -> 0 | F117: =(+Amortizacion!L112+Amortizacion!U112)/$A$5 -> 0 | G117: =Amortizacion!AA112/$A$5 -> 0 | H117: 0
A118: 112 | B118: =-Amortizacion!Y113/$A$5 -> 0 | C118: =-Amortizacion!H113/$A$5 -> 0 | D118: =(-Amortizacion!I113-Amortizacion!R113)/$A$5 -> 0 | E118: =Amortizacion!O113/$A$5 -> 0 | F118: =(+Amortizacion!L113+Amortizacion!U113)/$A$5 -> 0 | G118: =Amortizacion!AA113/$A$5 -> 0 | H118: 0
A119: 113 | B119: =-Amortizacion!Y114/$A$5 -> 0 | C119: =-Amortizacion!H114/$A$5 -> 0 | D119: =(-Amortizacion!I114-Amortizacion!R114)/$A$5 -> 0 | E119: =Amortizacion!O114/$A$5 -> 0 | F119: =(+Amortizacion!L114+Amortizacion!U114)/$A$5 -> 0 | G119: =Amortizacion!AA114/$A$5 -> 0 | H119: 0
A120: 114 | B120: =-Amortizacion!Y115/$A$5 -> 0 | C120: =-Amortizacion!H115/$A$5 -> 0 | D120: =(-Amortizacion!I115-Amortizacion!R115)/$A$5 -> 0 | E120: =Amortizacion!O115/$A$5 -> 0 | F120: =(+Amortizacion!L115+Amortizacion!U115)/$A$5 -> 0 | G120: =Amortizacion!AA115/$A$5 -> 0 | H120: 0
A121: 115 | B121: =-Amortizacion!Y116/$A$5 -> 0 | C121: =-Amortizacion!H116/$A$5 -> 0 | D121: =(-Amortizacion!I116-Amortizacion!R116)/$A$5 -> 0 | E121: =Amortizacion!O116/$A$5 -> 0 | F121: =(+Amortizacion!L116+Amortizacion!U116)/$A$5 -> 0 | G121: =Amortizacion!AA116/$A$5 -> 0 | H121: 0
A122: 116 | B122: =-Amortizacion!Y117/$A$5 -> 0 | C122: =-Amortizacion!H117/$A$5 -> 0 | D122: =(-Amortizacion!I117-Amortizacion!R117)/$A$5 -> 0 | E122: =Amortizacion!O117/$A$5 -> 0 | F122: =(+Amortizacion!L117+Amortizacion!U117)/$A$5 -> 0 | G122: =Amortizacion!AA117/$A$5 -> 0 | H122: 0
A123: 117 | B123: =-Amortizacion!Y118/$A$5 -> 0 | C123: =-Amortizacion!H118/$A$5 -> 0 | D123: =(-Amortizacion!I118-Amortizacion!R118)/$A$5 -> 0 | E123: =Amortizacion!O118/$A$5 -> 0 | F123: =(+Amortizacion!L118+Amortizacion!U118)/$A$5 -> 0 | G123: =Amortizacion!AA118/$A$5 -> 0 | H123: 0
A124: 118 | B124: =-Amortizacion!Y119/$A$5 -> 0 | C124: =-Amortizacion!H119/$A$5 -> 0 | D124: =(-Amortizacion!I119-Amortizacion!R119)/$A$5 -> 0 | E124: =Amortizacion!O119/$A$5 -> 0 | F124: =(+Amortizacion!L119+Amortizacion!U119)/$A$5 -> 0 | G124: =Amortizacion!AA119/$A$5 -> 0 | H124: 0
A125: 119 | B125: =-Amortizacion!Y120/$A$5 -> 0 | C125: =-Amortizacion!H120/$A$5 -> 0 | D125: =(-Amortizacion!I120-Amortizacion!R120)/$A$5 -> 0 | E125: =Amortizacion!O120/$A$5 -> 0 | F125: =(+Amortizacion!L120+Amortizacion!U120)/$A$5 -> 0 | G125: =Amortizacion!AA120/$A$5 -> 0 | H125: 0
A126: 120 | B126: =-Amortizacion!Y121/$A$5 -> 0 | C126: =-Amortizacion!H121/$A$5 -> 0 | D126: =(-Amortizacion!I121-Amortizacion!R121)/$A$5 -> 0 | E126: =Amortizacion!O121/$A$5 -> 0 | F126: =(+Amortizacion!L121+Amortizacion!U121)/$A$5 -> 0 | G126: =Amortizacion!AA121/$A$5 -> 0 | H126: 0
A127: 121 | B127: =-Amortizacion!Y122/$A$5 -> 0 | C127: =-Amortizacion!H122/$A$5 -> 0 | D127: =(-Amortizacion!I122-Amortizacion!R122)/$A$5 -> 0 | E127: =Amortizacion!O122/$A$5 -> 0 | F127: =(+Amortizacion!L122+Amortizacion!U122)/$A$5 -> 0 | G127: =Amortizacion!AA122/$A$5 -> 0 | H127: 0
A128: 122 | B128: =-Amortizacion!Y123/$A$5 -> 0 | C128: =-Amortizacion!H123/$A$5 -> 0 | D128: =(-Amortizacion!I123-Amortizacion!R123)/$A$5 -> 0 | E128: =Amortizacion!O123/$A$5 -> 0 | F128: =(+Amortizacion!L123+Amortizacion!U123)/$A$5 -> 0 | G128: =Amortizacion!AA123/$A$5 -> 0 | H128: 0
A129: 123 | B129: =-Amortizacion!Y124/$A$5 -> 0 | C129: =-Amortizacion!H124/$A$5 -> 0 | D129: =(-Amortizacion!I124-Amortizacion!R124)/$A$5 -> 0 | E129: =Amortizacion!O124/$A$5 -> 0 | F129: =(+Amortizacion!L124+Amortizacion!U124)/$A$5 -> 0 | G129: =Amortizacion!AA124/$A$5 -> 0 | H129: 0
A130: 124 | B130: =-Amortizacion!Y125/$A$5 -> 0 | C130: =-Amortizacion!H125/$A$5 -> 0 | D130: =(-Amortizacion!I125-Amortizacion!R125)/$A$5 -> 0 | E130: =Amortizacion!O125/$A$5 -> 0 | F130: =(+Amortizacion!L125+Amortizacion!U125)/$A$5 -> 0 | G130: =Amortizacion!AA125/$A$5 -> 0 | H130: 0
A131: 125 | B131: =-Amortizacion!Y126/$A$5 -> 0 | C131: =-Amortizacion!H126/$A$5 -> 0 | D131: =(-Amortizacion!I126-Amortizacion!R126)/$A$5 -> 0 | E131: =Amortizacion!O126/$A$5 -> 0 | F131: =(+Amortizacion!L126+Amortizacion!U126)/$A$5 -> 0 | G131: =Amortizacion!AA126/$A$5 -> 0 | H131: 0
A132: 126 | B132: =-Amortizacion!Y127/$A$5 -> 0 | C132: =-Amortizacion!H127/$A$5 -> 0 | D132: =(-Amortizacion!I127-Amortizacion!R127)/$A$5 -> 0 | E132: =Amortizacion!O127/$A$5 -> 0 | F132: =(+Amortizacion!L127+Amortizacion!U127)/$A$5 -> 0 | G132: =Amortizacion!AA127/$A$5 -> 0 | H132: 0
A133: 127 | B133: =-Amortizacion!Y128/$A$5 -> 0 | C133: =-Amortizacion!H128/$A$5 -> 0 | D133: =(-Amortizacion!I128-Amortizacion!R128)/$A$5 -> 0 | E133: =Amortizacion!O128/$A$5 -> 0 | F133: =(+Amortizacion!L128+Amortizacion!U128)/$A$5 -> 0 | G133: =Amortizacion!AA128/$A$5 -> 0 | H133: 0
A134: 128 | B134: =-Amortizacion!Y129/$A$5 -> 0 | C134: =-Amortizacion!H129/$A$5 -> 0 | D134: =(-Amortizacion!I129-Amortizacion!R129)/$A$5 -> 0 | E134: =Amortizacion!O129/$A$5 -> 0 | F134: =(+Amortizacion!L129+Amortizacion!U129)/$A$5 -> 0 | G134: =Amortizacion!AA129/$A$5 -> 0 | H134: 0
A135: 129 | B135: =-Amortizacion!Y130/$A$5 -> 0 | C135: =-Amortizacion!H130/$A$5 -> 0 | D135: =(-Amortizacion!I130-Amortizacion!R130)/$A$5 -> 0 | E135: =Amortizacion!O130/$A$5 -> 0 | F135: =(+Amortizacion!L130+Amortizacion!U130)/$A$5 -> 0 | G135: =Amortizacion!AA130/$A$5 -> 0 | H135: 0
A136: 130 | B136: =-Amortizacion!Y131/$A$5 -> 0 | C136: =-Amortizacion!H131/$A$5 -> 0 | D136: =(-Amortizacion!I131-Amortizacion!R131)/$A$5 -> 0 | E136: =Amortizacion!O131/$A$5 -> 0 | F136: =(+Amortizacion!L131+Amortizacion!U131)/$A$5 -> 0 | G136: =Amortizacion!AA131/$A$5 -> 0 | H136: =+F136+G136 -> 0
A137: 131 | B137: =-Amortizacion!Y132/$A$5 -> 0 | C137: =-Amortizacion!H132/$A$5 -> 0 | D137: =(-Amortizacion!I132-Amortizacion!R132)/$A$5 -> 0 | E137: =Amortizacion!O132/$A$5 -> 0 | F137: =(+Amortizacion!L132+Amortizacion!U132)/$A$5 -> 0 | G137: =Amortizacion!AA132/$A$5 -> 0 | H137: 0
A138: 132 | B138: =-Amortizacion!Y133/$A$5 -> 0 | C138: =-Amortizacion!H133/$A$5 -> 0 | D138: =(-Amortizacion!I133-Amortizacion!R133)/$A$5 -> 0 | E138: =Amortizacion!O133/$A$5 -> 0 | F138: =(+Amortizacion!L133+Amortizacion!U133)/$A$5 -> 0 | G138: =Amortizacion!AA133/$A$5 -> 0 | H138: 0
A139: 133 | B139: =-Amortizacion!Y134/$A$5 -> 0 | C139: =-Amortizacion!H134/$A$5 -> 0 | D139: =(-Amortizacion!I134-Amortizacion!R134)/$A$5 -> 0 | E139: =Amortizacion!O134/$A$5 -> 0 | F139: =(+Amortizacion!L134+Amortizacion!U134)/$A$5 -> 0 | G139: =Amortizacion!AA134/$A$5 -> 0 | H139: 0
A140: 134 | B140: =-Amortizacion!Y135/$A$5 -> 0 | C140: =-Amortizacion!H135/$A$5 -> 0 | D140: =(-Amortizacion!I135-Amortizacion!R135)/$A$5 -> 0 | E140: =Amortizacion!O135/$A$5 -> 0 | F140: =(+Amortizacion!L135+Amortizacion!U135)/$A$5 -> 0 | G140: =Amortizacion!AA135/$A$5 -> 0 | H140: 0
A141: 135 | B141: =-Amortizacion!Y136/$A$5 -> 0 | C141: =-Amortizacion!H136/$A$5 -> 0 | D141: =(-Amortizacion!I136-Amortizacion!R136)/$A$5 -> 0 | E141: =Amortizacion!O136/$A$5 -> 0 | F141: =(+Amortizacion!L136+Amortizacion!U136)/$A$5 -> 0 | G141: =Amortizacion!AA136/$A$5 -> 0 | H141: 0
A142: 136 | B142: =-Amortizacion!Y137/$A$5 -> 0 | C142: =-Amortizacion!H137/$A$5 -> 0 | D142: =(-Amortizacion!I137-Amortizacion!R137)/$A$5 -> 0 | E142: =Amortizacion!O137/$A$5 -> 0 | F142: =(+Amortizacion!L137+Amortizacion!U137)/$A$5 -> 0 | G142: =Amortizacion!AA137/$A$5 -> 0 | H142: 0
A143: 137 | B143: =-Amortizacion!Y138/$A$5 -> 0 | C143: =-Amortizacion!H138/$A$5 -> 0 | D143: =(-Amortizacion!I138-Amortizacion!R138)/$A$5 -> 0 | E143: =Amortizacion!O138/$A$5 -> 0 | F143: =(+Amortizacion!L138+Amortizacion!U138)/$A$5 -> 0 | G143: =Amortizacion!AA138/$A$5 -> 0 | H143: 0
A144: 138 | B144: =-Amortizacion!Y139/$A$5 -> 0 | C144: =-Amortizacion!H139/$A$5 -> 0 | D144: =(-Amortizacion!I139-Amortizacion!R139)/$A$5 -> 0 | E144: =Amortizacion!O139/$A$5 -> 0 | F144: =(+Amortizacion!L139+Amortizacion!U139)/$A$5 -> 0 | G144: =Amortizacion!AA139/$A$5 -> 0 | H144: 0
A145: 139 | B145: =-Amortizacion!Y140/$A$5 -> 0 | C145: =-Amortizacion!H140/$A$5 -> 0 | D145: =(-Amortizacion!I140-Amortizacion!R140)/$A$5 -> 0 | E145: =Amortizacion!O140/$A$5 -> 0 | F145: =(+Amortizacion!L140+Amortizacion!U140)/$A$5 -> 0 | G145: =Amortizacion!AA140/$A$5 -> 0 | H145: 0
A146: 140 | B146: =-Amortizacion!Y141/$A$5 -> 0 | C146: =-Amortizacion!H141/$A$5 -> 0 | D146: =(-Amortizacion!I141-Amortizacion!R141)/$A$5 -> 0 | E146: =Amortizacion!O141/$A$5 -> 0 | F146: =(+Amortizacion!L141+Amortizacion!U141)/$A$5 -> 0 | G146: =Amortizacion!AA141/$A$5 -> 0 | H146: 0
A147: 141 | B147: =-Amortizacion!Y142/$A$5 -> 0 | C147: =-Amortizacion!H142/$A$5 -> 0 | D147: =(-Amortizacion!I142-Amortizacion!R142)/$A$5 -> 0 | E147: =Amortizacion!O142/$A$5 -> 0 | F147: =(+Amortizacion!L142+Amortizacion!U142)/$A$5 -> 0 | G147: =Amortizacion!AA142/$A$5 -> 0 | H147: 0
A148: 142 | B148: =-Amortizacion!Y143/$A$5 -> 0 | C148: =-Amortizacion!H143/$A$5 -> 0 | D148: =(-Amortizacion!I143-Amortizacion!R143)/$A$5 -> 0 | E148: =Amortizacion!O143/$A$5 -> 0 | F148: =(+Amortizacion!L143+Amortizacion!U143)/$A$5 -> 0 | G148: =Amortizacion!AA143/$A$5 -> 0 | H148: 0
A149: 143 | B149: =-Amortizacion!Y144/$A$5 -> 0 | C149: =-Amortizacion!H144/$A$5 -> 0 | D149: =(-Amortizacion!I144-Amortizacion!R144)/$A$5 -> 0 | E149: =Amortizacion!O144/$A$5 -> 0 | F149: =(+Amortizacion!L144+Amortizacion!U144)/$A$5 -> 0 | G149: =Amortizacion!AA144/$A$5 -> 0 | H149: 0
A150: 144 | B150: =-Amortizacion!Y145/$A$5 -> 0 | C150: =-Amortizacion!H145/$A$5 -> 0 | D150: =(-Amortizacion!I145-Amortizacion!R145)/$A$5 -> 0 | E150: =Amortizacion!O145/$A$5 -> 0 | F150: =(+Amortizacion!L145+Amortizacion!U145)/$A$5 -> 0 | G150: =Amortizacion!AA145/$A$5 -> 0 | H150: 0
A151: 145 | B151: =-Amortizacion!Y146/$A$5 -> 0 | C151: =-Amortizacion!H146/$A$5 -> 0 | D151: =(-Amortizacion!I146-Amortizacion!R146)/$A$5 -> 0 | E151: =Amortizacion!O146/$A$5 -> 0 | F151: =(+Amortizacion!L146+Amortizacion!U146)/$A$5 -> 0 | G151: =Amortizacion!AA146/$A$5 -> 0 | H151: 0
A152: 146 | B152: =-Amortizacion!Y147/$A$5 -> 0 | C152: =-Amortizacion!H147/$A$5 -> 0 | D152: =(-Amortizacion!I147-Amortizacion!R147)/$A$5 -> 0 | E152: =Amortizacion!O147/$A$5 -> 0 | F152: =(+Amortizacion!L147+Amortizacion!U147)/$A$5 -> 0 | G152: =Amortizacion!AA147/$A$5 -> 0 | H152: 0
A153: 147 | B153: =-Amortizacion!Y148/$A$5 -> 0 | C153: =-Amortizacion!H148/$A$5 -> 0 | D153: =(-Amortizacion!I148-Amortizacion!R148)/$A$5 -> 0 | E153: =Amortizacion!O148/$A$5 -> 0 | F153: =(+Amortizacion!L148+Amortizacion!U148)/$A$5 -> 0 | G153: =Amortizacion!AA148/$A$5 -> 0 | H153: 0
A154: 148 | B154: =-Amortizacion!Y149/$A$5 -> 0 | C154: =-Amortizacion!H149/$A$5 -> 0 | D154: =(-Amortizacion!I149-Amortizacion!R149)/$A$5 -> 0 | E154: =Amortizacion!O149/$A$5 -> 0 | F154: =(+Amortizacion!L149+Amortizacion!U149)/$A$5 -> 0 | G154: =Amortizacion!AA149/$A$5 -> 0 | H154: 0
A155: 149 | B155: =-Amortizacion!Y150/$A$5 -> 0 | C155: =-Amortizacion!H150/$A$5 -> 0 | D155: =(-Amortizacion!I150-Amortizacion!R150)/$A$5 -> 0 | E155: =Amortizacion!O150/$A$5 -> 0 | F155: =(+Amortizacion!L150+Amortizacion!U150)/$A$5 -> 0 | G155: =Amortizacion!AA150/$A$5 -> 0 | H155: 0
A156: 150 | B156: =-Amortizacion!Y151/$A$5 -> 0 | C156: =-Amortizacion!H151/$A$5 -> 0 | D156: =(-Amortizacion!I151-Amortizacion!R151)/$A$5 -> 0 | E156: =Amortizacion!O151/$A$5 -> 0 | F156: =(+Amortizacion!L151+Amortizacion!U151)/$A$5 -> 0 | G156: =Amortizacion!AA151/$A$5 -> 0 | H156: 0
A157: 151 | B157: =-Amortizacion!Y152/$A$5 -> 0 | C157: =-Amortizacion!H152/$A$5 -> 0 | D157: =(-Amortizacion!I152-Amortizacion!R152)/$A$5 -> 0 | E157: =Amortizacion!O152/$A$5 -> 0 | F157: =(+Amortizacion!L152+Amortizacion!U152)/$A$5 -> 0 | G157: =Amortizacion!AA152/$A$5 -> 0 | H157: 0
A158: 152 | B158: =-Amortizacion!Y153/$A$5 -> 0 | C158: =-Amortizacion!H153/$A$5 -> 0 | D158: =(-Amortizacion!I153-Amortizacion!R153)/$A$5 -> 0 | E158: =Amortizacion!O153/$A$5 -> 0 | F158: =(+Amortizacion!L153+Amortizacion!U153)/$A$5 -> 0 | G158: =Amortizacion!AA153/$A$5 -> 0 | H158: 0
A159: 153 | B159: =-Amortizacion!Y154/$A$5 -> 0 | C159: =-Amortizacion!H154/$A$5 -> 0 | D159: =(-Amortizacion!I154-Amortizacion!R154)/$A$5 -> 0 | E159: =Amortizacion!O154/$A$5 -> 0 | F159: =(+Amortizacion!L154+Amortizacion!U154)/$A$5 -> 0 | G159: =Amortizacion!AA154/$A$5 -> 0 | H159: 0
A160: 154 | B160: =-Amortizacion!Y155/$A$5 -> 0 | C160: =-Amortizacion!H155/$A$5 -> 0 | D160: =(-Amortizacion!I155-Amortizacion!R155)/$A$5 -> 0 | E160: =Amortizacion!O155/$A$5 -> 0 | F160: =(+Amortizacion!L155+Amortizacion!U155)/$A$5 -> 0 | G160: =Amortizacion!AA155/$A$5 -> 0 | H160: 0
A161: 155 | B161: =-Amortizacion!Y156/$A$5 -> 0 | C161: =-Amortizacion!H156/$A$5 -> 0 | D161: =(-Amortizacion!I156-Amortizacion!R156)/$A$5 -> 0 | E161: =Amortizacion!O156/$A$5 -> 0 | F161: =(+Amortizacion!L156+Amortizacion!U156)/$A$5 -> 0 | G161: =Amortizacion!AA156/$A$5 -> 0 | H161: 0
A162: 156 | B162: =-Amortizacion!Y157/$A$5 -> 0 | C162: =-Amortizacion!H157/$A$5 -> 0 | D162: =(-Amortizacion!I157-Amortizacion!R157)/$A$5 -> 0 | E162: =Amortizacion!O157/$A$5 -> 0 | F162: =(+Amortizacion!L157+Amortizacion!U157)/$A$5 -> 0 | G162: =Amortizacion!AA157/$A$5 -> 0 | H162: 0
A163: 157 | B163: =-Amortizacion!Y158/$A$5 -> 0 | C163: =-Amortizacion!H158/$A$5 -> 0 | D163: =(-Amortizacion!I158-Amortizacion!R158)/$A$5 -> 0 | E163: =Amortizacion!O158/$A$5 -> 0 | F163: =(+Amortizacion!L158+Amortizacion!U158)/$A$5 -> 0 | G163: =Amortizacion!AA158/$A$5 -> 0 | H163: 0
A164: 158 | B164: =-Amortizacion!Y159/$A$5 -> 0 | C164: =-Amortizacion!H159/$A$5 -> 0 | D164: =(-Amortizacion!I159-Amortizacion!R159)/$A$5 -> 0 | E164: =Amortizacion!O159/$A$5 -> 0 | F164: =(+Amortizacion!L159+Amortizacion!U159)/$A$5 -> 0 | G164: =Amortizacion!AA159/$A$5 -> 0 | H164: 0
A165: 159 | B165: =-Amortizacion!Y160/$A$5 -> 0 | C165: =-Amortizacion!H160/$A$5 -> 0 | D165: =(-Amortizacion!I160-Amortizacion!R160)/$A$5 -> 0 | E165: =Amortizacion!O160/$A$5 -> 0 | F165: =(+Amortizacion!L160+Amortizacion!U160)/$A$5 -> 0 | G165: =Amortizacion!AA160/$A$5 -> 0 | H165: 0
A166: 160 | B166: =-Amortizacion!Y161/$A$5 -> 0 | C166: =-Amortizacion!H161/$A$5 -> 0 | D166: =(-Amortizacion!I161-Amortizacion!R161)/$A$5 -> 0 | E166: =Amortizacion!O161/$A$5 -> 0 | F166: =(+Amortizacion!L161+Amortizacion!U161)/$A$5 -> 0 | G166: =Amortizacion!AA161/$A$5 -> 0 | H166: 0
A167: 161 | B167: =-Amortizacion!Y162/$A$5 -> 0 | C167: =-Amortizacion!H162/$A$5 -> 0 | D167: =(-Amortizacion!I162-Amortizacion!R162)/$A$5 -> 0 | E167: =Amortizacion!O162/$A$5 -> 0 | F167: =(+Amortizacion!L162+Amortizacion!U162)/$A$5 -> 0 | G167: =Amortizacion!AA162/$A$5 -> 0 | H167: 0
A168: 162 | B168: =-Amortizacion!Y163/$A$5 -> 0 | C168: =-Amortizacion!H163/$A$5 -> 0 | D168: =(-Amortizacion!I163-Amortizacion!R163)/$A$5 -> 0 | E168: =Amortizacion!O163/$A$5 -> 0 | F168: =(+Amortizacion!L163+Amortizacion!U163)/$A$5 -> 0 | G168: =Amortizacion!AA163/$A$5 -> 0 | H168: 0
A169: 163 | B169: =-Amortizacion!Y164/$A$5 -> 0 | C169: =-Amortizacion!H164/$A$5 -> 0 | D169: =(-Amortizacion!I164-Amortizacion!R164)/$A$5 -> 0 | E169: =Amortizacion!O164/$A$5 -> 0 | F169: =(+Amortizacion!L164+Amortizacion!U164)/$A$5 -> 0 | G169: =Amortizacion!AA164/$A$5 -> 0 | H169: 0
A170: 164 | B170: =-Amortizacion!Y165/$A$5 -> 0 | C170: =-Amortizacion!H165/$A$5 -> 0 | D170: =(-Amortizacion!I165-Amortizacion!R165)/$A$5 -> 0 | E170: =Amortizacion!O165/$A$5 -> 0 | F170: =(+Amortizacion!L165+Amortizacion!U165)/$A$5 -> 0 | G170: =Amortizacion!AA165/$A$5 -> 0 | H170: 0
A171: 165 | B171: =-Amortizacion!Y166/$A$5 -> 0 | C171: =-Amortizacion!H166/$A$5 -> 0 | D171: =(-Amortizacion!I166-Amortizacion!R166)/$A$5 -> 0 | E171: =Amortizacion!O166/$A$5 -> 0 | F171: =(+Amortizacion!L166+Amortizacion!U166)/$A$5 -> 0 | G171: =Amortizacion!AA166/$A$5 -> 0 | H171: 0
A172: 166 | B172: =-Amortizacion!Y167/$A$5 -> 0 | C172: =-Amortizacion!H167/$A$5 -> 0 | D172: =(-Amortizacion!I167-Amortizacion!R167)/$A$5 -> 0 | E172: =Amortizacion!O167/$A$5 -> 0 | F172: =(+Amortizacion!L167+Amortizacion!U167)/$A$5 -> 0 | G172: =Amortizacion!AA167/$A$5 -> 0 | H172: 0
A173: 167 | B173: =-Amortizacion!Y168/$A$5 -> 0 | C173: =-Amortizacion!H168/$A$5 -> 0 | D173: =(-Amortizacion!I168-Amortizacion!R168)/$A$5 -> 0 | E173: =Amortizacion!O168/$A$5 -> 0 | F173: =(+Amortizacion!L168+Amortizacion!U168)/$A$5 -> 0 | G173: =Amortizacion!AA168/$A$5 -> 0 | H173: 0
A174: 168 | B174: =-Amortizacion!Y169/$A$5 -> 0 | C174: =-Amortizacion!H169/$A$5 -> 0 | D174: =(-Amortizacion!I169-Amortizacion!R169)/$A$5 -> 0 | E174: =Amortizacion!O169/$A$5 -> 0 | F174: =(+Amortizacion!L169+Amortizacion!U169)/$A$5 -> 0 | G174: =Amortizacion!AA169/$A$5 -> 0 | H174: 0
A175: 169 | B175: =-Amortizacion!Y170/$A$5 -> 0 | C175: =-Amortizacion!H170/$A$5 -> 0 | D175: =(-Amortizacion!I170-Amortizacion!R170)/$A$5 -> 0 | E175: =Amortizacion!O170/$A$5 -> 0 | F175: =(+Amortizacion!L170+Amortizacion!U170)/$A$5 -> 0 | G175: =Amortizacion!AA170/$A$5 -> 0 | H175: 0
A176: 170 | B176: =-Amortizacion!Y171/$A$5 -> 0 | C176: =-Amortizacion!H171/$A$5 -> 0 | D176: =(-Amortizacion!I171-Amortizacion!R171)/$A$5 -> 0 | E176: =Amortizacion!O171/$A$5 -> 0 | F176: =(+Amortizacion!L171+Amortizacion!U171)/$A$5 -> 0 | G176: =Amortizacion!AA171/$A$5 -> 0 | H176: 0
A177: 171 | B177: =-Amortizacion!Y172/$A$5 -> 0 | C177: =-Amortizacion!H172/$A$5 -> 0 | D177: =(-Amortizacion!I172-Amortizacion!R172)/$A$5 -> 0 | E177: =Amortizacion!O172/$A$5 -> 0 | F177: =(+Amortizacion!L172+Amortizacion!U172)/$A$5 -> 0 | G177: =Amortizacion!AA172/$A$5 -> 0 | H177: 0
A178: 172 | B178: =-Amortizacion!Y173/$A$5 -> 0 | C178: =-Amortizacion!H173/$A$5 -> 0 | D178: =(-Amortizacion!I173-Amortizacion!R173)/$A$5 -> 0 | E178: =Amortizacion!O173/$A$5 -> 0 | F178: =(+Amortizacion!L173+Amortizacion!U173)/$A$5 -> 0 | G178: =Amortizacion!AA173/$A$5 -> 0 | H178: 0
A179: 173 | B179: =-Amortizacion!Y174/$A$5 -> 0 | C179: =-Amortizacion!H174/$A$5 -> 0 | D179: =(-Amortizacion!I174-Amortizacion!R174)/$A$5 -> 0 | E179: =Amortizacion!O174/$A$5 -> 0 | F179: =(+Amortizacion!L174+Amortizacion!U174)/$A$5 -> 0 | G179: =Amortizacion!AA174/$A$5 -> 0 | H179: 0
A180: 174 | B180: =-Amortizacion!Y175/$A$5 -> 0 | C180: =-Amortizacion!H175/$A$5 -> 0 | D180: =(-Amortizacion!I175-Amortizacion!R175)/$A$5 -> 0 | E180: =Amortizacion!O175/$A$5 -> 0 | F180: =(+Amortizacion!L175+Amortizacion!U175)/$A$5 -> 0 | G180: =Amortizacion!AA175/$A$5 -> 0 | H180: 0
A181: 175 | B181: =-Amortizacion!Y176/$A$5 -> 0 | C181: =-Amortizacion!H176/$A$5 -> 0 | D181: =(-Amortizacion!I176-Amortizacion!R176)/$A$5 -> 0 | E181: =Amortizacion!O176/$A$5 -> 0 | F181: =(+Amortizacion!L176+Amortizacion!U176)/$A$5 -> 0 | G181: =Amortizacion!AA176/$A$5 -> 0 | H181: 0
A182: 176 | B182: =-Amortizacion!Y177/$A$5 -> 0 | C182: =-Amortizacion!H177/$A$5 -> 0 | D182: =(-Amortizacion!I177-Amortizacion!R177)/$A$5 -> 0 | E182: =Amortizacion!O177/$A$5 -> 0 | F182: =(+Amortizacion!L177+Amortizacion!U177)/$A$5 -> 0 | G182: =Amortizacion!AA177/$A$5 -> 0 | H182: 0
A183: 177 | B183: =-Amortizacion!Y178/$A$5 -> 0 | C183: =-Amortizacion!H178/$A$5 -> 0 | D183: =(-Amortizacion!I178-Amortizacion!R178)/$A$5 -> 0 | E183: =Amortizacion!O178/$A$5 -> 0 | F183: =(+Amortizacion!L178+Amortizacion!U178)/$A$5 -> 0 | G183: =Amortizacion!AA178/$A$5 -> 0 | H183: 0
A184: 178 | B184: =-Amortizacion!Y179/$A$5 -> 0 | C184: =-Amortizacion!H179/$A$5 -> 0 | D184: =(-Amortizacion!I179-Amortizacion!R179)/$A$5 -> 0 | E184: =Amortizacion!O179/$A$5 -> 0 | F184: =(+Amortizacion!L179+Amortizacion!U179)/$A$5 -> 0 | G184: =Amortizacion!AA179/$A$5 -> 0 | H184: 0
A185: 179 | B185: =-Amortizacion!Y180/$A$5 -> 0 | C185: =-Amortizacion!H180/$A$5 -> 0 | D185: =(-Amortizacion!I180-Amortizacion!R180)/$A$5 -> 0 | E185: =Amortizacion!O180/$A$5 -> 0 | F185: =(+Amortizacion!L180+Amortizacion!U180)/$A$5 -> 0 | G185: =Amortizacion!AA180/$A$5 -> 0 | H185: 0
A186: 180 | B186: =-Amortizacion!Y181/$A$5 -> 0 | C186: =-Amortizacion!H181/$A$5 -> 0 | D186: =(-Amortizacion!I181-Amortizacion!R181)/$A$5 -> 0 | E186: =Amortizacion!O181/$A$5 -> 0 | F186: =(+Amortizacion!L181+Amortizacion!U181)/$A$5 -> 0 | G186: =Amortizacion!AA181/$A$5 -> 0 | H186: 0
A187: 181 | B187: =-Amortizacion!Y182/$A$5 -> 0 | C187: =-Amortizacion!H182/$A$5 -> 0 | D187: =(-Amortizacion!I182-Amortizacion!R182)/$A$5 -> 0 | E187: =Amortizacion!O182/$A$5 -> 0 | F187: =(+Amortizacion!L182+Amortizacion!U182)/$A$5 -> 0 | G187: =Amortizacion!AA182/$A$5 -> 0 | H187: 0
A188: 182 | B188: =-Amortizacion!Y183/$A$5 -> 0 | C188: =-Amortizacion!H183/$A$5 -> 0 | D188: =(-Amortizacion!I183-Amortizacion!R183)/$A$5 -> 0 | E188: =Amortizacion!O183/$A$5 -> 0 | F188: =(+Amortizacion!L183+Amortizacion!U183)/$A$5 -> 0 | G188: =Amortizacion!AA183/$A$5 -> 0 | H188: 0
A189: 183 | B189: =-Amortizacion!Y184/$A$5 -> 0 | C189: =-Amortizacion!H184/$A$5 -> 0 | D189: =(-Amortizacion!I184-Amortizacion!R184)/$A$5 -> 0 | E189: =Amortizacion!O184/$A$5 -> 0 | F189: =(+Amortizacion!L184+Amortizacion!U184)/$A$5 -> 0 | G189: =Amortizacion!AA184/$A$5 -> 0 | H189: 0
A190: 184 | B190: =-Amortizacion!Y185/$A$5 -> 0 | C190: =-Amortizacion!H185/$A$5 -> 0 | D190: =(-Amortizacion!I185-Amortizacion!R185)/$A$5 -> 0 | E190: =Amortizacion!O185/$A$5 -> 0 | F190: =(+Amortizacion!L185+Amortizacion!U185)/$A$5 -> 0 | G190: =Amortizacion!AA185/$A$5 -> 0 | H190: 0
A191: 185 | B191: =-Amortizacion!Y186/$A$5 -> 0 | C191: =-Amortizacion!H186/$A$5 -> 0 | D191: =(-Amortizacion!I186-Amortizacion!R186)/$A$5 -> 0 | E191: =Amortizacion!O186/$A$5 -> 0 | F191: =(+Amortizacion!L186+Amortizacion!U186)/$A$5 -> 0 | G191: =Amortizacion!AA186/$A$5 -> 0 | H191: 0
A192: 186 | B192: =-Amortizacion!Y187/$A$5 -> 0 | C192: =-Amortizacion!H187/$A$5 -> 0 | D192: =(-Amortizacion!I187-Amortizacion!R187)/$A$5 -> 0 | E192: =Amortizacion!O187/$A$5 -> 0 | F192: =(+Amortizacion!L187+Amortizacion!U187)/$A$5 -> 0 | G192: =Amortizacion!AA187/$A$5 -> 0 | H192: 0
A193: 187 | B193: =-Amortizacion!Y188/$A$5 -> 0 | C193: =-Amortizacion!H188/$A$5 -> 0 | D193: =(-Amortizacion!I188-Amortizacion!R188)/$A$5 -> 0 | E193: =Amortizacion!O188/$A$5 -> 0 | F193: =(+Amortizacion!L188+Amortizacion!U188)/$A$5 -> 0 | G193: =Amortizacion!AA188/$A$5 -> 0 | H193: 0
A194: 188 | B194: =-Amortizacion!Y189/$A$5 -> 0 | C194: =-Amortizacion!H189/$A$5 -> 0 | D194: =(-Amortizacion!I189-Amortizacion!R189)/$A$5 -> 0 | E194: =Amortizacion!O189/$A$5 -> 0 | F194: =(+Amortizacion!L189+Amortizacion!U189)/$A$5 -> 0 | G194: =Amortizacion!AA189/$A$5 -> 0 | H194: 0
A195: 189 | B195: =-Amortizacion!Y190/$A$5 -> 0 | C195: =-Amortizacion!H190/$A$5 -> 0 | D195: =(-Amortizacion!I190-Amortizacion!R190)/$A$5 -> 0 | E195: =Amortizacion!O190/$A$5 -> 0 | F195: =(+Amortizacion!L190+Amortizacion!U190)/$A$5 -> 0 | G195: =Amortizacion!AA190/$A$5 -> 0 | H195: 0
A196: 190 | B196: =-Amortizacion!Y191/$A$5 -> 0 | C196: =-Amortizacion!H191/$A$5 -> 0 | D196: =(-Amortizacion!I191-Amortizacion!R191)/$A$5 -> 0 | E196: =Amortizacion!O191/$A$5 -> 0 | F196: =(+Amortizacion!L191+Amortizacion!U191)/$A$5 -> 0 | G196: =Amortizacion!AA191/$A$5 -> 0 | H196: 0
A197: 191 | B197: =-Amortizacion!Y192/$A$5 -> 0 | C197: =-Amortizacion!H192/$A$5 -> 0 | D197: =(-Amortizacion!I192-Amortizacion!R192)/$A$5 -> 0 | E197: =Amortizacion!O192/$A$5 -> 0 | F197: =(+Amortizacion!L192+Amortizacion!U192)/$A$5 -> 0 | G197: =Amortizacion!AA192/$A$5 -> 0 | H197: 0
A198: 192 | B198: =-Amortizacion!Y193/$A$5 -> 0 | C198: =-Amortizacion!H193/$A$5 -> 0 | D198: =(-Amortizacion!I193-Amortizacion!R193)/$A$5 -> 0 | E198: =Amortizacion!O193/$A$5 -> 0 | F198: =(+Amortizacion!L193+Amortizacion!U193)/$A$5 -> 0 | G198: =Amortizacion!AA193/$A$5 -> 0 | H198: 0

Sheet Amortizacion (hidden)
A1: Mes | B1: Mes | C1: Giros programados | D1: Periodo de Gracia | E1: Paso al Cobro | F1: Periodo Amortización | G1: Saldo Inicial LP | H1: Intereses Periodo de Estudios + Gra | I1: Intereses Periodo amortización | J1: Giro LP | K1: Cuota LP | L1: Abono a K LP | M1: Pago i en periodo de estudio | N1: Saldo Final LP | O1: Condonación por graduación | P1: Amortización CP | Q1: Saldo Inicial CP | R1: Intereses CP | S1: Giro CP | T1: Cuota CP | U1: Abono a K CP | V1: Saldo Final CP | W1: Saldo Total Final | X1: Tasa | Y1: Flujo Desembolsos | Z1: Flujo Pagos Estudiante | AA1: Intereses pagados Estudiante | AB1: Subsidio de tasa
A2: 1 | B2: 1 | C2: =+IFERROR(HLOOKUP($B2,Resumen!$F$3:$AM$10,8,0),0) -> 1 | D2: =+IFERROR(HLOOKUP($B2,Resumen!$F$3:$AM$12,10),0) -> 0 | E2: =+IF(B2=Resumen!$C$38*6-6,1,0) -> 0 | F2: =+IFERROR(HLOOKUP($B2,Resumen!$F$3:$AM$14,12),0) -> 0 | H2: =IF(X2="",0,IF(F2=0,ROUND(SUM(J$2:J2)*X2,2),0)) -> 41713.4 | I2: =+IF(X2="",0,IF(F2=1,G2*X2,0)) -> 0 | J2: =(Resumen!$C$10*(1-Resumen!$C$24))*C2 -> 3000000 | K2: =+IF(F2=1,PMT(X2,(Resumen!$C$36+Resumen!$C$26+Resumen!$C$14*6-B2+1),-Amortizacion!G2),0) -> 0 | L2: =+IF(I2="","",K2-I2) -> 0 | M2: =+IF(Resumen!$C$20="no",H2,0) -> 0 | N2: =+IF(F2=0,SUM(G2:K2)-M2,G2-L2) -> 3041713.4 | O2: =+IF(AND(Resumen!$C$18="SI",Amortizacion!E2=1),Amortizacion!N2*25%,0) -> 0 | P2: =+IF(Resumen!$C$24=0%,0,IF(S2<>0,6,P1-1)) -> 6 | Q2: =+S2 -> 2000000 | R2: =+IF(X2="",0,Q2*X2) -> 27808.93573 | S2: =(Resumen!$C$10*(Resumen!$C$24))*C2 -> 2000000 | T2: =+IF(X2="",0,IFERROR(PMT(X2,P2,-Q2),0)) -> 349741.8596 | U2: =+IFERROR(T2-R2,0) -> 321932.9239 | V2: =+Q2-U2 -> 1678067.076 | W2: =+N2+V2 -> 4719780.476 | X2: =+IF(B2="","",Resumen!$C$34) -> 0.01390446787 | Y2: =+J2+S2 -> 5000000 | Z2: =+T2+K2+M2 -> 349741.8596 | AA2: =+R2+M2+I2 -> 27808.93573 | AB2: =+IF(Resumen!$C$8="no",0,W2*((1+10%)^(0.0833333333333333)-1)) -> 0
A3: =+A2+1 -> 2 | B3: =+IF(A3>Resumen!$C$40,"",A3) -> 2 | C3: =+IFERROR(HLOOKUP($B3,Resumen!$F$3:$AM$10,8,0),0) -> 0 | D3: =+IFERROR(HLOOKUP($B3,Resumen!$F$3:$AM$12,10),0) -> 0 | E3: =+IF(B3=Resumen!$C$38*6-6,1,0) -> 0 | F3: =+IFERROR(HLOOKUP($B3,Resumen!$F$3:$AM$14,12),0) -> 0 | G3: =+N2 -> 3041713.4 | H3: =IF(X3="",0,IF(F3=0,ROUND(SUM(J$2:J3)*X3,2),0)) -> 41713.4 | I3: 0 | J3: =(Resumen!$C$10*(1-Resumen!$C$24))*C3 -> 0 | K3: =+IF(F3=1,PMT(X3,(Resumen!$C$36+Resumen!$C$26+Resumen!$C$14*6-B3+1),-Amortizacion!G3),0) -> 0 | L3: =+IF(I3="","",K3-I3) -> 0 | M3: =+IF(Resumen!$C$20="no",H3,0) -> 0 | N3: =+IF(F3=0,SUM(G3:K3)-M3,G3-L3) -> 3083426.8 | O3: =+IF(AND(Resumen!$C$18="SI",Amortizacion!E3=1),SUM($H$2:J3)*25%,0) -> 0 | P3: =+IF(S3<>0,6,IF(P2=0,0,P2-1)) -> 5 | Q3: =+V2+S3 -> 1678067.076 | R3: =+IF(X3="",0,Q3*X3) -> 23332.62974 | S3: =(Resumen!$C$10*(Resumen!$C$24))*C3 -> 0 | T3: =+IF(X3="",0,IFERROR(PMT(X3,P3,-Q3),0)) -> 349741.8596 | U3: =+IFERROR(T3-R3,0) -> 326409.2299 | V3: =+Q3-U3 -> 1351657.846 | W3: =+N3+V3 -> 4435084.646 | X3: =+IF(B3="","",Resumen!$C$34) -> 0.01390446787 | Y3: 0 | Z3: =+T3+K3+M3 -> 349741.8596 | AA3: =+R3+M3+I3 -> 23332.62974 | AB3: =+IF(Resumen!$C$8="no",0,W3*((1+10%)^(0.0833333333333333)-1)) -> 0
A4: =+A3+1 -> 3 | B4: =+IF(A4>Resumen!$C$40,"",A4) -> 3 | C4: =+IFERROR(HLOOKUP($B4,Resumen!$F$3:$AM$10,8,0),0) -> 0 | D4: =+IFERROR(HLOOKUP($B4,Resumen!$F$3:$AM$12,10),0) -> 0 | E4: =+IF(B4=Resumen!$C$38*6-6,1,0) -> 0 | F4: =+IFERROR(HLOOKUP($B4,Resumen!$F$3:$AM$14,12),0) -> 0 | G4: 3083426.8 | H4: =IF(X4="",0,IF(F4=0,ROUND(SUM(J$2:J4)*X4,2),0)) -> 41713.4 | I4: 0 | J4: =(Resumen!$C$10*(1-Resumen!$C$24))*C4 -> 0 | K4: =+IF(F4=1,PMT(X4,(Resumen!$C$36+Resumen!$C$26+Resumen!$C$14*6-B4+1),-Amortizacion!G4),0) -> 0 | L4: 0 | M4: =+IF(Resumen!$C$20="no",H4,0) -> 0 | N4: 3125140.2 | O4: =+IF(AND(Resumen!$C$18="SI",Amortizacion!E4=1),SUM($H$2:J4)*25%,0) -> 0 | P4: =+IF(S4<>0,6,IF(P3=0,0,P3-1)) -> 4 | Q4: =+V3+S4 -> 1351657.846 | R4: 18794.08309 | S4: =(Resumen!$C$10*(Resumen!$C$24))*C4 -> 0 | T4: 349741.8596 | U4: 330947.7765 | V4: 1020710.07 | W4: =+N4+V4 -> 4145850.27 | X4: =+IF(B4="","",Resumen!$C$34) -> 0.01390446787 | Y4: 0 | Z4: 349741.8596 | AA4: 18794.08309 | AB4: =+IF(Resumen!$C$8="no",0,W4*((1+10%)^(0.0833333333333333)-1)) -> 0
A5: 4 | B5: =+IF(A5>Resumen!$C$40,"",A5) -> 4 | C5: =+IFERROR(HLOOKUP($B5,Resumen!$F$3:$AM$10,8,0),0) -> 0 | D5: =+IFERROR(HLOOKUP($B5,Resumen!$F$3:$AM$12,10),0) -> 0 | E5: =+IF(B5=Resumen!$C$38*6-6,1,0) -> 0 | F5: =+IFERROR(HLOOKUP($B5,Resumen!$F$3:$AM$14,12),0) -> 0 | G5: 3125140.2 | H5: =IF(X5="",0,IF(F5=0,ROUND(SUM(J$2:J5)*X5,2),0)) -> 41713.4 | I5: 0 | J5: =(Resumen!$C$10*(1-Resumen!$C$24))*C5 -> 0 | K5: =+IF(F5=1,PMT(X5,(Resumen!$C$36+Resumen!$C$26+Resumen!$C$14*6-B5+1),-Amortizacion!G5),0) -> 0 | L5: 0 | M5: =+IF(Resumen!$C$20="no",H5,0) -> 0 | N5: 3166853.6 | O5: =+IF(AND(Resumen!$C$18="SI",Amortizacion!E5=1),SUM($H$2:J5)*25%,0) -> 0 | P5: 3 | Q5: 1020710.07 | R5: 14192.43036 | S5: =(Resumen!$C$10*(Resumen!$C$24))*C5 -> 0 | T5: 349741.8596 | U5: 335549.4293 | V5: 685160.6405 | W5: 3852014.24 | X5: =+IF(B5="","",Resumen!$C$34) -> 0.01390446787 | Y5: 0 | Z5: 349741.8596 | AA5: 14192.43036 | AB5: =+IF(Resumen!$C$8="no",0,W5*((1+10%)^(0.0833333333333333)-1)) -> 0
A6: 5 | B6: =+IF(A6>Resumen!$C$40,"",A6) -> 5 | C6: =+IFERROR(HLOOKUP($B6,Resumen!$F$3:$AM$10,8,0),0) -> 0 | D6: =+IFERROR(HLOOKUP($B6,Resumen!$F$3:$AM$12,10),0) -> 0 | E6: =+IF(B6=Resumen!$C$38*6-6,1,0) -> 0 | F6: =+IFERROR(HLOOKUP($B6,Resumen!$F$3:$AM$14,12),0) -> 0 | G6: 3166853.6 | H6: =IF(X6="",0,IF(F6=0,ROUND(SUM(J$2:J6)*X6,2),0)) -> 41713.4 | I6: 0 | J6: =(Resumen!$C$10*(1-Resumen!$C$24))*C6 -> 0 | K6: =+IF(F6=1,PMT(X6,(Resumen!$C$36+Resumen!$C$26+Resumen!$C$14*6-B6+1),-Amortizacion!G6),0) -> 0 | L6: 0 | M6: =+IF(Resumen!$C$20="no",H6,0) -> 0 | N6: 3208567 | O6: =+IF(AND(Resumen!$C$18="SI",Amortizacion!E6=1),SUM($H$2:J6)*25%,0) -> 0 | P6: 2 | Q6: 685160.6405 | R6: 9526.794108 | S6: =(Resumen!$C$10*(Resumen!$C$24))*C6 -> 0 | T6: 349741.8596 | U6: 340215.0655 | V6: 344945.575 | W6: 3553512.575 | X6: =+IF(B6="","",Resumen!$C$34) -> 0.01390446787 | Y6: 0 | Z6: 349741.8596 | AA6: 9526.794108 | AB6: =+IF(Resumen!$C$8="no",0,W6*((1+10%)^(0.0833333333333333)-1)) -> 0
A7: 6 | B7: =+IF(A7>Resumen!$C$40,"",A7) -> 6 | C7: =+IFERROR(HLOOKUP($B7,Resumen!$F$3:$AM$10,8,0),0) -> 0 | D7: =+IFERROR(HLOOKUP($B7,Resumen!$F$3:$AM$12,10),0) -> 0 | E7: =+IF(B7=Resumen!$C$38*6-6,1,0) -> 1 | F7: =+IFERROR(HLOOKUP($B7,Resumen!$F$3:$AM$14,12),0) -> 0 | G7: 3208567 | H7: =IF(X7="",0,IF(F7=0,ROUND(SUM(J$2:J7)*X7,2),0)) -> 41713.4 | I7: 0 | J7: =(Resumen!$C$10*(1-Resumen!$C$24))*C7 -> 0 | K7: =+IF(F7=1,PMT(X7,(Resumen!$C$36+Resumen!$C$26+Resumen!$C$14*6-B7+1),-Amortizacion!G7),0) -> 0 | L7: 0 | M7: =+IF(Resumen!$C$20="no",H7,0) -> 0 | N7: 3250280.4 | O7: =+IF(AND(Resumen!$C$18="SI",Amortizacion!E7=1),SUM($H$2:J7)*25%,0) -> 0 | P7: 1 | Q7: 344945.575 | R7: 4796.284662 | S7: =(Resumen!$C$10*(Resumen!$C$24))*C7 -> 0 | T7: 349741.8596 | U7: 344945.575 | V7: 0 | W7: 3250280.4 | X7: =+IF(B7="","",Resumen!$C$34) -> 0.01390446787 | Y7: 0 | Z7: 349741.8596 | AA7: 4796.284662 | AB7: =+IF(Resumen!$C$8="no",0,W7*((1+10%)^(0.0833333333333333)-1)) -> 0
A8: 7 | B8: =+IF(A8>Resumen!$C$40,"",A8) -> 7 | C8: =+IFERROR(HLOOKUP($B8,Resumen!$F$3:$AM$10,8,0),0) -> 0 | D8: =+IFERROR(HLOOKUP($B8,Resumen!$F$3:$AM$12,10),0) -> 0 | E8: =+IF(B8=Resumen!$C$38*6-6,1,0) -> 0 | F8: =+IFERROR(HLOOKUP($B8,Resumen!$F$3:$AM$14,12),0) -> 1 | G8: 3250280.4 | H8: =IF(X8="",0,IF(F8=0,ROUND(SUM(J$2:J8)*X8,2),0)) -> 0 | I8: 45193.41938 | J8: =(Resumen!$C$10*(1-Resumen!$C$24))*C8 -> 0 | K8: =+IF(F8=1,PMT(X8,(Resumen!$C$36+Resumen!$C$26+Resumen!$C$14*6-B8+1),-Amortizacion!G8),0) -> 295955.9115 | L8: 250762.4921 | M8: =+IF(Resumen!$C$20="no",H8,0) -> 0 | N8: 2999517.908 | O8: =+IF(AND(Resumen!$C$18="SI",Amortizacion!E8=1),SUM($H$2:J8)*25%,0) -> 0 | P8: 0 | Q8: 0 | R8: 0 | S8: =(Resumen!$C$10*(Resumen!$C$24))*C8 -> 0 | T8: 0 | U8: 0 | V8: 0 | W8: 2999517.908 | X8: =+IF(B8="","",Resumen!$C$34) -> 0.01390446787 | Y8: 0 | Z8: 295955.9115 | AA8: 45193.41938 | AB8: =+IF(Resumen!$C$8="no",0,W8*((1+10%)^(0.0833333333333333)-1)) -> 0
A9: 8 | B9: =+IF(A9>Resumen!$C$40,"",A9) -> 8 | C9: =+IFERROR(HLOOKUP($B9,Resumen!$F$3:$AM$10,8,0),0) -> 0 | D9: =+IFERROR(HLOOKUP($B9,Resumen!$F$3:$AM$12,10),0) -> 0 | E9: =+IF(B9=Resumen!$C$38*6-6,1,0) -> 0 | F9: =+IFERROR(HLOOKUP($B9,Resumen!$F$3:$AM$14,12),0) -> 1 | G9: =+N8-O8 -> 2999517.908 | H9: =IF(X9="",0,IF(F9=0,ROUND(SUM(J$2:J9)*X9,2),0)) -> 0 | I9: 41706.70036 | J9: =(Resumen!$C$10*(1-Resumen!$C$24))*C9 -> 0 | K9: =+IF(F9=1,PMT(X9,(Resumen!$C$36+Resumen!$C$26+Resumen!$C$14*6-B9+1),-Amortizacion!G9),0) -> 295955.9115 | L9: 254249.2111 | M9: =+IF(Resumen!$C$20="no",H9,0) -> 0 | N9: 2745268.697 | O9: =+IF(AND(Resumen!$C$18="SI",Amortizacion!E9=1),SUM($H$2:J9)*25%,0) -> 0 | P9: 0 | Q9: 0 | R9: 0 | S9: =(Resumen!$C$10*(Resumen!$C$24))*C9 -> 0 | T9: 0 | U9: 0 | V9: 0 | W9: 2745268.697 | X9: =+IF(B9="","",Resumen!$C$34) -> 0.01390446787 | Y9: 0 | Z9: 295955.9115 | AA9: 41706.70036 | AB9: =+IF(Resumen!$C$8="no",0,W9*((1+10%)^(0.0833333333333333)-1)) -> 0
A10: 9 | B10: =+IF(A10>Resumen!$C$40,"",A10) -> 9 | C10: =+IFERROR(HLOOKUP($B10,Resumen!$F$3:$AM$10,8,0),0) -> 0 | D10: =+IFERROR(HLOOKUP($B10,Resumen!$F$3:$AM$12,10),0) -> 0 | E10: =+IF(B10=Resumen!$C$38*6-6,1,0) -> 0 | F10: =+IFERROR(HLOOKUP($B10,Resumen!$F$3:$AM$14,12),0) -> 1 | G10: =+N9-O9 -> 2745268.697 | H10: =IF(X10="",0,IF(F10=0,ROUND(SUM(J$2:J10)*X10,2),0)) -> 0 | I10: 38171.50038 | J10: =(Resumen!$C$10*(1-Resumen!$C$24))*C10 -> 0 | K10: =+IF(F10=1,PMT(X10,(Resumen!$C$36+Resumen!$C$26+Resumen!$C$14*6-B10+1),-Amortizacion!G10),0) -> 295955.9115 | L10: 257784.4111 | M10: =+IF(Resumen!$C$20="no",H10,0) -> 0 | N10: 2487484.286 | O10: =+IF(AND(Resumen!$C$18="SI",Amortizacion!E10=1),SUM($H$2:J10)*25%,0) -> 0 | P10: 0 | Q10: 0 | R10: 0 | S10: =(Resumen!$C$10*(Resumen!$C$24))*C10 -> 0 | T10: 0 | U10: 0 | V10: 0 | W10: 2487484.286 | X10: =+IF(B10="","",Resumen!$C$34) -> 0.01390446787 | Y10: 0 | Z10: 295955.9115 | AA10: 38171.50038 | AB10: =+IF(Resumen!$C$8="no",0,W10*((1+10%)^(0.0833333333333333)-1)) -> 0
A11: 10 | B11: =+IF(A11>Resumen!$C$40,"",A11) -> 10 | C11: =+IFERROR(HLOOKUP($B11,Resumen!$F$3:$AM$10,8,0),0) -> 0 | D11: =+IFERROR(HLOOKUP($B11,Resumen!$F$3:$AM$12,10),0) -> 0 | E11: =+IF(B11=Resumen!$C$38*6-6,1,0) -> 0 | F11: =+IFERROR(HLOOKUP($B11,Resumen!$F$3:$AM$14,12),0) -> 1 | G11: 2487484.286 | H11: =IF(X11="",0,IF(F11=0,ROUND(SUM(J$2:J11)*X11,2),0)) -> 0 | I11: 34587.14532 | J11: =(Resumen!$C$10*(1-Resumen!$C$24))*C11 -> 0 | K11: =+IF(F11=1,PMT(X11,(Resumen!$C$36+Resumen!$C$26+Resumen!$C$14*6-B11+1),-Amortizacion!G11),0) -> 295955.9115 | L11: 261368.7662 | M11: =+IF(Resumen!$C$20="no",H11,0) -> 0 | N11: 2226115.519 | O11: =+IF(AND(Resumen!$C$18="SI",Amortizacion!E11=1),SUM($H$2:J11)*25%,0) -> 0 | P11: 0 | Q11: 0 | R11: 0 | S11: =(Resumen!$C$10*(Resumen!$C$24))*C11 -> 0 | T11: 0 | U11: 0 | V11: 0 | W11: 2226115.519 | X11: =+IF(B11="","",Resumen!$C$34) -> 0.01390446787 | Y11: 0 | Z11: 295955.9115 | AA11: 34587.14532 | AB11: =+IF(Resumen!$C$8="no",0,W11*((1+10%)^(0.0833333333333333)-1)) -> 0
A12: 11 | B12: =+IF(A12>Resumen!$C$40,"",A12) -> 11 | C12: =+IFERROR(HLOOKUP($B12,Resumen!$F$3:$AM$10,8,0),0) -> 0 | D12: =+IFERROR(HLOOKUP($B12,Resumen!$F$3:$AM$12,10),0) -> 0 | E12: =+IF(B12=Resumen!$C$38*6-6,1,0) -> 0 | F12: =+IFERROR(HLOOKUP($B12,Resumen!$F$3:$AM$14,12),0) -> 1 | G12: 2226115.519 | H12: =IF(X12="",0,IF(F12=0,ROUND(SUM(J$2:J12)*X12,2),0)) -> 0 | I12: 30952.95171 | J12: =(Resumen!$C$10*(1-Resumen!$C$24))*C12 -> 0 | K12: =+IF(F12=1,PMT(X12,(Resumen!$C$36+Resumen!$C$26+Resumen!$C$14*6-B12+1),-Amortizacion!G12),0) -> 295955.9115 | L12: 265002.9598 | M12: =+IF(Resumen!$C$20="no",H12,0) -> 0 | N12: 1961112.56 | O12: =+IF(AND(Resumen!$C$18="SI",Amortizacion!E12=1),SUM($H$2:J12)*25%,0) -> 0 | P12: 0 | Q12: 0 | R12: 0 | S12: =(Resumen!$C$10*(Resumen!$C$24))*C12 -> 0 | T12: 0 | U12: 0 | V12: 0 | W12: 1961112.56 | X12: =+IF(B12="","",Resumen!$C$34) -> 0.01390446787 | Y12: 0 | Z12: 295955.9115 | AA12: 30952.95171 | AB12: =+IF(Resumen!$C$8="no",0,W12*((1+10%)^(0.0833333333333333)-1)) -> 0
A13: 12 | B13: =+IF(A13>Resumen!$C$40,"",A13) -> 12 | C13: =+IFERROR(HLOOKUP($B13,Resumen!$F$3:$AM$10,8,0),0) -> 0 | D13: =+IFERROR(HLOOKUP($B13,Resumen!$F$3:$AM$12,10),0) -> 0 | E13: =+IF(B13=Resumen!$C$38*6-6,1,0) -> 0 | F13: =+IFERROR(HLOOKUP($B13,Resumen!$F$3:$AM$14,12),0) -> 1 | G13: 1961112.56 | H13: =IF(X13="",0,IF(F13=0,ROUND(SUM(J$2:J13)*X13,2),0)) -> 0 | I13: 27268.22657 | J13: =(Resumen!$C$10*(1-Resumen!$C$24))*C13 -> 0 | K13: =+IF(F13=1,PMT(X13,(Resumen!$C$36+Resumen!$C$26+Resumen!$C$14*6-B13+1),-Amortizacion!G13),0) -> 295955.9115 | L13: 268687.6849 | M13: =+IF(Resumen!$C$20="no",H13,0) -> 0 | N13: 1692424.875 | O13: =+IF(AND(Resumen!$C$18="SI",Amortizacion!E13=1),SUM($H$2:J13)*25%,0) -> 0 | P13: 0 | Q13: 0 | R13: 0 | S13: =(Resumen!$C$10*(Resumen!$C$24))*$C13 -> 0 | T13: 0 | U13: 0 | V13: 0 | W13: 1692424.875 | X13: =+IF(B13="","",Resumen!$C$34) -> 0.01390446787 | Y13: 0 | Z13: 295955.9115 | AA13: 27268.22657 | AB13: =+IF(Resumen!$C$8="no",0,W13*((1+10%)^(0.0833333333333333)-1)) -> 0
A14: 13 | B14: =+IF(A14>Resumen!$C$40,"",A14) -> 13 | C14: =+IFERROR(HLOOKUP($B14,Resumen!$F$3:$AM$10,8,0),0) -> 0 | D14: =+IFERROR(HLOOKUP($B14,Resumen!$F$3:$AM$12,10),0) -> 0 | E14: =+IF(B14=Resumen!$C$38*6-6,1,0) -> 0 | F14: =+IFERROR(HLOOKUP($B14,Resumen!$F$3:$AM$14,12),0) -> 1 | G14: 1692424.875 | H14: =IF(X14="",0,IF(F14=0,ROUND(SUM(J$2:J14)*X14,2),0)) -> 0 | I14: 23532.26729 | J14: =(Resumen!$C$10*(1-Resumen!$C$24)*(1+Incmat))*C14 -> 0 | K14: =+IF(F14=1,PMT(X14,(Resumen!$C$36+Resumen!$C$26+Resumen!$C$14*6-B14+1),-Amortizacion!G14),0) -> 295955.9115 | L14: 272423.6442 | M14: =+IF(Resumen!$C$20="no",H14,0) -> 0 | N14: 1420001.231 | O14: =+IF(AND(Resumen!$C$18="SI",Amortizacion!E14=1),SUM($H$2:J14)*25%,0) -> 0 | P14: 0 | Q14: 0 | R14: 0 | S14: =(Resumen!$C$10*(Resumen!$C$24)*(1+Incmat))*$C14 -> 0 | T14: 0 | U14: 0 | V14: 0 | W14: 1420001.231 | X14: =+IF(B14="","",Resumen!$C$34) -> 0.01390446787 | Y14: 0 | Z14: 295955.9115 | AA14: 23532.26729 | AB14: =+IF(Resumen!$C$8="no",0,W14*((1+10%)^(0.0833333333333333)-1)) -> 0
A15: 14 | B15: =+IF(A15>Resumen!$C$40,"",A15) -> 14 | C15: =+IFERROR(HLOOKUP($B15,Resumen!$F$3:$AM$10,8,0),0) -> 0 | D15: =+IFERROR(HLOOKUP($B15,Resumen!$F$3:$AM$12,10),0) -> 0 | E15: =+IF(B15=Resumen!$C$38*6-6,1,0) -> 0 | F15: =+IFERROR(HLOOKUP($B15,Resumen!$F$3:$AM$14,12),0) -> 1 | G15: 1420001.231 | H15: =IF(X15="",0,IF(F15=0,ROUND(SUM(J$2:J15)*X15,2),0)) -> 0 | I15: 19744.36148 | J15: =(Resumen!$C$10*(1-Resumen!$C$24)*(1+Incmat))*C15 -> 0 | K15: =+IF(F15=1,PMT(X15,(Resumen!$C$36+Resumen!$C$26+Resumen!$C$14*6-B15+1),-Amortizacion!G15),0) -> 295955.9115 | L15: 276211.55 | M15: =+IF(Resumen!$C$20="no",H15,0) -> 0 | N15: 1143789.681 | O15: =+IF(AND(Resumen!$C$18="SI",Amortizacion!E15=1),SUM($H$2:J15)*25%,0) -> 0 | P15: 0 | Q15: 0 | R15: 0 | S15: =(Resumen!$C$10*(Resumen!$C$24)*(1+Incmat))*$C15 -> 0 | T15: 0 | U15: 0 | V15: 0 | W15: 1143789.681 | X15: =+IF(B15="","",Resumen!$C$34) -> 0.01390446787 | Y15: 0 | Z15: 295955.9115 | AA15: 19744.36148 | AB15: =+IF(Resumen!$C$8="no",0,W15*((1+10%)^(0.0833333333333333)-1)) -> 0
A16: 15 | B16: =+IF(A16>Resumen!$C$40,"",A16) -> 15 | C16: =+IFERROR(HLOOKUP($B16,Resumen!$F$3:$AM$10,8,0),0) -> 0 | D16: =+IFERROR(HLOOKUP($B16,Resumen!$F$3:$AM$12,10),0) -> 0 | E16: =+IF(B16=Resumen!$C$38*6-6,1,0) -> 0 | F16: =+IFERROR(HLOOKUP($B16,Resumen!$F$3:$AM$14,12),0) -> 1 | G16: 1143789.681 | H16: =IF(X16="",0,IF(F16=0,ROUND(SUM(J$2:J16)*X16,2),0)) -> 0 | I16: 15903.78686 | J16: =(Resumen!$C$10*(1-Resumen!$C$24)*(1+Incmat))*C16 -> 0 | K16: =+IF(F16=1,PMT(X16,(Resumen!$C$36+Resumen!$C$26+Resumen!$C$14*6-B16+1),-Amortizacion!G16),0) -> 295955.9115 | L16: 280052.1246 | M16: =+IF(Resumen!$C$20="no",H16,0) -> 0 | N16: 863737.556 | O16: =+IF(AND(Resumen!$C$18="SI",Amortizacion!E16=1),SUM($H$2:J16)*25%,0) -> 0 | P16: 0 | Q16: 0 | R16: 0 | S16: =(Resumen!$C$10*(Resumen!$C$24)*(1+Incmat))*$C16 -> 0 | T16: 0 | U16: 0 | V16: 0 | W16: 863737.556 | X16: =+IF(B16="","",Resumen!$C$34) -> 0.01390446787 | Y16: 0 | Z16: 295955.9115 | AA16: 15903.78686 | AB16: =+IF(Resumen!$C$8="no",0,W16*((1+10%)^(0.0833333333333333)-1)) -> 0
A17: 16 | B17: =+IF(A17>Resumen!$C$40,"",A17) -> 16 | C17: =+IFERROR(HLOOKUP($B17,Resumen!$F$3:$AM$10,8,0),0) -> 0 | D17: =+IFERROR(HLOOKUP($B17,Resumen!$F$3:$AM$12,10),0) -> 0 | E17: =+IF(B17=Resumen!$C$38*6-6,1,0) -> 0 | F17: =+IFERROR(HLOOKUP($B17,Resumen!$F$3:$AM$14,12),0) -> 1 | G17: 863737.556 | H17: =IF(X17="",0,IF(F17=0,ROUND(SUM(J$2:J17)*X17,2),0)) -> 0 | I17: 12009.81109 | J17: =(Resumen!$C$10*(1-Resumen!$C$24)*(1+Incmat))*C17 -> 0 | K17: =+IF(F17=1,PMT(X17,(Resumen!$C$36+Resumen!$C$26+Resumen!$C$14*6-B17+1),-Amortizacion!G17),0) -> 295955.9115 | L17: 283946.1004 | M17: =+IF(Resumen!$C$20="no",H17,0) -> 0 | N17: 579791.4556 | O17: =+IF(AND(Resumen!$C$18="SI",Amortizacion!E17=1),SUM($H$2:J17)*25%,0) -> 0 | P17: 0 | Q17: 0 | R17: 0 | S17: =(Resumen!$C$10*(Resumen!$C$24)*(1+Incmat))*$C17 -> 0 | T17: 0 | U17: 0 | V17: 0 | W17: 579791.4556 | X17: =+IF(B17="","",Resumen!$C$34) -> 0.01390446787 | Y17: 0 | Z17: 295955.9115 | AA17: 12009.81109 | AB17: =+IF(Resumen!$C$8="no",0,W17*((1+10%)^(0.0833333333333333)-1)) -> 0
A18: 17 | B18: =+IF(A18>Resumen!$C$40,"",A18) -> 17 | C18: =+IFERROR(HLOOKUP($B18,Resumen!$F$3:$AM$10,8,0),0) -> 0 | D18: =+IFERROR(HLOOKUP($B18,Resumen!$F$3:$AM$12,10),0) -> 0 | E18: =+IF(B18=Resumen!$C$38*6-6,1,0) -> 0 | F18: =+IFERROR(HLOOKUP($B18,Resumen!$F$3:$AM$14,12),0) -> 1 | G18: 579791.4556 | H18: =IF(X18="",0,IF(F18=0,ROUND(SUM(J$2:J18)*X18,2),0)) -> 0 | I18: 8061.691663 | J18: =(Resumen!$C$10*(1-Resumen!$C$24)*(1+Incmat))*C18 -> 0 | K18: =+IF(F18=1,PMT(X18,(Resumen!$C$36+Resumen!$C$26+Resumen!$C$14*6-B18+1),-Amortizacion!G18),0) -> 295955.9115 | L18: 287894.2198 | M18: =+IF(Resumen!$C$20="no",H18,0) -> 0 | N18: 291897.2358 | O18: =+IF(AND(Resumen!$C$18="SI",Amortizacion!E18=1),SUM($H$2:J18)*25%,0) -> 0 | P18: 0 | Q18: 0 | R18: 0 | S18: =(Resumen!$C$10*(Resumen!$C$24)*(1+Incmat))*$C18 -> 0 | T18: 0 | U18: 0 | V18: 0 | W18: 291897.2358 | X18: =+IF(B18="","",Resumen!$C$34) -> 0.01390446787 | Y18: 0 | Z18: 295955.9115 | AA18: 8061.691663 | AB18: =+IF(Resumen!$C$8="no",0,W18*((1+10%)^(0.0833333333333333)-1)) -> 0
A19: 18 | B19: =+IF(A19>Resumen!$C$40,"",A19) -> 18 | C19: =+IFERROR(HLOOKUP($B19,Resumen!$F$3:$AM$10,8,0),0) -> 0 | D19: =+IFERROR(HLOOKUP($B19,Resumen!$F$3:$AM$12,10),0) -> 0 | E19: =+IF(B19=Resumen!$C$38*6-6,1,0) -> 0 | F19: =+IFERROR(HLOOKUP($B19,Resumen!$F$3:$AM$14,12),0) -> 1 | G19: 291897.2358 | H19: =IF(X19="",0,IF(F19=0,ROUND(SUM(J$2:J19)*X19,2),0)) -> 0 | I19: 4058.675735 | J19: =(Resumen!$C$10*(1-Resumen!$C$24)*(1+Incmat))*C19 -> 0 | K19: =+IF(F19=1,PMT(X19,(Resumen!$C$36+Resumen!$C$26+Resumen!$C$14*6-B19+1),-Amortizacion!G19),0) -> 295955.9115 | L19: 291897.2358 | M19: =+IF(Resumen!$C$20="no",H19,0) -> 0 | N19: 5.820766091e-11 | O19: =+IF(AND(Resumen!$C$18="SI",Amortizacion!E19=1),SUM($H$2:J19)*25%,0) -> 0 | P19: 0 | Q19: 0 | R19: 0 | S19: =(Resumen!$C$10*(Resumen!$C$24)*(1+Incmat))*$C19 -> 0 | T19: 0 | U19: 0 | V19: 0 | W19: 5.820766091e-11 | X19: =+IF(B19="","",Resumen!$C$34) -> 0.01390446787 | Y19: 0 | Z19: 295955.9115 | AA19: 4058.675735 | AB19: =+IF(Resumen!$C$8="no",0,W19*((1+10%)^(0.0833333333333333)-1)) -> 0
A20: 19 | B20: =+IF(A20>Resumen!$C$40,"",A20) ->  | C20: =+IFERROR(HLOOKUP($B20,Resumen!$F$3:$AM$10,8,0),0) -> 0 | D20: =+IFERROR(HLOOKUP($B20,Resumen!$F$3:$AM$12,10),0) -> 0 | E20: =+IF(B20=Resumen!$C$38*6-6,1,0) -> 0 | F20: =+IFERROR(HLOOKUP($B20,Resumen!$F$3:$AM$14,12),0) -> 0 | G20: 5.820766091e-11 | H20: =IF(X20="",0,IF(F20=0,ROUND(SUM(J$2:J20)*X20,2),0)) -> 0 | I20: 0 | J20: =(Resumen!$C$10*(1-Resumen!$C$24)*(1+Incmat))*C20 -> 0 | K20: =+IF(F20=1,PMT(X20,(Resumen!$C$36+Resumen!$C$26+Resumen!$C$14*6-B20+1),-Amortizacion!G20),0) -> 0 | L20: 0 | M20: =+IF(Resumen!$C$20="no",H20,0) -> 0 | N20: 5.820766091e-11 | O20: =+IF(AND(Resumen!$C$18="SI",Amortizacion!E20=1),SUM($H$2:J20)*25%,0) -> 0 | P20: 0 | Q20: 0 | R20: 0 | S20: =(Resumen!$C$10*(Resumen!$C$24)*(1+Incmat))*$C20 -> 0 | T20: 0 | U20: 0 | V20: 0 | W20: 5.820766091e-11 | X20: =+IF(B20="","",Resumen!$C$34) ->  | Y20: 0 | Z20: 0 | AA20: 0 | AB20: =+IF(Resumen!$C$8="no",0,W20*((1+10%)^(0.0833333333333333)-1)) -> 0
A21: 20 | B21: =+IF(A21>Resumen!$C$40,"",A21) ->  | C21: =+IFERROR(HLOOKUP($B21,Resumen!$F$3:$AM$10,8,0),0) -> 0 | D21: =+IFERROR(HLOOKUP($B21,Resumen!$F$3:$AM$12,10),0) -> 0 | E21: =+IF(B21=Resumen!$C$38*6-6,1,0) -> 0 | F21: =+IFERROR(HLOOKUP($B21,Resumen!$F$3:$AM$14,12),0) -> 0 | G21: 5.820766091e-11 | H21: =IF(X21="",0,IF(F21=0,ROUND(SUM(J$2:J21)*X21,2),0)) -> 0 | I21: 0 | J21: =(Resumen!$C$10*(1-Resumen!$C$24)*(1+Incmat))*C21 -> 0 | K21: =+IF(F21=1,PMT(X21,(Resumen!$C$36+Resumen!$C$26+Resumen!$C$14*6-B21+1),-Amortizacion!G21),0) -> 0 | L21: 0 | M21: =+IF(Resumen!$C$20="no",H21,0) -> 0 | N21: 5.820766091e-11 | O21: =+IF(AND(Resumen!$C$18="SI",Amortizacion!E21=1),SUM($H$2:J21)*25%,0) -> 0 | P21: 0 | Q21: 0 | R21: 0 | S21: =(Resumen!$C$10*(Resumen!$C$24)*(1+Incmat))*$C21 -> 0 | T21: 0 | U21: 0 | V21: 0 | W21: 5.820766091e-11 | X21: =+IF(B21="","",Resumen!$C$34) ->  | Y21: 0 | Z21: 0 | AA21: 0 | AB21: =+IF(Resumen!$C$8="no",0,W21*((1+10%)^(0.0833333333333333)-1)) -> 0
A22: 21 | B22: =+IF(A22>Resumen!$C$40,"",A22) ->  | C22: =+IFERROR(HLOOKUP($B22,Resumen!$F$3:$AM$10,8,0),0) -> 0 | D22: =+IFERROR(HLOOKUP($B22,Resumen!$F$3:$AM$12,10),0) -> 0 | E22: =+IF(B22=Resumen!$C$38*6-6,1,0) -> 0 | F22: =+IFERROR(HLOOKUP($B22,Resumen!$F$3:$AM$14,12),0) -> 0 | G22: 5.820766091e-11 | H22: =IF(X22="",0,IF(F22=0,ROUND(SUM(J$2:J22)*X22,2),0)) -> 0 | I22: 0 | J22: =(Resumen!$C$10*(1-Resumen!$C$24)*(1+Incmat))*C22 -> 0 | K22: =+IF(F22=1,PMT(X22,(Resumen!$C$36+Resumen!$C$26+Resumen!$C$14*6-B22+1),-Amortizacion!G22),0) -> 0 | L22: 0 | M22: =+IF(Resumen!$C$20="no",H22,0) -> 0 | N22: 5.820766091e-11 | O22: =+IF(AND(Resumen!$C$18="SI",Amortizacion!E22=1),SUM($H$2:J22)*25%,0) -> 0 | P22: 0 | Q22: 0 | R22: 0 | S22: =(Resumen!$C$10*(Resumen!$C$24)*(1+Incmat))*$C22 -> 0 | T22: 0 | U22: 0 | V22: 0 | W22: 5.820766091e-11 | X22: =+IF(B22="","",Resumen!$C$34) ->  | Y22: 0 | Z22: 0 | AA22: 0 | AB22: =+IF(Resumen!$C$8="no",0,W22*((1+10%)^(0.0833333333333333)-1)) -> 0
A23: 22 | B23: =+IF(A23>Resumen!$C$40,"",A23) ->  | C23: =+IFERROR(HLOOKUP($B23,Resumen!$F$3:$AM$10,8,0),0) -> 0 | D23: =+IFERROR(HLOOKUP($B23,Resumen!$F$3:$AM$12,10),0) -> 0 | E23: =+IF(B23=Resumen!$C$38*6-6,1,0) -> 0 | F23: =+IFERROR(HLOOKUP($B23,Resumen!$F$3:$AM$14,12),0) -> 0 | G23: 5.820766091e-11 | H23: =IF(X23="",0,IF(F23=0,ROUND(SUM(J$2:J23)*X23,2),0)) -> 0 | I23: 0 | J23: =(Resumen!$C$10*(1-Resumen!$C$24)*(1+Incmat))*C23 -> 0 | K23: =+IF(F23=1,PMT(X23,(Resumen!$C$36+Resumen!$C$26+Resumen!$C$14*6-B23+1),-Amortizacion!G23),0) -> 0 | L23: 0 | M23: =+IF(Resumen!$C$20="no",H23,0) -> 0 | N23: 5.820766091e-11 | O23: =+IF(AND(Resumen!$C$18="SI",Amortizacion!E23=1),SUM($H$2:J23)*25%,0) -> 0 | P23: 0 | Q23: 0 | R23: 0 | S23: =(Resumen!$C$10*(Resumen!$C$24)*(1+Incmat))*$C23 -> 0 | T23: 0 | U23: 0 | V23: 0 | W23: 5.820766091e-11 | X23: =+IF(B23="","",Resumen!$C$34) ->  | Y23: 0 | Z23: 0 | AA23: 0 | AB23: =+IF(Resumen!$C$8="no",0,W23*((1+10%)^(0.0833333333333333)-1)) -> 0
A24: 23 | B24: =+IF(A24>Resumen!$C$40,"",A24) ->  | C24: =+IFERROR(HLOOKUP($B24,Resumen!$F$3:$AM$10,8,0),0) -> 0 | D24: =+IFERROR(HLOOKUP($B24,Resumen!$F$3:$AM$12,10),0) -> 0 | E24: =+IF(B24=Resumen!$C$38*6-6,1,0) -> 0 | F24: =+IFERROR(HLOOKUP($B24,Resumen!$F$3:$AM$14,12),0) -> 0 | G24: 5.820766091e-11 | H24: =IF(X24="",0,IF(F24=0,ROUND(SUM(J$2:J24)*X24,2),0)) -> 0 | I24: 0 | J24: =(Resumen!$C$10*(1-Resumen!$C$24)*(1+Incmat))*C24 -> 0 | K24: =+IF(F24=1,PMT(X24,(Resumen!$C$36+Resumen!$C$26+Resumen!$C$14*6-B24+1),-Amortizacion!G24),0) -> 0 | L24: 0 | M24: =+IF(Resumen!$C$20="no",H24,0) -> 0 | N24: 5.820766091e-11 | O24: =+IF(AND(Resumen!$C$18="SI",Amortizacion!E24=1),SUM($H$2:J24)*25%,0) -> 0 | P24: 0 | Q24: 0 | R24: 0 | S24: =(Resumen!$C$10*(Resumen!$C$24)*(1+Incmat))*$C24 -> 0 | T24: 0 | U24: 0 | V24: 0 | W24: 5.820766091e-11 | X24: =+IF(B24="","",Resumen!$C$34) ->  | Y24: 0 | Z24: 0 | AA24: 0 | AB24: =+IF(Resumen!$C$8="no",0,W24*((1+10%)^(0.0833333333333333)-1)) -> 0
A25: 24 | B25: =+IF(A25>Resumen!$C$40,"",A25) ->  | C25: =+IFERROR(HLOOKUP($B25,Resumen!$F$3:$AM$10,8,0),0) -> 0 | D25: =+IFERROR(HLOOKUP($B25,Resumen!$F$3:$AM$12,10),0) -> 0 | E25: =+IF(B25=Resumen!$C$38*6-6,1,0) -> 0 | F25: =+IFERROR(HLOOKUP($B25,Resumen!$F$3:$AM$14,12),0) -> 0 | G25: 5.820766091e-11 | H25: =IF(X25="",0,IF(F25=0,ROUND(SUM(J$2:J25)*X25,2),0)) -> 0 | I25: 0 | J25: =(Resumen!$C$10*(1-Resumen!$C$24)*(1+Incmat))*C25 -> 0 | K25: =+IF(F25=1,PMT(X25,(Resumen!$C$36+Resumen!$C$26+Resumen!$C$14*6-B25+1),-Amortizacion!G25),0) -> 0 | L25: 0 | M25: =+IF(Resumen!$C$20="no",H25,0) -> 0 | N25: 5.820766091e-11 | O25: =+IF(AND(Resumen!$C$18="SI",Amortizacion!E25=1),SUM($H$2:J25)*25%,0) -> 0 | P25: 0 | Q25: 0 | R25: 0 | S25: =(Resumen!$C$10*(Resumen!$C$24)*(1+Incmat))*$C25 -> 0 | T25: 0 | U25: 0 | V25: 0 | W25: 5.820766091e-11 | X25: =+IF(B25="","",Resumen!$C$34) ->  | Y25: 0 | Z25: 0 | AA25: 0 | AB25: =+IF(Resumen!$C$8="no",0,W25*((1+10%)^(0.0833333333333333)-1)) -> 0
A26: 25 | B26: =+IF(A26>Resumen!$C$40,"",A26) ->  | C26: =+IFERROR(HLOOKUP($B26,Resumen!$F$3:$AM$10,8,0),0) -> 0 | D26: =+IFERROR(HLOOKUP($B26,Resumen!$F$3:$AM$12,10),0) -> 0 | E26: =+IF(B26=Resumen!$C$38*6-6,1,0) -> 0 | F26: =+IFERROR(HLOOKUP($B26,Resumen!$F$3:$AM$14,12),0) -> 0 | G26: 5.820766091e-11 | H26: =IF(X26="",0,IF(F26=0,ROUND(SUM(J$2:J26)*X26,2),0)) -> 0 | I26: 0 | J26: =(Resumen!$C$10*(1-Resumen!$C$24)*(1+Incmat)^2)*C26 -> 0 | K26: =+IF(F26=1,PMT(X26,(Resumen!$C$36+Resumen!$C$26+Resumen!$C$14*6-B26+1),-Amortizacion!G26),0) -> 0 | L26: 0 | M26: =+IF(Resumen!$C$20="no",H26,0) -> 0 | N26: 5.820766091e-11 | O26: =+IF(AND(Resumen!$C$18="SI",Amortizacion!E26=1),SUM($H$2:J26)*25%,0) -> 0 | P26: 0 | Q26: 0 | R26: 0 | S26: =(Resumen!$C$10*(Resumen!$C$24)*(1+Incmat)^2)*$C26 -> 0 | T26: 0 | U26: 0 | V26: 0 | W26: 5.820766091e-11 | X26: =+IF(B26="","",Resumen!$C$34) ->  | Y26: 0 | Z26: 0 | AA26: 0 | AB26: =+IF(Resumen!$C$8="no",0,W26*((1+10%)^(0.0833333333333333)-1)) -> 0
A27: 26 | B27: =+IF(A27>Resumen!$C$40,"",A27) ->  | C27: =+IFERROR(HLOOKUP($B27,Resumen!$F$3:$AM$10,8,0),0) -> 0 | D27: =+IFERROR(HLOOKUP($B27,Resumen!$F$3:$AM$12,10),0) -> 0 | E27: =+IF(B27=Resumen!$C$38*6-6,1,0) -> 0 | F27: =+IFERROR(HLOOKUP($B27,Resumen!$F$3:$AM$14,12),0) -> 0 | G27: 5.820766091e-11 | H27: =IF(X27="",0,IF(F27=0,ROUND(SUM(J$2:J27)*X27,2),0)) -> 0 | I27: 0 | J27: =(Resumen!$C$10*(1-Resumen!$C$24)*(1+Incmat)^2)*C27 -> 0 | K27: =+IF(F27=1,PMT(X27,(Resumen!$C$36+Resumen!$C$26+Resumen!$C$14*6-B27+1),-Amortizacion!G27),0) -> 0 | L27: 0 | M27: =+IF(Resumen!$C$20="no",H27,0) -> 0 | N27: 5.820766091e-11 | O27: =+IF(AND(Resumen!$C$18="SI",Amortizacion!E27=1),SUM($H$2:J27)*25%,0) -> 0 | P27: 0 | Q27: 0 | R27: 0 | S27: =(Resumen!$C$10*(Resumen!$C$24)*(1+Incmat)^2)*$C27 -> 0 | T27: 0 | U27: 0 | V27: 0 | W27: 5.820766091e-11 | X27: =+IF(B27="","",Resumen!$C$34) ->  | Y27: 0 | Z27: 0 | AA27: 0 | AB27: =+IF(Resumen!$C$8="no",0,W27*((1+10%)^(0.0833333333333333)-1)) -> 0
A28: 27 | B28: =+IF(A28>Resumen!$C$40,"",A28) ->  | C28: =+IFERROR(HLOOKUP($B28,Resumen!$F$3:$AM$10,8,0),0) -> 0 | D28: =+IFERROR(HLOOKUP($B28,Resumen!$F$3:$AM$12,10),0) -> 0 | E28: =+IF(B28=Resumen!$C$38*6-6,1,0) -> 0 | F28: =+IFERROR(HLOOKUP($B28,Resumen!$F$3:$AM$14,12),0) -> 0 | G28: 5.820766091e-11 | H28: =IF(X28="",0,IF(F28=0,ROUND(SUM(J$2:J28)*X28,2),0)) -> 0 | I28: 0 | J28: =(Resumen!$C$10*(1-Resumen!$C$24)*(1+Incmat)^2)*C28 -> 0 | K28: =+IF(F28=1,PMT(X28,(Resumen!$C$36+Resumen!$C$26+Resumen!$C$14*6-B28+1),-Amortizacion!G28),0) -> 0 | L28: 0 | M28: =+IF(Resumen!$C$20="no",H28,0) -> 0 | N28: 5.820766091e-11 | O28: =+IF(AND(Resumen!$C$18="SI",Amortizacion!E28=1),SUM($H$2:J28)*25%,0) -> 0 | P28: 0 | Q28: 0 | R28: 0 | S28: =(Resumen!$C$10*(Resumen!$C$24)*(1+Incmat)^2)*$C28 -> 0 | T28: 0 | U28: 0 | V28: 0 | W28: 5.820766091e-11 | X28: =+IF(B28="","",Resumen!$C$34) ->  | Y28: 0 | Z28: 0 | AA28: 0 | AB28: =+IF(Resumen!$C$8="no",0,W28*((1+10%)^(0.0833333333333333)-1)) -> 0
A29: 28 | B29: =+IF(A29>Resumen!$C$40,"",A29) ->  | C29: =+IFERROR(HLOOKUP($B29,Resumen!$F$3:$AM$10,8,0),0) -> 0 | D29: =+IFERROR(HLOOKUP($B29,Resumen!$F$3:$AM$12,10),0) -> 0 | E29: =+IF(B29=Resumen!$C$38*6-6,1,0) -> 0 | F29: =+IFERROR(HLOOKUP($B29,Resumen!$F$3:$AM$14,12),0) -> 0 | G29: 5.820766091e-11 | H29: =IF(X29="",0,IF(F29=0,ROUND(SUM(J$2:J29)*X29,2),0)) -> 0 | I29: 0 | J29: =(Resumen!$C$10*(1-Resumen!$C$24)*(1+Incmat)^2)*C29 -> 0 | K29: =+IF(F29=1,PMT(X29,(Resumen!$C$36+Resumen!$C$26+Resumen!$C$14*6-B29+1),-Amortizacion!G29),0) -> 0 | L29: 0 | M29: =+IF(Resumen!$C$20="no",H29,0) -> 0 | N29: 5.820766091e-11 | O29: =+IF(AND(Resumen!$C$18="SI",Amortizacion!E29=1),SUM($H$2:J29)*25%,0) -> 0 | P29: 0 | Q29: 0 | R29: 0 | S29: =(Resumen!$C$10*(Resumen!$C$24)*(1+Incmat)^2)*$C29 -> 0 | T29: 0 | U29: 0 | V29: 0 | W29: 5.820766091e-11 | X29: =+IF(B29="","",Resumen!$C$34) ->  | Y29: 0 | Z29: 0 | AA29: 0 | AB29: =+IF(Resumen!$C$8="no",0,W29*((1+10%)^(0.0833333333333333)-1)) -> 0
A30: 29 | B30: =+IF(A30>Resumen!$C$40,"",A30) ->  | C30: =+IFERROR(HLOOKUP($B30,Resumen!$F$3:$AM$10,8,0),0) -> 0 | D30: =+IFERROR(HLOOKUP($B30,Resumen!$F$3:$AM$12,10),0) -> 0 | E30: =+IF(B30=Resumen!$C$38*6-6,1,0) -> 0 | F30: =+IFERROR(HLOOKUP($B30,Resumen!$F$3:$AM$14,12),0) -> 0 | G30: 5.820766091e-11 | H30: =IF(X30="",0,IF(F30=0,ROUND(SUM(J$2:J30)*X30,2),0)) -> 0 | I30: 0 | J30: =(Resumen!$C$10*(1-Resumen!$C$24)*(1+Incmat)^2)*C30 -> 0 | K30: =+IF(F30=1,PMT(X30,(Resumen!$C$36+Resumen!$C$26+Resumen!$C$14*6-B30+1),-Amortizacion!G30),0) -> 0 | L30: 0 | M30: =+IF(Resumen!$C$20="no",H30,0) -> 0 | N30: 5.820766091e-11 | O30: =+IF(AND(Resumen!$C$18="SI",Amortizacion!E30=1),SUM($H$2:J30)*25%,0) -> 0 | P30: 0 | Q30: 0 | R30: 0 | S30: =(Resumen!$C$10*(Resumen!$C$24)*(1+Incmat)^2)*$C30 -> 0 | T30: 0 | U30: 0 | V30: 0 | W30: 5.820766091e-11 | X30: =+IF(B30="","",Resumen!$C$34) ->  | Y30: 0 | Z30: 0 | AA30: 0 | AB30: =+IF(Resumen!$C$8="no",0,W30*((1+10%)^(0.0833333333333333)-1)) -> 0
A31: 30 | B31: =+IF(A31>Resumen!$C$40,"",A31) ->  | C31: =+IFERROR(HLOOKUP($B31,Resumen!$F$3:$AM$10,8,0),0) -> 0 | D31: =+IFERROR(HLOOKUP($B31,Resumen!$F$3:$AM$12,10),0) -> 0 | E31: =+IF(B31=Resumen!$C$38*6-6,1,0) -> 0 | F31: =+IFERROR(HLOOKUP($B31,Resumen!$F$3:$AM$14,12),0) -> 0 | G31: 5.820766091e-11 | H31: =IF(X31="",0,IF(F31=0,ROUND(SUM(J$2:J31)*X31,2),0)) -> 0 | I31: 0 | J31: =(Resumen!$C$10*(1-Resumen!$C$24)*(1+Incmat)^2)*C31 -> 0 | K31: =+IF(F31=1,PMT(X31,(Resumen!$C$36+Resumen!$C$26+Resumen!$C$14*6-B31+1),-Amortizacion!G31),0) -> 0 | L31: 0 | M31: =+IF(Resumen!$C$20="no",H31,0) -> 0 | N31: 5.820766091e-11 | O31: =+IF(AND(Resumen!$C$18="SI",Amortizacion!E31=1),SUM($H$2:J31)*25%,0) -> 0 | P31: 0 | Q31: 0 | R31: 0 | S31: =(Resumen!$C$10*(Resumen!$C$24)*(1+Incmat)^2)*$C31 -> 0 | T31: 0 | U31: 0 | V31: 0 | W31: 5.820766091e-11 | X31: =+IF(B31="","",Resumen!$C$34) ->  | Y31: 0 | Z31: 0 | AA31: 0 | AB31: =+IF(Resumen!$C$8="no",0,W31*((1+10%)^(0.0833333333333333)-1)) -> 0
A32: 31 | B32: =+IF(A32>Resumen!$C$40,"",A32) ->  | C32: =+IFERROR(HLOOKUP($B32,Resumen!$F$3:$AM$10,8,0),0) -> 0 | D32: =+IFERROR(HLOOKUP($B32,Resumen!$F$3:$AM$12,10),0) -> 0 | E32: =+IF(B32=Resumen!$C$38*6-6,1,0) -> 0 | F32: =+IFERROR(HLOOKUP($B32,Resumen!$F$3:$AM$14,12),0) -> 0 | G32: 5.820766091e-11 | H32: =IF(X32="",0,IF(F32=0,ROUND(SUM(J$2:J32)*X32,2),0)) -> 0 | I32: 0 | J32: =(Resumen!$C$10*(1-Resumen!$C$24)*(1+Incmat)^2)*C32 -> 0 | K32: =+IF(F32=1,PMT(X32,(Resumen!$C$36+Resumen!$C$26+Resumen!$C$14*6-B32+1),-Amortizacion!G32),0) -> 0 | L32: 0 | M32: =+IF(Resumen!$C$20="no",H32,0) -> 0 | N32: 5.820766091e-11 | O32: =+IF(AND(Resumen!$C$18="SI",Amortizacion!E32=1),SUM($H$2:J32)*25%,0) -> 0 | P32: 0 | Q32: 0 | R32: 0 | S32: =(Resumen!$C$10*(Resumen!$C$24)*(1+Incmat)^2)*$C32 -> 0 | T32: 0 | U32: 0 | V32: 0 | W32: 5.820766091e-11 | X32: =+IF(B32="","",Resumen!$C$34) ->  | Y32: 0 | Z32: 0 | AA32: 0 | AB32: =+IF(Resumen!$C$8="no",0,W32*((1+10%)^(0.0833333333333333)-1)) -> 0
A33: 32 | B33: =+IF(A33>Resumen!$C$40,"",A33) ->  | C33: =+IFERROR(HLOOKUP($B33,Resumen!$F$3:$AM$10,8,0),0) -> 0 | D33: =+IFERROR(HLOOKUP($B33,Resumen!$F$3:$AM$12,10),0) -> 0 | E33: =+IF(B33=Resumen!$C$38*6-6,1,0) -> 0 | F33: =+IFERROR(HLOOKUP($B33,Resumen!$F$3:$AM$14,12),0) -> 0 | G33: 5.820766091e-11 | H33: =IF(X33="",0,IF(F33=0,ROUND(SUM(J$2:J33)*X33,2),0)) -> 0 | I33: 0 | J33: =(Resumen!$C$10*(1-Resumen!$C$24)*(1+Incmat)^2)*C33 -> 0 | K33: =+IF(F33=1,PMT(X33,(Resumen!$C$36+Resumen!$C$26+Resumen!$C$14*6-B33+1),-Amortizacion!G33),0) -> 0 | L33: 0 | M33: =+IF(Resumen!$C$20="no",H33,0) -> 0 | N33: 5.820766091e-11 | O33: =+IF(AND(Resumen!$C$18="SI",Amortizacion!E33=1),SUM($H$2:J33)*25%,0) -> 0 | P33: 0 | Q33: 0 | R33: 0 | S33: =(Resumen!$C$10*(Resumen!$C$24)*(1+Incmat)^2)*$C33 -> 0 | T33: 0 | U33: 0 | V33: 0 | W33: 5.820766091e-11 | X33: =+IF(B33="","",Resumen!$C$34) ->  | Y33: 0 | Z33: 0 | AA33: 0 | AB33: =+IF(Resumen!$C$8="no",0,W33*((1+10%)^(0.0833333333333333)-1)) -> 0
A34: 33 | B34: =+IF(A34>Resumen!$C$40,"",A34) ->  | C34: =+IFERROR(HLOOKUP($B34,Resumen!$F$3:$AM$10,8,0),0) -> 0 | D34: =+IFERROR(HLOOKUP($B34,Resumen!$F$3:$AM$12,10),0) -> 0 | E34: =+IF(B34=Resumen!$C$38*6-6,1,0) -> 0 | F34: =+IFERROR(HLOOKUP($B34,Resumen!$F$3:$AM$14,12),0) -> 0 | G34: 5.820766091e-11 | H34: =IF(X34="",0,IF(F34=0,ROUND(SUM(J$2:J34)*X34,2),0)) -> 0 | I34: 0 | J34: =(Resumen!$C$10*(1-Resumen!$C$24)*(1+Incmat)^2)*C34 -> 0 | K34: =+IF(F34=1,PMT(X34,(Resumen!$C$36+Resumen!$C$26+Resumen!$C$14*6-B34+1),-Amortizacion!G34),0) -> 0 | L34: 0 | M34: =+IF(Resumen!$C$20="no",H34,0) -> 0 | N34: 5.820766091e-11 | O34: =+IF(AND(Resumen!$C$18="SI",Amortizacion!E34=1),SUM($H$2:J34)*25%,0) -> 0 | P34: 0 | Q34: 0 | R34: 0 | S34: =(Resumen!$C$10*(Resumen!$C$24)*(1+Incmat)^2)*$C34 -> 0 | T34: 0 | U34: 0 | V34: 0 | W34: 5.820766091e-11 | X34: =+IF(B34="","",Resumen!$C$34) ->  | Y34: 0 | Z34: 0 | AA34: 0 | AB34: =+IF(Resumen!$C$8="no",0,W34*((1+10%)^(0.0833333333333333)-1)) -> 0
A35: 34 | B35: =+IF(A35>Resumen!$C$40,"",A35) ->  | C35: =+IFERROR(HLOOKUP($B35,Resumen!$F$3:$AM$10,8,0),0) -> 0 | D35: =+IFERROR(HLOOKUP($B35,Resumen!$F$3:$AM$12,10),0) -> 0 | E35: =+IF(B35=Resumen!$C$38*6-6,1,0) -> 0 | F35: =+IFERROR(HLOOKUP($B35,Resumen!$F$3:$AM$14,12),0) -> 0 | G35: 5.820766091e-11 | H35: =IF(X35="",0,IF(F35=0,ROUND(SUM(J$2:J35)*X35,2),0)) -> 0 | I35: 0 | J35: =(Resumen!$C$10*(1-Resumen!$C$24)*(1+Incmat)^2)*C35 -> 0 | K35: =+IF(F35=1,PMT(X35,(Resumen!$C$36+Resumen!$C$26+Resumen!$C$14*6-B35+1),-Amortizacion!G35),0) -> 0 | L35: 0 | M35: =+IF(Resumen!$C$20="no",H35,0) -> 0 | N35: 5.820766091e-11 | O35: =+IF(AND(Resumen!$C$18="SI",Amortizacion!E35=1),SUM($H$2:J35)*25%,0) -> 0 | P35: 0 | Q35: 0 | R35: 0 | S35: =(Resumen!$C$10*(Resumen!$C$24)*(1+Incmat)^2)*$C35 -> 0 | T35: 0 | U35: 0 | V35: 0 | W35: 5.820766091e-11 | X35: =+IF(B35="","",Resumen!$C$34) ->  | Y35: 0 | Z35: 0 | AA35: 0 | AB35: =+IF(Resumen!$C$8="no",0,W35*((1+10%)^(0.0833333333333333)-1)) -> 0
A36: 35 | B36: =+IF(A36>Resumen!$C$40,"",A36) ->  | C36: =+IFERROR(HLOOKUP($B36,Resumen!$F$3:$AM$10,8,0),0) -> 0 | D36: =+IFERROR(HLOOKUP($B36,Resumen!$F$3:$AM$12,10),0) -> 0 | E36: =+IF(B36=Resumen!$C$38*6-6,1,0) -> 0 | F36: =+IFERROR(HLOOKUP($B36,Resumen!$F$3:$AM$14,12),0) -> 0 | G36: 5.820766091e-11 | H36: =IF(X36="",0,IF(F36=0,ROUND(SUM(J$2:J36)*X36,2),0)) -> 0 | I36: 0 | J36: =(Resumen!$C$10*(1-Resumen!$C$24)*(1+Incmat)^2)*C36 -> 0 | K36: =+IF(F36=1,PMT(X36,(Resumen!$C$36+Resumen!$C$26+Resumen!$C$14*6-B36+1),-Amortizacion!G36),0) -> 0 | L36: 0 | M36: =+IF(Resumen!$C$20="no",H36,0) -> 0 | N36: 5.820766091e-11 | O36: =+IF(AND(Resumen!$C$18="SI",Amortizacion!E36=1),SUM($H$2:J36)*25%,0) -> 0 | P36: 0 | Q36: 0 | R36: 0 | S36: =(Resumen!$C$10*(Resumen!$C$24)*(1+Incmat)^2)*$C36 -> 0 | T36: 0 | U36: 0 | V36: 0 | W36: 5.820766091e-11 | X36: =+IF(B36="","",Resumen!$C$34) ->  | Y36: 0 | Z36: 0 | AA36: 0 | AB36: =+IF(Resumen!$C$8="no",0,W36*((1+10%)^(0.0833333333333333)-1)) -> 0
A37: 36 | B37: =+IF(A37>Resumen!$C$40,"",A37) ->  | C37: =+IFERROR(HLOOKUP($B37,Resumen!$F$3:$AM$10,8,0),0) -> 0 | D37: =+IFERROR(HLOOKUP($B37,Resumen!$F$3:$AM$12,10),0) -> 0 | E37: =+IF(B37=Resumen!$C$38*6-6,1,0) -> 0 | F37: =+IFERROR(HLOOKUP($B37,Resumen!$F$3:$AM$14,12),0) -> 0 | G37: 5.820766091e-11 | H37: =IF(X37="",0,IF(F37=0,ROUND(SUM(J$2:J37)*X37,2),0)) -> 0 | I37: 0 | J37: =(Resumen!$C$10*(1-Resumen!$C$24)*(1+Incmat)^2)*C37 -> 0 | K37: =+IF(F37=1,PMT(X37,(Resumen!$C$36+Resumen!$C$26+Resumen!$C$14*6-B37+1),-Amortizacion!G37),0) -> 0 | L37: 0 | M37: =+IF(Resumen!$C$20="no",H37,0) -> 0 | N37: 5.820766091e-11 | O37: =+IF(AND(Resumen!$C$18="SI",Amortizacion!E37=1),SUM($H$2:J37)*25%,0) -> 0 | P37: 0 | Q37: 0 | R37: 0 | S37: =(Resumen!$C$10*(Resumen!$C$24)*(1+Incmat)^2)*$C37 -> 0 | T37: 0 | U37: 0 | V37: 0 | W37: 5.820766091e-11 | X37: =+IF(B37="","",Resumen!$C$34) ->  | Y37: 0 | Z37: 0 | AA37: 0 | AB37: =+IF(Resumen!$C$8="no",0,W37*((1+10%)^(0.0833333333333333)-1)) -> 0
A38: 37 | B38: =+IF(A38>Resumen!$C$40,"",A38) ->  | C38: =+IFERROR(HLOOKUP($B38,Resumen!$F$3:$AM$10,8,0),0) -> 0 | D38: =+IFERROR(HLOOKUP($B38,Resumen!$F$3:$AM$12,10),0) -> 0 | E38: =+IF(B38=Resumen!$C$38*6-6,1,0) -> 0 | F38: =+IFERROR(HLOOKUP($B38,Resumen!$F$3:$AM$14,12),0) -> 0 | G38: 5.820766091e-11 | H38: =IF(X38="",0,IF(F38=0,ROUND(SUM(J$2:J38)*X38,2),0)) -> 0 | I38: 0 | J38: =(Resumen!$C$10*(1-Resumen!$C$24)*(1+Incmat)^3)*C38 -> 0 | K38: =+IF(F38=1,PMT(X38,(Resumen!$C$36+Resumen!$C$26+Resumen!$C$14*6-B38+1),-Amortizacion!G38),0) -> 0 | L38: 0 | M38: =+IF(Resumen!$C$20="no",H38,0) -> 0 | N38: 5.820766091e-11 | O38: =+IF(AND(Resumen!$C$18="SI",Amortizacion!E38=1),SUM($H$2:J38)*25%,0) -> 0 | P38: 0 | Q38: 0 | R38: 0 | S38: =(Resumen!$C$10*(Resumen!$C$24)*(1+Incmat)^3)*$C38 -> 0 | T38: 0 | U38: 0 | V38: 0 | W38: 5.820766091e-11 | X38: =+IF(B38="","",Resumen!$C$34) ->  | Y38: 0 | Z38: 0 | AA38: 0 | AB38: =+IF(Resumen!$C$8="no",0,W38*((1+10%)^(0.0833333333333333)-1)) -> 0
A39: 38 | B39: =+IF(A39>Resumen!$C$40,"",A39) ->  | C39: =+IFERROR(HLOOKUP($B39,Resumen!$F$3:$AM$10,8,0),0) -> 0 | D39: =+IFERROR(HLOOKUP($B39,Resumen!$F$3:$AM$12,10),0) -> 0 | E39: =+IF(B39=Resumen!$C$38*6-6,1,0) -> 0 | F39: =+IFERROR(HLOOKUP($B39,Resumen!$F$3:$AM$14,12),0) -> 0 | G39: 5.820766091e-11 | H39: =IF(X39="",0,IF(F39=0,ROUND(SUM(J$2:J39)*X39,2),0)) -> 0 | I39: 0 | J39: =(Resumen!$C$10*(1-Resumen!$C$24)*(1+Incmat)^3)*C39 -> 0 | K39: =+IF(F39=1,PMT(X39,(Resumen!$C$36+Resumen!$C$26+Resumen!$C$14*6-B39+1),-Amortizacion!G39),0) -> 0 | L39: 0 | M39: =+IF(Resumen!$C$20="no",H39,0) -> 0 | N39: 5.820766091e-11 | O39: =+IF(AND(Resumen!$C$18="SI",Amortizacion!E39=1),SUM($H$2:J39)*25%,0) -> 0 | P39: 0 | Q39: 0 | R39: 0 | S39: =(Resumen!$C$10*(Resumen!$C$24)*(1+Incmat)^3)*$C39 -> 0 | T39: 0 | U39: 0 | V39: 0 | W39: 5.820766091e-11 | X39: =+IF(B39="","",Resumen!$C$34) ->  | Y39: 0 | Z39: 0 | AA39: 0 | AB39: =+IF(Resumen!$C$8="no",0,W39*((1+10%)^(0.0833333333333333)-1)) -> 0
A40: 39 | B40: =+IF(A40>Resumen!$C$40,"",A40) ->  | C40: =+IFERROR(HLOOKUP($B40,Resumen!$F$3:$AM$10,8,0),0) -> 0 | D40: =+IFERROR(HLOOKUP($B40,Resumen!$F$3:$AM$12,10),0) -> 0 | E40: =+IF(B40=Resumen!$C$38*6-6,1,0) -> 0 | F40: =+IFERROR(HLOOKUP($B40,Resumen!$F$3:$AM$14,12),0) -> 0 | G40: 5.820766091e-11 | H40: =IF(X40="",0,IF(F40=0,ROUND(SUM(J$2:J40)*X40,2),0)) -> 0 | I40: 0 | J40: =(Resumen!$C$10*(1-Resumen!$C$24)*(1+Incmat)^3)*C40 -> 0 | K40: =+IF(F40=1,PMT(X40,(Resumen!$C$36+Resumen!$C$26+Resumen!$C$14*6-B40+1),-Amortizacion!G40),0) -> 0 | L40: 0 | M40: =+IF(Resumen!$C$20="no",H40,0) -> 0 | N40: 5.820766091e-11 | O40: =+IF(AND(Resumen!$C$18="SI",Amortizacion!E40=1),SUM($H$2:J40)*25%,0) -> 0 | P40: 0 | Q40: 0 | R40: 0 | S40: =(Resumen!$C$10*(Resumen!$C$24)*(1+Incmat)^3)*$C40 -> 0 | T40: 0 | U40: 0 | V40: 0 | W40: 5.820766091e-11 | X40: =+IF(B40="","",Resumen!$C$34) ->  | Y40: 0 | Z40: 0 | AA40: 0 | AB40: =+IF(Resumen!$C$8="no",0,W40*((1+10%)^(0.0833333333333333)-1)) -> 0
A41: 40 | B41: =+IF(A41>Resumen!$C$40,"",A41) ->  | C41: =+IFERROR(HLOOKUP($B41,Resumen!$F$3:$AM$10,8,0),0) -> 0 | D41: =+IFERROR(HLOOKUP($B41,Resumen!$F$3:$AM$12,10),0) -> 0 | E41: =+IF(B41=Resumen!$C$38*6-6,1,0) -> 0 | F41: =+IFERROR(HLOOKUP($B41,Resumen!$F$3:$AM$14,12),0) -> 0 | G41: 5.820766091e-11 | H41: =IF(X41="",0,IF(F41=0,ROUND(SUM(J$2:J41)*X41,2),0)) -> 0 | I41: 0 | J41: =(Resumen!$C$10*(1-Resumen!$C$24)*(1+Incmat)^3)*C41 -> 0 | K41: =+IF(F41=1,PMT(X41,(Resumen!$C$36+Resumen!$C$26+Resumen!$C$14*6-B41+1),-Amortizacion!G41),0) -> 0 | L41: 0 | M41: =+IF(Resumen!$C$20="no",H41,0) -> 0 | N41: 5.820766091e-11 | O41: =+IF(AND(Resumen!$C$18="SI",Amortizacion!E41=1),SUM($H$2:J41)*25%,0) -> 0 | P41: 0 | Q41: 0 | R41: 0 | S41: =(Resumen!$C$10*(Resumen!$C$24)*(1+Incmat)^3)*$C41 -> 0 | T41: 0 | U41: 0 | V41: 0 | W41: 5.820766091e-11 | X41: =+IF(B41="","",Resumen!$C$34) ->  | Y41: 0 | Z41: 0 | AA41: 0 | AB41: =+IF(Resumen!$C$8="no",0,W41*((1+10%)^(0.0833333333333333)-1)) -> 0
A42: 41 | B42: =+IF(A42>Resumen!$C$40,"",A42) ->  | C42: =+IFERROR(HLOOKUP($B42,Resumen!$F$3:$AM$10,8,0),0) -> 0 | D42: =+IFERROR(HLOOKUP($B42,Resumen!$F$3:$AM$12,10),0) -> 0 | E42: =+IF(B42=Resumen!$C$38*6-6,1,0) -> 0 | F42: =+IFERROR(HLOOKUP($B42,Resumen!$F$3:$AM$14,12),0) -> 0 | G42: 5.820766091e-11 | H42: =IF(X42="",0,IF(F42=0,ROUND(SUM(J$2:J42)*X42,2),0)) -> 0 | I42: 0 | J42: =(Resumen!$C$10*(1-Resumen!$C$24)*(1+Incmat)^3)*C42 -> 0 | K42: =+IF(F42=1,PMT(X42,(Resumen!$C$36+Resumen!$C$26+Resumen!$C$14*6-B42+1),-Amortizacion!G42),0) -> 0 | L42: 0 | M42: =+IF(Resumen!$C$20="no",H42,0) -> 0 | N42: 5.820766091e-11 | O42: =+IF(AND(Resumen!$C$18="SI",Amortizacion!E42=1),SUM($H$2:J42)*25%,0) -> 0 | P42: 0 | Q42: 0 | R42: 0 | S42: =(Resumen!$C$10*(Resumen!$C$24)*(1+Incmat)^3)*$C42 -> 0 | T42: 0 | U42: 0 | V42: 0 | W42: 5.820766091e-11 | X42: =+IF(B42="","",Resumen!$C$34) ->  | Y42: 0 | Z42: 0 | AA42: 0 | AB42: =+IF(Resumen!$C$8="no",0,W42*((1+10%)^(0.0833333333333333)-1)) -> 0
A43: 42 | B43: =+IF(A43>Resumen!$C$40,"",A43) ->  | C43: =+IFERROR(HLOOKUP($B43,Resumen!$F$3:$AM$10,8,0),0) -> 0 | D43: =+IFERROR(HLOOKUP($B43,Resumen!$F$3:$AM$12,10),0) -> 0 | E43: =+IF(B43=Resumen!$C$38*6-6,1,0) -> 0 | F43: =+IFERROR(HLOOKUP($B43,Resumen!$F$3:$AM$14,12),0) -> 0 | G43: 5.820766091e-11 | H43: =IF(X43="",0,IF(F43=0,ROUND(SUM(J$2:J43)*X43,2),0)) -> 0 | I43: 0 | J43: =(Resumen!$C$10*(1-Resumen!$C$24)*(1+Incmat)^3)*C43 -> 0 | K43: =+IF(F43=1,PMT(X43,(Resumen!$C$36+Resumen!$C$26+Resumen!$C$14*6-B43+1),-Amortizacion!G43),0) -> 0 | L43: 0 | M43: =+IF(Resumen!$C$20="no",H43,0) -> 0 | N43: 5.820766091e-11 | O43: =+IF(AND(Resumen!$C$18="SI",Amortizacion!E43=1),SUM($H$2:J43)*25%,0) -> 0 | P43: 0 | Q43: 0 | R43: 0 | S43: =(Resumen!$C$10*(Resumen!$C$24)*(1+Incmat)^3)*$C43 -> 0 | T43: 0 | U43: 0 | V43: 0 | W43: 5.820766091e-11 | X43: =+IF(B43="","",Resumen!$C$34) ->  | Y43: 0 | Z43: 0 | AA43: 0 | AB43: =+IF(Resumen!$C$8="no",0,W43*((1+10%)^(0.0833333333333333)-1)) -> 0
A44: 43 | B44: =+IF(A44>Resumen!$C$40,"",A44) ->  | C44: =+IFERROR(HLOOKUP($B44,Resumen!$F$3:$AM$10,8,0),0) -> 0 | D44: =+IFERROR(HLOOKUP($B44,Resumen!$F$3:$AM$12,10),0) -> 0 | E44: =+IF(B44=Resumen!$C$38*6-6,1,0) -> 0 | F44: =+IFERROR(HLOOKUP($B44,Resumen!$F$3:$AM$14,12),0) -> 0 | G44: 5.820766091e-11 | H44: =IF(X44="",0,IF(F44=0,ROUND(SUM(J$2:J44)*X44,2),0)) -> 0 | I44: 0 | J44: =(Resumen!$C$10*(1-Resumen!$C$24)*(1+Incmat)^3)*C44 -> 0 | K44: =+IF(F44=1,PMT(X44,(Resumen!$C$36+Resumen!$C$26+Resumen!$C$14*6-B44+1),-Amortizacion!G44),0) -> 0 | L44: 0 | M44: =+IF(Resumen!$C$20="no",H44,0) -> 0 | N44: 5.820766091e-11 | O44: =+IF(AND(Resumen!$C$18="SI",Amortizacion!E44=1),SUM($H$2:J44)*25%,0) -> 0 | P44: 0 | Q44: 0 | R44: 0 | S44: =(Resumen!$C$10*(Resumen!$C$24)*(1+Incmat)^3)*$C44 -> 0 | T44: 0 | U44: 0 | V44: 0 | W44: 5.820766091e-11 | X44: =+IF(B44="","",Resumen!$C$34) ->  | Y44: 0 | Z44: 0 | AA44: 0 | AB44: =+IF(Resumen!$C$8="no",0,W44*((1+10%)^(0.0833333333333333)-1)) -> 0
A45: 44 | B45: =+IF(A45>Resumen!$C$40,"",A45) ->  | C45: =+IFERROR(HLOOKUP($B45,Resumen!$F$3:$AM$10,8,0),0) -> 0 | D45: =+IFERROR(HLOOKUP($B45,Resumen!$F$3:$AM$12,10),0) -> 0 | E45: =+IF(B45=Resumen!$C$38*6-6,1,0) -> 0 | F45: =+IFERROR(HLOOKUP($B45,Resumen!$F$3:$AM$14,12),0) -> 0 | G45: 5.820766091e-11 | H45: =IF(X45="",0,IF(F45=0,ROUND(SUM(J$2:J45)*X45,2),0)) -> 0 | I45: 0 | J45: =(Resumen!$C$10*(1-Resumen!$C$24)*(1+Incmat)^3)*C45 -> 0 | K45: =+IF(F45=1,PMT(X45,(Resumen!$C$36+Resumen!$C$26+Resumen!$C$14*6-B45+1),-Amortizacion!G45),0) -> 0 | L45: 0 | M45: =+IF(Resumen!$C$20="no",H45,0) -> 0 | N45: 5.820766091e-11 | O45: =+IF(AND(Resumen!$C$18="SI",Amortizacion!E45=1),SUM($H$2:J45)*25%,0) -> 0 | P45: 0 | Q45: 0 | R45: 0 | S45: =(Resumen!$C$10*(Resumen!$C$24)*(1+Incmat)^3)*$C45 -> 0 | T45: 0 | U45: 0 | V45: 0 | W45: 5.820766091e-11 | X45: =+IF(B45="","",Resumen!$C$34) ->  | Y45: 0 | Z45: 0 | AA45: 0 | AB45: =+IF(Resumen!$C$8="no",0,W45*((1+10%)^(0.0833333333333333)-1)) -> 0
A46: 45 | B46: =+IF(A46>Resumen!$C$40,"",A46) ->  | C46: =+IFERROR(HLOOKUP($B46,Resumen!$F$3:$AM$10,8,0),0) -> 0 | D46: =+IFERROR(HLOOKUP($B46,Resumen!$F$3:$AM$12,10),0) -> 0 | E46: =+IF(B46=Resumen!$C$38*6-6,1,0) -> 0 | F46: =+IFERROR(HLOOKUP($B46,Resumen!$F$3:$AM$14,12),0) -> 0 | G46: 5.820766091e-11 | H46: =IF(X46="",0,IF(F46=0,ROUND(SUM(J$2:J46)*X46,2),0)) -> 0 | I46: 0 | J46: =(Resumen!$C$10*(1-Resumen!$C$24)*(1+Incmat)^3)*C46 -> 0 | K46: =+IF(F46=1,PMT(X46,(Resumen!$C$36+Resumen!$C$26+Resumen!$C$14*6-B46+1),-Amortizacion!G46),0) -> 0 | L46: 0 | M46: =+IF(Resumen!$C$20="no",H46,0) -> 0 | N46: 5.820766091e-11 | O46: =+IF(AND(Resumen!$C$18="SI",Amortizacion!E46=1),SUM($H$2:J46)*25%,0) -> 0 | P46: 0 | Q46: 0 | R46: 0 | S46: =(Resumen!$C$10*(Resumen!$C$24)*(1+Incmat)^3)*$C46 -> 0 | T46: 0 | U46: 0 | V46: 0 | W46: 5.820766091e-11 | X46: =+IF(B46="","",Resumen!$C$34) ->  | Y46: 0 | Z46: 0 | AA46: 0 | AB46: =+IF(Resumen!$C$8="no",0,W46*((1+10%)^(0.0833333333333333)-1)) -> 0
A47: 46 | B47: =+IF(A47>Resumen!$C$40,"",A47) ->  | C47: =+IFERROR(HLOOKUP($B47,Resumen!$F$3:$AM$10,8,0),0) -> 0 | D47: =+IFERROR(HLOOKUP($B47,Resumen!$F$3:$AM$12,10),0) -> 0 | E47: =+IF(B47=Resumen!$C$38*6-6,1,0) -> 0 | F47: =+IFERROR(HLOOKUP($B47,Resumen!$F$3:$AM$14,12),0) -> 0 | G47: 5.820766091e-11 | H47: =IF(X47="",0,IF(F47=0,ROUND(SUM(J$2:J47)*X47,2),0)) -> 0 | I47: 0 | J47: =(Resumen!$C$10*(1-Resumen!$C$24)*(1+Incmat)^3)*C47 -> 0 | K47: =+IF(F47=1,PMT(X47,(Resumen!$C$36+Resumen!$C$26+Resumen!$C$14*6-B47+1),-Amortizacion!G47),0) -> 0 | L47: 0 | M47: =+IF(Resumen!$C$20="no",H47,0) -> 0 | N47: 5.820766091e-11 | O47: =+IF(AND(Resumen!$C$18="SI",Amortizacion!E47=1),SUM($H$2:J47)*25%,0) -> 0 | P47: 0 | Q47: 0 | R47: 0 | S47: =(Resumen!$C$10*(Resumen!$C$24)*(1+Incmat)^3)*$C47 -> 0 | T47: 0 | U47: 0 | V47: 0 | W47: 5.820766091e-11 | X47: =+IF(B47="","",Resumen!$C$34) ->  | Y47: 0 | Z47: 0 | AA47: 0 | AB47: =+IF(Resumen!$C$8="no",0,W47*((1+10%)^(0.0833333333333333)-1)) -> 0
A48: 47 | B48: =+IF(A48>Resumen!$C$40,"",A48) ->  | C48: =+IFERROR(HLOOKUP($B48,Resumen!$F$3:$AM$10,8,0),0) -> 0 | D48: =+IFERROR(HLOOKUP($B48,Resumen!$F$3:$AM$12,10),0) -> 0 | E48: =+IF(B48=Resumen!$C$38*6-6,1,0) -> 0 | F48: =+IFERROR(HLOOKUP($B48,Resumen!$F$3:$AM$14,12),0) -> 0 | G48: 5.820766091e-11 | H48: =IF(X48="",0,IF(F48=0,ROUND(SUM(J$2:J48)*X48,2),0)) -> 0 | I48: 0 | J48: =(Resumen!$C$10*(1-Resumen!$C$24)*(1+Incmat)^3)*C48 -> 0 | K48: =+IF(F48=1,PMT(X48,(Resumen!$C$36+Resumen!$C$26+Resumen!$C$14*6-B48+1),-Amortizacion!G48),0) -> 0 | L48: 0 | M48: =+IF(Resumen!$C$20="no",H48,0) -> 0 | N48: 5.820766091e-11 | O48: =+IF(AND(Resumen!$C$18="SI",Amortizacion!E48=1),SUM($H$2:J48)*25%,0) -> 0 | P48: 0 | Q48: 0 | R48: 0 | S48: =(Resumen!$C$10*(Resumen!$C$24)*(1+Incmat)^3)*$C48 -> 0 | T48: 0 | U48: 0 | V48: 0 | W48: 5.820766091e-11 | X48: =+IF(B48="","",Resumen!$C$34) ->  | Y48: 0 | Z48: 0 | AA48: 0 | AB48: =+IF(Resumen!$C$8="no",0,W48*((1+10%)^(0.0833333333333333)-1)) -> 0
A49: 48 | B49: =+IF(A49>Resumen!$C$40,"",A49) ->  | C49: =+IFERROR(HLOOKUP($B49,Resumen!$F$3:$AM$10,8,0),0) -> 0 | D49: =+IFERROR(HLOOKUP($B49,Resumen!$F$3:$AM$12,10),0) -> 0 | E49: =+IF(B49=Resumen!$C$38*6-6,1,0) -> 0 | F49: =+IFERROR(HLOOKUP($B49,Resumen!$F$3:$AM$14,12),0) -> 0 | G49: 5.820766091e-11 | H49: =IF(X49="",0,IF(F49=0,ROUND(SUM(J$2:J49)*X49,2),0)) -> 0 | I49: 0 | J49: =(Resumen!$C$10*(1-Resumen!$C$24)*(1+Incmat)^3)*C49 -> 0 | K49: =+IF(F49=1,PMT(X49,(Resumen!$C$36+Resumen!$C$26+Resumen!$C$14*6-B49+1),-Amortizacion!G49),0) -> 0 | L49: 0 | M49: =+IF(Resumen!$C$20="no",H49,0) -> 0 | N49: 5.820766091e-11 | O49: =+IF(AND(Resumen!$C$18="SI",Amortizacion!E49=1),SUM($H$2:J49)*25%,0) -> 0 | P49: 0 | Q49: 0 | R49: 0 | S49: =(Resumen!$C$10*(Resumen!$C$24)*(1+Incmat)^3)*$C49 -> 0 | T49: 0 | U49: 0 | V49: 0 | W49: 5.820766091e-11 | X49: =+IF(B49="","",Resumen!$C$34) ->  | Y49: 0 | Z49: 0 | AA49: 0 | AB49: =+IF(Resumen!$C$8="no",0,W49*((1+10%)^(0.0833333333333333)-1)) -> 0
A50: 49 | B50: =+IF(A50>Resumen!$C$40,"",A50) ->  | C50: =+IFERROR(HLOOKUP($B50,Resumen!$F$3:$AM$10,8,0),0) -> 0 | D50: =+IFERROR(HLOOKUP($B50,Resumen!$F$3:$AM$12,10),0) -> 0 | E50: =+IF(B50=Resumen!$C$38*6-6,1,0) -> 0 | F50: =+IFERROR(HLOOKUP($B50,Resumen!$F$3:$AM$14,12),0) -> 0 | G50: 5.820766091e-11 | H50: =IF(X50="",0,IF(F50=0,ROUND(SUM(J$2:J50)*X50,2),0)) -> 0 | I50: 0 | J50: =(Resumen!$C$10*(1-Resumen!$C$24)*(1+Incmat)^4)*C50 -> 0 | K50: =+IF(F50=1,PMT(X50,(Resumen!$C$36+Resumen!$C$26+Resumen!$C$14*6-B50+1),-Amortizacion!G50),0) -> 0 | L50: 0 | M50: =+IF(Resumen!$C$20="no",H50,0) -> 0 | N50: 5.820766091e-11 | O50: =+IF(AND(Resumen!$C$18="SI",Amortizacion!E50=1),SUM($H$2:J50)*25%,0) -> 0 | P50: 0 | Q50: 0 | R50: 0 | S50: =(Resumen!$C$10*(Resumen!$C$24)*(1+Incmat)^4)*$C50 -> 0 | T50: 0 | U50: 0 | V50: 0 | W50: 5.820766091e-11 | X50: =+IF(B50="","",Resumen!$C$34) ->  | Y50: 0 | Z50: 0 | AA50: 0 | AB50: =+IF(Resumen!$C$8="no",0,W50*((1+10%)^(0.0833333333333333)-1)) -> 0
A51: 50 | B51: =+IF(A51>Resumen!$C$40,"",A51) ->  | C51: =+IFERROR(HLOOKUP($B51,Resumen!$F$3:$AM$10,8,0),0) -> 0 | D51: =+IFERROR(HLOOKUP($B51,Resumen!$F$3:$AM$12,10),0) -> 0 | E51: =+IF(B51=Resumen!$C$38*6-6,1,0) -> 0 | F51: =+IFERROR(HLOOKUP($B51,Resumen!$F$3:$AM$14,12),0) -> 0 | G51: 5.820766091e-11 | H51: =IF(X51="",0,IF(F51=0,ROUND(SUM(J$2:J51)*X51,2),0)) -> 0 | I51: 0 | J51: =(Resumen!$C$10*(1-Resumen!$C$24)*(1+Incmat)^4)*C51 -> 0 | K51: =+IF(F51=1,PMT(X51,(Resumen!$C$36+Resumen!$C$26+Resumen!$C$14*6-B51+1),-Amortizacion!G51),0) -> 0 | L51: 0 | M51: =+IF(Resumen!$C$20="no",H51,0) -> 0 | N51: 5.820766091e-11 | O51: =+IF(AND(Resumen!$C$18="SI",Amortizacion!E51=1),SUM($H$2:J51)*25%,0) -> 0 | P51: 0 | Q51: 0 | R51: 0 | S51: =(Resumen!$C$10*(Resumen!$C$24)*(1+Incmat)^4)*$C51 -> 0 | T51: 0 | U51: 0 | V51: 0 | W51: 5.820766091e-11 | X51: =+IF(B51="","",Resumen!$C$34) ->  | Y51: 0 | Z51: 0 | AA51: 0 | AB51: =+IF(Resumen!$C$8="no",0,W51*((1+10%)^(0.0833333333333333)-1)) -> 0
A52: 51 | B52: =+IF(A52>Resumen!$C$40,"",A52) ->  | C52: =+IFERROR(HLOOKUP($B52,Resumen!$F$3:$AM$10,8,0),0) -> 0 | D52: =+IFERROR(HLOOKUP($B52,Resumen!$F$3:$AM$12,10),0) -> 0 | E52: =+IF(B52=Resumen!$C$38*6-6,1,0) -> 0 | F52: =+IFERROR(HLOOKUP($B52,Resumen!$F$3:$AM$14,12),0) -> 0 | G52: 5.820766091e-11 | H52: =IF(X52="",0,IF(F52=0,ROUND(SUM(J$2:J52)*X52,2),0)) -> 0 | I52: 0 | J52: =(Resumen!$C$10*(1-Resumen!$C$24)*(1+Incmat)^4)*C52 -> 0 | K52: =+IF(F52=1,PMT(X52,(Resumen!$C$36+Resumen!$C$26+Resumen!$C$14*6-B52+1),-Amortizacion!G52),0) -> 0 | L52: 0 | M52: =+IF(Resumen!$C$20="no",H52,0) -> 0 | N52: 5.820766091e-11 | O52: =+IF(AND(Resumen!$C$18="SI",Amortizacion!E52=1),SUM($H$2:J52)*25%,0) -> 0 | P52: 0 | Q52: 0 | R52: 0 | S52: =(Resumen!$C$10*(Resumen!$C$24)*(1+Incmat)^4)*$C52 -> 0 | T52: 0 | U52: 0 | V52: 0 | W52: 5.820766091e-11 | X52: =+IF(B52="","",Resumen!$C$34) ->  | Y52: 0 | Z52: 0 | AA52: 0 | AB52: =+IF(Resumen!$C$8="no",0,W52*((1+10%)^(0.0833333333333333)-1)) -> 0
A53: 52 | B53: =+IF(A53>Resumen!$C$40,"",A53) ->  | C53: =+IFERROR(HLOOKUP($B53,Resumen!$F$3:$AM$10,8,0),0) -> 0 | D53: =+IFERROR(HLOOKUP($B53,Resumen!$F$3:$AM$12,10),0) -> 0 | E53: =+IF(B53=Resumen!$C$38*6-6,1,0) -> 0 | F53: =+IFERROR(HLOOKUP($B53,Resumen!$F$3:$AM$14,12),0) -> 0 | G53: 5.820766091e-11 | H53: =IF(X53="",0,IF(F53=0,ROUND(SUM(J$2:J53)*X53,2),0)) -> 0 | I53: 0 | J53: =(Resumen!$C$10*(1-Resumen!$C$24)*(1+Incmat)^4)*C53 -> 0 | K53: =+IF(F53=1,PMT(X53,(Resumen!$C$36+Resumen!$C$26+Resumen!$C$14*6-B53+1),-Amortizacion!G53),0) -> 0 | L53: 0 | M53: =+IF(Resumen!$C$20="no",H53,0) -> 0 | N53: 5.820766091e-11 | O53: =+IF(AND(Resumen!$C$18="SI",Amortizacion!E53=1),SUM($H$2:J53)*25%,0) -> 0 | P53: 0 | Q53: 0 | R53: 0 | S53: =(Resumen!$C$10*(Resumen!$C$24)*(1+Incmat)^4)*$C53 -> 0 | T53: 0 | U53: 0 | V53: 0 | W53: 5.820766091e-11 | X53: =+IF(B53="","",Resumen!$C$34) ->  | Y53: 0 | Z53: 0 | AA53: 0 | AB53: =+IF(Resumen!$C$8="no",0,W53*((1+10%)^(0.0833333333333333)-1)) -> 0
A54: 53 | B54: =+IF(A54>Resumen!$C$40,"",A54) ->  | C54: =+IFERROR(HLOOKUP($B54,Resumen!$F$3:$AM$10,8,0),0) -> 0 | D54: =+IFERROR(HLOOKUP($B54,Resumen!$F$3:$AM$12,10),0) -> 0 | E54: =+IF(B54=Resumen!$C$38*6-6,1,0) -> 0 | F54: =+IFERROR(HLOOKUP($B54,Resumen!$F$3:$AM$14,12),0) -> 0 | G54: 5.820766091e-11 | H54: =IF(X54="",0,IF(F54=0,ROUND(SUM(J$2:J54)*X54,2),0)) -> 0 | I54: 0 | J54: =(Resumen!$C$10*(1-Resumen!$C$24)*(1+Incmat)^4)*C54 -> 0 | K54: =+IF(F54=1,PMT(X54,(Resumen!$C$36+Resumen!$C$26+Resumen!$C$14*6-B54+1),-Amortizacion!G54),0) -> 0 | L54: 0 | M54: =+IF(Resumen!$C$20="no",H54,0) -> 0 | N54: 5.820766091e-11 | O54: =+IF(AND(Resumen!$C$18="SI",Amortizacion!E54=1),SUM($H$2:J54)*25%,0) -> 0 | P54: 0 | Q54: 0 | R54: 0 | S54: =(Resumen!$C$10*(Resumen!$C$24)*(1+Incmat)^4)*$C54 -> 0 | T54: 0 | U54: 0 | V54: 0 | W54: 5.820766091e-11 | X54: =+IF(B54="","",Resumen!$C$34) ->  | Y54: 0 | Z54: 0 | AA54: 0 | AB54: =+IF(Resumen!$C$8="no",0,W54*((1+10%)^(0.0833333333333333)-1)) -> 0
A55: 54 | B55: =+IF(A55>Resumen!$C$40,"",A55) ->  | C55: =+IFERROR(HLOOKUP($B55,Resumen!$F$3:$AM$10,8,0),0) -> 0 | D55: =+IFERROR(HLOOKUP($B55,Resumen!$F$3:$AM$12,10),0) -> 0 | E55: =+IF(B55=Resumen!$C$38*6-6,1,0) -> 0 | F55: =+IFERROR(HLOOKUP($B55,Resumen!$F$3:$AM$14,12),0) -> 0 | G55: 5.820766091e-11 | H55: =IF(X55="",0,IF(F55=0,ROUND(SUM(J$2:J55)*X55,2),0)) -> 0 | I55: 0 | J55: =(Resumen!$C$10*(1-Resumen!$C$24)*(1+Incmat)^4)*C55 -> 0 | K55: =+IF(F55=1,PMT(X55,(Resumen!$C$36+Resumen!$C$26+Resumen!$C$14*6-B55+1),-Amortizacion!G55),0) -> 0 | L55: 0 | M55: =+IF(Resumen!$C$20="no",H55,0) -> 0 | N55: 5.820766091e-11 | O55: =+IF(AND(Resumen!$C$18="SI",Amortizacion!E55=1),SUM($H$2:J55)*25%,0) -> 0 | P55: 0 | Q55: 0 | R55: 0 | S55: =(Resumen!$C$10*(Resumen!$C$24)*(1+Incmat)^4)*$C55 -> 0 | T55: 0 | U55: 0 | V55: 0 | W55: 5.820766091e-11 | X55: =+IF(B55="","",Resumen!$C$34) ->  | Y55: 0 | Z55: 0 | AA55: 0 | AB55: =+IF(Resumen!$C$8="no",0,W55*((1+10%)^(0.0833333333333333)-1)) -> 0
A56: 55 | B56: =+IF(A56>Resumen!$C$40,"",A56) ->  | C56: =+IFERROR(HLOOKUP($B56,Resumen!$F$3:$AM$10,8,0),0) -> 0 | D56: =+IFERROR(HLOOKUP($B56,Resumen!$F$3:$AM$12,10),0) -> 0 | E56: =+IF(B56=Resumen!$C$38*6-6,1,0) -> 0 | F56: =+IFERROR(HLOOKUP($B56,Resumen!$F$3:$AM$14,12),0) -> 0 | G56: =+N55-O55 -> 5.820766091e-11 | H56: =IF(X56="",0,IF(F56=0,ROUND(SUM(J$2:J56)*X56,2),0)) -> 0 | I56: 0 | J56: =(Resumen!$C$10*(1-Resumen!$C$24)*(1+Incmat)^4)*C56 -> 0 | K56: =+IF(F56=1,PMT(X56,(Resumen!$C$36+Resumen!$C$26+Resumen!$C$14*6-B56+1),-Amortizacion!G56),0) -> 0 | L56: 0 | M56: =+IF(Resumen!$C$20="no",H56,0) -> 0 | N56: 5.820766091e-11 | O56: =+IF(AND(Resumen!$C$18="SI",Amortizacion!E56=1),SUM($H$2:J56)*25%,0) -> 0 | P56: 0 | Q56: 0 | R56: 0 | S56: =(Resumen!$C$10*(Resumen!$C$24)*(1+Incmat)^4)*$C56 -> 0 | T56: 0 | U56: 0 | V56: 0 | W56: 5.820766091e-11 | X56: =+IF(B56="","",Resumen!$C$34) ->  | Y56: 0 | Z56: 0 | AA56: 0 | AB56: =+IF(Resumen!$C$8="no",0,W56*((1+10%)^(0.0833333333333333)-1)) -> 0
A57: 56 | B57: =+IF(A57>Resumen!$C$40,"",A57) ->  | C57: =+IFERROR(HLOOKUP($B57,Resumen!$F$3:$AM$10,8,0),0) -> 0 | D57: =+IFERROR(HLOOKUP($B57,Resumen!$F$3:$AM$12,10),0) -> 0 | E57: =+IF(B57=Resumen!$C$38*6-6,1,0) -> 0 | F57: =+IFERROR(HLOOKUP($B57,Resumen!$F$3:$AM$14,12),0) -> 0 | G57: 5.820766091e-11 | H57: =IF(X57="",0,IF(F57=0,ROUND(SUM(J$2:J57)*X57,2),0)) -> 0 | I57: 0 | J57: =(Resumen!$C$10*(1-Resumen!$C$24)*(1+Incmat)^4)*C57 -> 0 | K57: =+IF(F57=1,PMT(X57,(Resumen!$C$36+Resumen!$C$26+Resumen!$C$14*6-B57+1),-Amortizacion!G57),0) -> 0 | L57: 0 | M57: =+IF(Resumen!$C$20="no",H57,0) -> 0 | N57: 5.820766091e-11 | O57: =+IF(AND(Resumen!$C$18="SI",Amortizacion!E57=1),SUM($H$2:J57)*25%,0) -> 0 | P57: 0 | Q57: 0 | R57: 0 | S57: =(Resumen!$C$10*(Resumen!$C$24)*(1+Incmat)^4)*$C57 -> 0 | T57: 0 | U57: 0 | V57: 0 | W57: 5.820766091e-11 | X57: =+IF(B57="","",Resumen!$C$34) ->  | Y57: 0 | Z57: 0 | AA57: 0 | AB57: =+IF(Resumen!$C$8="no",0,W57*((1+10%)^(0.0833333333333333)-1)) -> 0
A58: 57 | B58: =+IF(A58>Resumen!$C$40,"",A58) ->  | C58: =+IFERROR(HLOOKUP($B58,Resumen!$F$3:$AM$10,8,0),0) -> 0 | D58: =+IFERROR(HLOOKUP($B58,Resumen!$F$3:$AM$12,10),0) -> 0 | E58: =+IF(B58=Resumen!$C$38*6-6,1,0) -> 0 | F58: =+IFERROR(HLOOKUP($B58,Resumen!$F$3:$AM$14,12),0) -> 0 | G58: 5.820766091e-11 | H58: =IF(X58="",0,IF(F58=0,ROUND(SUM(J$2:J58)*X58,2),0)) -> 0 | I58: 0 | J58: =(Resumen!$C$10*(1-Resumen!$C$24)*(1+Incmat)^4)*C58 -> 0 | K58: =+IF(F58=1,PMT(X58,(Resumen!$C$36+Resumen!$C$26+Resumen!$C$14*6-B58+1),-Amortizacion!G58),0) -> 0 | L58: 0 | M58: =+IF(Resumen!$C$20="no",H58,0) -> 0 | N58: 5.820766091e-11 | O58: =+IF(AND(Resumen!$C$18="SI",Amortizacion!E58=1),SUM($H$2:J58)*25%,0) -> 0 | P58: 0 | Q58: 0 | R58: 0 | S58: =(Resumen!$C$10*(Resumen!$C$24)*(1+Incmat)^4)*$C58 -> 0 | T58: 0 | U58: 0 | V58: 0 | W58: 5.820766091e-11 | X58: =+IF(B58="","",Resumen!$C$34) ->  | Y58: 0 | Z58: 0 | AA58: 0 | AB58: =+IF(Resumen!$C$8="no",0,W58*((1+10%)^(0.0833333333333333)-1)) -> 0
A59: 58 | B59: =+IF(A59>Resumen!$C$40,"",A59) ->  | C59: =+IFERROR(HLOOKUP($B59,Resumen!$F$3:$AM$10,8,0),0) -> 0 | D59: =+IFERROR(HLOOKUP($B59,Resumen!$F$3:$AM$12,10),0) -> 0 | E59: =+IF(B59=Resumen!$C$38*6-6,1,0) -> 0 | F59: =+IFERROR(HLOOKUP($B59,Resumen!$F$3:$AM$14,12),0) -> 0 | G59: 5.820766091e-11 | H59: =IF(X59="",0,IF(F59=0,ROUND(SUM(J$2:J59)*X59,2),0)) -> 0 | I59: 0 | J59: =(Resumen!$C$10*(1-Resumen!$C$24)*(1+Incmat)^4)*C59 -> 0 | K59: =+IF(F59=1,PMT(X59,(Resumen!$C$36+Resumen!$C$26+Resumen!$C$14*6-B59+1),-Amortizacion!G59),0) -> 0 | L59: 0 | M59: =+IF(Resumen!$C$20="no",H59,0) -> 0 | N59: 5.820766091e-11 | O59: =+IF(AND(Resumen!$C$18="SI",Amortizacion!E59=1),SUM($H$2:J59)*25%,0) -> 0 | P59: 0 | Q59: 0 | R59: 0 | S59: =(Resumen!$C$10*(Resumen!$C$24)*(1+Incmat)^4)*$C59 -> 0 | T59: 0 | U59: 0 | V59: 0 | W59: 5.820766091e-11 | X59: =+IF(B59="","",Resumen!$C$34) ->  | Y59: 0 | Z59: 0 | AA59: 0 | AB59: =+IF(Resumen!$C$8="no",0,W59*((1+10%)^(0.0833333333333333)-1)) -> 0
A60: 59 | B60: =+IF(A60>Resumen!$C$40,"",A60) ->  | C60: =+IFERROR(HLOOKUP($B60,Resumen!$F$3:$AM$10,8,0),0) -> 0 | D60: =+IFERROR(HLOOKUP($B60,Resumen!$F$3:$AM$12,10),0) -> 0 | E60: =+IF(B60=Resumen!$C$38*6-6,1,0) -> 0 | F60: =+IFERROR(HLOOKUP($B60,Resumen!$F$3:$AM$14,12),0) -> 0 | G60: 5.820766091e-11 | H60: =IF(X60="",0,IF(F60=0,ROUND(SUM(J$2:J60)*X60,2),0)) -> 0 | I60: 0 | J60: =(Resumen!$C$10*(1-Resumen!$C$24)*(1+Incmat)^4)*C60 -> 0 | K60: =+IF(F60=1,PMT(X60,(Resumen!$C$36+Resumen!$C$26+Resumen!$C$14*6-B60+1),-Amortizacion!G60),0) -> 0 | L60: 0 | M60: =+IF(Resumen!$C$20="no",H60,0) -> 0 | N60: 5.820766091e-11 | O60: =+IF(AND(Resumen!$C$18="SI",Amortizacion!E60=1),SUM($H$2:J60)*25%,0) -> 0 | P60: 0 | Q60: 0 | R60: 0 | S60: =(Resumen!$C$10*(Resumen!$C$24)*(1+Incmat)^4)*$C60 -> 0 | T60: 0 | U60: 0 | V60: 0 | W60: 5.820766091e-11 | X60: =+IF(B60="","",Resumen!$C$34) ->  | Y60: 0 | Z60: 0 | AA60: 0 | AB60: =+IF(Resumen!$C$8="no",0,W60*((1+10%)^(0.0833333333333333)-1)) -> 0
A61: 60 | B61: =+IF(A61>Resumen!$C$40,"",A61) ->  | C61: =+IFERROR(HLOOKUP($B61,Resumen!$F$3:$AM$10,8,0),0) -> 0 | D61: =+IFERROR(HLOOKUP($B61,Resumen!$F$3:$AM$12,10),0) -> 0 | E61: =+IF(B61=Resumen!$C$38*6-6,1,0) -> 0 | F61: =+IFERROR(HLOOKUP($B61,Resumen!$F$3:$AM$14,12),0) -> 0 | G61: 5.820766091e-11 | H61: =IF(X61="",0,IF(F61=0,ROUND(SUM(J$2:J61)*X61,2),0)) -> 0 | I61: 0 | J61: =(Resumen!$C$10*(1-Resumen!$C$24)*(1+Incmat)^4)*C61 -> 0 | K61: =+IF(F61=1,PMT(X61,(Resumen!$C$36+Resumen!$C$26+Resumen!$C$14*6-B61+1),-Amortizacion!G61),0) -> 0 | L61: 0 | M61: =+IF(Resumen!$C$20="no",H61,0) -> 0 | N61: 5.820766091e-11 | O61: =+IF(AND(Resumen!$C$18="SI",Amortizacion!E61=1),SUM($H$2:J61)*25%,0) -> 0 | P61: 0 | Q61: 0 | R61: 0 | S61: =(Resumen!$C$10*(Resumen!$C$24)*(1+Incmat)^4)*$C61 -> 0 | T61: 0 | U61: 0 | V61: 0 | W61: 5.820766091e-11 | X61: =+IF(B61="","",Resumen!$C$34) ->  | Y61: 0 | Z61: 0 | AA61: 0 | AB61: =+IF(Resumen!$C$8="no",0,W61*((1+10%)^(0.0833333333333333)-1)) -> 0
A62: 61 | B62: =+IF(A62>Resumen!$C$40,"",A62) ->  | C62: =+IFERROR(HLOOKUP($B62,Resumen!$F$3:$AM$10,8,0),0) -> 0 | D62: =+IFERROR(HLOOKUP($B62,Resumen!$F$3:$AM$12,10),0) -> 0 | E62: =+IF(B62=Resumen!$C$38*6-6,1,0) -> 0 | F62: =+IFERROR(HLOOKUP($B62,Resumen!$F$3:$AM$14,12),0) -> 0 | G62: =+N61-O61 -> 5.820766091e-11 | H62: =IF(X62="",0,IF(F62=0,ROUND(SUM(J$2:J62)*X62,2),0)) -> 0 | I62: 0 | J62: =(Resumen!$C$10*(1-Resumen!$C$24)*(1+Incmat)^5)*C62 -> 0 | K62: =+IF(F62=1,PMT(X62,(Resumen!$C$36+Resumen!$C$26+Resumen!$C$14*6-B62+1),-Amortizacion!G62),0) -> 0 | L62: 0 | M62: =+IF(Resumen!$C$20="no",H62,0) -> 0 | N62: 5.820766091e-11 | O62: =+IF(AND(Resumen!$C$18="SI",Amortizacion!E62=1),SUM($H$2:J62)*25%,0) -> 0 | P62: 0 | Q62: 0 | R62: 0 | S62: =(Resumen!$C$10*(Resumen!$C$24)*(1+Incmat)^5)*$C62 -> 0 | T62: 0 | U62: 0 | V62: 0 | W62: 5.820766091e-11 | X62: =+IF(B62="","",Resumen!$C$34) ->  | Y62: 0 | Z62: 0 | AA62: 0 | AB62: =+IF(Resumen!$C$8="no",0,W62*((1+10%)^(0.0833333333333333)-1)) -> 0
A63: 62 | B63: =+IF(A63>Resumen!$C$40,"",A63) ->  | C63: =+IFERROR(HLOOKUP($B63,Resumen!$F$3:$AM$10,8,0),0) -> 0 | D63: =+IFERROR(HLOOKUP($B63,Resumen!$F$3:$AM$12,10),0) -> 0 | E63: =+IF(B63=Resumen!$C$38*6-6,1,0) -> 0 | F63: =+IFERROR(HLOOKUP($B63,Resumen!$F$3:$AM$14,12),0) -> 0 | G63: 5.820766091e-11 | H63: =IF(X63="",0,IF(F63=0,ROUND(SUM(J$2:J63)*X63,2),0)) -> 0 | I63: 0 | J63: =(Resumen!$C$10*(1-Resumen!$C$24)*(1+Incmat)^5)*C63 -> 0 | K63: =+IF(F63=1,PMT(X63,(Resumen!$C$36+Resumen!$C$26+Resumen!$C$14*6-B63+1),-Amortizacion!G63),0) -> 0 | L63: 0 | M63: =+IF(Resumen!$C$20="no",H63,0) -> 0 | N63: 5.820766091e-11 | O63: =+IF(AND(Resumen!$C$18="SI",Amortizacion!E63=1),SUM($H$2:J63)*25%,0) -> 0 | P63: 0 | Q63: 0 | R63: 0 | S63: =(Resumen!$C$10*(Resumen!$C$24)*(1+Incmat)^5)*$C63 -> 0 | T63: 0 | U63: 0 | V63: 0 | W63: 5.820766091e-11 | X63: =+IF(B63="","",Resumen!$C$34) ->  | Y63: 0 | Z63: 0 | AA63: 0 | AB63: =+IF(Resumen!$C$8="no",0,W63*((1+10%)^(0.0833333333333333)-1)) -> 0
A64: 63 | B64: =+IF(A64>Resumen!$C$40,"",A64) ->  | C64: =+IFERROR(HLOOKUP($B64,Resumen!$F$3:$AM$10,8,0),0) -> 0 | D64: =+IFERROR(HLOOKUP($B64,Resumen!$F$3:$AM$12,10),0) -> 0 | E64: =+IF(B64=Resumen!$C$38*6-6,1,0) -> 0 | F64: =+IFERROR(HLOOKUP($B64,Resumen!$F$3:$AM$14,12),0) -> 0 | G64: 5.820766091e-11 | H64: =IF(X64="",0,IF(F64=0,ROUND(SUM(J$2:J64)*X64,2),0)) -> 0 | I64: 0 | J64: =(Resumen!$C$10*(1-Resumen!$C$24)*(1+Incmat)^5)*C64 -> 0 | K64: =+IF(F64=1,PMT(X64,(Resumen!$C$36+Resumen!$C$26+Resumen!$C$14*6-B64+1),-Amortizacion!G64),0) -> 0 | L64: 0 | M64: =+IF(Resumen!$C$20="no",H64,0) -> 0 | N64: 5.820766091e-11 | O64: =+IF(AND(Resumen!$C$18="SI",Amortizacion!E64=1),SUM($H$2:J64)*25%,0) -> 0 | P64: 0 | Q64: 0 | R64: 0 | S64: =(Resumen!$C$10*(Resumen!$C$24)*(1+Incmat)^5)*$C64 -> 0 | T64: 0 | U64: 0 | V64: 0 | W64: 5.820766091e-11 | X64: =+IF(B64="","",Resumen!$C$34) ->  | Y64: 0 | Z64: 0 | AA64: 0 | AB64: =+IF(Resumen!$C$8="no",0,W64*((1+10%)^(0.0833333333333333)-1)) -> 0
A65: 64 | B65: =+IF(A65>Resumen!$C$40,"",A65) ->  | C65: =+IFERROR(HLOOKUP($B65,Resumen!$F$3:$AM$10,8,0),0) -> 0 | D65: =+IFERROR(HLOOKUP($B65,Resumen!$F$3:$AM$12,10),0) -> 0 | E65: =+IF(B65=Resumen!$C$38*6-6,1,0) -> 0 | F65: =+IFERROR(HLOOKUP($B65,Resumen!$F$3:$AM$14,12),0) -> 0 | G65: 5.820766091e-11 | H65: =IF(X65="",0,IF(F65=0,ROUND(SUM(J$2:J65)*X65,2),0)) -> 0 | I65: 0 | J65: =(Resumen!$C$10*(1-Resumen!$C$24)*(1+Incmat)^5)*C65 -> 0 | K65: =+IF(F65=1,PMT(X65,(Resumen!$C$36+Resumen!$C$26+Resumen!$C$14*6-B65+1),-Amortizacion!G65),0) -> 0 | L65: 0 | M65: =+IF(Resumen!$C$20="no",H65,0) -> 0 | N65: 5.820766091e-11 | O65: =+IF(AND(Resumen!$C$18="SI",Amortizacion!E65=1),SUM($H$2:J65)*25%,0) -> 0 | P65: 0 | Q65: 0 | R65: 0 | S65: =(Resumen!$C$10*(Resumen!$C$24)*(1+Incmat)^5)*$C65 -> 0 | T65: 0 | U65: 0 | V65: 0 | W65: 5.820766091e-11 | X65: =+IF(B65="","",Resumen!$C$34) ->  | Y65: 0 | Z65: 0 | AA65: 0 | AB65: =+IF(Resumen!$C$8="no",0,W65*((1+10%)^(0.0833333333333333)-1)) -> 0
A66: 65 | B66: =+IF(A66>Resumen!$C$40,"",A66) ->  | C66: =+IFERROR(HLOOKUP($B66,Resumen!$F$3:$AM$10,8,0),0) -> 0 | D66: =+IFERROR(HLOOKUP($B66,Resumen!$F$3:$AM$12,10),0) -> 0 | E66: =+IF(B66=Resumen!$C$38*6-6,1,0) -> 0 | F66: =+IFERROR(HLOOKUP($B66,Resumen!$F$3:$AM$14,12),0) -> 0 | G66: 5.820766091e-11 | H66: =IF(X66="",0,IF(F66=0,ROUND(SUM(J$2:J66)*X66,2),0)) -> 0 | I66: =+IF(X66="",0,IF(F66=1,G66*X66,0)) -> 0 | J66: =(Resumen!$C$10*(1-Resumen!$C$24)*(1+Incmat)^5)*C66 -> 0 | K66: =+IF(F66=1,PMT(X66,(Resumen!$C$36+Resumen!$C$26+Resumen!$C$14*6-B66+1),-Amortizacion!G66),0) -> 0 | L66: 0 | M66: =+IF(Resumen!$C$20="no",H66,0) -> 0 | N66: 5.820766091e-11 | O66: =+IF(AND(Resumen!$C$18="SI",Amortizacion!E66=1),SUM($H$2:J66)*25%,0) -> 0 | P66: 0 | Q66: 0 | R66: 0 | S66: =(Resumen!$C$10*(Resumen!$C$24)*(1+Incmat)^5)*$C66 -> 0 | T66: 0 | U66: 0 | V66: 0 | W66: 5.820766091e-11 | X66: =+IF(B66="","",Resumen!$C$34) ->  | Y66: =+J66+S66 -> 0 | Z66: 0 | AA66: 0 | AB66: =+IF(Resumen!$C$8="no",0,W66*((1+10%)^(0.0833333333333333)-1)) -> 0
A67: 66 | B67: =+IF(A67>Resumen!$C$40,"",A67) ->  | C67: =+IFERROR(HLOOKUP($B67,Resumen!$F$3:$AM$10,8,0),0) -> 0 | D67: =+IFERROR(HLOOKUP($B67,Resumen!$F$3:$AM$12,10),0) -> 0 | E67: =+IF(B67=Resumen!$C$38*6-6,1,0) -> 0 | F67: =+IFERROR(HLOOKUP($B67,Resumen!$F$3:$AM$14,12),0) -> 0 | G67: 5.820766091e-11 | H67: =IF(X67="",0,IF(F67=0,ROUND(SUM(J$2:J67)*X67,2),0)) -> 0 | I67: 0 | J67: =(Resumen!$C$10*(1-Resumen!$C$24)*(1+Incmat)^5)*C67 -> 0 | K67: =+IF(F67=1,PMT(X67,(Resumen!$C$36+Resumen!$C$26+Resumen!$C$14*6-B67+1),-Amortizacion!G67),0) -> 0 | L67: =+IF(I67="","",K67-I67) -> 0 | M67: =+IF(Resumen!$C$20="no",H67,0) -> 0 | N67: =+IF(F67=0,SUM(G67:K67)-M67,G67-L67) -> 5.820766091e-11 | O67: =+IF(AND(Resumen!$C$18="SI",Amortizacion!E67=1),SUM($H$2:J67)*25%,0) -> 0 | P67: 0 | Q67: 0 | R67: =+IF(X67="",0,Q67*X67) -> 0 | S67: =(Resumen!$C$10*(Resumen!$C$24)*(1+Incmat)^5)*$C67 -> 0 | T67: =+IF(X67="",0,IFERROR(PMT(X67,P67,-Q67),0)) -> 0 | U67: =+IFERROR(T67-R67,0) -> 0 | V67: =+Q67-U67 -> 0 | W67: 5.820766091e-11 | X67: =+IF(B67="","",Resumen!$C$34) ->  | Y67: 0 | Z67: =+T67+K67+M67 -> 0 | AA67: =+R67+M67+I67 -> 0 | AB67: =+IF(Resumen!$C$8="no",0,W67*((1+10%)^(0.0833333333333333)-1)) -> 0
A68: =+A67+1 -> 67 | B68: =+IF(A68>Resumen!$C$40,"",A68) ->  | C68: =+IFERROR(HLOOKUP($B68,Resumen!$F$3:$AM$10,8,0),0) -> 0 | D68: =+IFERROR(HLOOKUP($B68,Resumen!$F$3:$AM$12,10),0) -> 0 | E68: =+IF(B68=Resumen!$C$38*6-6,1,0) -> 0 | F68: =+IFERROR(HLOOKUP($B68,Resumen!$F$3:$AM$14,12),0) -> 0 | G68: 5.820766091e-11 | H68: =IF(X68="",0,IF(F68=0,ROUND(SUM(J$2:J68)*X68,2),0)) -> 0 | I68: 0 | J68: =(Resumen!$C$10*(1-Resumen!$C$24)*(1+Incmat)^5)*C68 -> 0 | K68: =+IF(F68=1,PMT(X68,(Resumen!$C$36+Resumen!$C$26+Resumen!$C$14*6-B68+1),-Amortizacion!G68),0) -> 0 | L68: 0 | M68: =+IF(Resumen!$C$20="no",H68,0) -> 0 | N68: 5.820766091e-11 | O68: =+IF(AND(Resumen!$C$18="SI",Amortizacion!E68=1),SUM($H$2:J68)*25%,0) -> 0 | P68: =+IF(S68<>0,6,IF(P67=0,0,P67-1)) -> 0 | Q68: =+V67+S68 -> 0 | R68: 0 | S68: =(Resumen!$C$10*(Resumen!$C$24)*(1+Incmat)^5)*$C68 -> 0 | T68: 0 | U68: 0 | V68: 0 | W68: =+N68+V68 -> 5.820766091e-11 | X68: =+IF(B68="","",Resumen!$C$34) ->  | Y68: 0 | Z68: 0 | AA68: 0 | AB68: =+IF(Resumen!$C$8="no",0,W68*((1+10%)^(0.0833333333333333)-1)) -> 0
A69: 68 | B69: =+IF(A69>Resumen!$C$40,"",A69) ->  | C69: =+IFERROR(HLOOKUP($B69,Resumen!$F$3:$AM$10,8,0),0) -> 0 | D69: =+IFERROR(HLOOKUP($B69,Resumen!$F$3:$AM$12,10),0) -> 0 | E69: =+IF(B69=Resumen!$C$38*6-6,1,0) -> 0 | F69: =+IFERROR(HLOOKUP($B69,Resumen!$F$3:$AM$14,12),0) -> 0 | G69: 5.820766091e-11 | H69: =IF(X69="",0,IF(F69=0,ROUND(SUM(J$2:J69)*X69,2),0)) -> 0 | I69: 0 | J69: =(Resumen!$C$10*(1-Resumen!$C$24)*(1+Incmat)^5)*C69 -> 0 | K69: =+IF(F69=1,PMT(X69,(Resumen!$C$36+Resumen!$C$26+Resumen!$C$14*6-B69+1),-Amortizacion!G69),0) -> 0 | L69: 0 | M69: =+IF(Resumen!$C$20="no",H69,0) -> 0 | N69: 5.820766091e-11 | O69: =+IF(AND(Resumen!$C$18="SI",Amortizacion!E69=1),SUM($H$2:J69)*25%,0) -> 0 | P69: 0 | Q69: 0 | R69: 0 | S69: =(Resumen!$C$10*(Resumen!$C$24)*(1+Incmat)^5)*$C69 -> 0 | T69: 0 | U69: 0 | V69: 0 | W69: 5.820766091e-11 | X69: =+IF(B69="","",Resumen!$C$34) ->  | Y69: 0 | Z69: 0 | AA69: 0 | AB69: =+IF(Resumen!$C$8="no",0,W69*((1+10%)^(0.0833333333333333)-1)) -> 0
A70: 69 | B70: =+IF(A70>Resumen!$C$40,"",A70) ->  | C70: =+IFERROR(HLOOKUP($B70,Resumen!$F$3:$AM$10,8,0),0) -> 0 | D70: =+IFERROR(HLOOKUP($B70,Resumen!$F$3:$AM$12,10),0) -> 0 | E70: =+IF(B70=Resumen!$C$38*6-6,1,0) -> 0 | F70: =+IFERROR(HLOOKUP($B70,Resumen!$F$3:$AM$14,12),0) -> 0 | G70: 5.820766091e-11 | H70: =IF(X70="",0,IF(F70=0,ROUND(SUM(J$2:J70)*X70,2),0)) -> 0 | I70: 0 | J70: =(Resumen!$C$10*(1-Resumen!$C$24)*(1+Incmat)^5)*C70 -> 0 | K70: =+IF(F70=1,PMT(X70,(Resumen!$C$36+Resumen!$C$26+Resumen!$C$14*6-B70+1),-Amortizacion!G70),0) -> 0 | L70: 0 | M70: =+IF(Resumen!$C$20="no",H70,0) -> 0 | N70: 5.820766091e-11 | O70: =+IF(AND(Resumen!$C$18="SI",Amortizacion!E70=1),SUM($H$2:J70)*25%,0) -> 0 | P70: 0 | Q70: 0 | R70: 0 | S70: =(Resumen!$C$10*(Resumen!$C$24)*(1+Incmat)^5)*$C70 -> 0 | T70: 0 | U70: 0 | V70: 0 | W70: 5.820766091e-11 | X70: =+IF(B70="","",Resumen!$C$34) ->  | Y70: 0 | Z70: 0 | AA70: 0 | AB70: =+IF(Resumen!$C$8="no",0,W70*((1+10%)^(0.0833333333333333)-1)) -> 0
A71: 70 | B71: =+IF(A71>Resumen!$C$40,"",A71) ->  | C71: =+IFERROR(HLOOKUP($B71,Resumen!$F$3:$AM$10,8,0),0) -> 0 | D71: =+IFERROR(HLOOKUP($B71,Resumen!$F$3:$AM$12,10),0) -> 0 | E71: =+IF(B71=Resumen!$C$38*6-6,1,0) -> 0 | F71: =+IFERROR(HLOOKUP($B71,Resumen!$F$3:$AM$14,12),0) -> 0 | G71: 5.820766091e-11 | H71: =IF(X71="",0,IF(F71=0,ROUND(SUM(J$2:J71)*X71,2),0)) -> 0 | I71: 0 | J71: =(Resumen!$C$10*(1-Resumen!$C$24)*(1+Incmat)^5)*C71 -> 0 | K71: =+IF(F71=1,PMT(X71,(Resumen!$C$36+Resumen!$C$26+Resumen!$C$14*6-B71+1),-Amortizacion!G71),0) -> 0 | L71: 0 | M71: =+IF(Resumen!$C$20="no",H71,0) -> 0 | N71: 5.820766091e-11 | O71: =+IF(AND(Resumen!$C$18="SI",Amortizacion!E71=1),SUM($H$2:J71)*25%,0) -> 0 | P71: 0 | Q71: 0 | R71: 0 | S71: =(Resumen!$C$10*(Resumen!$C$24)*(1+Incmat)^5)*$C71 -> 0 | T71: 0 | U71: 0 | V71: 0 | W71: 5.820766091e-11 | X71: =+IF(B71="","",Resumen!$C$34) ->  | Y71: 0 | Z71: 0 | AA71: 0 | AB71: =+IF(Resumen!$C$8="no",0,W71*((1+10%)^(0.0833333333333333)-1)) -> 0
A72: 71 | B72: =+IF(A72>Resumen!$C$40,"",A72) ->  | C72: =+IFERROR(HLOOKUP($B72,Resumen!$F$3:$AM$10,8,0),0) -> 0 | D72: =+IFERROR(HLOOKUP($B72,Resumen!$F$3:$AM$12,10),0) -> 0 | E72: =+IF(B72=Resumen!$C$38*6-6,1,0) -> 0 | F72: =+IFERROR(HLOOKUP($B72,Resumen!$F$3:$AM$14,12),0) -> 0 | G72: 5.820766091e-11 | H72: =IF(X72="",0,IF(F72=0,ROUND(SUM(J$2:J72)*X72,2),0)) -> 0 | I72: 0 | J72: =(Resumen!$C$10*(1-Resumen!$C$24)*(1+Incmat)^5)*C72 -> 0 | K72: =+IF(F72=1,PMT(X72,(Resumen!$C$36+Resumen!$C$26+Resumen!$C$14*6-B72+1),-Amortizacion!G72),0) -> 0 | L72: 0 | M72: =+IF(Resumen!$C$20="no",H72,0) -> 0 | N72: 5.820766091e-11 | O72: =+IF(AND(Resumen!$C$18="SI",Amortizacion!E72=1),SUM($H$2:J72)*25%,0) -> 0 | P72: 0 | Q72: 0 | R72: 0 | S72: =(Resumen!$C$10*(Resumen!$C$24)*(1+Incmat)^5)*$C72 -> 0 | T72: 0 | U72: 0 | V72: 0 | W72: 5.820766091e-11 | X72: =+IF(B72="","",Resumen!$C$34) ->  | Y72: 0 | Z72: 0 | AA72: 0 | AB72: =+IF(Resumen!$C$8="no",0,W72*((1+10%)^(0.0833333333333333)-1)) -> 0
A73: 72 | B73: =+IF(A73>Resumen!$C$40,"",A73) ->  | C73: =+IFERROR(HLOOKUP($B73,Resumen!$F$3:$AM$10,8,0),0) -> 0 | D73: =+IFERROR(HLOOKUP($B73,Resumen!$F$3:$AM$12,10),0) -> 0 | E73: =+IF(B73=Resumen!$C$38*6-6,1,0) -> 0 | F73: =+IFERROR(HLOOKUP($B73,Resumen!$F$3:$AM$14,12),0) -> 0 | G73: 5.820766091e-11 | H73: =IF(X73="",0,IF(F73=0,ROUND(SUM(J$2:J73)*X73,2),0)) -> 0 | I73: 0 | J73: =(Resumen!$C$10*(1-Resumen!$C$24)*(1+Incmat)^5)*C73 -> 0 | K73: =+IF(F73=1,PMT(X73,(Resumen!$C$36+Resumen!$C$26+Resumen!$C$14*6-B73+1),-Amortizacion!G73),0) -> 0 | L73: 0 | M73: =+IF(Resumen!$C$20="no",H73,0) -> 0 | N73: 5.820766091e-11 | O73: =+IF(AND(Resumen!$C$18="SI",Amortizacion!E73=1),SUM($H$2:J73)*25%,0) -> 0 | P73: 0 | Q73: 0 | R73: 0 | S73: =(Resumen!$C$10*(Resumen!$C$24)*(1+Incmat)^5)*$C73 -> 0 | T73: 0 | U73: 0 | V73: 0 | W73: 5.820766091e-11 | X73: =+IF(B73="","",Resumen!$C$34) ->  | Y73: 0 | Z73: 0 | AA73: 0 | AB73: =+IF(Resumen!$C$8="no",0,W73*((1+10%)^(0.0833333333333333)-1)) -> 0
A74: 73 | B74: =+IF(A74>Resumen!$C$40,"",A74) ->  | C74: =+IFERROR(HLOOKUP($B74,Resumen!$F$3:$AM$10,8,0),0) -> 0 | D74: =+IFERROR(HLOOKUP($B74,Resumen!$F$3:$AM$12,10),0) -> 0 | E74: =+IF(B74=Resumen!$C$38*6-6,1,0) -> 0 | F74: =+IFERROR(HLOOKUP($B74,Resumen!$F$3:$AM$14,12),0) -> 0 | G74: =+N73-O73 -> 5.820766091e-11 | H74: =IF(X74="",0,IF(F74=0,ROUND(SUM(J$2:J74)*X74,2),0)) -> 0 | I74: 0 | J74: =(Resumen!$C$10*(1-Resumen!$C$24)*(1+Incmat)^5)*C74 -> 0 | K74: =+IF(F74=1,PMT(X74,(Resumen!$C$36+Resumen!$C$26+Resumen!$C$14*6-B74+1),-Amortizacion!G74),0) -> 0 | L74: 0 | M74: =+IF(Resumen!$C$20="no",H74,0) -> 0 | N74: 5.820766091e-11 | O74: =+IF(AND(Resumen!$C$18="SI",Amortizacion!E74=1),SUM($H$2:J74)*25%,0) -> 0 | P74: 0 | Q74: 0 | R74: 0 | S74: =(Resumen!$C$10*(Resumen!$C$24)*(1+Incmat)^5)*$C74 -> 0 | T74: 0 | U74: 0 | V74: 0 | W74: 5.820766091e-11 | X74: =+IF(B74="","",Resumen!$C$34) ->  | Y74: 0 | Z74: 0 | AA74: 0 | AB74: =+IF(Resumen!$C$8="no",0,W74*((1+10%)^(0.0833333333333333)-1)) -> 0
A75: 74 | B75: =+IF(A75>Resumen!$C$40,"",A75) ->  | C75: =+IFERROR(HLOOKUP($B75,Resumen!$F$3:$AM$10,8,0),0) -> 0 | D75: =+IFERROR(HLOOKUP($B75,Resumen!$F$3:$AM$12,10),0) -> 0 | E75: =+IF(B75=Resumen!$C$38*6-6,1,0) -> 0 | F75: =+IFERROR(HLOOKUP($B75,Resumen!$F$3:$AM$14,12),0) -> 0 | G75: 5.820766091e-11 | H75: =IF(X75="",0,IF(F75=0,ROUND(SUM(J$2:J75)*X75,2),0)) -> 0 | I75: 0 | J75: =(Resumen!$C$10*(1-Resumen!$C$24)*(1+Incmat)^5)*C75 -> 0 | K75: =+IF(F75=1,PMT(X75,(Resumen!$C$36+Resumen!$C$26+Resumen!$C$14*6-B75+1),-Amortizacion!G75),0) -> 0 | L75: 0 | M75: =+IF(Resumen!$C$20="no",H75,0) -> 0 | N75: 5.820766091e-11 | O75: =+IF(AND(Resumen!$C$18="SI",Amortizacion!E75=1),SUM($H$2:J75)*25%,0) -> 0 | P75: 0 | Q75: 0 | R75: 0 | S75: =(Resumen!$C$10*(Resumen!$C$24)*(1+Incmat)^5)*$C75 -> 0 | T75: 0 | U75: 0 | V75: 0 | W75: 5.820766091e-11 | X75: =+IF(B75="","",Resumen!$C$34) ->  | Y75: 0 | Z75: 0 | AA75: 0 | AB75: =+IF(Resumen!$C$8="no",0,W75*((1+10%)^(0.0833333333333333)-1)) -> 0
A76: 75 | B76: =+IF(A76>Resumen!$C$40,"",A76) ->  | C76: =+IFERROR(HLOOKUP($B76,Resumen!$F$3:$AM$10,8,0),0) -> 0 | D76: =+IFERROR(HLOOKUP($B76,Resumen!$F$3:$AM$12,10),0) -> 0 | E76: =+IF(B76=Resumen!$C$38*6-6,1,0) -> 0 | F76: =+IFERROR(HLOOKUP($B76,Resumen!$F$3:$AM$14,12),0) -> 0 | G76: 5.820766091e-11 | H76: =IF(X76="",0,IF(F76=0,ROUND(SUM(J$2:J76)*X76,2),0)) -> 0 | I76: 0 | J76: =(Resumen!$C$10*(1-Resumen!$C$24)*(1+Incmat)^5)*C76 -> 0 | K76: =+IF(F76=1,PMT(X76,(Resumen!$C$36+Resumen!$C$26+Resumen!$C$14*6-B76+1),-Amortizacion!G76),0) -> 0 | L76: 0 | M76: =+IF(Resumen!$C$20="no",H76,0) -> 0 | N76: 5.820766091e-11 | O76: =+IF(AND(Resumen!$C$18="SI",Amortizacion!E76=1),SUM($H$2:J76)*25%,0) -> 0 | P76: 0 | Q76: 0 | R76: 0 | S76: =(Resumen!$C$10*(Resumen!$C$24)*(1+Incmat)^5)*$C76 -> 0 | T76: 0 | U76: 0 | V76: 0 | W76: 5.820766091e-11 | X76: =+IF(B76="","",Resumen!$C$34) ->  | Y76: 0 | Z76: 0 | AA76: 0 | AB76: =+IF(Resumen!$C$8="no",0,W76*((1+10%)^(0.0833333333333333)-1)) -> 0
A77: 76 | B77: =+IF(A77>Resumen!$C$40,"",A77) ->  | C77: =+IFERROR(HLOOKUP($B77,Resumen!$F$3:$AM$10,8,0),0) -> 0 | D77: =+IFERROR(HLOOKUP($B77,Resumen!$F$3:$AM$12,10),0) -> 0 | E77: =+IF(B77=Resumen!$C$38*6-6,1,0) -> 0 | F77: =+IFERROR(HLOOKUP($B77,Resumen!$F$3:$AM$14,12),0) -> 0 | G77: 5.820766091e-11 | H77: =IF(X77="",0,IF(F77=0,ROUND(SUM(J$2:J77)*X77,2),0)) -> 0 | I77: 0 | J77: =(Resumen!$C$10*(1-Resumen!$C$24)*(1+Incmat)^5)*C77 -> 0 | K77: =+IF(F77=1,PMT(X77,(Resumen!$C$36+Resumen!$C$26+Resumen!$C$14*6-B77+1),-Amortizacion!G77),0) -> 0 | L77: 0 | M77: =+IF(Resumen!$C$20="no",H77,0) -> 0 | N77: 5.820766091e-11 | O77: =+IF(AND(Resumen!$C$18="SI",Amortizacion!E77=1),SUM($H$2:J77)*25%,0) -> 0 | P77: 0 | Q77: 0 | R77: 0 | S77: =(Resumen!$C$10*(Resumen!$C$24)*(1+Incmat)^5)*$C77 -> 0 | T77: 0 | U77: 0 | V77: 0 | W77: 5.820766091e-11 | X77: =+IF(B77="","",Resumen!$C$34) ->  | Y77: 0 | Z77: 0 | AA77: 0 | AB77: =+IF(Resumen!$C$8="no",0,W77*((1+10%)^(0.0833333333333333)-1)) -> 0
A78: 77 | B78: =+IF(A78>Resumen!$C$40,"",A78) ->  | C78: =+IFERROR(HLOOKUP($B78,Resumen!$F$3:$AM$10,8,0),0) -> 0 | D78: =+IFERROR(HLOOKUP($B78,Resumen!$F$3:$AM$12,10),0) -> 0 | E78: =+IF(B78=Resumen!$C$38*6-6,1,0) -> 0 | F78: =+IFERROR(HLOOKUP($B78,Resumen!$F$3:$AM$14,12),0) -> 0 | G78: 5.820766091e-11 | H78: =IF(X78="",0,IF(F78=0,ROUND(SUM(J$2:J78)*X78,2),0)) -> 0 | I78: 0 | J78: =(Resumen!$C$10*(1-Resumen!$C$24)*(1+Incmat)^5)*C78 -> 0 | K78: =+IF(F78=1,PMT(X78,(Resumen!$C$36+Resumen!$C$26+Resumen!$C$14*6-B78+1),-Amortizacion!G78),0) -> 0 | L78: 0 | M78: =+IF(Resumen!$C$20="no",H78,0) -> 0 | N78: 5.820766091e-11 | O78: =+IF(AND(Resumen!$C$18="SI",Amortizacion!E78=1),SUM($H$2:J78)*25%,0) -> 0 | P78: 0 | Q78: 0 | R78: 0 | S78: =(Resumen!$C$10*(Resumen!$C$24)*(1+Incmat)^5)*$C78 -> 0 | T78: 0 | U78: 0 | V78: 0 | W78: 5.820766091e-11 | X78: =+IF(B78="","",Resumen!$C$34) ->  | Y78: 0 | Z78: 0 | AA78: 0 | AB78: =+IF(Resumen!$C$8="no",0,W78*((1+10%)^(0.0833333333333333)-1)) -> 0
A79: 78 | B79: =+IF(A79>Resumen!$C$40,"",A79) ->  | C79: =+IFERROR(HLOOKUP($B79,Resumen!$F$3:$AM$10,8,0),0) -> 0 | D79: =+IFERROR(HLOOKUP($B79,Resumen!$F$3:$AM$12,10),0) -> 0 | E79: =+IF(B79=Resumen!$C$38*6-6,1,0) -> 0 | F79: =+IFERROR(HLOOKUP($B79,Resumen!$F$3:$AM$14,12),0) -> 0 | G79: 5.820766091e-11 | H79: =IF(X79="",0,IF(F79=0,ROUND(SUM(J$2:J79)*X79,2),0)) -> 0 | I79: 0 | J79: =(Resumen!$C$10*(1-Resumen!$C$24)*(1+Incmat)^5)*C79 -> 0 | K79: =+IF(F79=1,PMT(X79,(Resumen!$C$36+Resumen!$C$26+Resumen!$C$14*6-B79+1),-Amortizacion!G79),0) -> 0 | L79: 0 | M79: =+IF(Resumen!$C$20="no",H79,0) -> 0 | N79: 5.820766091e-11 | O79: =+IF(AND(Resumen!$C$18="SI",Amortizacion!E79=1),SUM($H$2:J79)*25%,0) -> 0 | P79: 0 | Q79: 0 | R79: 0 | S79: =(Resumen!$C$10*(Resumen!$C$24)*(1+Incmat)^5)*$C79 -> 0 | T79: 0 | U79: 0 | V79: 0 | W79: 5.820766091e-11 | X79: =+IF(B79="","",Resumen!$C$34) ->  | Y79: 0 | Z79: 0 | AA79: 0 | AB79: =+IF(Resumen!$C$8="no",0,W79*((1+10%)^(0.0833333333333333)-1)) -> 0
A80: 79 | B80: =+IF(A80>Resumen!$C$40,"",A80) ->  | C80: =+IFERROR(HLOOKUP($B80,Resumen!$F$3:$AM$10,8,0),0) -> 0 | D80: =+IFERROR(HLOOKUP($B80,Resumen!$F$3:$AM$12,10),0) -> 0 | E80: =+IF(B80=Resumen!$C$38*6-6,1,0) -> 0 | F80: =+IFERROR(HLOOKUP($B80,Resumen!$F$3:$AM$14,12),0) -> 0 | G80: 5.820766091e-11 | H80: =IF(X80="",0,IF(F80=0,ROUND(SUM(J$2:J80)*X80,2),0)) -> 0 | I80: 0 | J80: =(Resumen!$C$10*(1-Resumen!$C$24)*(1+Incmat)^5)*C80 -> 0 | K80: =+IF(F80=1,PMT(X80,(Resumen!$C$36+Resumen!$C$26+Resumen!$C$14*6-B80+1),-Amortizacion!G80),0) -> 0 | L80: 0 | M80: =+IF(Resumen!$C$20="no",H80,0) -> 0 | N80: 5.820766091e-11 | O80: =+IF(AND(Resumen!$C$18="SI",Amortizacion!E80=1),SUM($H$2:J80)*25%,0) -> 0 | P80: 0 | Q80: 0 | R80: 0 | S80: =(Resumen!$C$10*(Resumen!$C$24)*(1+Incmat)^5)*$C80 -> 0 | T80: 0 | U80: 0 | V80: 0 | W80: 5.820766091e-11 | X80: =+IF(B80="","",Resumen!$C$34) ->  | Y80: 0 | Z80: 0 | AA80: 0 | AB80: =+IF(Resumen!$C$8="no",0,W80*((1+10%)^(0.0833333333333333)-1)) -> 0
A81: 80 | B81: =+IF(A81>Resumen!$C$40,"",A81) ->  | C81: =+IFERROR(HLOOKUP($B81,Resumen!$F$3:$AM$10,8,0),0) -> 0 | D81: =+IFERROR(HLOOKUP($B81,Resumen!$F$3:$AM$12,10),0) -> 0 | E81: =+IF(B81=Resumen!$C$38*6-6,1,0) -> 0 | F81: =+IFERROR(HLOOKUP($B81,Resumen!$F$3:$AM$14,12),0) -> 0 | G81: 5.820766091e-11 | H81: =IF(X81="",0,IF(F81=0,ROUND(SUM(J$2:J81)*X81,2),0)) -> 0 | I81: 0 | J81: =(Resumen!$C$10*(1-Resumen!$C$24)*(1+Incmat)^5)*C81 -> 0 | K81: =+IF(F81=1,PMT(X81,(Resumen!$C$36+Resumen!$C$26+Resumen!$C$14*6-B81+1),-Amortizacion!G81),0) -> 0 | L81: 0 | M81: =+IF(Resumen!$C$20="no",H81,0) -> 0 | N81: 5.820766091e-11 | O81: =+IF(AND(Resumen!$C$18="SI",Amortizacion!E81=1),SUM($H$2:J81)*25%,0) -> 0 | P81: 0 | Q81: 0 | R81: 0 | S81: =(Resumen!$C$10*(Resumen!$C$24)*(1+Incmat)^5)*$C81 -> 0 | T81: 0 | U81: 0 | V81: 0 | W81: 5.820766091e-11 | X81: =+IF(B81="","",Resumen!$C$34) ->  | Y81: 0 | Z81: 0 | AA81: 0 | AB81: =+IF(Resumen!$C$8="no",0,W81*((1+10%)^(0.0833333333333333)-1)) -> 0
A82: 81 | B82: =+IF(A82>Resumen!$C$40,"",A82) ->  | C82: =+IFERROR(HLOOKUP($B82,Resumen!$F$3:$AM$10,8,0),0) -> 0 | D82: =+IFERROR(HLOOKUP($B82,Resumen!$F$3:$AM$12,10),0) -> 0 | E82: =+IF(B82=Resumen!$C$38*6-6,1,0) -> 0 | F82: =+IFERROR(HLOOKUP($B82,Resumen!$F$3:$AM$14,12),0) -> 0 | G82: 5.820766091e-11 | H82: =IF(X82="",0,IF(F82=0,ROUND(SUM(J$2:J82)*X82,2),0)) -> 0 | I82: 0 | J82: =(Resumen!$C$10*(1-Resumen!$C$24)*(1+Incmat)^5)*C82 -> 0 | K82: =+IF(F82=1,PMT(X82,(Resumen!$C$36+Resumen!$C$26+Resumen!$C$14*6-B82+1),-Amortizacion!G82),0) -> 0 | L82: 0 | M82: =+IF(Resumen!$C$20="no",H82,0) -> 0 | N82: 5.820766091e-11 | O82: =+IF(AND(Resumen!$C$18="SI",Amortizacion!E82=1),SUM($H$2:J82)*25%,0) -> 0 | P82: 0 | Q82: 0 | R82: 0 | S82: =(Resumen!$C$10*(Resumen!$C$24)*(1+Incmat)^5)*$C82 -> 0 | T82: 0 | U82: 0 | V82: 0 | W82: 5.820766091e-11 | X82: =+IF(B82="","",Resumen!$C$34) ->  | Y82: 0 | Z82: 0 | AA82: 0 | AB82: =+IF(Resumen!$C$8="no",0,W82*((1+10%)^(0.0833333333333333)-1)) -> 0
A83: 82 | B83: =+IF(A83>Resumen!$C$40,"",A83) ->  | C83: =+IFERROR(HLOOKUP($B83,Resumen!$F$3:$AM$10,8,0),0) -> 0 | D83: =+IFERROR(HLOOKUP($B83,Resumen!$F$3:$AM$12,10),0) -> 0 | E83: =+IF(B83=Resumen!$C$38*6-6,1,0) -> 0 | F83: =+IFERROR(HLOOKUP($B83,Resumen!$F$3:$AM$14,12),0) -> 0 | G83: 5.820766091e-11 | H83: =IF(X83="",0,IF(F83=0,ROUND(SUM(J$2:J83)*X83,2),0)) -> 0 | I83: 0 | J83: =(Resumen!$C$10*(1-Resumen!$C$24)*(1+Incmat)^5)*C83 -> 0 | K83: =+IF(F83=1,PMT(X83,(Resumen!$C$36+Resumen!$C$26+Resumen!$C$14*6-B83+1),-Amortizacion!G83),0) -> 0 | L83: 0 | M83: =+IF(Resumen!$C$20="no",H83,0) -> 0 | N83: 5.820766091e-11 | O83: =+IF(AND(Resumen!$C$18="SI",Amortizacion!E83=1),SUM($H$2:J83)*25%,0) -> 0 | P83: 0 | Q83: 0 | R83: 0 | S83: =(Resumen!$C$10*(Resumen!$C$24)*(1+Incmat)^5)*$C83 -> 0 | T83: 0 | U83: 0 | V83: 0 | W83: 5.820766091e-11 | X83: =+IF(B83="","",Resumen!$C$34) ->  | Y83: 0 | Z83: 0 | AA83: 0 | AB83: =+IF(Resumen!$C$8="no",0,W83*((1+10%)^(0.0833333333333333)-1)) -> 0
A84: 83 | B84: =+IF(A84>Resumen!$C$40,"",A84) ->  | C84: =+IFERROR(HLOOKUP($B84,Resumen!$F$3:$AM$10,8,0),0) -> 0 | D84: =+IFERROR(HLOOKUP($B84,Resumen!$F$3:$AM$12,10),0) -> 0 | E84: =+IF(B84=Resumen!$C$38*6-6,1,0) -> 0 | F84: =+IFERROR(HLOOKUP($B84,Resumen!$F$3:$AM$14,12),0) -> 0 | G84: 5.820766091e-11 | H84: =IF(X84="",0,IF(F84=0,ROUND(SUM(J$2:J84)*X84,2),0)) -> 0 | I84: 0 | J84: =(Resumen!$C$10*(1-Resumen!$C$24)*(1+Incmat)^5)*C84 -> 0 | K84: =+IF(F84=1,PMT(X84,(Resumen!$C$36+Resumen!$C$26+Resumen!$C$14*6-B84+1),-Amortizacion!G84),0) -> 0 | L84: 0 | M84: =+IF(Resumen!$C$20="no",H84,0) -> 0 | N84: 5.820766091e-11 | O84: =+IF(AND(Resumen!$C$18="SI",Amortizacion!E84=1),SUM($H$2:J84)*25%,0) -> 0 | P84: 0 | Q84: 0 | R84: 0 | S84: =(Resumen!$C$10*(Resumen!$C$24)*(1+Incmat)^5)*$C84 -> 0 | T84: 0 | U84: 0 | V84: 0 | W84: 5.820766091e-11 | X84: =+IF(B84="","",Resumen!$C$34) ->  | Y84: 0 | Z84: 0 | AA84: 0 | AB84: =+IF(Resumen!$C$8="no",0,W84*((1+10%)^(0.0833333333333333)-1)) -> 0
A85: 84 | B85: =+IF(A85>Resumen!$C$40,"",A85) ->  | C85: =+IFERROR(HLOOKUP($B85,Resumen!$F$3:$AM$10,8,0),0) -> 0 | D85: =+IFERROR(HLOOKUP($B85,Resumen!$F$3:$AM$12,10),0) -> 0 | E85: =+IF(B85=Resumen!$C$38*6-6,1,0) -> 0 | F85: =+IFERROR(HLOOKUP($B85,Resumen!$F$3:$AM$14,12),0) -> 0 | G85: 5.820766091e-11 | H85: =IF(X85="",0,IF(F85=0,ROUND(SUM(J$2:J85)*X85,2),0)) -> 0 | I85: 0 | J85: =(Resumen!$C$10*(1-Resumen!$C$24)*(1+Incmat)^5)*C85 -> 0 | K85: =+IF(F85=1,PMT(X85,(Resumen!$C$36+Resumen!$C$26+Resumen!$C$14*6-B85+1),-Amortizacion!G85),0) -> 0 | L85: 0 | M85: =+IF(Resumen!$C$20="no",H85,0) -> 0 | N85: 5.820766091e-11 | O85: =+IF(AND(Resumen!$C$18="SI",Amortizacion!E85=1),SUM($H$2:J85)*25%,0) -> 0 | P85: 0 | Q85: 0 | R85: 0 | S85: =(Resumen!$C$10*(Resumen!$C$24)*(1+Incmat)^5)*$C85 -> 0 | T85: 0 | U85: 0 | V85: 0 | W85: 5.820766091e-11 | X85: =+IF(B85="","",Resumen!$C$34) ->  | Y85: 0 | Z85: 0 | AA85: 0 | AB85: =+IF(Resumen!$C$8="no",0,W85*((1+10%)^(0.0833333333333333)-1)) -> 0
A86: 85 | B86: =+IF(A86>Resumen!$C$40,"",A86) ->  | C86: =+IFERROR(HLOOKUP($B86,Resumen!$F$3:$AM$10,8,0),0) -> 0 | D86: =+IFERROR(HLOOKUP($B86,Resumen!$F$3:$AM$12,10),0) -> 0 | E86: =+IF(B86=Resumen!$C$38*6-6,1,0) -> 0 | F86: =+IFERROR(HLOOKUP($B86,Resumen!$F$3:$AM$14,12),0) -> 0 | G86: 5.820766091e-11 | H86: =IF(X86="",0,IF(F86=0,ROUND(SUM(J$2:J86)*X86,2),0)) -> 0 | I86: 0 | J86: =(Resumen!$C$10*(1-Resumen!$C$24)*(1+Incmat)^5)*C86 -> 0 | K86: =+IF(F86=1,PMT(X86,(Resumen!$C$36+Resumen!$C$26+Resumen!$C$14*6-B86+1),-Amortizacion!G86),0) -> 0 | L86: 0 | M86: =+IF(Resumen!$C$20="no",H86,0) -> 0 | N86: 5.820766091e-11 | O86: =+IF(AND(Resumen!$C$18="SI",Amortizacion!E86=1),SUM($H$2:J86)*25%,0) -> 0 | P86: 0 | Q86: 0 | R86: 0 | S86: =(Resumen!$C$10*(Resumen!$C$24)*(1+Incmat)^5)*$C86 -> 0 | T86: 0 | U86: 0 | V86: 0 | W86: 5.820766091e-11 | X86: =+IF(B86="","",Resumen!$C$34) ->  | Y86: 0 | Z86: 0 | AA86: 0 | AB86: =+IF(Resumen!$C$8="no",0,W86*((1+10%)^(0.0833333333333333)-1)) -> 0
A87: 86 | B87: =+IF(A87>Resumen!$C$40,"",A87) ->  | C87: =+IFERROR(HLOOKUP($B87,Resumen!$F$3:$AM$10,8,0),0) -> 0 | D87: =+IFERROR(HLOOKUP($B87,Resumen!$F$3:$AM$12,10),0) -> 0 | E87: =+IF(B87=Resumen!$C$38*6-6,1,0) -> 0 | F87: =+IFERROR(HLOOKUP($B87,Resumen!$F$3:$AM$14,12),0) -> 0 | G87: 5.820766091e-11 | H87: =IF(X87="",0,IF(F87=0,ROUND(SUM(J$2:J87)*X87,2),0)) -> 0 | I87: 0 | J87: =(Resumen!$C$10*(1-Resumen!$C$24)*(1+Incmat)^5)*C87 -> 0 | K87: =+IF(F87=1,PMT(X87,(Resumen!$C$36+Resumen!$C$26+Resumen!$C$14*6-B87+1),-Amortizacion!G87),0) -> 0 | L87: 0 | M87: =+IF(Resumen!$C$20="no",H87,0) -> 0 | N87: 5.820766091e-11 | O87: =+IF(AND(Resumen!$C$18="SI",Amortizacion!E87=1),SUM($H$2:J87)*25%,0) -> 0 | P87: 0 | Q87: 0 | R87: 0 | S87: =(Resumen!$C$10*(Resumen!$C$24)*(1+Incmat)^5)*$C87 -> 0 | T87: 0 | U87: 0 | V87: 0 | W87: 5.820766091e-11 | X87: =+IF(B87="","",Resumen!$C$34) ->  | Y87: 0 | Z87: 0 | AA87: 0 | AB87: =+IF(Resumen!$C$8="no",0,W87*((1+10%)^(0.0833333333333333)-1)) -> 0
A88: 87 | B88: =+IF(A88>Resumen!$C$40,"",A88) ->  | C88: =+IFERROR(HLOOKUP($B88,Resumen!$F$3:$AM$10,8,0),0) -> 0 | D88: =+IFERROR(HLOOKUP($B88,Resumen!$F$3:$AM$12,10),0) -> 0 | E88: =+IF(B88=Resumen!$C$38*6-6,1,0) -> 0 | F88: =+IFERROR(HLOOKUP($B88,Resumen!$F$3:$AM$14,12),0) -> 0 | G88: 5.820766091e-11 | H88: =IF(X88="",0,IF(F88=0,ROUND(SUM(J$2:J88)*X88,2),0)) -> 0 | I88: 0 | J88: =(Resumen!$C$10*(1-Resumen!$C$24)*(1+Incmat)^5)*C88 -> 0 | K88: =+IF(F88=1,PMT(X88,(Resumen!$C$36+Resumen!$C$26+Resumen!$C$14*6-B88+1),-Amortizacion!G88),0) -> 0 | L88: 0 | M88: =+IF(Resumen!$C$20="no",H88,0) -> 0 | N88: 5.820766091e-11 | O88: =+IF(AND(Resumen!$C$18="SI",Amortizacion!E88=1),SUM($H$2:J88)*25%,0) -> 0 | P88: 0 | Q88: 0 | R88: 0 | S88: =(Resumen!$C$10*(Resumen!$C$24)*(1+Incmat)^5)*$C88 -> 0 | T88: 0 | U88: 0 | V88: 0 | W88: 5.820766091e-11 | X88: =+IF(B88="","",Resumen!$C$34) ->  | Y88: 0 | Z88: 0 | AA88: 0 | AB88: =+IF(Resumen!$C$8="no",0,W88*((1+10%)^(0.0833333333333333)-1)) -> 0
A89: 88 | B89: =+IF(A89>Resumen!$C$40,"",A89) ->  | C89: =+IFERROR(HLOOKUP($B89,Resumen!$F$3:$AM$10,8,0),0) -> 0 | D89: =+IFERROR(HLOOKUP($B89,Resumen!$F$3:$AM$12,10),0) -> 0 | E89: =+IF(B89=Resumen!$C$38*6-6,1,0) -> 0 | F89: =+IFERROR(HLOOKUP($B89,Resumen!$F$3:$AM$14,12),0) -> 0 | G89: 5.820766091e-11 | H89: =IF(X89="",0,IF(F89=0,ROUND(SUM(J$2:J89)*X89,2),0)) -> 0 | I89: 0 | J89: =(Resumen!$C$10*(1-Resumen!$C$24)*(1+Incmat)^5)*C89 -> 0 | K89: =+IF(F89=1,PMT(X89,(Resumen!$C$36+Resumen!$C$26+Resumen!$C$14*6-B89+1),-Amortizacion!G89),0) -> 0 | L89: 0 | M89: =+IF(Resumen!$C$20="no",H89,0) -> 0 | N89: 5.820766091e-11 | O89: =+IF(AND(Resumen!$C$18="SI",Amortizacion!E89=1),SUM($H$2:J89)*25%,0) -> 0 | P89: 0 | Q89: 0 | R89: 0 | S89: =(Resumen!$C$10*(Resumen!$C$24)*(1+Incmat)^5)*$C89 -> 0 | T89: 0 | U89: 0 | V89: 0 | W89: 5.820766091e-11 | X89: =+IF(B89="","",Resumen!$C$34) ->  | Y89: 0 | Z89: 0 | AA89: 0 | AB89: =+IF(Resumen!$C$8="no",0,W89*((1+10%)^(0.0833333333333333)-1)) -> 0
A90: 89 | B90: =+IF(A90>Resumen!$C$40,"",A90) ->  | C90: =+IFERROR(HLOOKUP($B90,Resumen!$F$3:$AM$10,8,0),0) -> 0 | D90: =+IFERROR(HLOOKUP($B90,Resumen!$F$3:$AM$12,10),0) -> 0 | E90: =+IF(B90=Resumen!$C$38*6-6,1,0) -> 0 | F90: =+IFERROR(HLOOKUP($B90,Resumen!$F$3:$AM$14,12),0) -> 0 | G90: 5.820766091e-11 | H90: =IF(X90="",0,IF(F90=0,ROUND(SUM(J$2:J90)*X90,2),0)) -> 0 | I90: 0 | J90: =(Resumen!$C$10*(1-Resumen!$C$24)*(1+Incmat)^5)*C90 -> 0 | K90: =+IF(F90=1,PMT(X90,(Resumen!$C$36+Resumen!$C$26+Resumen!$C$14*6-B90+1),-Amortizacion!G90),0) -> 0 | L90: 0 | M90: =+IF(Resumen!$C$20="no",H90,0) -> 0 | N90: 5.820766091e-11 | O90: =+IF(AND(Resumen!$C$18="SI",Amortizacion!E90=1),SUM($H$2:J90)*25%,0) -> 0 | P90: 0 | Q90: 0 | R90: 0 | S90: =(Resumen!$C$10*(Resumen!$C$24)*(1+Incmat)^5)*$C90 -> 0 | T90: 0 | U90: 0 | V90: 0 | W90: 5.820766091e-11 | X90: =+IF(B90="","",Resumen!$C$34) ->  | Y90: 0 | Z90: 0 | AA90: 0 | AB90: =+IF(Resumen!$C$8="no",0,W90*((1+10%)^(0.0833333333333333)-1)) -> 0
A91: 90 | B91: =+IF(A91>Resumen!$C$40,"",A91) ->  | C91: =+IFERROR(HLOOKUP($B91,Resumen!$F$3:$AM$10,8,0),0) -> 0 | D91: =+IFERROR(HLOOKUP($B91,Resumen!$F$3:$AM$12,10),0) -> 0 | E91: =+IF(B91=Resumen!$C$38*6-6,1,0) -> 0 | F91: =+IFERROR(HLOOKUP($B91,Resumen!$F$3:$AM$14,12),0) -> 0 | G91: 5.820766091e-11 | H91: =IF(X91="",0,IF(F91=0,ROUND(SUM(J$2:J91)*X91,2),0)) -> 0 | I91: 0 | J91: =(Resumen!$C$10*(1-Resumen!$C$24)*(1+Incmat)^5)*C91 -> 0 | K91: =+IF(F91=1,PMT(X91,(Resumen!$C$36+Resumen!$C$26+Resumen!$C$14*6-B91+1),-Amortizacion!G91),0) -> 0 | L91: 0 | M91: =+IF(Resumen!$C$20="no",H91,0) -> 0 | N91: 5.820766091e-11 | O91: =+IF(AND(Resumen!$C$18="SI",Amortizacion!E91=1),SUM($H$2:J91)*25%,0) -> 0 | P91: 0 | Q91: 0 | R91: 0 | S91: =(Resumen!$C$10*(Resumen!$C$24)*(1+Incmat)^5)*$C91 -> 0 | T91: 0 | U91: 0 | V91: 0 | W91: 5.820766091e-11 | X91: =+IF(B91="","",Resumen!$C$34) ->  | Y91: 0 | Z91: 0 | AA91: 0 | AB91: =+IF(Resumen!$C$8="no",0,W91*((1+10%)^(0.0833333333333333)-1)) -> 0
A92: 91 | B92: =+IF(A92>Resumen!$C$40,"",A92) ->  | C92: =+IFERROR(HLOOKUP($B92,Resumen!$F$3:$AM$10,8,0),0) -> 0 | D92: =+IFERROR(HLOOKUP($B92,Resumen!$F$3:$AM$12,10),0) -> 0 | E92: =+IF(B92=Resumen!$C$38*6-6,1,0) -> 0 | F92: =+IFERROR(HLOOKUP($B92,Resumen!$F$3:$AM$14,12),0) -> 0 | G92: 5.820766091e-11 | H92: =IF(X92="",0,IF(F92=0,ROUND(SUM(J$2:J92)*X92,2),0)) -> 0 | I92: 0 | J92: =(Resumen!$C$10*(1-Resumen!$C$24)*(1+Incmat)^5)*C92 -> 0 | K92: =+IF(F92=1,PMT(X92,(Resumen!$C$36+Resumen!$C$26+Resumen!$C$14*6-B92+1),-Amortizacion!G92),0) -> 0 | L92: 0 | M92: =+IF(Resumen!$C$20="no",H92,0) -> 0 | N92: 5.820766091e-11 | O92: =+IF(AND(Resumen!$C$18="SI",Amortizacion!E92=1),SUM($H$2:J92)*25%,0) -> 0 | P92: 0 | Q92: 0 | R92: 0 | S92: =(Resumen!$C$10*(Resumen!$C$24)*(1+Incmat)^5)*$C92 -> 0 | T92: 0 | U92: 0 | V92: 0 | W92: 5.820766091e-11 | X92: =+IF(B92="","",Resumen!$C$34) ->  | Y92: 0 | Z92: 0 | AA92: 0 | AB92: =+IF(Resumen!$C$8="no",0,W92*((1+10%)^(0.0833333333333333)-1)) -> 0
A93: 92 | B93: =+IF(A93>Resumen!$C$40,"",A93) ->  | C93: =+IFERROR(HLOOKUP($B93,Resumen!$F$3:$AM$10,8,0),0) -> 0 | D93: =+IFERROR(HLOOKUP($B93,Resumen!$F$3:$AM$12,10),0) -> 0 | E93: =+IF(B93=Resumen!$C$38*6-6,1,0) -> 0 | F93: =+IFERROR(HLOOKUP($B93,Resumen!$F$3:$AM$14,12),0) -> 0 | G93: 5.820766091e-11 | H93: =IF(X93="",0,IF(F93=0,ROUND(SUM(J$2:J93)*X93,2),0)) -> 0 | I93: 0 | J93: =(Resumen!$C$10*(1-Resumen!$C$24)*(1+Incmat)^5)*C93 -> 0 | K93: =+IF(F93=1,PMT(X93,(Resumen!$C$36+Resumen!$C$26+Resumen!$C$14*6-B93+1),-Amortizacion!G93),0) -> 0 | L93: 0 | M93: =+IF(Resumen!$C$20="no",H93,0) -> 0 | N93: 5.820766091e-11 | O93: =+IF(AND(Resumen!$C$18="SI",Amortizacion!E93=1),SUM($H$2:J93)*25%,0) -> 0 | P93: 0 | Q93: 0 | R93: 0 | S93: =(Resumen!$C$10*(Resumen!$C$24)*(1+Incmat)^5)*$C93 -> 0 | T93: 0 | U93: 0 | V93: 0 | W93: 5.820766091e-11 | X93: =+IF(B93="","",Resumen!$C$34) ->  | Y93: 0 | Z93: 0 | AA93: 0 | AB93: =+IF(Resumen!$C$8="no",0,W93*((1+10%)^(0.0833333333333333)-1)) -> 0
A94: 93 | B94: =+IF(A94>Resumen!$C$40,"",A94) ->  | C94: =+IFERROR(HLOOKUP($B94,Resumen!$F$3:$AM$10,8,0),0) -> 0 | D94: =+IFERROR(HLOOKUP($B94,Resumen!$F$3:$AM$12,10),0) -> 0 | E94: =+IF(B94=Resumen!$C$38*6-6,1,0) -> 0 | F94: =+IFERROR(HLOOKUP($B94,Resumen!$F$3:$AM$14,12),0) -> 0 | G94: 5.820766091e-11 | H94: =IF(X94="",0,IF(F94=0,ROUND(SUM(J$2:J94)*X94,2),0)) -> 0 | I94: 0 | J94: =(Resumen!$C$10*(1-Resumen!$C$24)*(1+Incmat)^5)*C94 -> 0 | K94: =+IF(F94=1,PMT(X94,(Resumen!$C$36+Resumen!$C$26+Resumen!$C$14*6-B94+1),-Amortizacion!G94),0) -> 0 | L94: 0 | M94: =+IF(Resumen!$C$20="no",H94,0) -> 0 | N94: 5.820766091e-11 | O94: =+IF(AND(Resumen!$C$18="SI",Amortizacion!E94=1),SUM($H$2:J94)*25%,0) -> 0 | P94: 0 | Q94: 0 | R94: 0 | S94: =(Resumen!$C$10*(Resumen!$C$24)*(1+Incmat)^5)*$C94 -> 0 | T94: 0 | U94: 0 | V94: 0 | W94: 5.820766091e-11 | X94: =+IF(B94="","",Resumen!$C$34) ->  | Y94: 0 | Z94: 0 | AA94: 0 | AB94: =+IF(Resumen!$C$8="no",0,W94*((1+10%)^(0.0833333333333333)-1)) -> 0
A95: 94 | B95: =+IF(A95>Resumen!$C$40,"",A95) ->  | C95: =+IFERROR(HLOOKUP($B95,Resumen!$F$3:$AM$10,8,0),0) -> 0 | D95: =+IFERROR(HLOOKUP($B95,Resumen!$F$3:$AM$12,10),0) -> 0 | E95: =+IF(B95=Resumen!$C$38*6-6,1,0) -> 0 | F95: =+IFERROR(HLOOKUP($B95,Resumen!$F$3:$AM$14,12),0) -> 0 | G95: 5.820766091e-11 | H95: =IF(X95="",0,IF(F95=0,ROUND(SUM(J$2:J95)*X95,2),0)) -> 0 | I95: 0 | J95: =(Resumen!$C$10*(1-Resumen!$C$24)*(1+Incmat)^5)*C95 -> 0 | K95: =+IF(F95=1,PMT(X95,(Resumen!$C$36+Resumen!$C$26+Resumen!$C$14*6-B95+1),-Amortizacion!G95),0) -> 0 | L95: 0 | M95: =+IF(Resumen!$C$20="no",H95,0) -> 0 | N95: 5.820766091e-11 | O95: =+IF(AND(Resumen!$C$18="SI",Amortizacion!E95=1),SUM($H$2:J95)*25%,0) -> 0 | P95: 0 | Q95: 0 | R95: 0 | S95: =(Resumen!$C$10*(Resumen!$C$24)*(1+Incmat)^5)*$C95 -> 0 | T95: 0 | U95: 0 | V95: 0 | W95: 5.820766091e-11 | X95: =+IF(B95="","",Resumen!$C$34) ->  | Y95: 0 | Z95: 0 | AA95: 0 | AB95: =+IF(Resumen!$C$8="no",0,W95*((1+10%)^(0.0833333333333333)-1)) -> 0
A96: 95 | B96: =+IF(A96>Resumen!$C$40,"",A96) ->  | C96: =+IFERROR(HLOOKUP($B96,Resumen!$F$3:$AM$10,8,0),0) -> 0 | D96: =+IFERROR(HLOOKUP($B96,Resumen!$F$3:$AM$12,10),0) -> 0 | E96: =+IF(B96=Resumen!$C$38*6-6,1,0) -> 0 | F96: =+IFERROR(HLOOKUP($B96,Resumen!$F$3:$AM$14,12),0) -> 0 | G96: 5.820766091e-11 | H96: =IF(X96="",0,IF(F96=0,ROUND(SUM(J$2:J96)*X96,2),0)) -> 0 | I96: 0 | J96: =(Resumen!$C$10*(1-Resumen!$C$24)*(1+Incmat)^5)*C96 -> 0 | K96: =+IF(F96=1,PMT(X96,(Resumen!$C$36+Resumen!$C$26+Resumen!$C$14*6-B96+1),-Amortizacion!G96),0) -> 0 | L96: 0 | M96: =+IF(Resumen!$C$20="no",H96,0) -> 0 | N96: 5.820766091e-11 | O96: =+IF(AND(Resumen!$C$18="SI",Amortizacion!E96=1),SUM($H$2:J96)*25%,0) -> 0 | P96: 0 | Q96: 0 | R96: 0 | S96: =(Resumen!$C$10*(Resumen!$C$24)*(1+Incmat)^5)*$C96 -> 0 | T96: 0 | U96: 0 | V96: 0 | W96: 5.820766091e-11 | X96: =+IF(B96="","",Resumen!$C$34) ->  | Y96: 0 | Z96: 0 | AA96: 0 | AB96: =+IF(Resumen!$C$8="no",0,W96*((1+10%)^(0.0833333333333333)-1)) -> 0
A97: 96 | B97: =+IF(A97>Resumen!$C$40,"",A97) ->  | C97: =+IFERROR(HLOOKUP($B97,Resumen!$F$3:$AM$10,8,0),0) -> 0 | D97: =+IFERROR(HLOOKUP($B97,Resumen!$F$3:$AM$12,10),0) -> 0 | E97: =+IF(B97=Resumen!$C$38*6-6,1,0) -> 0 | F97: =+IFERROR(HLOOKUP($B97,Resumen!$F$3:$AM$14,12),0) -> 0 | G97: 5.820766091e-11 | H97: =IF(X97="",0,IF(F97=0,ROUND(SUM(J$2:J97)*X97,2),0)) -> 0 | I97: 0 | J97: =(Resumen!$C$10*(1-Resumen!$C$24)*(1+Incmat)^5)*C97 -> 0 | K97: =+IF(F97=1,PMT(X97,(Resumen!$C$36+Resumen!$C$26+Resumen!$C$14*6-B97+1),-Amortizacion!G97),0) -> 0 | L97: 0 | M97: =+IF(Resumen!$C$20="no",H97,0) -> 0 | N97: 5.820766091e-11 | O97: =+IF(AND(Resumen!$C$18="SI",Amortizacion!E97=1),SUM($H$2:J97)*25%,0) -> 0 | P97: 0 | Q97: 0 | R97: 0 | S97: =(Resumen!$C$10*(Resumen!$C$24)*(1+Incmat)^5)*$C97 -> 0 | T97: 0 | U97: 0 | V97: 0 | W97: 5.820766091e-11 | X97: =+IF(B97="","",Resumen!$C$34) ->  | Y97: 0 | Z97: 0 | AA97: 0 | AB97: =+IF(Resumen!$C$8="no",0,W97*((1+10%)^(0.0833333333333333)-1)) -> 0
A98: 97 | B98: =+IF(A98>Resumen!$C$40,"",A98) ->  | C98: =+IFERROR(HLOOKUP($B98,Resumen!$F$3:$AM$10,8,0),0) -> 0 | D98: =+IFERROR(HLOOKUP($B98,Resumen!$F$3:$AM$12,10),0) -> 0 | E98: =+IF(B98=Resumen!$C$38*6-6,1,0) -> 0 | F98: =+IFERROR(HLOOKUP($B98,Resumen!$F$3:$AM$14,12),0) -> 0 | G98: 5.820766091e-11 | H98: =IF(X98="",0,IF(F98=0,ROUND(SUM(J$2:J98)*X98,2),0)) -> 0 | I98: 0 | J98: =(Resumen!$C$10*(1-Resumen!$C$24)*(1+Incmat)^5)*C98 -> 0 | K98: =+IF(F98=1,PMT(X98,(Resumen!$C$36+Resumen!$C$26+Resumen!$C$14*6-B98+1),-Amortizacion!G98),0) -> 0 | L98: 0 | M98: =+IF(Resumen!$C$20="no",H98,0) -> 0 | N98: 5.820766091e-11 | O98: =+IF(AND(Resumen!$C$18="SI",Amortizacion!E98=1),SUM($H$2:J98)*25%,0) -> 0 | P98: 0 | Q98: 0 | R98: 0 | S98: =(Resumen!$C$10*(Resumen!$C$24)*(1+Incmat)^5)*$C98 -> 0 | T98: 0 | U98: 0 | V98: 0 | W98: 5.820766091e-11 | X98: =+IF(B98="","",Resumen!$C$34) ->  | Y98: 0 | Z98: 0 | AA98: 0 | AB98: =+IF(Resumen!$C$8="no",0,W98*((1+10%)^(0.0833333333333333)-1)) -> 0
A99: 98 | B99: =+IF(A99>Resumen!$C$40,"",A99) ->  | C99: =+IFERROR(HLOOKUP($B99,Resumen!$F$3:$AM$10,8,0),0) -> 0 | D99: =+IFERROR(HLOOKUP($B99,Resumen!$F$3:$AM$12,10),0) -> 0 | E99: =+IF(B99=Resumen!$C$38*6-6,1,0) -> 0 | F99: =+IFERROR(HLOOKUP($B99,Resumen!$F$3:$AM$14,12),0) -> 0 | G99: 5.820766091e-11 | H99: =IF(X99="",0,IF(F99=0,ROUND(SUM(J$2:J99)*X99,2),0)) -> 0 | I99: 0 | J99: =(Resumen!$C$10*(1-Resumen!$C$24)*(1+Incmat)^5)*C99 -> 0 | K99: =+IF(F99=1,PMT(X99,(Resumen!$C$36+Resumen!$C$26+Resumen!$C$14*6-B99+1),-Amortizacion!G99),0) -> 0 | L99: 0 | M99: =+IF(Resumen!$C$20="no",H99,0) -> 0 | N99: 5.820766091e-11 | O99: =+IF(AND(Resumen!$C$18="SI",Amortizacion!E99=1),SUM($H$2:J99)*25%,0) -> 0 | P99: 0 | Q99: 0 | R99: 0 | S99: =(Resumen!$C$10*(Resumen!$C$24)*(1+Incmat)^5)*$C99 -> 0 | T99: 0 | U99: 0 | V99: 0 | W99: 5.820766091e-11 | X99: =+IF(B99="","",Resumen!$C$34) ->  | Y99: 0 | Z99: 0 | AA99: 0 | AB99: =+IF(Resumen!$C$8="no",0,W99*((1+10%)^(0.0833333333333333)-1)) -> 0
A100: 99 | B100: =+IF(A100>Resumen!$C$40,"",A100) ->  | C100: =+IFERROR(HLOOKUP($B100,Resumen!$F$3:$AM$10,8,0),0) -> 0 | D100: =+IFERROR(HLOOKUP($B100,Resumen!$F$3:$AM$12,10),0) -> 0 | E100: =+IF(B100=Resumen!$C$38*6-6,1,0) -> 0 | F100: =+IFERROR(HLOOKUP($B100,Resumen!$F$3:$AM$14,12),0) -> 0 | G100: 5.820766091e-11 | H100: =IF(X100="",0,IF(F100=0,ROUND(SUM(J$2:J100)*X100,2),0)) -> 0 | I100: 0 | J100: =(Resumen!$C$10*(1-Resumen!$C$24)*(1+Incmat)^5)*C100 -> 0 | K100: =+IF(F100=1,PMT(X100,(Resumen!$C$36+Resumen!$C$26+Resumen!$C$14*6-B100+1),-Amortizacion!G100),0) -> 0 | L100: 0 | M100: =+IF(Resumen!$C$20="no",H100,0) -> 0 | N100: 5.820766091e-11 | O100: =+IF(AND(Resumen!$C$18="SI",Amortizacion!E100=1),SUM($H$2:J100)*25%,0) -> 0 | P100: 0 | Q100: 0 | R100: 0 | S100: =(Resumen!$C$10*(Resumen!$C$24)*(1+Incmat)^5)*$C100 -> 0 | T100: 0 | U100: 0 | V100: 0 | W100: 5.820766091e-11 | X100: =+IF(B100="","",Resumen!$C$34) ->  | Y100: 0 | Z100: 0 | AA100: 0 | AB100: =+IF(Resumen!$C$8="no",0,W100*((1+10%)^(0.0833333333333333)-1)) -> 0
A101: 100 | B101: =+IF(A101>Resumen!$C$40,"",A101) ->  | C101: =+IFERROR(HLOOKUP($B101,Resumen!$F$3:$AM$10,8,0),0) -> 0 | D101: =+IFERROR(HLOOKUP($B101,Resumen!$F$3:$AM$12,10),0) -> 0 | E101: =+IF(B101=Resumen!$C$38*6-6,1,0) -> 0 | F101: =+IFERROR(HLOOKUP($B101,Resumen!$F$3:$AM$14,12),0) -> 0 | G101: 5.820766091e-11 | H101: =IF(X101="",0,IF(F101=0,ROUND(SUM(J$2:J101)*X101,2),0)) -> 0 | I101: 0 | J101: =(Resumen!$C$10*(1-Resumen!$C$24)*(1+Incmat)^5)*C101 -> 0 | K101: =+IF(F101=1,PMT(X101,(Resumen!$C$36+Resumen!$C$26+Resumen!$C$14*6-B101+1),-Amortizacion!G101),0) -> 0 | L101: 0 | M101: =+IF(Resumen!$C$20="no",H101,0) -> 0 | N101: 5.820766091e-11 | O101: =+IF(AND(Resumen!$C$18="SI",Amortizacion!E101=1),SUM($H$2:J101)*25%,0) -> 0 | P101: 0 | Q101: 0 | R101: 0 | S101: =(Resumen!$C$10*(Resumen!$C$24)*(1+Incmat)^5)*$C101 -> 0 | T101: 0 | U101: 0 | V101: 0 | W101: 5.820766091e-11 | X101: =+IF(B101="","",Resumen!$C$34) ->  | Y101: 0 | Z101: 0 | AA101: 0 | AB101: =+IF(Resumen!$C$8="no",0,W101*((1+10%)^(0.0833333333333333)-1)) -> 0
A102: 101 | B102: =+IF(A102>Resumen!$C$40,"",A102) ->  | C102: =+IFERROR(HLOOKUP($B102,Resumen!$F$3:$AM$10,8,0),0) -> 0 | D102: =+IFERROR(HLOOKUP($B102,Resumen!$F$3:$AM$12,10),0) -> 0 | E102: =+IF(B102=Resumen!$C$38*6-6,1,0) -> 0 | F102: =+IFERROR(HLOOKUP($B102,Resumen!$F$3:$AM$14,12),0) -> 0 | G102: 5.820766091e-11 | H102: =IF(X102="",0,IF(F102=0,ROUND(SUM(J$2:J102)*X102,2),0)) -> 0 | I102: 0 | J102: =(Resumen!$C$10*(1-Resumen!$C$24)*(1+Incmat)^5)*C102 -> 0 | K102: =+IF(F102=1,PMT(X102,(Resumen!$C$36+Resumen!$C$26+Resumen!$C$14*6-B102+1),-Amortizacion!G102),0) -> 0 | L102: 0 | M102: =+IF(Resumen!$C$20="no",H102,0) -> 0 | N102: 5.820766091e-11 | O102: =+IF(AND(Resumen!$C$18="SI",Amortizacion!E102=1),SUM($H$2:J102)*25%,0) -> 0 | P102: 0 | Q102: 0 | R102: 0 | S102: =(Resumen!$C$10*(Resumen!$C$24)*(1+Incmat)^5)*$C102 -> 0 | T102: 0 | U102: 0 | V102: 0 | W102: 5.820766091e-11 | X102: =+IF(B102="","",Resumen!$C$34) ->  | Y102: 0 | Z102: 0 | AA102: 0 | AB102: =+IF(Resumen!$C$8="no",0,W102*((1+10%)^(0.0833333333333333)-1)) -> 0
A103: 102 | B103: =+IF(A103>Resumen!$C$40,"",A103) ->  | C103: =+IFERROR(HLOOKUP($B103,Resumen!$F$3:$AM$10,8,0),0) -> 0 | D103: =+IFERROR(HLOOKUP($B103,Resumen!$F$3:$AM$12,10),0) -> 0 | E103: =+IF(B103=Resumen!$C$38*6-6,1,0) -> 0 | F103: =+IFERROR(HLOOKUP($B103,Resumen!$F$3:$AM$14,12),0) -> 0 | G103: 5.820766091e-11 | H103: =IF(X103="",0,IF(F103=0,ROUND(SUM(J$2:J103)*X103,2),0)) -> 0 | I103: 0 | J103: =(Resumen!$C$10*(1-Resumen!$C$24)*(1+Incmat)^5)*C103 -> 0 | K103: =+IF(F103=1,PMT(X103,(Resumen!$C$36+Resumen!$C$26+Resumen!$C$14*6-B103+1),-Amortizacion!G103),0) -> 0 | L103: 0 | M103: =+IF(Resumen!$C$20="no",H103,0) -> 0 | N103: 5.820766091e-11 | O103: =+IF(AND(Resumen!$C$18="SI",Amortizacion!E103=1),SUM($H$2:J103)*25%,0) -> 0 | P103: 0 | Q103: 0 | R103: 0 | S103: =(Resumen!$C$10*(Resumen!$C$24)*(1+Incmat)^5)*$C103 -> 0 | T103: 0 | U103: 0 | V103: 0 | W103: 5.820766091e-11 | X103: =+IF(B103="","",Resumen!$C$34) ->  | Y103: 0 | Z103: 0 | AA103: 0 | AB103: =+IF(Resumen!$C$8="no",0,W103*((1+10%)^(0.0833333333333333)-1)) -> 0
A104: 103 | B104: =+IF(A104>Resumen!$C$40,"",A104) ->  | C104: =+IFERROR(HLOOKUP($B104,Resumen!$F$3:$AM$10,8,0),0) -> 0 | D104: =+IFERROR(HLOOKUP($B104,Resumen!$F$3:$AM$12,10),0) -> 0 | E104: =+IF(B104=Resumen!$C$38*6-6,1,0) -> 0 | F104: =+IFERROR(HLOOKUP($B104,Resumen!$F$3:$AM$14,12),0) -> 0 | G104: 5.820766091e-11 | H104: =IF(X104="",0,IF(F104=0,ROUND(SUM(J$2:J104)*X104,2),0)) -> 0 | I104: 0 | J104: =(Resumen!$C$10*(1-Resumen!$C$24)*(1+Incmat)^5)*C104 -> 0 | K104: =+IF(F104=1,PMT(X104,(Resumen!$C$36+Resumen!$C$26+Resumen!$C$14*6-B104+1),-Amortizacion!G104),0) -> 0 | L104: 0 | M104: =+IF(Resumen!$C$20="no",H104,0) -> 0 | N104: 5.820766091e-11 | O104: =+IF(AND(Resumen!$C$18="SI",Amortizacion!E104=1),SUM($H$2:J104)*25%,0) -> 0 | P104: 0 | Q104: 0 | R104: 0 | S104: =(Resumen!$C$10*(Resumen!$C$24)*(1+Incmat)^5)*$C104 -> 0 | T104: 0 | U104: 0 | V104: 0 | W104: 5.820766091e-11 | X104: =+IF(B104="","",Resumen!$C$34) ->  | Y104: 0 | Z104: 0 | AA104: 0 | AB104: =+IF(Resumen!$C$8="no",0,W104*((1+10%)^(0.0833333333333333)-1)) -> 0
A105: 104 | B105: =+IF(A105>Resumen!$C$40,"",A105) ->  | C105: =+IFERROR(HLOOKUP($B105,Resumen!$F$3:$AM$10,8,0),0) -> 0 | D105: =+IFERROR(HLOOKUP($B105,Resumen!$F$3:$AM$12,10),0) -> 0 | E105: =+IF(B105=Resumen!$C$38*6-6,1,0) -> 0 | F105: =+IFERROR(HLOOKUP($B105,Resumen!$F$3:$AM$14,12),0) -> 0 | G105: 5.820766091e-11 | H105: =IF(X105="",0,IF(F105=0,ROUND(SUM(J$2:J105)*X105,2),0)) -> 0 | I105: 0 | J105: =(Resumen!$C$10*(1-Resumen!$C$24)*(1+Incmat)^5)*C105 -> 0 | K105: =+IF(F105=1,PMT(X105,(Resumen!$C$36+Resumen!$C$26+Resumen!$C$14*6-B105+1),-Amortizacion!G105),0) -> 0 | L105: 0 | M105: =+IF(Resumen!$C$20="no",H105,0) -> 0 | N105: 5.820766091e-11 | O105: =+IF(AND(Resumen!$C$18="SI",Amortizacion!E105=1),SUM($H$2:J105)*25%,0) -> 0 | P105: 0 | Q105: 0 | R105: 0 | S105: =(Resumen!$C$10*(Resumen!$C$24)*(1+Incmat)^5)*$C105 -> 0 | T105: 0 | U105: 0 | V105: 0 | W105: 5.820766091e-11 | X105: =+IF(B105="","",Resumen!$C$34) ->  | Y105: 0 | Z105: 0 | AA105: 0 | AB105: =+IF(Resumen!$C$8="no",0,W105*((1+10%)^(0.0833333333333333)-1)) -> 0
A106: 105 | B106: =+IF(A106>Resumen!$C$40,"",A106) ->  | C106: =+IFERROR(HLOOKUP($B106,Resumen!$F$3:$AM$10,8,0),0) -> 0 | D106: =+IFERROR(HLOOKUP($B106,Resumen!$F$3:$AM$12,10),0) -> 0 | E106: =+IF(B106=Resumen!$C$38*6-6,1,0) -> 0 | F106: =+IFERROR(HLOOKUP($B106,Resumen!$F$3:$AM$14,12),0) -> 0 | G106: 5.820766091e-11 | H106: =IF(X106="",0,IF(F106=0,ROUND(SUM(J$2:J106)*X106,2),0)) -> 0 | I106: 0 | J106: =(Resumen!$C$10*(1-Resumen!$C$24)*(1+Incmat)^5)*C106 -> 0 | K106: =+IF(F106=1,PMT(X106,(Resumen!$C$36+Resumen!$C$26+Resumen!$C$14*6-B106+1),-Amortizacion!G106),0) -> 0 | L106: 0 | M106: =+IF(Resumen!$C$20="no",H106,0) -> 0 | N106: 5.820766091e-11 | O106: =+IF(AND(Resumen!$C$18="SI",Amortizacion!E106=1),SUM($H$2:J106)*25%,0) -> 0 | P106: 0 | Q106: 0 | R106: 0 | S106: =(Resumen!$C$10*(Resumen!$C$24)*(1+Incmat)^5)*$C106 -> 0 | T106: 0 | U106: 0 | V106: 0 | W106: 5.820766091e-11 | X106: =+IF(B106="","",Resumen!$C$34) ->  | Y106: 0 | Z106: 0 | AA106: 0 | AB106: =+IF(Resumen!$C$8="no",0,W106*((1+10%)^(0.0833333333333333)-1)) -> 0
A107: 106 | B107: =+IF(A107>Resumen!$C$40,"",A107) ->  | C107: =+IFERROR(HLOOKUP($B107,Resumen!$F$3:$AM$10,8,0),0) -> 0 | D107: =+IFERROR(HLOOKUP($B107,Resumen!$F$3:$AM$12,10),0) -> 0 | E107: =+IF(B107=Resumen!$C$38*6-6,1,0) -> 0 | F107: =+IFERROR(HLOOKUP($B107,Resumen!$F$3:$AM$14,12),0) -> 0 | G107: 5.820766091e-11 | H107: =IF(X107="",0,IF(F107=0,ROUND(SUM(J$2:J107)*X107,2),0)) -> 0 | I107: 0 | J107: =(Resumen!$C$10*(1-Resumen!$C$24)*(1+Incmat)^5)*C107 -> 0 | K107: =+IF(F107=1,PMT(X107,(Resumen!$C$36+Resumen!$C$26+Resumen!$C$14*6-B107+1),-Amortizacion!G107),0) -> 0 | L107: 0 | M107: =+IF(Resumen!$C$20="no",H107,0) -> 0 | N107: 5.820766091e-11 | O107: =+IF(AND(Resumen!$C$18="SI",Amortizacion!E107=1),SUM($H$2:J107)*25%,0) -> 0 | P107: 0 | Q107: 0 | R107: 0 | S107: =(Resumen!$C$10*(Resumen!$C$24)*(1+Incmat)^5)*$C107 -> 0 | T107: 0 | U107: 0 | V107: 0 | W107: 5.820766091e-11 | X107: =+IF(B107="","",Resumen!$C$34) ->  | Y107: 0 | Z107: 0 | AA107: 0 | AB107: =+IF(Resumen!$C$8="no",0,W107*((1+10%)^(0.0833333333333333)-1)) -> 0
A108: 107 | B108: =+IF(A108>Resumen!$C$40,"",A108) ->  | C108: =+IFERROR(HLOOKUP($B108,Resumen!$F$3:$AM$10,8,0),0) -> 0 | D108: =+IFERROR(HLOOKUP($B108,Resumen!$F$3:$AM$12,10),0) -> 0 | E108: =+IF(B108=Resumen!$C$38*6-6,1,0) -> 0 | F108: =+IFERROR(HLOOKUP($B108,Resumen!$F$3:$AM$14,12),0) -> 0 | G108: 5.820766091e-11 | H108: =IF(X108="",0,IF(F108=0,ROUND(SUM(J$2:J108)*X108,2),0)) -> 0 | I108: 0 | J108: =(Resumen!$C$10*(1-Resumen!$C$24)*(1+Incmat)^5)*C108 -> 0 | K108: =+IF(F108=1,PMT(X108,(Resumen!$C$36+Resumen!$C$26+Resumen!$C$14*6-B108+1),-Amortizacion!G108),0) -> 0 | L108: 0 | M108: =+IF(Resumen!$C$20="no",H108,0) -> 0 | N108: 5.820766091e-11 | O108: =+IF(AND(Resumen!$C$18="SI",Amortizacion!E108=1),SUM($H$2:J108)*25%,0) -> 0 | P108: 0 | Q108: 0 | R108: 0 | S108: =(Resumen!$C$10*(Resumen!$C$24)*(1+Incmat)^5)*$C108 -> 0 | T108: 0 | U108: 0 | V108: 0 | W108: 5.820766091e-11 | X108: =+IF(B108="","",Resumen!$C$34) ->  | Y108: 0 | Z108: 0 | AA108: 0 | AB108: =+IF(Resumen!$C$8="no",0,W108*((1+10%)^(0.0833333333333333)-1)) -> 0
A109: 108 | B109: =+IF(A109>Resumen!$C$40,"",A109) ->  | C109: =+IFERROR(HLOOKUP($B109,Resumen!$F$3:$AM$10,8,0),0) -> 0 | D109: =+IFERROR(HLOOKUP($B109,Resumen!$F$3:$AM$12,10),0) -> 0 | E109: =+IF(B109=Resumen!$C$38*6-6,1,0) -> 0 | F109: =+IFERROR(HLOOKUP($B109,Resumen!$F$3:$AM$14,12),0) -> 0 | G109: 5.820766091e-11 | H109: =IF(X109="",0,IF(F109=0,ROUND(SUM(J$2:J109)*X109,2),0)) -> 0 | I109: 0 | J109: =(Resumen!$C$10*(1-Resumen!$C$24)*(1+Incmat)^5)*C109 -> 0 | K109: =+IF(F109=1,PMT(X109,(Resumen!$C$36+Resumen!$C$26+Resumen!$C$14*6-B109+1),-Amortizacion!G109),0) -> 0 | L109: 0 | M109: =+IF(Resumen!$C$20="no",H109,0) -> 0 | N109: 5.820766091e-11 | O109: =+IF(AND(Resumen!$C$18="SI",Amortizacion!E109=1),SUM($H$2:J109)*25%,0) -> 0 | P109: 0 | Q109: 0 | R109: 0 | S109: =(Resumen!$C$10*(Resumen!$C$24)*(1+Incmat)^5)*$C109 -> 0 | T109: 0 | U109: 0 | V109: 0 | W109: 5.820766091e-11 | X109: =+IF(B109="","",Resumen!$C$34) ->  | Y109: 0 | Z109: 0 | AA109: 0 | AB109: =+IF(Resumen!$C$8="no",0,W109*((1+10%)^(0.0833333333333333)-1)) -> 0
A110: 109 | B110: =+IF(A110>Resumen!$C$40,"",A110) ->  | C110: =+IFERROR(HLOOKUP($B110,Resumen!$F$3:$AM$10,8,0),0) -> 0 | D110: =+IFERROR(HLOOKUP($B110,Resumen!$F$3:$AM$12,10),0) -> 0 | E110: =+IF(B110=Resumen!$C$38*6-6,1,0) -> 0 | F110: =+IFERROR(HLOOKUP($B110,Resumen!$F$3:$AM$14,12),0) -> 0 | G110: 5.820766091e-11 | H110: =IF(X110="",0,IF(F110=0,ROUND(SUM(J$2:J110)*X110,2),0)) -> 0 | I110: 0 | J110: =(Resumen!$C$10*(1-Resumen!$C$24)*(1+Incmat)^5)*C110 -> 0 | K110: =+IF(F110=1,PMT(X110,(Resumen!$C$36+Resumen!$C$26+Resumen!$C$14*6-B110+1),-Amortizacion!G110),0) -> 0 | L110: 0 | M110: =+IF(Resumen!$C$20="no",H110,0) -> 0 | N110: 5.820766091e-11 | O110: =+IF(AND(Resumen!$C$18="SI",Amortizacion!E110=1),SUM($H$2:J110)*25%,0) -> 0 | P110: 0 | Q110: 0 | R110: 0 | S110: =(Resumen!$C$10*(Resumen!$C$24)*(1+Incmat)^5)*$C110 -> 0 | T110: 0 | U110: 0 | V110: 0 | W110: 5.820766091e-11 | X110: =+IF(B110="","",Resumen!$C$34) ->  | Y110: 0 | Z110: 0 | AA110: 0 | AB110: =+IF(Resumen!$C$8="no",0,W110*((1+10%)^(0.0833333333333333)-1)) -> 0
A111: 110 | B111: =+IF(A111>Resumen!$C$40,"",A111) ->  | C111: =+IFERROR(HLOOKUP($B111,Resumen!$F$3:$AM$10,8,0),0) -> 0 | D111: =+IFERROR(HLOOKUP($B111,Resumen!$F$3:$AM$12,10),0) -> 0 | E111: =+IF(B111=Resumen!$C$38*6-6,1,0) -> 0 | F111: =+IFERROR(HLOOKUP($B111,Resumen!$F$3:$AM$14,12),0) -> 0 | G111: 5.820766091e-11 | H111: =IF(X111="",0,IF(F111=0,ROUND(SUM(J$2:J111)*X111,2),0)) -> 0 | I111: 0 | J111: =(Resumen!$C$10*(1-Resumen!$C$24)*(1+Incmat)^5)*C111 -> 0 | K111: =+IF(F111=1,PMT(X111,(Resumen!$C$36+Resumen!$C$26+Resumen!$C$14*6-B111+1),-Amortizacion!G111),0) -> 0 | L111: 0 | M111: =+IF(Resumen!$C$20="no",H111,0) -> 0 | N111: 5.820766091e-11 | O111: =+IF(AND(Resumen!$C$18="SI",Amortizacion!E111=1),SUM($H$2:J111)*25%,0) -> 0 | P111: 0 | Q111: 0 | R111: 0 | S111: =(Resumen!$C$10*(Resumen!$C$24)*(1+Incmat)^5)*$C111 -> 0 | T111: 0 | U111: 0 | V111: 0 | W111: 5.820766091e-11 | X111: =+IF(B111="","",Resumen!$C$34) ->  | Y111: 0 | Z111: 0 | AA111: 0 | AB111: =+IF(Resumen!$C$8="no",0,W111*((1+10%)^(0.0833333333333333)-1)) -> 0
A112: 111 | B112: =+IF(A112>Resumen!$C$40,"",A112) ->  | C112: =+IFERROR(HLOOKUP($B112,Resumen!$F$3:$AM$10,8,0),0) -> 0 | D112: =+IFERROR(HLOOKUP($B112,Resumen!$F$3:$AM$12,10),0) -> 0 | E112: =+IF(B112=Resumen!$C$38*6-6,1,0) -> 0 | F112: =+IFERROR(HLOOKUP($B112,Resumen!$F$3:$AM$14,12),0) -> 0 | G112: 5.820766091e-11 | H112: =IF(X112="",0,IF(F112=0,ROUND(SUM(J$2:J112)*X112,2),0)) -> 0 | I112: 0 | J112: =(Resumen!$C$10*(1-Resumen!$C$24)*(1+Incmat)^5)*C112 -> 0 | K112: =+IF(F112=1,PMT(X112,(Resumen!$C$36+Resumen!$C$26+Resumen!$C$14*6-B112+1),-Amortizacion!G112),0) -> 0 | L112: 0 | M112: =+IF(Resumen!$C$20="no",H112,0) -> 0 | N112: 5.820766091e-11 | O112: =+IF(AND(Resumen!$C$18="SI",Amortizacion!E112=1),SUM($H$2:J112)*25%,0) -> 0 | P112: 0 | Q112: 0 | R112: 0 | S112: =(Resumen!$C$10*(Resumen!$C$24)*(1+Incmat)^5)*$C112 -> 0 | T112: 0 | U112: 0 | V112: 0 | W112: 5.820766091e-11 | X112: =+IF(B112="","",Resumen!$C$34) ->  | Y112: 0 | Z112: 0 | AA112: 0 | AB112: =+IF(Resumen!$C$8="no",0,W112*((1+10%)^(0.0833333333333333)-1)) -> 0
A113: 112 | B113: =+IF(A113>Resumen!$C$40,"",A113) ->  | C113: =+IFERROR(HLOOKUP($B113,Resumen!$F$3:$AM$10,8,0),0) -> 0 | D113: =+IFERROR(HLOOKUP($B113,Resumen!$F$3:$AM$12,10),0) -> 0 | E113: =+IF(B113=Resumen!$C$38*6-6,1,0) -> 0 | F113: =+IFERROR(HLOOKUP($B113,Resumen!$F$3:$AM$14,12),0) -> 0 | G113: 5.820766091e-11 | H113: =IF(X113="",0,IF(F113=0,ROUND(SUM(J$2:J113)*X113,2),0)) -> 0 | I113: 0 | J113: =(Resumen!$C$10*(1-Resumen!$C$24)*(1+Incmat)^5)*C113 -> 0 | K113: =+IF(F113=1,PMT(X113,(Resumen!$C$36+Resumen!$C$26+Resumen!$C$14*6-B113+1),-Amortizacion!G113),0) -> 0 | L113: 0 | M113: =+IF(Resumen!$C$20="no",H113,0) -> 0 | N113: 5.820766091e-11 | O113: =+IF(AND(Resumen!$C$18="SI",Amortizacion!E113=1),SUM($H$2:J113)*25%,0) -> 0 | P113: 0 | Q113: 0 | R113: 0 | S113: =(Resumen!$C$10*(Resumen!$C$24)*(1+Incmat)^5)*$C113 -> 0 | T113: 0 | U113: 0 | V113: 0 | W113: 5.820766091e-11 | X113: =+IF(B113="","",Resumen!$C$34) ->  | Y113: 0 | Z113: 0 | AA113: 0 | AB113: =+IF(Resumen!$C$8="no",0,W113*((1+10%)^(0.0833333333333333)-1)) -> 0
A114: 113 | B114: =+IF(A114>Resumen!$C$40,"",A114) ->  | C114: =+IFERROR(HLOOKUP($B114,Resumen!$F$3:$AM$10,8,0),0) -> 0 | D114: =+IFERROR(HLOOKUP($B114,Resumen!$F$3:$AM$12,10),0) -> 0 | E114: =+IF(B114=Resumen!$C$38*6-6,1,0) -> 0 | F114: =+IFERROR(HLOOKUP($B114,Resumen!$F$3:$AM$14,12),0) -> 0 | G114: 5.820766091e-11 | H114: =IF(X114="",0,IF(F114=0,ROUND(SUM(J$2:J114)*X114,2),0)) -> 0 | I114: 0 | J114: =(Resumen!$C$10*(1-Resumen!$C$24)*(1+Incmat)^5)*C114 -> 0 | K114: =+IF(F114=1,PMT(X114,(Resumen!$C$36+Resumen!$C$26+Resumen!$C$14*6-B114+1),-Amortizacion!G114),0) -> 0 | L114: 0 | M114: =+IF(Resumen!$C$20="no",H114,0) -> 0 | N114: 5.820766091e-11 | O114: =+IF(AND(Resumen!$C$18="SI",Amortizacion!E114=1),SUM($H$2:J114)*25%,0) -> 0 | P114: 0 | Q114: 0 | R114: 0 | S114: =(Resumen!$C$10*(Resumen!$C$24)*(1+Incmat)^5)*$C114 -> 0 | T114: 0 | U114: 0 | V114: 0 | W114: 5.820766091e-11 | X114: =+IF(B114="","",Resumen!$C$34) ->  | Y114: 0 | Z114: 0 | AA114: 0 | AB114: =+IF(Resumen!$C$8="no",0,W114*((1+10%)^(0.0833333333333333)-1)) -> 0
A115: 114 | B115: =+IF(A115>Resumen!$C$40,"",A115) ->  | C115: =+IFERROR(HLOOKUP($B115,Resumen!$F$3:$AM$10,8,0),0) -> 0 | D115: =+IFERROR(HLOOKUP($B115,Resumen!$F$3:$AM$12,10),0) -> 0 | E115: =+IF(B115=Resumen!$C$38*6-6,1,0) -> 0 | F115: =+IFERROR(HLOOKUP($B115,Resumen!$F$3:$AM$14,12),0) -> 0 | G115: 5.820766091e-11 | H115: =IF(X115="",0,IF(F115=0,ROUND(SUM(J$2:J115)*X115,2),0)) -> 0 | I115: 0 | J115: =(Resumen!$C$10*(1-Resumen!$C$24)*(1+Incmat)^5)*C115 -> 0 | K115: =+IF(F115=1,PMT(X115,(Resumen!$C$36+Resumen!$C$26+Resumen!$C$14*6-B115+1),-Amortizacion!G115),0) -> 0 | L115: 0 | M115: =+IF(Resumen!$C$20="no",H115,0) -> 0 | N115: 5.820766091e-11 | O115: =+IF(AND(Resumen!$C$18="SI",Amortizacion!E115=1),SUM($H$2:J115)*25%,0) -> 0 | P115: 0 | Q115: 0 | R115: 0 | S115: =(Resumen!$C$10*(Resumen!$C$24)*(1+Incmat)^5)*$C115 -> 0 | T115: 0 | U115: 0 | V115: 0 | W115: 5.820766091e-11 | X115: =+IF(B115="","",Resumen!$C$34) ->  | Y115: 0 | Z115: 0 | AA115: 0 | AB115: =+IF(Resumen!$C$8="no",0,W115*((1+10%)^(0.0833333333333333)-1)) -> 0
A116: 115 | B116: =+IF(A116>Resumen!$C$40,"",A116) ->  | C116: =+IFERROR(HLOOKUP($B116,Resumen!$F$3:$AM$10,8,0),0) -> 0 | D116: =+IFERROR(HLOOKUP($B116,Resumen!$F$3:$AM$12,10),0) -> 0 | E116: =+IF(B116=Resumen!$C$38*6-6,1,0) -> 0 | F116: =+IFERROR(HLOOKUP($B116,Resumen!$F$3:$AM$14,12),0) -> 0 | G116: 5.820766091e-11 | H116: =IF(X116="",0,IF(F116=0,ROUND(SUM(J$2:J116)*X116,2),0)) -> 0 | I116: 0 | J116: =(Resumen!$C$10*(1-Resumen!$C$24)*(1+Incmat)^5)*C116 -> 0 | K116: =+IF(F116=1,PMT(X116,(Resumen!$C$36+Resumen!$C$26+Resumen!$C$14*6-B116+1),-Amortizacion!G116),0) -> 0 | L116: 0 | M116: =+IF(Resumen!$C$20="no",H116,0) -> 0 | N116: 5.820766091e-11 | O116: =+IF(AND(Resumen!$C$18="SI",Amortizacion!E116=1),SUM($H$2:J116)*25%,0) -> 0 | P116: 0 | Q116: 0 | R116: 0 | S116: =(Resumen!$C$10*(Resumen!$C$24)*(1+Incmat)^5)*$C116 -> 0 | T116: 0 | U116: 0 | V116: 0 | W116: 5.820766091e-11 | X116: =+IF(B116="","",Resumen!$C$34) ->  | Y116: 0 | Z116: 0 | AA116: 0 | AB116: =+IF(Resumen!$C$8="no",0,W116*((1+10%)^(0.0833333333333333)-1)) -> 0
A117: 116 | B117: =+IF(A117>Resumen!$C$40,"",A117) ->  | C117: =+IFERROR(HLOOKUP($B117,Resumen!$F$3:$AM$10,8,0),0) -> 0 | D117: =+IFERROR(HLOOKUP($B117,Resumen!$F$3:$AM$12,10),0) -> 0 | E117: =+IF(B117=Resumen!$C$38*6-6,1,0) -> 0 | F117: =+IFERROR(HLOOKUP($B117,Resumen!$F$3:$AM$14,12),0) -> 0 | G117: 5.820766091e-11 | H117: =IF(X117="",0,IF(F117=0,ROUND(SUM(J$2:J117)*X117,2),0)) -> 0 | I117: 0 | J117: =(Resumen!$C$10*(1-Resumen!$C$24)*(1+Incmat)^5)*C117 -> 0 | K117: =+IF(F117=1,PMT(X117,(Resumen!$C$36+Resumen!$C$26+Resumen!$C$14*6-B117+1),-Amortizacion!G117),0) -> 0 | L117: 0 | M117: =+IF(Resumen!$C$20="no",H117,0) -> 0 | N117: 5.820766091e-11 | O117: =+IF(AND(Resumen!$C$18="SI",Amortizacion!E117=1),SUM($H$2:J117)*25%,0) -> 0 | P117: 0 | Q117: 0 | R117: 0 | S117: =(Resumen!$C$10*(Resumen!$C$24)*(1+Incmat)^5)*$C117 -> 0 | T117: 0 | U117: 0 | V117: 0 | W117: 5.820766091e-11 | X117: =+IF(B117="","",Resumen!$C$34) ->  | Y117: 0 | Z117: 0 | AA117: 0 | AB117: =+IF(Resumen!$C$8="no",0,W117*((1+10%)^(0.0833333333333333)-1)) -> 0
A118: 117 | B118: =+IF(A118>Resumen!$C$40,"",A118) ->  | C118: =+IFERROR(HLOOKUP($B118,Resumen!$F$3:$AM$10,8,0),0) -> 0 | D118: =+IFERROR(HLOOKUP($B118,Resumen!$F$3:$AM$12,10),0) -> 0 | E118: =+IF(B118=Resumen!$C$38*6-6,1,0) -> 0 | F118: =+IFERROR(HLOOKUP($B118,Resumen!$F$3:$AM$14,12),0) -> 0 | G118: 5.820766091e-11 | H118: =IF(X118="",0,IF(F118=0,ROUND(SUM(J$2:J118)*X118,2),0)) -> 0 | I118: 0 | J118: =(Resumen!$C$10*(1-Resumen!$C$24)*(1+Incmat)^5)*C118 -> 0 | K118: =+IF(F118=1,PMT(X118,(Resumen!$C$36+Resumen!$C$26+Resumen!$C$14*6-B118+1),-Amortizacion!G118),0) -> 0 | L118: 0 | M118: =+IF(Resumen!$C$20="no",H118,0) -> 0 | N118: 5.820766091e-11 | O118: =+IF(AND(Resumen!$C$18="SI",Amortizacion!E118=1),SUM($H$2:J118)*25%,0) -> 0 | P118: 0 | Q118: 0 | R118: 0 | S118: =(Resumen!$C$10*(Resumen!$C$24)*(1+Incmat)^5)*$C118 -> 0 | T118: 0 | U118: 0 | V118: 0 | W118: 5.820766091e-11 | X118: =+IF(B118="","",Resumen!$C$34) ->  | Y118: 0 | Z118: 0 | AA118: 0 | AB118: =+IF(Resumen!$C$8="no",0,W118*((1+10%)^(0.0833333333333333)-1)) -> 0
A119: 118 | B119: =+IF(A119>Resumen!$C$40,"",A119) ->  | C119: =+IFERROR(HLOOKUP($B119,Resumen!$F$3:$AM$10,8,0),0) -> 0 | D119: =+IFERROR(HLOOKUP($B119,Resumen!$F$3:$AM$12,10),0) -> 0 | E119: =+IF(B119=Resumen!$C$38*6-6,1,0) -> 0 | F119: =+IFERROR(HLOOKUP($B119,Resumen!$F$3:$AM$14,12),0) -> 0 | G119: 5.820766091e-11 | H119: =IF(X119="",0,IF(F119=0,ROUND(SUM(J$2:J119)*X119,2),0)) -> 0 | I119: 0 | J119: =(Resumen!$C$10*(1-Resumen!$C$24)*(1+Incmat)^5)*C119 -> 0 | K119: =+IF(F119=1,PMT(X119,(Resumen!$C$36+Resumen!$C$26+Resumen!$C$14*6-B119+1),-Amortizacion!G119),0) -> 0 | L119: 0 | M119: =+IF(Resumen!$C$20="no",H119,0) -> 0 | N119: 5.820766091e-11 | O119: =+IF(AND(Resumen!$C$18="SI",Amortizacion!E119=1),SUM($H$2:J119)*25%,0) -> 0 | P119: 0 | Q119: 0 | R119: 0 | S119: =(Resumen!$C$10*(Resumen!$C$24)*(1+Incmat)^5)*$C119 -> 0 | T119: 0 | U119: 0 | V119: 0 | W119: 5.820766091e-11 | X119: =+IF(B119="","",Resumen!$C$34) ->  | Y119: 0 | Z119: 0 | AA119: 0 | AB119: =+IF(Resumen!$C$8="no",0,W119*((1+10%)^(0.0833333333333333)-1)) -> 0
A120: 119 | B120: =+IF(A120>Resumen!$C$40,"",A120) ->  | C120: =+IFERROR(HLOOKUP($B120,Resumen!$F$3:$AM$10,8,0),0) -> 0 | D120: =+IFERROR(HLOOKUP($B120,Resumen!$F$3:$AM$12,10),0) -> 0 | E120: =+IF(B120=Resumen!$C$38*6-6,1,0) -> 0 | F120: =+IFERROR(HLOOKUP($B120,Resumen!$F$3:$AM$14,12),0) -> 0 | G120: 5.820766091e-11 | H120: =IF(X120="",0,IF(F120=0,ROUND(SUM(J$2:J120)*X120,2),0)) -> 0 | I120: 0 | J120: =(Resumen!$C$10*(1-Resumen!$C$24)*(1+Incmat)^5)*C120 -> 0 | K120: =+IF(F120=1,PMT(X120,(Resumen!$C$36+Resumen!$C$26+Resumen!$C$14*6-B120+1),-Amortizacion!G120),0) -> 0 | L120: 0 | M120: =+IF(Resumen!$C$20="no",H120,0) -> 0 | N120: 5.820766091e-11 | O120: =+IF(AND(Resumen!$C$18="SI",Amortizacion!E120=1),SUM($H$2:J120)*25%,0) -> 0 | P120: 0 | Q120: 0 | R120: 0 | S120: =(Resumen!$C$10*(Resumen!$C$24)*(1+Incmat)^5)*$C120 -> 0 | T120: 0 | U120: 0 | V120: 0 | W120: 5.820766091e-11 | X120: =+IF(B120="","",Resumen!$C$34) ->  | Y120: 0 | Z120: 0 | AA120: 0 | AB120: =+IF(Resumen!$C$8="no",0,W120*((1+10%)^(0.0833333333333333)-1)) -> 0
A121: 120 | B121: =+IF(A121>Resumen!$C$40,"",A121) ->  | C121: =+IFERROR(HLOOKUP($B121,Resumen!$F$3:$AM$10,8,0),0) -> 0 | D121: =+IFERROR(HLOOKUP($B121,Resumen!$F$3:$AM$12,10),0) -> 0 | E121: =+IF(B121=Resumen!$C$38*6-6,1,0) -> 0 | F121: =+IFERROR(HLOOKUP($B121,Resumen!$F$3:$AM$14,12),0) -> 0 | G121: 5.820766091e-11 | H121: =IF(X121="",0,IF(F121=0,ROUND(SUM(J$2:J121)*X121,2),0)) -> 0 | I121: 0 | J121: =(Resumen!$C$10*(1-Resumen!$C$24)*(1+Incmat)^5)*C121 -> 0 | K121: =+IF(F121=1,PMT(X121,(Resumen!$C$36+Resumen!$C$26+Resumen!$C$14*6-B121+1),-Amortizacion!G121),0) -> 0 | L121: 0 | M121: =+IF(Resumen!$C$20="no",H121,0) -> 0 | N121: 5.820766091e-11 | O121: =+IF(AND(Resumen!$C$18="SI",Amortizacion!E121=1),SUM($H$2:J121)*25%,0) -> 0 | P121: 0 | Q121: 0 | R121: 0 | S121: =(Resumen!$C$10*(Resumen!$C$24)*(1+Incmat)^5)*$C121 -> 0 | T121: 0 | U121: 0 | V121: 0 | W121: 5.820766091e-11 | X121: =+IF(B121="","",Resumen!$C$34) ->  | Y121: 0 | Z121: 0 | AA121: 0 | AB121: =+IF(Resumen!$C$8="no",0,W121*((1+10%)^(0.0833333333333333)-1)) -> 0
A122: 121 | B122: =+IF(A122>Resumen!$C$40,"",A122) ->  | C122: =+IFERROR(HLOOKUP($B122,Resumen!$F$3:$AM$10,8,0),0) -> 0 | D122: =+IFERROR(HLOOKUP($B122,Resumen!$F$3:$AM$12,10),0) -> 0 | E122: =+IF(B122=Resumen!$C$38*6-6,1,0) -> 0 | F122: =+IFERROR(HLOOKUP($B122,Resumen!$F$3:$AM$14,12),0) -> 0 | G122: 5.820766091e-11 | H122: =IF(X122="",0,IF(F122=0,ROUND(SUM(J$2:J122)*X122,2),0)) -> 0 | I122: 0 | J122: =(Resumen!$C$10*(1-Resumen!$C$24)*(1+Incmat)^5)*C122 -> 0 | K122: =+IF(F122=1,PMT(X122,(Resumen!$C$36+Resumen!$C$26+Resumen!$C$14*6-B122+1),-Amortizacion!G122),0) -> 0 | L122: 0 | M122: =+IF(Resumen!$C$20="no",H122,0) -> 0 | N122: 5.820766091e-11 | O122: =+IF(AND(Resumen!$C$18="SI",Amortizacion!E122=1),SUM($H$2:J122)*25%,0) -> 0 | P122: 0 | Q122: 0 | R122: 0 | S122: =(Resumen!$C$10*(Resumen!$C$24)*(1+Incmat)^5)*$C122 -> 0 | T122: 0 | U122: 0 | V122: 0 | W122: 5.820766091e-11 | X122: =+IF(B122="","",Resumen!$C$34) ->  | Y122: 0 | Z122: 0 | AA122: 0 | AB122: =+IF(Resumen!$C$8="no",0,W122*((1+10%)^(0.0833333333333333)-1)) -> 0
A123: 122 | B123: =+IF(A123>Resumen!$C$40,"",A123) ->  | C123: =+IFERROR(HLOOKUP($B123,Resumen!$F$3:$AM$10,8,0),0) -> 0 | D123: =+IFERROR(HLOOKUP($B123,Resumen!$F$3:$AM$12,10),0) -> 0 | E123: =+IF(B123=Resumen!$C$38*6-6,1,0) -> 0 | F123: =+IFERROR(HLOOKUP($B123,Resumen!$F$3:$AM$14,12),0) -> 0 | G123: 5.820766091e-11 | H123: =IF(X123="",0,IF(F123=0,ROUND(SUM(J$2:J123)*X123,2),0)) -> 0 | I123: 0 | J123: =(Resumen!$C$10*(1-Resumen!$C$24)*(1+Incmat)^5)*C123 -> 0 | K123: =+IF(F123=1,PMT(X123,(Resumen!$C$36+Resumen!$C$26+Resumen!$C$14*6-B123+1),-Amortizacion!G123),0) -> 0 | L123: 0 | M123: =+IF(Resumen!$C$20="no",H123,0) -> 0 | N123: 5.820766091e-11 | O123: =+IF(AND(Resumen!$C$18="SI",Amortizacion!E123=1),SUM($H$2:J123)*25%,0) -> 0 | P123: 0 | Q123: 0 | R123: 0 | S123: =(Resumen!$C$10*(Resumen!$C$24)*(1+Incmat)^5)*$C123 -> 0 | T123: 0 | U123: 0 | V123: 0 | W123: 5.820766091e-11 | X123: =+IF(B123="","",Resumen!$C$34) ->  | Y123: 0 | Z123: 0 | AA123: 0 | AB123: =+IF(Resumen!$C$8="no",0,W123*((1+10%)^(0.0833333333333333)-1)) -> 0
A124: 123 | B124: =+IF(A124>Resumen!$C$40,"",A124) ->  | C124: =+IFERROR(HLOOKUP($B124,Resumen!$F$3:$AM$10,8,0),0) -> 0 | D124: =+IFERROR(HLOOKUP($B124,Resumen!$F$3:$AM$12,10),0) -> 0 | E124: =+IF(B124=Resumen!$C$38*6-6,1,0) -> 0 | F124: =+IFERROR(HLOOKUP($B124,Resumen!$F$3:$AM$14,12),0) -> 0 | G124: 5.820766091e-11 | H124: =IF(X124="",0,IF(F124=0,ROUND(SUM(J$2:J124)*X124,2),0)) -> 0 | I124: 0 | J124: =(Resumen!$C$10*(1-Resumen!$C$24)*(1+Incmat)^5)*C124 -> 0 | K124: =+IF(F124=1,PMT(X124,(Resumen!$C$36+Resumen!$C$26+Resumen!$C$14*6-B124+1),-Amortizacion!G124),0) -> 0 | L124: 0 | M124: =+IF(Resumen!$C$20="no",H124,0) -> 0 | N124: 5.820766091e-11 | O124: =+IF(AND(Resumen!$C$18="SI",Amortizacion!E124=1),SUM($H$2:J124)*25%,0) -> 0 | P124: 0 | Q124: 0 | R124: 0 | S124: =(Resumen!$C$10*(Resumen!$C$24)*(1+Incmat)^5)*$C124 -> 0 | T124: 0 | U124: 0 | V124: 0 | W124: 5.820766091e-11 | X124: =+IF(B124="","",Resumen!$C$34) ->  | Y124: 0 | Z124: 0 | AA124: 0 | AB124: =+IF(Resumen!$C$8="no",0,W124*((1+10%)^(0.0833333333333333)-1)) -> 0
A125: 124 | B125: =+IF(A125>Resumen!$C$40,"",A125) ->  | C125: =+IFERROR(HLOOKUP($B125,Resumen!$F$3:$AM$10,8,0),0) -> 0 | D125: =+IFERROR(HLOOKUP($B125,Resumen!$F$3:$AM$12,10),0) -> 0 | E125: =+IF(B125=Resumen!$C$38*6-6,1,0) -> 0 | F125: =+IFERROR(HLOOKUP($B125,Resumen!$F$3:$AM$14,12),0) -> 0 | G125: 5.820766091e-11 | H125: =IF(X125="",0,IF(F125=0,ROUND(SUM(J$2:J125)*X125,2),0)) -> 0 | I125: 0 | J125: =(Resumen!$C$10*(1-Resumen!$C$24)*(1+Incmat)^5)*C125 -> 0 | K125: =+IF(F125=1,PMT(X125,(Resumen!$C$36+Resumen!$C$26+Resumen!$C$14*6-B125+1),-Amortizacion!G125),0) -> 0 | L125: 0 | M125: =+IF(Resumen!$C$20="no",H125,0) -> 0 | N125: 5.820766091e-11 | O125: =+IF(AND(Resumen!$C$18="SI",Amortizacion!E125=1),SUM($H$2:J125)*25%,0) -> 0 | P125: 0 | Q125: 0 | R125: 0 | S125: =(Resumen!$C$10*(Resumen!$C$24)*(1+Incmat)^5)*$C125 -> 0 | T125: 0 | U125: 0 | V125: 0 | W125: 5.820766091e-11 | X125: =+IF(B125="","",Resumen!$C$34) ->  | Y125: 0 | Z125: 0 | AA125: 0 | AB125: =+IF(Resumen!$C$8="no",0,W125*((1+10%)^(0.0833333333333333)-1)) -> 0
A126: 125 | B126: =+IF(A126>Resumen!$C$40,"",A126) ->  | C126: =+IFERROR(HLOOKUP($B126,Resumen!$F$3:$AM$10,8,0),0) -> 0 | D126: =+IFERROR(HLOOKUP($B126,Resumen!$F$3:$AM$12,10),0) -> 0 | E126: =+IF(B126=Resumen!$C$38*6-6,1,0) -> 0 | F126: =+IFERROR(HLOOKUP($B126,Resumen!$F$3:$AM$14,12),0) -> 0 | G126: 5.820766091e-11 | H126: =IF(X126="",0,IF(F126=0,ROUND(SUM(J$2:J126)*X126,2),0)) -> 0 | I126: 0 | J126: =(Resumen!$C$10*(1-Resumen!$C$24)*(1+Incmat)^5)*C126 -> 0 | K126: =+IF(F126=1,PMT(X126,(Resumen!$C$36+Resumen!$C$26+Resumen!$C$14*6-B126+1),-Amortizacion!G126),0) -> 0 | L126: 0 | M126: =+IF(Resumen!$C$20="no",H126,0) -> 0 | N126: 5.820766091e-11 | O126: =+IF(AND(Resumen!$C$18="SI",Amortizacion!E126=1),SUM($H$2:J126)*25%,0) -> 0 | P126: 0 | Q126: 0 | R126: 0 | S126: =(Resumen!$C$10*(Resumen!$C$24)*(1+Incmat)^5)*$C126 -> 0 | T126: 0 | U126: 0 | V126: 0 | W126: 5.820766091e-11 | X126: =+IF(B126="","",Resumen!$C$34) ->  | Y126: 0 | Z126: 0 | AA126: 0 | AB126: =+IF(Resumen!$C$8="no",0,W126*((1+10%)^(0.0833333333333333)-1)) -> 0
A127: 126 | B127: =+IF(A127>Resumen!$C$40,"",A127) ->  | C127: =+IFERROR(HLOOKUP($B127,Resumen!$F$3:$AM$10,8,0),0) -> 0 | D127: =+IFERROR(HLOOKUP($B127,Resumen!$F$3:$AM$12,10),0) -> 0 | E127: =+IF(B127=Resumen!$C$38*6-6,1,0) -> 0 | F127: =+IFERROR(HLOOKUP($B127,Resumen!$F$3:$AM$14,12),0) -> 0 | G127: 5.820766091e-11 | H127: =IF(X127="",0,IF(F127=0,ROUND(SUM(J$2:J127)*X127,2),0)) -> 0 | I127: 0 | J127: =(Resumen!$C$10*(1-Resumen!$C$24)*(1+Incmat)^5)*C127 -> 0 | K127: =+IF(F127=1,PMT(X127,(Resumen!$C$36+Resumen!$C$26+Resumen!$C$14*6-B127+1),-Amortizacion!G127),0) -> 0 | L127: 0 | M127: =+IF(Resumen!$C$20="no",H127,0) -> 0 | N127: 5.820766091e-11 | O127: =+IF(AND(Resumen!$C$18="SI",Amortizacion!E127=1),SUM($H$2:J127)*25%,0) -> 0 | P127: 0 | Q127: 0 | R127: 0 | S127: =(Resumen!$C$10*(Resumen!$C$24)*(1+Incmat)^5)*$C127 -> 0 | T127: 0 | U127: 0 | V127: 0 | W127: 5.820766091e-11 | X127: =+IF(B127="","",Resumen!$C$34) ->  | Y127: 0 | Z127: 0 | AA127: 0 | AB127: =+IF(Resumen!$C$8="no",0,W127*((1+10%)^(0.0833333333333333)-1)) -> 0
A128: 127 | B128: =+IF(A128>Resumen!$C$40,"",A128) ->  | C128: =+IFERROR(HLOOKUP($B128,Resumen!$F$3:$AM$10,8,0),0) -> 0 | D128: =+IFERROR(HLOOKUP($B128,Resumen!$F$3:$AM$12,10),0) -> 0 | E128: =+IF(B128=Resumen!$C$38*6-6,1,0) -> 0 | F128: =+IFERROR(HLOOKUP($B128,Resumen!$F$3:$AM$14,12),0) -> 0 | G128: 5.820766091e-11 | H128: =IF(X128="",0,IF(F128=0,ROUND(SUM(J$2:J128)*X128,2),0)) -> 0 | I128: 0 | J128: =(Resumen!$C$10*(1-Resumen!$C$24)*(1+Incmat)^5)*C128 -> 0 | K128: =+IF(F128=1,PMT(X128,(Resumen!$C$36+Resumen!$C$26+Resumen!$C$14*6-B128+1),-Amortizacion!G128),0) -> 0 | L128: 0 | M128: =+IF(Resumen!$C$20="no",H128,0) -> 0 | N128: 5.820766091e-11 | O128: =+IF(AND(Resumen!$C$18="SI",Amortizacion!E128=1),SUM($H$2:J128)*25%,0) -> 0 | P128: 0 | Q128: 0 | R128: 0 | S128: =(Resumen!$C$10*(Resumen!$C$24)*(1+Incmat)^5)*$C128 -> 0 | T128: 0 | U128: 0 | V128: 0 | W128: 5.820766091e-11 | X128: =+IF(B128="","",Resumen!$C$34) ->  | Y128: 0 | Z128: 0 | AA128: 0 | AB128: =+IF(Resumen!$C$8="no",0,W128*((1+10%)^(0.0833333333333333)-1)) -> 0
A129: 128 | B129: =+IF(A129>Resumen!$C$40,"",A129) ->  | C129: =+IFERROR(HLOOKUP($B129,Resumen!$F$3:$AM$10,8,0),0) -> 0 | D129: =+IFERROR(HLOOKUP($B129,Resumen!$F$3:$AM$12,10),0) -> 0 | E129: =+IF(B129=Resumen!$C$38*6-6,1,0) -> 0 | F129: =+IFERROR(HLOOKUP($B129,Resumen!$F$3:$AM$14,12),0) -> 0 | G129: 5.820766091e-11 | H129: =IF(X129="",0,IF(F129=0,ROUND(SUM(J$2:J129)*X129,2),0)) -> 0 | I129: 0 | J129: =(Resumen!$C$10*(1-Resumen!$C$24)*(1+Incmat)^5)*C129 -> 0 | K129: =+IF(F129=1,PMT(X129,(Resumen!$C$36+Resumen!$C$26+Resumen!$C$14*6-B129+1),-Amortizacion!G129),0) -> 0 | L129: 0 | M129: =+IF(Resumen!$C$20="no",H129,0) -> 0 | N129: 5.820766091e-11 | O129: =+IF(AND(Resumen!$C$18="SI",Amortizacion!E129=1),SUM($H$2:J129)*25%,0) -> 0 | P129: 0 | Q129: 0 | R129: 0 | S129: =(Resumen!$C$10*(Resumen!$C$24)*(1+Incmat)^5)*$C129 -> 0 | T129: 0 | U129: 0 | V129: 0 | W129: 5.820766091e-11 | X129: =+IF(B129="","",Resumen!$C$34) ->  | Y129: 0 | Z129: 0 | AA129: 0 | AB129: =+IF(Resumen!$C$8="no",0,W129*((1+10%)^(0.0833333333333333)-1)) -> 0
A130: 129 | B130: =+IF(A130>Resumen!$C$40,"",A130) ->  | C130: =+IFERROR(HLOOKUP($B130,Resumen!$F$3:$AM$10,8,0),0) -> 0 | D130: =+IFERROR(HLOOKUP($B130,Resumen!$F$3:$AM$12,10),0) -> 0 | E130: =+IF(B130=Resumen!$C$38*6-6,1,0) -> 0 | F130: =+IFERROR(HLOOKUP($B130,Resumen!$F$3:$AM$14,12),0) -> 0 | G130: 5.820766091e-11 | H130: =IF(X130="",0,IF(F130=0,ROUND(SUM(J$2:J130)*X130,2),0)) -> 0 | I130: =+IF(X130="",0,IF(F130=1,G130*X130,0)) -> 0 | J130: =(Resumen!$C$10*(1-Resumen!$C$24)*(1+Incmat)^5)*C130 -> 0 | K130: =+IF(F130=1,PMT(X130,(Resumen!$C$36+Resumen!$C$26+Resumen!$C$14*6-B130+1),-Amortizacion!G130),0) -> 0 | L130: 0 | M130: =+IF(Resumen!$C$20="no",H130,0) -> 0 | N130: 5.820766091e-11 | O130: =+IF(AND(Resumen!$C$18="SI",Amortizacion!E130=1),SUM($H$2:J130)*25%,0) -> 0 | P130: 0 | Q130: 0 | R130: 0 | S130: =(Resumen!$C$10*(Resumen!$C$24)*(1+Incmat)^5)*$C130 -> 0 | T130: 0 | U130: 0 | V130: 0 | W130: 5.820766091e-11 | X130: =+IF(B130="","",Resumen!$C$34) ->  | Y130: =+J130+S130 -> 0 | Z130: 0 | AA130: 0 | AB130: =+IF(Resumen!$C$8="no",0,W130*((1+10%)^(0.0833333333333333)-1)) -> 0
A131: 130 | B131: =+IF(A131>Resumen!$C$40,"",A131) ->  | C131: =+IFERROR(HLOOKUP($B131,Resumen!$F$3:$AM$10,8,0),0) -> 0 | D131: =+IFERROR(HLOOKUP($B131,Resumen!$F$3:$AM$12,10),0) -> 0 | E131: =+IF(B131=Resumen!$C$38*6-6,1,0) -> 0 | F131: =+IFERROR(HLOOKUP($B131,Resumen!$F$3:$AM$14,12),0) -> 0 | G131: 5.820766091e-11 | H131: =IF(X131="",0,IF(F131=0,ROUND(SUM(J$2:J131)*X131,2),0)) -> 0 | I131: 0 | J131: =(Resumen!$C$10*(1-Resumen!$C$24)*(1+Incmat)^5)*C131 -> 0 | K131: =+IF(F131=1,PMT(X131,(Resumen!$C$36+Resumen!$C$26+Resumen!$C$14*6-B131+1),-Amortizacion!G131),0) -> 0 | L131: =+IF(I131="","",K131-I131) -> 0 | M131: =+IF(Resumen!$C$20="no",H131,0) -> 0 | N131: =+IF(F131=0,SUM(G131:K131)-M131,G131-L131) -> 5.820766091e-11 | O131: =+IF(AND(Resumen!$C$18="SI",Amortizacion!E131=1),SUM($H$2:J131)*25%,0) -> 0 | P131: 0 | Q131: 0 | R131: =+IF(X131="",0,Q131*X131) -> 0 | S131: =(Resumen!$C$10*(Resumen!$C$24)*(1+Incmat)^5)*$C131 -> 0 | T131: =+IF(X131="",0,IFERROR(PMT(X131,P131,-Q131),0)) -> 0 | U131: =+IFERROR(T131-R131,0) -> 0 | V131: =+Q131-U131 -> 0 | W131: 5.820766091e-11 | X131: =+IF(B131="","",Resumen!$C$34) ->  | Y131: 0 | Z131: =+T131+K131+M131 -> 0 | AA131: =+R131+M131+I131 -> 0 | AB131: =+IF(Resumen!$C$8="no",0,W131*((1+10%)^(0.0833333333333333)-1)) -> 0
A132: =+A131+1 -> 131 | B132: =+IF(A132>Resumen!$C$40,"",A132) ->  | C132: =+IFERROR(HLOOKUP($B132,Resumen!$F$3:$AM$10,8,0),0) -> 0 | D132: =+IFERROR(HLOOKUP($B132,Resumen!$F$3:$AM$12,10),0) -> 0 | E132: =+IF(B132=Resumen!$C$38*6-6,1,0) -> 0 | F132: =+IFERROR(HLOOKUP($B132,Resumen!$F$3:$AM$14,12),0) -> 0 | G132: 5.820766091e-11 | H132: =IF(X132="",0,IF(F132=0,ROUND(SUM(J$2:J132)*X132,2),0)) -> 0 | I132: 0 | J132: =(Resumen!$C$10*(1-Resumen!$C$24)*(1+Incmat)^5)*C132 -> 0 | K132: =+IF(F132=1,PMT(X132,(Resumen!$C$36+Resumen!$C$26+Resumen!$C$14*6-B132+1),-Amortizacion!G132),0) -> 0 | L132: 0 | M132: =+IF(Resumen!$C$20="no",H132,0) -> 0 | N132: 5.820766091e-11 | O132: =+IF(AND(Resumen!$C$18="SI",Amortizacion!E132=1),SUM($H$2:J132)*25%,0) -> 0 | P132: =+IF(S132<>0,6,IF(P131=0,0,P131-1)) -> 0 | Q132: =+V131+S132 -> 0 | R132: 0 | S132: =(Resumen!$C$10*(Resumen!$C$24)*(1+Incmat)^5)*$C132 -> 0 | T132: 0 | U132: 0 | V132: 0 | W132: =+N132+V132 -> 5.820766091e-11 | X132: =+IF(B132="","",Resumen!$C$34) ->  | Y132: 0 | Z132: 0 | AA132: 0 | AB132: =+IF(Resumen!$C$8="no",0,W132*((1+10%)^(0.0833333333333333)-1)) -> 0
A133: 132 | B133: =+IF(A133>Resumen!$C$40,"",A133) ->  | C133: =+IFERROR(HLOOKUP($B133,Resumen!$F$3:$AM$10,8,0),0) -> 0 | D133: =+IFERROR(HLOOKUP($B133,Resumen!$F$3:$AM$12,10),0) -> 0 | E133: =+IF(B133=Resumen!$C$38*6-6,1,0) -> 0 | F133: =+IFERROR(HLOOKUP($B133,Resumen!$F$3:$AM$14,12),0) -> 0 | G133: 5.820766091e-11 | H133: =IF(X133="",0,IF(F133=0,ROUND(SUM(J$2:J133)*X133,2),0)) -> 0 | I133: 0 | J133: =(Resumen!$C$10*(1-Resumen!$C$24)*(1+Incmat)^5)*C133 -> 0 | K133: =+IF(F133=1,PMT(X133,(Resumen!$C$36+Resumen!$C$26+Resumen!$C$14*6-B133+1),-Amortizacion!G133),0) -> 0 | L133: 0 | M133: =+IF(Resumen!$C$20="no",H133,0) -> 0 | N133: 5.820766091e-11 | O133: =+IF(AND(Resumen!$C$18="SI",Amortizacion!E133=1),SUM($H$2:J133)*25%,0) -> 0 | P133: 0 | Q133: 0 | R133: 0 | S133: =(Resumen!$C$10*(Resumen!$C$24)*(1+Incmat)^5)*$C133 -> 0 | T133: 0 | U133: 0 | V133: 0 | W133: 5.820766091e-11 | X133: =+IF(B133="","",Resumen!$C$34) ->  | Y133: 0 | Z133: 0 | AA133: 0 | AB133: =+IF(Resumen!$C$8="no",0,W133*((1+10%)^(0.0833333333333333)-1)) -> 0
A134: 133 | B134: =+IF(A134>Resumen!$C$40,"",A134) ->  | C134: =+IFERROR(HLOOKUP($B134,Resumen!$F$3:$AM$10,8,0),0) -> 0 | D134: =+IFERROR(HLOOKUP($B134,Resumen!$F$3:$AM$12,10),0) -> 0 | E134: =+IF(B134=Resumen!$C$38*6-6,1,0) -> 0 | F134: =+IFERROR(HLOOKUP($B134,Resumen!$F$3:$AM$14,12),0) -> 0 | G134: 5.820766091e-11 | H134: =IF(X134="",0,IF(F134=0,ROUND(SUM(J$2:J134)*X134,2),0)) -> 0 | I134: 0 | J134: =(Resumen!$C$10*(1-Resumen!$C$24)*(1+Incmat)^5)*C134 -> 0 | K134: =+IF(F134=1,PMT(X134,(Resumen!$C$36+Resumen!$C$26+Resumen!$C$14*6-B134+1),-Amortizacion!G134),0) -> 0 | L134: 0 | M134: =+IF(Resumen!$C$20="no",H134,0) -> 0 | N134: 5.820766091e-11 | O134: =+IF(AND(Resumen!$C$18="SI",Amortizacion!E134=1),SUM($H$2:J134)*25%,0) -> 0 | P134: 0 | Q134: 0 | R134: 0 | S134: =(Resumen!$C$10*(Resumen!$C$24)*(1+Incmat)^5)*$C134 -> 0 | T134: 0 | U134: 0 | V134: 0 | W134: 5.820766091e-11 | X134: =+IF(B134="","",Resumen!$C$34) ->  | Y134: 0 | Z134: 0 | AA134: 0 | AB134: =+IF(Resumen!$C$8="no",0,W134*((1+10%)^(0.0833333333333333)-1)) -> 0
A135: 134 | B135: =+IF(A135>Resumen!$C$40,"",A135) ->  | C135: =+IFERROR(HLOOKUP($B135,Resumen!$F$3:$AM$10,8,0),0) -> 0 | D135: =+IFERROR(HLOOKUP($B135,Resumen!$F$3:$AM$12,10),0) -> 0 | E135: =+IF(B135=Resumen!$C$38*6-6,1,0) -> 0 | F135: =+IFERROR(HLOOKUP($B135,Resumen!$F$3:$AM$14,12),0) -> 0 | G135: 5.820766091e-11 | H135: =IF(X135="",0,IF(F135=0,ROUND(SUM(J$2:J135)*X135,2),0)) -> 0 | I135: 0 | J135: =(Resumen!$C$10*(1-Resumen!$C$24)*(1+Incmat)^5)*C135 -> 0 | K135: =+IF(F135=1,PMT(X135,(Resumen!$C$36+Resumen!$C$26+Resumen!$C$14*6-B135+1),-Amortizacion!G135),0) -> 0 | L135: 0 | M135: =+IF(Resumen!$C$20="no",H135,0) -> 0 | N135: 5.820766091e-11 | O135: =+IF(AND(Resumen!$C$18="SI",Amortizacion!E135=1),SUM($H$2:J135)*25%,0) -> 0 | P135: 0 | Q135: 0 | R135: 0 | S135: =(Resumen!$C$10*(Resumen!$C$24)*(1+Incmat)^5)*$C135 -> 0 | T135: 0 | U135: 0 | V135: 0 | W135: 5.820766091e-11 | X135: =+IF(B135="","",Resumen!$C$34) ->  | Y135: 0 | Z135: 0 | AA135: 0 | AB135: =+IF(Resumen!$C$8="no",0,W135*((1+10%)^(0.0833333333333333)-1)) -> 0
A136: 135 | B136: =+IF(A136>Resumen!$C$40,"",A136) ->  | C136: =+IFERROR(HLOOKUP($B136,Resumen!$F$3:$AM$10,8,0),0) -> 0 | D136: =+IFERROR(HLOOKUP($B136,Resumen!$F$3:$AM$12,10),0) -> 0 | E136: =+IF(B136=Resumen!$C$38*6-6,1,0) -> 0 | F136: =+IFERROR(HLOOKUP($B136,Resumen!$F$3:$AM$14,12),0) -> 0 | G136: 5.820766091e-11 | H136: =IF(X136="",0,IF(F136=0,ROUND(SUM(J$2:J136)*X136,2),0)) -> 0 | I136: 0 | J136: =(Resumen!$C$10*(1-Resumen!$C$24)*(1+Incmat)^5)*C136 -> 0 | K136: =+IF(F136=1,PMT(X136,(Resumen!$C$36+Resumen!$C$26+Resumen!$C$14*6-B136+1),-Amortizacion!G136),0) -> 0 | L136: 0 | M136: =+IF(Resumen!$C$20="no",H136,0) -> 0 | N136: 5.820766091e-11 | O136: =+IF(AND(Resumen!$C$18="SI",Amortizacion!E136=1),SUM($H$2:J136)*25%,0) -> 0 | P136: 0 | Q136: 0 | R136: 0 | S136: =(Resumen!$C$10*(Resumen!$C$24)*(1+Incmat)^5)*$C136 -> 0 | T136: 0 | U136: 0 | V136: 0 | W136: 5.820766091e-11 | X136: =+IF(B136="","",Resumen!$C$34) ->  | Y136: 0 | Z136: 0 | AA136: 0 | AB136: =+IF(Resumen!$C$8="no",0,W136*((1+10%)^(0.0833333333333333)-1)) -> 0
A137: 136 | B137: =+IF(A137>Resumen!$C$40,"",A137) ->  | C137: =+IFERROR(HLOOKUP($B137,Resumen!$F$3:$AM$10,8,0),0) -> 0 | D137: =+IFERROR(HLOOKUP($B137,Resumen!$F$3:$AM$12,10),0) -> 0 | E137: =+IF(B137=Resumen!$C$38*6-6,1,0) -> 0 | F137: =+IFERROR(HLOOKUP($B137,Resumen!$F$3:$AM$14,12),0) -> 0 | G137: 5.820766091e-11 | H137: =IF(X137="",0,IF(F137=0,ROUND(SUM(J$2:J137)*X137,2),0)) -> 0 | I137: 0 | J137: =(Resumen!$C$10*(1-Resumen!$C$24)*(1+Incmat)^5)*C137 -> 0 | K137: =+IF(F137=1,PMT(X137,(Resumen!$C$36+Resumen!$C$26+Resumen!$C$14*6-B137+1),-Amortizacion!G137),0) -> 0 | L137: 0 | M137: =+IF(Resumen!$C$20="no",H137,0) -> 0 | N137: 5.820766091e-11 | O137: =+IF(AND(Resumen!$C$18="SI",Amortizacion!E137=1),SUM($H$2:J137)*25%,0) -> 0 | P137: 0 | Q137: 0 | R137: 0 | S137: =(Resumen!$C$10*(Resumen!$C$24)*(1+Incmat)^5)*$C137 -> 0 | T137: 0 | U137: 0 | V137: 0 | W137: 5.820766091e-11 | X137: =+IF(B137="","",Resumen!$C$34) ->  | Y137: 0 | Z137: 0 | AA137: 0 | AB137: =+IF(Resumen!$C$8="no",0,W137*((1+10%)^(0.0833333333333333)-1)) -> 0
A138: 137 | B138: =+IF(A138>Resumen!$C$40,"",A138) ->  | C138: =+IFERROR(HLOOKUP($B138,Resumen!$F$3:$AM$10,8,0),0) -> 0 | D138: =+IFERROR(HLOOKUP($B138,Resumen!$F$3:$AM$12,10),0) -> 0 | E138: =+IF(B138=Resumen!$C$38*6-6,1,0) -> 0 | F138: =+IFERROR(HLOOKUP($B138,Resumen!$F$3:$AM$14,12),0) -> 0 | G138: =+N137-O137 -> 5.820766091e-11 | H138: =IF(X138="",0,IF(F138=0,ROUND(SUM(J$2:J138)*X138,2),0)) -> 0 | I138: 0 | J138: =(Resumen!$C$10*(1-Resumen!$C$24)*(1+Incmat)^5)*C138 -> 0 | K138: =+IF(F138=1,PMT(X138,(Resumen!$C$36+Resumen!$C$26+Resumen!$C$14*6-B138+1),-Amortizacion!G138),0) -> 0 | L138: 0 | M138: =+IF(Resumen!$C$20="no",H138,0) -> 0 | N138: 5.820766091e-11 | O138: =+IF(AND(Resumen!$C$18="SI",Amortizacion!E138=1),SUM($H$2:J138)*25%,0) -> 0 | P138: 0 | Q138: 0 | R138: 0 | S138: =(Resumen!$C$10*(Resumen!$C$24)*(1+Incmat)^5)*$C138 -> 0 | T138: 0 | U138: 0 | V138: 0 | W138: 5.820766091e-11 | X138: =+IF(B138="","",Resumen!$C$34) ->  | Y138: 0 | Z138: 0 | AA138: 0 | AB138: =+IF(Resumen!$C$8="no",0,W138*((1+10%)^(0.0833333333333333)-1)) -> 0
A139: 138 | B139: =+IF(A139>Resumen!$C$40,"",A139) ->  | C139: =+IFERROR(HLOOKUP($B139,Resumen!$F$3:$AM$10,8,0),0) -> 0 | D139: =+IFERROR(HLOOKUP($B139,Resumen!$F$3:$AM$12,10),0) -> 0 | E139: =+IF(B139=Resumen!$C$38*6-6,1,0) -> 0 | F139: =+IFERROR(HLOOKUP($B139,Resumen!$F$3:$AM$14,12),0) -> 0 | G139: 5.820766091e-11 | H139: =IF(X139="",0,IF(F139=0,ROUND(SUM(J$2:J139)*X139,2),0)) -> 0 | I139: 0 | J139: =(Resumen!$C$10*(1-Resumen!$C$24)*(1+Incmat)^5)*C139 -> 0 | K139: =+IF(F139=1,PMT(X139,(Resumen!$C$36+Resumen!$C$26+Resumen!$C$14*6-B139+1),-Amortizacion!G139),0) -> 0 | L139: 0 | M139: =+IF(Resumen!$C$20="no",H139,0) -> 0 | N139: 5.820766091e-11 | O139: =+IF(AND(Resumen!$C$18="SI",Amortizacion!E139=1),SUM($H$2:J139)*25%,0) -> 0 | P139: 0 | Q139: 0 | R139: 0 | S139: =(Resumen!$C$10*(Resumen!$C$24)*(1+Incmat)^5)*$C139 -> 0 | T139: 0 | U139: 0 | V139: 0 | W139: 5.820766091e-11 | X139: =+IF(B139="","",Resumen!$C$34) ->  | Y139: 0 | Z139: 0 | AA139: 0 | AB139: =+IF(Resumen!$C$8="no",0,W139*((1+10%)^(0.0833333333333333)-1)) -> 0
A140: 139 | B140: =+IF(A140>Resumen!$C$40,"",A140) ->  | C140: =+IFERROR(HLOOKUP($B140,Resumen!$F$3:$AM$10,8,0),0) -> 0 | D140: =+IFERROR(HLOOKUP($B140,Resumen!$F$3:$AM$12,10),0) -> 0 | E140: =+IF(B140=Resumen!$C$38*6-6,1,0) -> 0 | F140: =+IFERROR(HLOOKUP($B140,Resumen!$F$3:$AM$14,12),0) -> 0 | G140: 5.820766091e-11 | H140: =IF(X140="",0,IF(F140=0,ROUND(SUM(J$2:J140)*X140,2),0)) -> 0 | I140: 0 | J140: =(Resumen!$C$10*(1-Resumen!$C$24)*(1+Incmat)^5)*C140 -> 0 | K140: =+IF(F140=1,PMT(X140,(Resumen!$C$36+Resumen!$C$26+Resumen!$C$14*6-B140+1),-Amortizacion!G140),0) -> 0 | L140: 0 | M140: =+IF(Resumen!$C$20="no",H140,0) -> 0 | N140: 5.820766091e-11 | O140: =+IF(AND(Resumen!$C$18="SI",Amortizacion!E140=1),SUM($H$2:J140)*25%,0) -> 0 | P140: 0 | Q140: 0 | R140: 0 | S140: =(Resumen!$C$10*(Resumen!$C$24)*(1+Incmat)^5)*$C140 -> 0 | T140: 0 | U140: 0 | V140: 0 | W140: 5.820766091e-11 | X140: =+IF(B140="","",Resumen!$C$34) ->  | Y140: 0 | Z140: 0 | AA140: 0 | AB140: =+IF(Resumen!$C$8="no",0,W140*((1+10%)^(0.0833333333333333)-1)) -> 0
A141: 140 | B141: =+IF(A141>Resumen!$C$40,"",A141) ->  | C141: =+IFERROR(HLOOKUP($B141,Resumen!$F$3:$AM$10,8,0),0) -> 0 | D141: =+IFERROR(HLOOKUP($B141,Resumen!$F$3:$AM$12,10),0) -> 0 | E141: =+IF(B141=Resumen!$C$38*6-6,1,0) -> 0 | F141: =+IFERROR(HLOOKUP($B141,Resumen!$F$3:$AM$14,12),0) -> 0 | G141: 5.820766091e-11 | H141: =IF(X141="",0,IF(F141=0,ROUND(SUM(J$2:J141)*X141,2),0)) -> 0 | I141: 0 | J141: =(Resumen!$C$10*(1-Resumen!$C$24)*(1+Incmat)^5)*C141 -> 0 | K141: =+IF(F141=1,PMT(X141,(Resumen!$C$36+Resumen!$C$26+Resumen!$C$14*6-B141+1),-Amortizacion!G141),0) -> 0 | L141: 0 | M141: =+IF(Resumen!$C$20="no",H141,0) -> 0 | N141: 5.820766091e-11 | O141: =+IF(AND(Resumen!$C$18="SI",Amortizacion!E141=1),SUM($H$2:J141)*25%,0) -> 0 | P141: 0 | Q141: 0 | R141: 0 | S141: =(Resumen!$C$10*(Resumen!$C$24)*(1+Incmat)^5)*$C141 -> 0 | T141: 0 | U141: 0 | V141: 0 | W141: 5.820766091e-11 | X141: =+IF(B141="","",Resumen!$C$34) ->  | Y141: 0 | Z141: 0 | AA141: 0 | AB141: =+IF(Resumen!$C$8="no",0,W141*((1+10%)^(0.0833333333333333)-1)) -> 0
A142: 141 | B142: =+IF(A142>Resumen!$C$40,"",A142) ->  | C142: =+IFERROR(HLOOKUP($B142,Resumen!$F$3:$AM$10,8,0),0) -> 0 | D142: =+IFERROR(HLOOKUP($B142,Resumen!$F$3:$AM$12,10),0) -> 0 | E142: =+IF(B142=Resumen!$C$38*6-6,1,0) -> 0 | F142: =+IFERROR(HLOOKUP($B142,Resumen!$F$3:$AM$14,12),0) -> 0 | G142: 5.820766091e-11 | H142: =IF(X142="",0,IF(F142=0,ROUND(SUM(J$2:J142)*X142,2),0)) -> 0 | I142: 0 | J142: =(Resumen!$C$10*(1-Resumen!$C$24)*(1+Incmat)^5)*C142 -> 0 | K142: =+IF(F142=1,PMT(X142,(Resumen!$C$36+Resumen!$C$26+Resumen!$C$14*6-B142+1),-Amortizacion!G142),0) -> 0 | L142: 0 | M142: =+IF(Resumen!$C$20="no",H142,0) -> 0 | N142: 5.820766091e-11 | O142: =+IF(AND(Resumen!$C$18="SI",Amortizacion!E142=1),SUM($H$2:J142)*25%,0) -> 0 | P142: 0 | Q142: 0 | R142: 0 | S142: =(Resumen!$C$10*(Resumen!$C$24)*(1+Incmat)^5)*$C142 -> 0 | T142: 0 | U142: 0 | V142: 0 | W142: 5.820766091e-11 | X142: =+IF(B142="","",Resumen!$C$34) ->  | Y142: 0 | Z142: 0 | AA142: 0 | AB142: =+IF(Resumen!$C$8="no",0,W142*((1+10%)^(0.0833333333333333)-1)) -> 0
A143: 142 | B143: =+IF(A143>Resumen!$C$40,"",A143) ->  | C143: =+IFERROR(HLOOKUP($B143,Resumen!$F$3:$AM$10,8,0),0) -> 0 | D143: =+IFERROR(HLOOKUP($B143,Resumen!$F$3:$AM$12,10),0) -> 0 | E143: =+IF(B143=Resumen!$C$38*6-6,1,0) -> 0 | F143: =+IFERROR(HLOOKUP($B143,Resumen!$F$3:$AM$14,12),0) -> 0 | G143: 5.820766091e-11 | H143: =IF(X143="",0,IF(F143=0,ROUND(SUM(J$2:J143)*X143,2),0)) -> 0 | I143: 0 | J143: =(Resumen!$C$10*(1-Resumen!$C$24)*(1+Incmat)^5)*C143 -> 0 | K143: =+IF(F143=1,PMT(X143,(Resumen!$C$36+Resumen!$C$26+Resumen!$C$14*6-B143+1),-Amortizacion!G143),0) -> 0 | L143: 0 | M143: =+IF(Resumen!$C$20="no",H143,0) -> 0 | N143: 5.820766091e-11 | O143: =+IF(AND(Resumen!$C$18="SI",Amortizacion!E143=1),SUM($H$2:J143)*25%,0) -> 0 | P143: 0 | Q143: 0 | R143: 0 | S143: =(Resumen!$C$10*(Resumen!$C$24)*(1+Incmat)^5)*$C143 -> 0 | T143: 0 | U143: 0 | V143: 0 | W143: 5.820766091e-11 | X143: =+IF(B143="","",Resumen!$C$34) ->  | Y143: 0 | Z143: 0 | AA143: 0 | AB143: =+IF(Resumen!$C$8="no",0,W143*((1+10%)^(0.0833333333333333)-1)) -> 0
A144: 143 | B144: =+IF(A144>Resumen!$C$40,"",A144) ->  | C144: =+IFERROR(HLOOKUP($B144,Resumen!$F$3:$AM$10,8,0),0) -> 0 | D144: =+IFERROR(HLOOKUP($B144,Resumen!$F$3:$AM$12,10),0) -> 0 | E144: =+IF(B144=Resumen!$C$38*6-6,1,0) -> 0 | F144: =+IFERROR(HLOOKUP($B144,Resumen!$F$3:$AM$14,12),0) -> 0 | G144: 5.820766091e-11 | H144: =IF(X144="",0,IF(F144=0,ROUND(SUM(J$2:J144)*X144,2),0)) -> 0 | I144: 0 | J144: =(Resumen!$C$10*(1-Resumen!$C$24)*(1+Incmat)^5)*C144 -> 0 | K144: =+IF(F144=1,PMT(X144,(Resumen!$C$36+Resumen!$C$26+Resumen!$C$14*6-B144+1),-Amortizacion!G144),0) -> 0 | L144: 0 | M144: =+IF(Resumen!$C$20="no",H144,0) -> 0 | N144: 5.820766091e-11 | O144: =+IF(AND(Resumen!$C$18="SI",Amortizacion!E144=1),SUM($H$2:J144)*25%,0) -> 0 | P144: 0 | Q144: 0 | R144: 0 | S144: =(Resumen!$C$10*(Resumen!$C$24)*(1+Incmat)^5)*$C144 -> 0 | T144: 0 | U144: 0 | V144: 0 | W144: 5.820766091e-11 | X144: =+IF(B144="","",Resumen!$C$34) ->  | Y144: 0 | Z144: 0 | AA144: 0 | AB144: =+IF(Resumen!$C$8="no",0,W144*((1+10%)^(0.0833333333333333)-1)) -> 0
A145: 144 | B145: =+IF(A145>Resumen!$C$40,"",A145) ->  | C145: =+IFERROR(HLOOKUP($B145,Resumen!$F$3:$AM$10,8,0),0) -> 0 | D145: =+IFERROR(HLOOKUP($B145,Resumen!$F$3:$AM$12,10),0) -> 0 | E145: =+IF(B145=Resumen!$C$38*6-6,1,0) -> 0 | F145: =+IFERROR(HLOOKUP($B145,Resumen!$F$3:$AM$14,12),0) -> 0 | G145: 5.820766091e-11 | H145: =IF(X145="",0,IF(F145=0,ROUND(SUM(J$2:J145)*X145,2),0)) -> 0 | I145: 0 | J145: =(Resumen!$C$10*(1-Resumen!$C$24)*(1+Incmat)^5)*C145 -> 0 | K145: =+IF(F145=1,PMT(X145,(Resumen!$C$36+Resumen!$C$26+Resumen!$C$14*6-B145+1),-Amortizacion!G145),0) -> 0 | L145: 0 | M145: =+IF(Resumen!$C$20="no",H145,0) -> 0 | N145: 5.820766091e-11 | O145: =+IF(AND(Resumen!$C$18="SI",Amortizacion!E145=1),SUM($H$2:J145)*25%,0) -> 0 | P145: 0 | Q145: 0 | R145: 0 | S145: =(Resumen!$C$10*(Resumen!$C$24)*(1+Incmat)^5)*$C145 -> 0 | T145: 0 | U145: 0 | V145: 0 | W145: 5.820766091e-11 | X145: =+IF(B145="","",Resumen!$C$34) ->  | Y145: 0 | Z145: 0 | AA145: 0 | AB145: =+IF(Resumen!$C$8="no",0,W145*((1+10%)^(0.0833333333333333)-1)) -> 0
A146: 145 | B146: =+IF(A146>Resumen!$C$40,"",A146) ->  | C146: =+IFERROR(HLOOKUP($B146,Resumen!$F$3:$AM$10,8,0),0) -> 0 | D146: =+IFERROR(HLOOKUP($B146,Resumen!$F$3:$AM$12,10),0) -> 0 | E146: =+IF(B146=Resumen!$C$38*6-6,1,0) -> 0 | F146: =+IFERROR(HLOOKUP($B146,Resumen!$F$3:$AM$14,12),0) -> 0 | G146: 5.820766091e-11 | H146: =IF(X146="",0,IF(F146=0,ROUND(SUM(J$2:J146)*X146,2),0)) -> 0 | I146: 0 | J146: =(Resumen!$C$10*(1-Resumen!$C$24)*(1+Incmat)^5)*C146 -> 0 | K146: =+IF(F146=1,PMT(X146,(Resumen!$C$36+Resumen!$C$26+Resumen!$C$14*6-B146+1),-Amortizacion!G146),0) -> 0 | L146: 0 | M146: =+IF(Resumen!$C$20="no",H146,0) -> 0 | N146: 5.820766091e-11 | O146: =+IF(AND(Resumen!$C$18="SI",Amortizacion!E146=1),SUM($H$2:J146)*25%,0) -> 0 | P146: 0 | Q146: 0 | R146: 0 | S146: =(Resumen!$C$10*(Resumen!$C$24)*(1+Incmat)^5)*$C146 -> 0 | T146: 0 | U146: 0 | V146: 0 | W146: 5.820766091e-11 | X146: =+IF(B146="","",Resumen!$C$34) ->  | Y146: 0 | Z146: 0 | AA146: 0 | AB146: =+IF(Resumen!$C$8="no",0,W146*((1+10%)^(0.0833333333333333)-1)) -> 0
A147: 146 | B147: =+IF(A147>Resumen!$C$40,"",A147) ->  | C147: =+IFERROR(HLOOKUP($B147,Resumen!$F$3:$AM$10,8,0),0) -> 0 | D147: =+IFERROR(HLOOKUP($B147,Resumen!$F$3:$AM$12,10),0) -> 0 | E147: =+IF(B147=Resumen!$C$38*6-6,1,0) -> 0 | F147: =+IFERROR(HLOOKUP($B147,Resumen!$F$3:$AM$14,12),0) -> 0 | G147: 5.820766091e-11 | H147: =IF(X147="",0,IF(F147=0,ROUND(SUM(J$2:J147)*X147,2),0)) -> 0 | I147: 0 | J147: =(Resumen!$C$10*(1-Resumen!$C$24)*(1+Incmat)^5)*C147 -> 0 | K147: =+IF(F147=1,PMT(X147,(Resumen!$C$36+Resumen!$C$26+Resumen!$C$14*6-B147+1),-Amortizacion!G147),0) -> 0 | L147: 0 | M147: =+IF(Resumen!$C$20="no",H147,0) -> 0 | N147: 5.820766091e-11 | O147: =+IF(AND(Resumen!$C$18="SI",Amortizacion!E147=1),SUM($H$2:J147)*25%,0) -> 0 | P147: 0 | Q147: 0 | R147: 0 | S147: =(Resumen!$C$10*(Resumen!$C$24)*(1+Incmat)^5)*$C147 -> 0 | T147: 0 | U147: 0 | V147: 0 | W147: 5.820766091e-11 | X147: =+IF(B147="","",Resumen!$C$34) ->  | Y147: 0 | Z147: 0 | AA147: 0 | AB147: =+IF(Resumen!$C$8="no",0,W147*((1+10%)^(0.0833333333333333)-1)) -> 0
A148: 147 | B148: =+IF(A148>Resumen!$C$40,"",A148) ->  | C148: =+IFERROR(HLOOKUP($B148,Resumen!$F$3:$AM$10,8,0),0) -> 0 | D148: =+IFERROR(HLOOKUP($B148,Resumen!$F$3:$AM$12,10),0) -> 0 | E148: =+IF(B148=Resumen!$C$38*6-6,1,0) -> 0 | F148: =+IFERROR(HLOOKUP($B148,Resumen!$F$3:$AM$14,12),0) -> 0 | G148: 5.820766091e-11 | H148: =IF(X148="",0,IF(F148=0,ROUND(SUM(J$2:J148)*X148,2),0)) -> 0 | I148: 0 | J148: =(Resumen!$C$10*(1-Resumen!$C$24)*(1+Incmat)^5)*C148 -> 0 | K148: =+IF(F148=1,PMT(X148,(Resumen!$C$36+Resumen!$C$26+Resumen!$C$14*6-B148+1),-Amortizacion!G148),0) -> 0 | L148: 0 | M148: =+IF(Resumen!$C$20="no",H148,0) -> 0 | N148: 5.820766091e-11 | O148: =+IF(AND(Resumen!$C$18="SI",Amortizacion!E148=1),SUM($H$2:J148)*25%,0) -> 0 | P148: 0 | Q148: 0 | R148: 0 | S148: =(Resumen!$C$10*(Resumen!$C$24)*(1+Incmat)^5)*$C148 -> 0 | T148: 0 | U148: 0 | V148: 0 | W148: 5.820766091e-11 | X148: =+IF(B148="","",Resumen!$C$34) ->  | Y148: 0 | Z148: 0 | AA148: 0 | AB148: =+IF(Resumen!$C$8="no",0,W148*((1+10%)^(0.0833333333333333)-1)) -> 0
A149: 148 | B149: =+IF(A149>Resumen!$C$40,"",A149) ->  | C149: =+IFERROR(HLOOKUP($B149,Resumen!$F$3:$AM$10,8,0),0) -> 0 | D149: =+IFERROR(HLOOKUP($B149,Resumen!$F$3:$AM$12,10),0) -> 0 | E149: =+IF(B149=Resumen!$C$38*6-6,1,0) -> 0 | F149: =+IFERROR(HLOOKUP($B149,Resumen!$F$3:$AM$14,12),0) -> 0 | G149: 5.820766091e-11 | H149: =IF(X149="",0,IF(F149=0,ROUND(SUM(J$2:J149)*X149,2),0)) -> 0 | I149: 0 | J149: =(Resumen!$C$10*(1-Resumen!$C$24)*(1+Incmat)^5)*C149 -> 0 | K149: =+IF(F149=1,PMT(X149,(Resumen!$C$36+Resumen!$C$26+Resumen!$C$14*6-B149+1),-Amortizacion!G149),0) -> 0 | L149: 0 | M149: =+IF(Resumen!$C$20="no",H149,0) -> 0 | N149: 5.820766091e-11 | O149: =+IF(AND(Resumen!$C$18="SI",Amortizacion!E149=1),SUM($H$2:J149)*25%,0) -> 0 | P149: 0 | Q149: 0 | R149: 0 | S149: =(Resumen!$C$10*(Resumen!$C$24)*(1+Incmat)^5)*$C149 -> 0 | T149: 0 | U149: 0 | V149: 0 | W149: 5.820766091e-11 | X149: =+IF(B149="","",Resumen!$C$34) ->  | Y149: 0 | Z149: 0 | AA149: 0 | AB149: =+IF(Resumen!$C$8="no",0,W149*((1+10%)^(0.0833333333333333)-1)) -> 0
A150: 149 | B150: =+IF(A150>Resumen!$C$40,"",A150) ->  | C150: =+IFERROR(HLOOKUP($B150,Resumen!$F$3:$AM$10,8,0),0) -> 0 | D150: =+IFERROR(HLOOKUP($B150,Resumen!$F$3:$AM$12,10),0) -> 0 | E150: =+IF(B150=Resumen!$C$38*6-6,1,0) -> 0 | F150: =+IFERROR(HLOOKUP($B150,Resumen!$F$3:$AM$14,12),0) -> 0 | G150: 5.820766091e-11 | H150: =IF(X150="",0,IF(F150=0,ROUND(SUM(J$2:J150)*X150,2),0)) -> 0 | I150: 0 | J150: =(Resumen!$C$10*(1-Resumen!$C$24)*(1+Incmat)^5)*C150 -> 0 | K150: =+IF(F150=1,PMT(X150,(Resumen!$C$36+Resumen!$C$26+Resumen!$C$14*6-B150+1),-Amortizacion!G150),0) -> 0 | L150: 0 | M150: =+IF(Resumen!$C$20="no",H150,0) -> 0 | N150: 5.820766091e-11 | O150: =+IF(AND(Resumen!$C$18="SI",Amortizacion!E150=1),SUM($H$2:J150)*25%,0) -> 0 | P150: 0 | Q150: 0 | R150: 0 | S150: =(Resumen!$C$10*(Resumen!$C$24)*(1+Incmat)^5)*$C150 -> 0 | T150: 0 | U150: 0 | V150: 0 | W150: 5.820766091e-11 | X150: =+IF(B150="","",Resumen!$C$34) ->  | Y150: 0 | Z150: 0 | AA150: 0 | AB150: =+IF(Resumen!$C$8="no",0,W150*((1+10%)^(0.0833333333333333)-1)) -> 0
A151: 150 | B151: =+IF(A151>Resumen!$C$40,"",A151) ->  | C151: =+IFERROR(HLOOKUP($B151,Resumen!$F$3:$AM$10,8,0),0) -> 0 | D151: =+IFERROR(HLOOKUP($B151,Resumen!$F$3:$AM$12,10),0) -> 0 | E151: =+IF(B151=Resumen!$C$38*6-6,1,0) -> 0 | F151: =+IFERROR(HLOOKUP($B151,Resumen!$F$3:$AM$14,12),0) -> 0 | G151: 5.820766091e-11 | H151: =IF(X151="",0,IF(F151=0,ROUND(SUM(J$2:J151)*X151,2),0)) -> 0 | I151: 0 | J151: =(Resumen!$C$10*(1-Resumen!$C$24)*(1+Incmat)^5)*C151 -> 0 | K151: =+IF(F151=1,PMT(X151,(Resumen!$C$36+Resumen!$C$26+Resumen!$C$14*6-B151+1),-Amortizacion!G151),0) -> 0 | L151: 0 | M151: =+IF(Resumen!$C$20="no",H151,0) -> 0 | N151: 5.820766091e-11 | O151: =+IF(AND(Resumen!$C$18="SI",Amortizacion!E151=1),SUM($H$2:J151)*25%,0) -> 0 | P151: 0 | Q151: 0 | R151: 0 | S151: =(Resumen!$C$10*(Resumen!$C$24)*(1+Incmat)^5)*$C151 -> 0 | T151: 0 | U151: 0 | V151: 0 | W151: 5.820766091e-11 | X151: =+IF(B151="","",Resumen!$C$34) ->  | Y151: 0 | Z151: 0 | AA151: 0 | AB151: =+IF(Resumen!$C$8="no",0,W151*((1+10%)^(0.0833333333333333)-1)) -> 0
A152: 151 | B152: =+IF(A152>Resumen!$C$40,"",A152) ->  | C152: =+IFERROR(HLOOKUP($B152,Resumen!$F$3:$AM$10,8,0),0) -> 0 | D152: =+IFERROR(HLOOKUP($B152,Resumen!$F$3:$AM$12,10),0) -> 0 | E152: =+IF(B152=Resumen!$C$38*6-6,1,0) -> 0 | F152: =+IFERROR(HLOOKUP($B152,Resumen!$F$3:$AM$14,12),0) -> 0 | G152: 5.820766091e-11 | H152: =IF(X152="",0,IF(F152=0,ROUND(SUM(J$2:J152)*X152,2),0)) -> 0 | I152: 0 | J152: =(Resumen!$C$10*(1-Resumen!$C$24)*(1+Incmat)^5)*C152 -> 0 | K152: =+IF(F152=1,PMT(X152,(Resumen!$C$36+Resumen!$C$26+Resumen!$C$14*6-B152+1),-Amortizacion!G152),0) -> 0 | L152: 0 | M152: =+IF(Resumen!$C$20="no",H152,0) -> 0 | N152: 5.820766091e-11 | O152: =+IF(AND(Resumen!$C$18="SI",Amortizacion!E152=1),SUM($H$2:J152)*25%,0) -> 0 | P152: 0 | Q152: 0 | R152: 0 | S152: =(Resumen!$C$10*(Resumen!$C$24)*(1+Incmat)^5)*$C152 -> 0 | T152: 0 | U152: 0 | V152: 0 | W152: 5.820766091e-11 | X152: =+IF(B152="","",Resumen!$C$34) ->  | Y152: 0 | Z152: 0 | AA152: 0 | AB152: =+IF(Resumen!$C$8="no",0,W152*((1+10%)^(0.0833333333333333)-1)) -> 0
A153: 152 | B153: =+IF(A153>Resumen!$C$40,"",A153) ->  | C153: =+IFERROR(HLOOKUP($B153,Resumen!$F$3:$AM$10,8,0),0) -> 0 | D153: =+IFERROR(HLOOKUP($B153,Resumen!$F$3:$AM$12,10),0) -> 0 | E153: =+IF(B153=Resumen!$C$38*6-6,1,0) -> 0 | F153: =+IFERROR(HLOOKUP($B153,Resumen!$F$3:$AM$14,12),0) -> 0 | G153: 5.820766091e-11 | H153: =IF(X153="",0,IF(F153=0,ROUND(SUM(J$2:J153)*X153,2),0)) -> 0 | I153: 0 | J153: =(Resumen!$C$10*(1-Resumen!$C$24)*(1+Incmat)^5)*C153 -> 0 | K153: =+IF(F153=1,PMT(X153,(Resumen!$C$36+Resumen!$C$26+Resumen!$C$14*6-B153+1),-Amortizacion!G153),0) -> 0 | L153: 0 | M153: =+IF(Resumen!$C$20="no",H153,0) -> 0 | N153: 5.820766091e-11 | O153: =+IF(AND(Resumen!$C$18="SI",Amortizacion!E153=1),SUM($H$2:J153)*25%,0) -> 0 | P153: 0 | Q153: 0 | R153: 0 | S153: =(Resumen!$C$10*(Resumen!$C$24)*(1+Incmat)^5)*$C153 -> 0 | T153: 0 | U153: 0 | V153: 0 | W153: 5.820766091e-11 | X153: =+IF(B153="","",Resumen!$C$34) ->  | Y153: 0 | Z153: 0 | AA153: 0 | AB153: =+IF(Resumen!$C$8="no",0,W153*((1+10%)^(0.0833333333333333)-1)) -> 0
A154: 153 | B154: =+IF(A154>Resumen!$C$40,"",A154) ->  | C154: =+IFERROR(HLOOKUP($B154,Resumen!$F$3:$AM$10,8,0),0) -> 0 | D154: =+IFERROR(HLOOKUP($B154,Resumen!$F$3:$AM$12,10),0) -> 0 | E154: =+IF(B154=Resumen!$C$38*6-6,1,0) -> 0 | F154: =+IFERROR(HLOOKUP($B154,Resumen!$F$3:$AM$14,12),0) -> 0 | G154: 5.820766091e-11 | H154: =IF(X154="",0,IF(F154=0,ROUND(SUM(J$2:J154)*X154,2),0)) -> 0 | I154: 0 | J154: =(Resumen!$C$10*(1-Resumen!$C$24)*(1+Incmat)^5)*C154 -> 0 | K154: =+IF(F154=1,PMT(X154,(Resumen!$C$36+Resumen!$C$26+Resumen!$C$14*6-B154+1),-Amortizacion!G154),0) -> 0 | L154: 0 | M154: =+IF(Resumen!$C$20="no",H154,0) -> 0 | N154: 5.820766091e-11 | O154: =+IF(AND(Resumen!$C$18="SI",Amortizacion!E154=1),SUM($H$2:J154)*25%,0) -> 0 | P154: 0 | Q154: 0 | R154: 0 | S154: =(Resumen!$C$10*(Resumen!$C$24)*(1+Incmat)^5)*$C154 -> 0 | T154: 0 | U154: 0 | V154: 0 | W154: 5.820766091e-11 | X154: =+IF(B154="","",Resumen!$C$34) ->  | Y154: 0 | Z154: 0 | AA154: 0 | AB154: =+IF(Resumen!$C$8="no",0,W154*((1+10%)^(0.0833333333333333)-1)) -> 0
A155: 154 | B155: =+IF(A155>Resumen!$C$40,"",A155) ->  | C155: =+IFERROR(HLOOKUP($B155,Resumen!$F$3:$AM$10,8,0),0) -> 0 | D155: =+IFERROR(HLOOKUP($B155,Resumen!$F$3:$AM$12,10),0) -> 0 | E155: =+IF(B155=Resumen!$C$38*6-6,1,0) -> 0 | F155: =+IFERROR(HLOOKUP($B155,Resumen!$F$3:$AM$14,12),0) -> 0 | G155: 5.820766091e-11 | H155: =IF(X155="",0,IF(F155=0,ROUND(SUM(J$2:J155)*X155,2),0)) -> 0 | I155: 0 | J155: =(Resumen!$C$10*(1-Resumen!$C$24)*(1+Incmat)^5)*C155 -> 0 | K155: =+IF(F155=1,PMT(X155,(Resumen!$C$36+Resumen!$C$26+Resumen!$C$14*6-B155+1),-Amortizacion!G155),0) -> 0 | L155: 0 | M155: =+IF(Resumen!$C$20="no",H155,0) -> 0 | N155: 5.820766091e-11 | O155: =+IF(AND(Resumen!$C$18="SI",Amortizacion!E155=1),SUM($H$2:J155)*25%,0) -> 0 | P155: 0 | Q155: 0 | R155: 0 | S155: =(Resumen!$C$10*(Resumen!$C$24)*(1+Incmat)^5)*$C155 -> 0 | T155: 0 | U155: 0 | V155: 0 | W155: 5.820766091e-11 | X155: =+IF(B155="","",Resumen!$C$34) ->  | Y155: 0 | Z155: 0 | AA155: 0 | AB155: =+IF(Resumen!$C$8="no",0,W155*((1+10%)^(0.0833333333333333)-1)) -> 0
A156: 155 | B156: =+IF(A156>Resumen!$C$40,"",A156) ->  | C156: =+IFERROR(HLOOKUP($B156,Resumen!$F$3:$AM$10,8,0),0) -> 0 | D156: =+IFERROR(HLOOKUP($B156,Resumen!$F$3:$AM$12,10),0) -> 0 | E156: =+IF(B156=Resumen!$C$38*6-6,1,0) -> 0 | F156: =+IFERROR(HLOOKUP($B156,Resumen!$F$3:$AM$14,12),0) -> 0 | G156: 5.820766091e-11 | H156: =IF(X156="",0,IF(F156=0,ROUND(SUM(J$2:J156)*X156,2),0)) -> 0 | I156: 0 | J156: =(Resumen!$C$10*(1-Resumen!$C$24)*(1+Incmat)^5)*C156 -> 0 | K156: =+IF(F156=1,PMT(X156,(Resumen!$C$36+Resumen!$C$26+Resumen!$C$14*6-B156+1),-Amortizacion!G156),0) -> 0 | L156: 0 | M156: =+IF(Resumen!$C$20="no",H156,0) -> 0 | N156: 5.820766091e-11 | O156: =+IF(AND(Resumen!$C$18="SI",Amortizacion!E156=1),SUM($H$2:J156)*25%,0) -> 0 | P156: 0 | Q156: 0 | R156: 0 | S156: =(Resumen!$C$10*(Resumen!$C$24)*(1+Incmat)^5)*$C156 -> 0 | T156: 0 | U156: 0 | V156: 0 | W156: 5.820766091e-11 | X156: =+IF(B156="","",Resumen!$C$34) ->  | Y156: 0 | Z156: 0 | AA156: 0 | AB156: =+IF(Resumen!$C$8="no",0,W156*((1+10%)^(0.0833333333333333)-1)) -> 0
A157: 156 | B157: =+IF(A157>Resumen!$C$40,"",A157) ->  | C157: =+IFERROR(HLOOKUP($B157,Resumen!$F$3:$AM$10,8,0),0) -> 0 | D157: =+IFERROR(HLOOKUP($B157,Resumen!$F$3:$AM$12,10),0) -> 0 | E157: =+IF(B157=Resumen!$C$38*6-6,1,0) -> 0 | F157: =+IFERROR(HLOOKUP($B157,Resumen!$F$3:$AM$14,12),0) -> 0 | G157: 5.820766091e-11 | H157: =IF(X157="",0,IF(F157=0,ROUND(SUM(J$2:J157)*X157,2),0)) -> 0 | I157: 0 | J157: =(Resumen!$C$10*(1-Resumen!$C$24)*(1+Incmat)^5)*C157 -> 0 | K157: =+IF(F157=1,PMT(X157,(Resumen!$C$36+Resumen!$C$26+Resumen!$C$14*6-B157+1),-Amortizacion!G157),0) -> 0 | L157: 0 | M157: =+IF(Resumen!$C$20="no",H157,0) -> 0 | N157: 5.820766091e-11 | O157: =+IF(AND(Resumen!$C$18="SI",Amortizacion!E157=1),SUM($H$2:J157)*25%,0) -> 0 | P157: 0 | Q157: 0 | R157: 0 | S157: =(Resumen!$C$10*(Resumen!$C$24)*(1+Incmat)^5)*$C157 -> 0 | T157: 0 | U157: 0 | V157: 0 | W157: 5.820766091e-11 | X157: =+IF(B157="","",Resumen!$C$34) ->  | Y157: 0 | Z157: 0 | AA157: 0 | AB157: =+IF(Resumen!$C$8="no",0,W157*((1+10%)^(0.0833333333333333)-1)) -> 0
A158: 157 | B158: =+IF(A158>Resumen!$C$40,"",A158) ->  | C158: =+IFERROR(HLOOKUP($B158,Resumen!$F$3:$AM$10,8,0),0) -> 0 | D158: =+IFERROR(HLOOKUP($B158,Resumen!$F$3:$AM$12,10),0) -> 0 | E158: =+IF(B158=Resumen!$C$38*6-6,1,0) -> 0 | F158: =+IFERROR(HLOOKUP($B158,Resumen!$F$3:$AM$14,12),0) -> 0 | G158: 5.820766091e-11 | H158: =IF(X158="",0,IF(F158=0,ROUND(SUM(J$2:J158)*X158,2),0)) -> 0 | I158: 0 | J158: =(Resumen!$C$10*(1-Resumen!$C$24)*(1+Incmat)^5)*C158 -> 0 | K158: =+IF(F158=1,PMT(X158,(Resumen!$C$36+Resumen!$C$26+Resumen!$C$14*6-B158+1),-Amortizacion!G158),0) -> 0 | L158: 0 | M158: =+IF(Resumen!$C$20="no",H158,0) -> 0 | N158: 5.820766091e-11 | O158: =+IF(AND(Resumen!$C$18="SI",Amortizacion!E158=1),SUM($H$2:J158)*25%,0) -> 0 | P158: 0 | Q158: 0 | R158: 0 | S158: =(Resumen!$C$10*(Resumen!$C$24)*(1+Incmat)^5)*$C158 -> 0 | T158: 0 | U158: 0 | V158: 0 | W158: 5.820766091e-11 | X158: =+IF(B158="","",Resumen!$C$34) ->  | Y158: 0 | Z158: 0 | AA158: 0 | AB158: =+IF(Resumen!$C$8="no",0,W158*((1+10%)^(0.0833333333333333)-1)) -> 0
A159: 158 | B159: =+IF(A159>Resumen!$C$40,"",A159) ->  | C159: =+IFERROR(HLOOKUP($B159,Resumen!$F$3:$AM$10,8,0),0) -> 0 | D159: =+IFERROR(HLOOKUP($B159,Resumen!$F$3:$AM$12,10),0) -> 0 | E159: =+IF(B159=Resumen!$C$38*6-6,1,0) -> 0 | F159: =+IFERROR(HLOOKUP($B159,Resumen!$F$3:$AM$14,12),0) -> 0 | G159: 5.820766091e-11 | H159: =IF(X159="",0,IF(F159=0,ROUND(SUM(J$2:J159)*X159,2),0)) -> 0 | I159: 0 | J159: =(Resumen!$C$10*(1-Resumen!$C$24)*(1+Incmat)^5)*C159 -> 0 | K159: =+IF(F159=1,PMT(X159,(Resumen!$C$36+Resumen!$C$26+Resumen!$C$14*6-B159+1),-Amortizacion!G159),0) -> 0 | L159: 0 | M159: =+IF(Resumen!$C$20="no",H159,0) -> 0 | N159: 5.820766091e-11 | O159: =+IF(AND(Resumen!$C$18="SI",Amortizacion!E159=1),SUM($H$2:J159)*25%,0) -> 0 | P159: 0 | Q159: 0 | R159: 0 | S159: =(Resumen!$C$10*(Resumen!$C$24)*(1+Incmat)^5)*$C159 -> 0 | T159: 0 | U159: 0 | V159: 0 | W159: 5.820766091e-11 | X159: =+IF(B159="","",Resumen!$C$34) ->  | Y159: 0 | Z159: 0 | AA159: 0 | AB159: =+IF(Resumen!$C$8="no",0,W159*((1+10%)^(0.0833333333333333)-1)) -> 0
A160: 159 | B160: =+IF(A160>Resumen!$C$40,"",A160) ->  | C160: =+IFERROR(HLOOKUP($B160,Resumen!$F$3:$AM$10,8,0),0) -> 0 | D160: =+IFERROR(HLOOKUP($B160,Resumen!$F$3:$AM$12,10),0) -> 0 | E160: =+IF(B160=Resumen!$C$38*6-6,1,0) -> 0 | F160: =+IFERROR(HLOOKUP($B160,Resumen!$F$3:$AM$14,12),0) -> 0 | G160: 5.820766091e-11 | H160: =IF(X160="",0,IF(F160=0,ROUND(SUM(J$2:J160)*X160,2),0)) -> 0 | I160: 0 | J160: =(Resumen!$C$10*(1-Resumen!$C$24)*(1+Incmat)^5)*C160 -> 0 | K160: =+IF(F160=1,PMT(X160,(Resumen!$C$36+Resumen!$C$26+Resumen!$C$14*6-B160+1),-Amortizacion!G160),0) -> 0 | L160: 0 | M160: =+IF(Resumen!$C$20="no",H160,0) -> 0 | N160: 5.820766091e-11 | O160: =+IF(AND(Resumen!$C$18="SI",Amortizacion!E160=1),SUM($H$2:J160)*25%,0) -> 0 | P160: 0 | Q160: 0 | R160: 0 | S160: =(Resumen!$C$10*(Resumen!$C$24)*(1+Incmat)^5)*$C160 -> 0 | T160: 0 | U160: 0 | V160: 0 | W160: 5.820766091e-11 | X160: =+IF(B160="","",Resumen!$C$34) ->  | Y160: 0 | Z160: 0 | AA160: 0 | AB160: =+IF(Resumen!$C$8="no",0,W160*((1+10%)^(0.0833333333333333)-1)) -> 0
A161: 160 | B161: =+IF(A161>Resumen!$C$40,"",A161) ->  | C161: =+IFERROR(HLOOKUP($B161,Resumen!$F$3:$AM$10,8,0),0) -> 0 | D161: =+IFERROR(HLOOKUP($B161,Resumen!$F$3:$AM$12,10),0) -> 0 | E161: =+IF(B161=Resumen!$C$38*6-6,1,0) -> 0 | F161: =+IFERROR(HLOOKUP($B161,Resumen!$F$3:$AM$14,12),0) -> 0 | G161: 5.820766091e-11 | H161: =IF(X161="",0,IF(F161=0,ROUND(SUM(J$2:J161)*X161,2),0)) -> 0 | I161: 0 | J161: =(Resumen!$C$10*(1-Resumen!$C$24)*(1+Incmat)^5)*C161 -> 0 | K161: =+IF(F161=1,PMT(X161,(Resumen!$C$36+Resumen!$C$26+Resumen!$C$14*6-B161+1),-Amortizacion!G161),0) -> 0 | L161: 0 | M161: =+IF(Resumen!$C$20="no",H161,0) -> 0 | N161: 5.820766091e-11 | O161: =+IF(AND(Resumen!$C$18="SI",Amortizacion!E161=1),SUM($H$2:J161)*25%,0) -> 0 | P161: 0 | Q161: 0 | R161: 0 | S161: =(Resumen!$C$10*(Resumen!$C$24)*(1+Incmat)^5)*$C161 -> 0 | T161: 0 | U161: 0 | V161: 0 | W161: 5.820766091e-11 | X161: =+IF(B161="","",Resumen!$C$34) ->  | Y161: 0 | Z161: 0 | AA161: 0 | AB161: =+IF(Resumen!$C$8="no",0,W161*((1+10%)^(0.0833333333333333)-1)) -> 0
A162: 161 | B162: =+IF(A162>Resumen!$C$40,"",A162) ->  | C162: =+IFERROR(HLOOKUP($B162,Resumen!$F$3:$AM$10,8,0),0) -> 0 | D162: =+IFERROR(HLOOKUP($B162,Resumen!$F$3:$AM$12,10),0) -> 0 | E162: =+IF(B162=Resumen!$C$38*6-6,1,0) -> 0 | F162: =+IFERROR(HLOOKUP($B162,Resumen!$F$3:$AM$14,12),0) -> 0 | G162: 5.820766091e-11 | H162: =IF(X162="",0,IF(F162=0,ROUND(SUM(J$2:J162)*X162,2),0)) -> 0 | I162: 0 | J162: =(Resumen!$C$10*(1-Resumen!$C$24)*(1+Incmat)^5)*C162 -> 0 | K162: =+IF(F162=1,PMT(X162,(Resumen!$C$36+Resumen!$C$26+Resumen!$C$14*6-B162+1),-Amortizacion!G162),0) -> 0 | L162: 0 | M162: =+IF(Resumen!$C$20="no",H162,0) -> 0 | N162: 5.820766091e-11 | O162: =+IF(AND(Resumen!$C$18="SI",Amortizacion!E162=1),SUM($H$2:J162)*25%,0) -> 0 | P162: 0 | Q162: 0 | R162: 0 | S162: =(Resumen!$C$10*(Resumen!$C$24)*(1+Incmat)^5)*$C162 -> 0 | T162: 0 | U162: 0 | V162: 0 | W162: 5.820766091e-11 | X162: =+IF(B162="","",Resumen!$C$34) ->  | Y162: 0 | Z162: 0 | AA162: 0 | AB162: =+IF(Resumen!$C$8="no",0,W162*((1+10%)^(0.0833333333333333)-1)) -> 0
A163: 162 | B163: =+IF(A163>Resumen!$C$40,"",A163) ->  | C163: =+IFERROR(HLOOKUP($B163,Resumen!$F$3:$AM$10,8,0),0) -> 0 | D163: =+IFERROR(HLOOKUP($B163,Resumen!$F$3:$AM$12,10),0) -> 0 | E163: =+IF(B163=Resumen!$C$38*6-6,1,0) -> 0 | F163: =+IFERROR(HLOOKUP($B163,Resumen!$F$3:$AM$14,12),0) -> 0 | G163: 5.820766091e-11 | H163: =IF(X163="",0,IF(F163=0,ROUND(SUM(J$2:J163)*X163,2),0)) -> 0 | I163: 0 | J163: =(Resumen!$C$10*(1-Resumen!$C$24)*(1+Incmat)^5)*C163 -> 0 | K163: =+IF(F163=1,PMT(X163,(Resumen!$C$36+Resumen!$C$26+Resumen!$C$14*6-B163+1),-Amortizacion!G163),0) -> 0 | L163: 0 | M163: =+IF(Resumen!$C$20="no",H163,0) -> 0 | N163: 5.820766091e-11 | O163: =+IF(AND(Resumen!$C$18="SI",Amortizacion!E163=1),SUM($H$2:J163)*25%,0) -> 0 | P163: 0 | Q163: 0 | R163: 0 | S163: =(Resumen!$C$10*(Resumen!$C$24)*(1+Incmat)^5)*$C163 -> 0 | T163: 0 | U163: 0 | V163: 0 | W163: 5.820766091e-11 | X163: =+IF(B163="","",Resumen!$C$34) ->  | Y163: 0 | Z163: 0 | AA163: 0 | AB163: =+IF(Resumen!$C$8="no",0,W163*((1+10%)^(0.0833333333333333)-1)) -> 0
A164: 163 | B164: =+IF(A164>Resumen!$C$40,"",A164) ->  | C164: =+IFERROR(HLOOKUP($B164,Resumen!$F$3:$AM$10,8,0),0) -> 0 | D164: =+IFERROR(HLOOKUP($B164,Resumen!$F$3:$AM$12,10),0) -> 0 | E164: =+IF(B164=Resumen!$C$38*6-6,1,0) -> 0 | F164: =+IFERROR(HLOOKUP($B164,Resumen!$F$3:$AM$14,12),0) -> 0 | G164: 5.820766091e-11 | H164: =IF(X164="",0,IF(F164=0,ROUND(SUM(J$2:J164)*X164,2),0)) -> 0 | I164: 0 | J164: =(Resumen!$C$10*(1-Resumen!$C$24)*(1+Incmat)^5)*C164 -> 0 | K164: =+IF(F164=1,PMT(X164,(Resumen!$C$36+Resumen!$C$26+Resumen!$C$14*6-B164+1),-Amortizacion!G164),0) -> 0 | L164: 0 | M164: =+IF(Resumen!$C$20="no",H164,0) -> 0 | N164: 5.820766091e-11 | O164: =+IF(AND(Resumen!$C$18="SI",Amortizacion!E164=1),SUM($H$2:J164)*25%,0) -> 0 | P164: 0 | Q164: 0 | R164: 0 | S164: =(Resumen!$C$10*(Resumen!$C$24)*(1+Incmat)^5)*$C164 -> 0 | T164: 0 | U164: 0 | V164: 0 | W164: 5.820766091e-11 | X164: =+IF(B164="","",Resumen!$C$34) ->  | Y164: 0 | Z164: 0 | AA164: 0 | AB164: =+IF(Resumen!$C$8="no",0,W164*((1+10%)^(0.0833333333333333)-1)) -> 0
A165: 164 | B165: =+IF(A165>Resumen!$C$40,"",A165) ->  | C165: =+IFERROR(HLOOKUP($B165,Resumen!$F$3:$AM$10,8,0),0) -> 0 | D165: =+IFERROR(HLOOKUP($B165,Resumen!$F$3:$AM$12,10),0) -> 0 | E165: =+IF(B165=Resumen!$C$38*6-6,1,0) -> 0 | F165: =+IFERROR(HLOOKUP($B165,Resumen!$F$3:$AM$14,12),0) -> 0 | G165: 5.820766091e-11 | H165: =IF(X165="",0,IF(F165=0,ROUND(SUM(J$2:J165)*X165,2),0)) -> 0 | I165: 0 | J165: =(Resumen!$C$10*(1-Resumen!$C$24)*(1+Incmat)^5)*C165 -> 0 | K165: =+IF(F165=1,PMT(X165,(Resumen!$C$36+Resumen!$C$26+Resumen!$C$14*6-B165+1),-Amortizacion!G165),0) -> 0 | L165: 0 | M165: =+IF(Resumen!$C$20="no",H165,0) -> 0 | N165: 5.820766091e-11 | O165: =+IF(AND(Resumen!$C$18="SI",Amortizacion!E165=1),SUM($H$2:J165)*25%,0) -> 0 | P165: 0 | Q165: 0 | R165: 0 | S165: =(Resumen!$C$10*(Resumen!$C$24)*(1+Incmat)^5)*$C165 -> 0 | T165: 0 | U165: 0 | V165: 0 | W165: 5.820766091e-11 | X165: =+IF(B165="","",Resumen!$C$34) ->  | Y165: 0 | Z165: 0 | AA165: 0 | AB165: =+IF(Resumen!$C$8="no",0,W165*((1+10%)^(0.0833333333333333)-1)) -> 0
A166: 165 | B166: =+IF(A166>Resumen!$C$40,"",A166) ->  | C166: =+IFERROR(HLOOKUP($B166,Resumen!$F$3:$AM$10,8,0),0) -> 0 | D166: =+IFERROR(HLOOKUP($B166,Resumen!$F$3:$AM$12,10),0) -> 0 | E166: =+IF(B166=Resumen!$C$38*6-6,1,0) -> 0 | F166: =+IFERROR(HLOOKUP($B166,Resumen!$F$3:$AM$14,12),0) -> 0 | G166: 5.820766091e-11 | H166: =IF(X166="",0,IF(F166=0,ROUND(SUM(J$2:J166)*X166,2),0)) -> 0 | I166: 0 | J166: =(Resumen!$C$10*(1-Resumen!$C$24)*(1+Incmat)^5)*C166 -> 0 | K166: =+IF(F166=1,PMT(X166,(Resumen!$C$36+Resumen!$C$26+Resumen!$C$14*6-B166+1),-Amortizacion!G166),0) -> 0 | L166: 0 | M166: =+IF(Resumen!$C$20="no",H166,0) -> 0 | N166: 5.820766091e-11 | O166: =+IF(AND(Resumen!$C$18="SI",Amortizacion!E166=1),SUM($H$2:J166)*25%,0) -> 0 | P166: 0 | Q166: 0 | R166: 0 | S166: =(Resumen!$C$10*(Resumen!$C$24)*(1+Incmat)^5)*$C166 -> 0 | T166: 0 | U166: 0 | V166: 0 | W166: 5.820766091e-11 | X166: =+IF(B166="","",Resumen!$C$34) ->  | Y166: 0 | Z166: 0 | AA166: 0 | AB166: =+IF(Resumen!$C$8="no",0,W166*((1+10%)^(0.0833333333333333)-1)) -> 0
A167: 166 | B167: =+IF(A167>Resumen!$C$40,"",A167) ->  | C167: =+IFERROR(HLOOKUP($B167,Resumen!$F$3:$AM$10,8,0),0) -> 0 | D167: =+IFERROR(HLOOKUP($B167,Resumen!$F$3:$AM$12,10),0) -> 0 | E167: =+IF(B167=Resumen!$C$38*6-6,1,0) -> 0 | F167: =+IFERROR(HLOOKUP($B167,Resumen!$F$3:$AM$14,12),0) -> 0 | G167: 5.820766091e-11 | H167: =IF(X167="",0,IF(F167=0,ROUND(SUM(J$2:J167)*X167,2),0)) -> 0 | I167: 0 | J167: =(Resumen!$C$10*(1-Resumen!$C$24)*(1+Incmat)^5)*C167 -> 0 | K167: =+IF(F167=1,PMT(X167,(Resumen!$C$36+Resumen!$C$26+Resumen!$C$14*6-B167+1),-Amortizacion!G167),0) -> 0 | L167: 0 | M167: =+IF(Resumen!$C$20="no",H167,0) -> 0 | N167: 5.820766091e-11 | O167: =+IF(AND(Resumen!$C$18="SI",Amortizacion!E167=1),SUM($H$2:J167)*25%,0) -> 0 | P167: 0 | Q167: 0 | R167: 0 | S167: =(Resumen!$C$10*(Resumen!$C$24)*(1+Incmat)^5)*$C167 -> 0 | T167: 0 | U167: 0 | V167: 0 | W167: 5.820766091e-11 | X167: =+IF(B167="","",Resumen!$C$34) ->  | Y167: 0 | Z167: 0 | AA167: 0 | AB167: =+IF(Resumen!$C$8="no",0,W167*((1+10%)^(0.0833333333333333)-1)) -> 0
A168: 167 | B168: =+IF(A168>Resumen!$C$40,"",A168) ->  | C168: =+IFERROR(HLOOKUP($B168,Resumen!$F$3:$AM$10,8,0),0) -> 0 | D168: =+IFERROR(HLOOKUP($B168,Resumen!$F$3:$AM$12,10),0) -> 0 | E168: =+IF(B168=Resumen!$C$38*6-6,1,0) -> 0 | F168: =+IFERROR(HLOOKUP($B168,Resumen!$F$3:$AM$14,12),0) -> 0 | G168: 5.820766091e-11 | H168: =IF(X168="",0,IF(F168=0,ROUND(SUM(J$2:J168)*X168,2),0)) -> 0 | I168: 0 | J168: =(Resumen!$C$10*(1-Resumen!$C$24)*(1+Incmat)^5)*C168 -> 0 | K168: =+IF(F168=1,PMT(X168,(Resumen!$C$36+Resumen!$C$26+Resumen!$C$14*6-B168+1),-Amortizacion!G168),0) -> 0 | L168: 0 | M168: =+IF(Resumen!$C$20="no",H168,0) -> 0 | N168: 5.820766091e-11 | O168: =+IF(AND(Resumen!$C$18="SI",Amortizacion!E168=1),SUM($H$2:J168)*25%,0) -> 0 | P168: 0 | Q168: 0 | R168: 0 | S168: =(Resumen!$C$10*(Resumen!$C$24)*(1+Incmat)^5)*$C168 -> 0 | T168: 0 | U168: 0 | V168: 0 | W168: 5.820766091e-11 | X168: =+IF(B168="","",Resumen!$C$34) ->  | Y168: 0 | Z168: 0 | AA168: 0 | AB168: =+IF(Resumen!$C$8="no",0,W168*((1+10%)^(0.0833333333333333)-1)) -> 0
A169: 168 | B169: =+IF(A169>Resumen!$C$40,"",A169) ->  | C169: =+IFERROR(HLOOKUP($B169,Resumen!$F$3:$AM$10,8,0),0) -> 0 | D169: =+IFERROR(HLOOKUP($B169,Resumen!$F$3:$AM$12,10),0) -> 0 | E169: =+IF(B169=Resumen!$C$38*6-6,1,0) -> 0 | F169: =+IFERROR(HLOOKUP($B169,Resumen!$F$3:$AM$14,12),0) -> 0 | G169: 5.820766091e-11 | H169: =IF(X169="",0,IF(F169=0,ROUND(SUM(J$2:J169)*X169,2),0)) -> 0 | I169: 0 | J169: =(Resumen!$C$10*(1-Resumen!$C$24)*(1+Incmat)^5)*C169 -> 0 | K169: =+IF(F169=1,PMT(X169,(Resumen!$C$36+Resumen!$C$26+Resumen!$C$14*6-B169+1),-Amortizacion!G169),0) -> 0 | L169: 0 | M169: =+IF(Resumen!$C$20="no",H169,0) -> 0 | N169: 5.820766091e-11 | O169: =+IF(AND(Resumen!$C$18="SI",Amortizacion!E169=1),SUM($H$2:J169)*25%,0) -> 0 | P169: 0 | Q169: 0 | R169: 0 | S169: =(Resumen!$C$10*(Resumen!$C$24)*(1+Incmat)^5)*$C169 -> 0 | T169: 0 | U169: 0 | V169: 0 | W169: 5.820766091e-11 | X169: =+IF(B169="","",Resumen!$C$34) ->  | Y169: 0 | Z169: 0 | AA169: 0 | AB169: =+IF(Resumen!$C$8="no",0,W169*((1+10%)^(0.0833333333333333)-1)) -> 0
A170: 169 | B170: =+IF(A170>Resumen!$C$40,"",A170) ->  | C170: =+IFERROR(HLOOKUP($B170,Resumen!$F$3:$AM$10,8,0),0) -> 0 | D170: =+IFERROR(HLOOKUP($B170,Resumen!$F$3:$AM$12,10),0) -> 0 | E170: =+IF(B170=Resumen!$C$38*6-6,1,0) -> 0 | F170: =+IFERROR(HLOOKUP($B170,Resumen!$F$3:$AM$14,12),0) -> 0 | G170: 5.820766091e-11 | H170: =IF(X170="",0,IF(F170=0,ROUND(SUM(J$2:J170)*X170,2),0)) -> 0 | I170: 0 | J170: =(Resumen!$C$10*(1-Resumen!$C$24)*(1+Incmat)^5)*C170 -> 0 | K170: =+IF(F170=1,PMT(X170,(Resumen!$C$36+Resumen!$C$26+Resumen!$C$14*6-B170+1),-Amortizacion!G170),0) -> 0 | L170: 0 | M170: =+IF(Resumen!$C$20="no",H170,0) -> 0 | N170: 5.820766091e-11 | O170: =+IF(AND(Resumen!$C$18="SI",Amortizacion!E170=1),SUM($H$2:J170)*25%,0) -> 0 | P170: 0 | Q170: 0 | R170: 0 | S170: =(Resumen!$C$10*(Resumen!$C$24)*(1+Incmat)^5)*$C170 -> 0 | T170: 0 | U170: 0 | V170: 0 | W170: 5.820766091e-11 | X170: =+IF(B170="","",Resumen!$C$34) ->  | Y170: 0 | Z170: 0 | AA170: 0 | AB170: =+IF(Resumen!$C$8="no",0,W170*((1+10%)^(0.0833333333333333)-1)) -> 0
A171: 170 | B171: =+IF(A171>Resumen!$C$40,"",A171) ->  | C171: =+IFERROR(HLOOKUP($B171,Resumen!$F$3:$AM$10,8,0),0) -> 0 | D171: =+IFERROR(HLOOKUP($B171,Resumen!$F$3:$AM$12,10),0) -> 0 | E171: =+IF(B171=Resumen!$C$38*6-6,1,0) -> 0 | F171: =+IFERROR(HLOOKUP($B171,Resumen!$F$3:$AM$14,12),0) -> 0 | G171: 5.820766091e-11 | H171: =IF(X171="",0,IF(F171=0,ROUND(SUM(J$2:J171)*X171,2),0)) -> 0 | I171: 0 | J171: =(Resumen!$C$10*(1-Resumen!$C$24)*(1+Incmat)^5)*C171 -> 0 | K171: =+IF(F171=1,PMT(X171,(Resumen!$C$36+Resumen!$C$26+Resumen!$C$14*6-B171+1),-Amortizacion!G171),0) -> 0 | L171: 0 | M171: =+IF(Resumen!$C$20="no",H171,0) -> 0 | N171: 5.820766091e-11 | O171: =+IF(AND(Resumen!$C$18="SI",Amortizacion!E171=1),SUM($H$2:J171)*25%,0) -> 0 | P171: 0 | Q171: 0 | R171: 0 | S171: =(Resumen!$C$10*(Resumen!$C$24)*(1+Incmat)^5)*$C171 -> 0 | T171: 0 | U171: 0 | V171: 0 | W171: 5.820766091e-11 | X171: =+IF(B171="","",Resumen!$C$34) ->  | Y171: 0 | Z171: 0 | AA171: 0 | AB171: =+IF(Resumen!$C$8="no",0,W171*((1+10%)^(0.0833333333333333)-1)) -> 0
A172: 171 | B172: =+IF(A172>Resumen!$C$40,"",A172) ->  | C172: =+IFERROR(HLOOKUP($B172,Resumen!$F$3:$AM$10,8,0),0) -> 0 | D172: =+IFERROR(HLOOKUP($B172,Resumen!$F$3:$AM$12,10),0) -> 0 | E172: =+IF(B172=Resumen!$C$38*6-6,1,0) -> 0 | F172: =+IFERROR(HLOOKUP($B172,Resumen!$F$3:$AM$14,12),0) -> 0 | G172: 5.820766091e-11 | H172: =IF(X172="",0,IF(F172=0,ROUND(SUM(J$2:J172)*X172,2),0)) -> 0 | I172: 0 | J172: =(Resumen!$C$10*(1-Resumen!$C$24)*(1+Incmat)^5)*C172 -> 0 | K172: =+IF(F172=1,PMT(X172,(Resumen!$C$36+Resumen!$C$26+Resumen!$C$14*6-B172+1),-Amortizacion!G172),0) -> 0 | L172: 0 | M172: =+IF(Resumen!$C$20="no",H172,0) -> 0 | N172: 5.820766091e-11 | O172: =+IF(AND(Resumen!$C$18="SI",Amortizacion!E172=1),SUM($H$2:J172)*25%,0) -> 0 | P172: 0 | Q172: 0 | R172: 0 | S172: =(Resumen!$C$10*(Resumen!$C$24)*(1+Incmat)^5)*$C172 -> 0 | T172: 0 | U172: 0 | V172: 0 | W172: 5.820766091e-11 | X172: =+IF(B172="","",Resumen!$C$34) ->  | Y172: 0 | Z172: 0 | AA172: 0 | AB172: =+IF(Resumen!$C$8="no",0,W172*((1+10%)^(0.0833333333333333)-1)) -> 0
A173: 172 | B173: =+IF(A173>Resumen!$C$40,"",A173) ->  | C173: =+IFERROR(HLOOKUP($B173,Resumen!$F$3:$AM$10,8,0),0) -> 0 | D173: =+IFERROR(HLOOKUP($B173,Resumen!$F$3:$AM$12,10),0) -> 0 | E173: =+IF(B173=Resumen!$C$38*6-6,1,0) -> 0 | F173: =+IFERROR(HLOOKUP($B173,Resumen!$F$3:$AM$14,12),0) -> 0 | G173: 5.820766091e-11 | H173: =IF(X173="",0,IF(F173=0,ROUND(SUM(J$2:J173)*X173,2),0)) -> 0 | I173: 0 | J173: =(Resumen!$C$10*(1-Resumen!$C$24)*(1+Incmat)^5)*C173 -> 0 | K173: =+IF(F173=1,PMT(X173,(Resumen!$C$36+Resumen!$C$26+Resumen!$C$14*6-B173+1),-Amortizacion!G173),0) -> 0 | L173: 0 | M173: =+IF(Resumen!$C$20="no",H173,0) -> 0 | N173: 5.820766091e-11 | O173: =+IF(AND(Resumen!$C$18="SI",Amortizacion!E173=1),SUM($H$2:J173)*25%,0) -> 0 | P173: 0 | Q173: 0 | R173: 0 | S173: =(Resumen!$C$10*(Resumen!$C$24)*(1+Incmat)^5)*$C173 -> 0 | T173: 0 | U173: 0 | V173: 0 | W173: 5.820766091e-11 | X173: =+IF(B173="","",Resumen!$C$34) ->  | Y173: 0 | Z173: 0 | AA173: 0 | AB173: =+IF(Resumen!$C$8="no",0,W173*((1+10%)^(0.0833333333333333)-1)) -> 0
A174: 173 | B174: =+IF(A174>Resumen!$C$40,"",A174) ->  | C174: =+IFERROR(HLOOKUP($B174,Resumen!$F$3:$AM$10,8,0),0) -> 0 | D174: =+IFERROR(HLOOKUP($B174,Resumen!$F$3:$AM$12,10),0) -> 0 | E174: =+IF(B174=Resumen!$C$38*6-6,1,0) -> 0 | F174: =+IFERROR(HLOOKUP($B174,Resumen!$F$3:$AM$14,12),0) -> 0 | G174: 5.820766091e-11 | H174: =IF(X174="",0,IF(F174=0,ROUND(SUM(J$2:J174)*X174,2),0)) -> 0 | I174: 0 | J174: =(Resumen!$C$10*(1-Resumen!$C$24)*(1+Incmat)^5)*C174 -> 0 | K174: =+IF(F174=1,PMT(X174,(Resumen!$C$36+Resumen!$C$26+Resumen!$C$14*6-B174+1),-Amortizacion!G174),0) -> 0 | L174: 0 | M174: =+IF(Resumen!$C$20="no",H174,0) -> 0 | N174: 5.820766091e-11 | O174: =+IF(AND(Resumen!$C$18="SI",Amortizacion!E174=1),SUM($H$2:J174)*25%,0) -> 0 | P174: 0 | Q174: 0 | R174: 0 | S174: =(Resumen!$C$10*(Resumen!$C$24)*(1+Incmat)^5)*$C174 -> 0 | T174: 0 | U174: 0 | V174: 0 | W174: 5.820766091e-11 | X174: =+IF(B174="","",Resumen!$C$34) ->  | Y174: 0 | Z174: 0 | AA174: 0 | AB174: =+IF(Resumen!$C$8="no",0,W174*((1+10%)^(0.0833333333333333)-1)) -> 0
A175: 174 | B175: =+IF(A175>Resumen!$C$40,"",A175) ->  | C175: =+IFERROR(HLOOKUP($B175,Resumen!$F$3:$AM$10,8,0),0) -> 0 | D175: =+IFERROR(HLOOKUP($B175,Resumen!$F$3:$AM$12,10),0) -> 0 | E175: =+IF(B175=Resumen!$C$38*6-6,1,0) -> 0 | F175: =+IFERROR(HLOOKUP($B175,Resumen!$F$3:$AM$14,12),0) -> 0 | G175: 5.820766091e-11 | H175: =IF(X175="",0,IF(F175=0,ROUND(SUM(J$2:J175)*X175,2),0)) -> 0 | I175: 0 | J175: =(Resumen!$C$10*(1-Resumen!$C$24)*(1+Incmat)^5)*C175 -> 0 | K175: =+IF(F175=1,PMT(X175,(Resumen!$C$36+Resumen!$C$26+Resumen!$C$14*6-B175+1),-Amortizacion!G175),0) -> 0 | L175: 0 | M175: =+IF(Resumen!$C$20="no",H175,0) -> 0 | N175: 5.820766091e-11 | O175: =+IF(AND(Resumen!$C$18="SI",Amortizacion!E175=1),SUM($H$2:J175)*25%,0) -> 0 | P175: 0 | Q175: 0 | R175: 0 | S175: =(Resumen!$C$10*(Resumen!$C$24)*(1+Incmat)^5)*$C175 -> 0 | T175: 0 | U175: 0 | V175: 0 | W175: 5.820766091e-11 | X175: =+IF(B175="","",Resumen!$C$34) ->  | Y175: 0 | Z175: 0 | AA175: 0 | AB175: =+IF(Resumen!$C$8="no",0,W175*((1+10%)^(0.0833333333333333)-1)) -> 0
A176: 175 | B176: =+IF(A176>Resumen!$C$40,"",A176) ->  | C176: =+IFERROR(HLOOKUP($B176,Resumen!$F$3:$AM$10,8,0),0) -> 0 | D176: =+IFERROR(HLOOKUP($B176,Resumen!$F$3:$AM$12,10),0) -> 0 | E176: =+IF(B176=Resumen!$C$38*6-6,1,0) -> 0 | F176: =+IFERROR(HLOOKUP($B176,Resumen!$F$3:$AM$14,12),0) -> 0 | G176: 5.820766091e-11 | H176: =IF(X176="",0,IF(F176=0,ROUND(SUM(J$2:J176)*X176,2),0)) -> 0 | I176: 0 | J176: =(Resumen!$C$10*(1-Resumen!$C$24)*(1+Incmat)^5)*C176 -> 0 | K176: =+IF(F176=1,PMT(X176,(Resumen!$C$36+Resumen!$C$26+Resumen!$C$14*6-B176+1),-Amortizacion!G176),0) -> 0 | L176: 0 | M176: =+IF(Resumen!$C$20="no",H176,0) -> 0 | N176: 5.820766091e-11 | O176: =+IF(AND(Resumen!$C$18="SI",Amortizacion!E176=1),SUM($H$2:J176)*25%,0) -> 0 | P176: 0 | Q176: 0 | R176: 0 | S176: =(Resumen!$C$10*(Resumen!$C$24)*(1+Incmat)^5)*$C176 -> 0 | T176: 0 | U176: 0 | V176: 0 | W176: 5.820766091e-11 | X176: =+IF(B176="","",Resumen!$C$34) ->  | Y176: 0 | Z176: 0 | AA176: 0 | AB176: =+IF(Resumen!$C$8="no",0,W176*((1+10%)^(0.0833333333333333)-1)) -> 0
A177: 176 | B177: =+IF(A177>Resumen!$C$40,"",A177) ->  | C177: =+IFERROR(HLOOKUP($B177,Resumen!$F$3:$AM$10,8,0),0) -> 0 | D177: =+IFERROR(HLOOKUP($B177,Resumen!$F$3:$AM$12,10),0) -> 0 | E177: =+IF(B177=Resumen!$C$38*6-6,1,0) -> 0 | F177: =+IFERROR(HLOOKUP($B177,Resumen!$F$3:$AM$14,12),0) -> 0 | G177: 5.820766091e-11 | H177: =IF(X177="",0,IF(F177=0,ROUND(SUM(J$2:J177)*X177,2),0)) -> 0 | I177: 0 | J177: =(Resumen!$C$10*(1-Resumen!$C$24)*(1+Incmat)^5)*C177 -> 0 | K177: =+IF(F177=1,PMT(X177,(Resumen!$C$36+Resumen!$C$26+Resumen!$C$14*6-B177+1),-Amortizacion!G177),0) -> 0 | L177: 0 | M177: =+IF(Resumen!$C$20="no",H177,0) -> 0 | N177: 5.820766091e-11 | O177: =+IF(AND(Resumen!$C$18="SI",Amortizacion!E177=1),SUM($H$2:J177)*25%,0) -> 0 | P177: 0 | Q177: 0 | R177: 0 | S177: =(Resumen!$C$10*(Resumen!$C$24)*(1+Incmat)^5)*$C177 -> 0 | T177: 0 | U177: 0 | V177: 0 | W177: 5.820766091e-11 | X177: =+IF(B177="","",Resumen!$C$34) ->  | Y177: 0 | Z177: 0 | AA177: 0 | AB177: =+IF(Resumen!$C$8="no",0,W177*((1+10%)^(0.0833333333333333)-1)) -> 0
A178: 177 | B178: =+IF(A178>Resumen!$C$40,"",A178) ->  | C178: =+IFERROR(HLOOKUP($B178,Resumen!$F$3:$AM$10,8,0),0) -> 0 | D178: =+IFERROR(HLOOKUP($B178,Resumen!$F$3:$AM$12,10),0) -> 0 | E178: =+IF(B178=Resumen!$C$38*6-6,1,0) -> 0 | F178: =+IFERROR(HLOOKUP($B178,Resumen!$F$3:$AM$14,12),0) -> 0 | G178: 5.820766091e-11 | H178: =IF(X178="",0,IF(F178=0,ROUND(SUM(J$2:J178)*X178,2),0)) -> 0 | I178: 0 | J178: =(Resumen!$C$10*(1-Resumen!$C$24)*(1+Incmat)^5)*C178 -> 0 | K178: =+IF(F178=1,PMT(X178,(Resumen!$C$36+Resumen!$C$26+Resumen!$C$14*6-B178+1),-Amortizacion!G178),0) -> 0 | L178: 0 | M178: =+IF(Resumen!$C$20="no",H178,0) -> 0 | N178: 5.820766091e-11 | O178: =+IF(AND(Resumen!$C$18="SI",Amortizacion!E178=1),SUM($H$2:J178)*25%,0) -> 0 | P178: 0 | Q178: 0 | R178: 0 | S178: =(Resumen!$C$10*(Resumen!$C$24)*(1+Incmat)^5)*$C178 -> 0 | T178: 0 | U178: 0 | V178: 0 | W178: 5.820766091e-11 | X178: =+IF(B178="","",Resumen!$C$34) ->  | Y178: 0 | Z178: 0 | AA178: 0 | AB178: =+IF(Resumen!$C$8="no",0,W178*((1+10%)^(0.0833333333333333)-1)) -> 0
A179: 178 | B179: =+IF(A179>Resumen!$C$40,"",A179) ->  | C179: =+IFERROR(HLOOKUP($B179,Resumen!$F$3:$AM$10,8,0),0) -> 0 | D179: =+IFERROR(HLOOKUP($B179,Resumen!$F$3:$AM$12,10),0) -> 0 | E179: =+IF(B179=Resumen!$C$38*6-6,1,0) -> 0 | F179: =+IFERROR(HLOOKUP($B179,Resumen!$F$3:$AM$14,12),0) -> 0 | G179: 5.820766091e-11 | H179: =IF(X179="",0,IF(F179=0,ROUND(SUM(J$2:J179)*X179,2),0)) -> 0 | I179: 0 | J179: =(Resumen!$C$10*(1-Resumen!$C$24)*(1+Incmat)^5)*C179 -> 0 | K179: =+IF(F179=1,PMT(X179,(Resumen!$C$36+Resumen!$C$26+Resumen!$C$14*6-B179+1),-Amortizacion!G179),0) -> 0 | L179: 0 | M179: =+IF(Resumen!$C$20="no",H179,0) -> 0 | N179: 5.820766091e-11 | O179: =+IF(AND(Resumen!$C$18="SI",Amortizacion!E179=1),SUM($H$2:J179)*25%,0) -> 0 | P179: 0 | Q179: 0 | R179: 0 | S179: =(Resumen!$C$10*(Resumen!$C$24)*(1+Incmat)^5)*$C179 -> 0 | T179: 0 | U179: 0 | V179: 0 | W179: 5.820766091e-11 | X179: =+IF(B179="","",Resumen!$C$34) ->  | Y179: 0 | Z179: 0 | AA179: 0 | AB179: =+IF(Resumen!$C$8="no",0,W179*((1+10%)^(0.0833333333333333)-1)) -> 0
A180: 179 | B180: =+IF(A180>Resumen!$C$40,"",A180) ->  | C180: =+IFERROR(HLOOKUP($B180,Resumen!$F$3:$AM$10,8,0),0) -> 0 | D180: =+IFERROR(HLOOKUP($B180,Resumen!$F$3:$AM$12,10),0) -> 0 | E180: =+IF(B180=Resumen!$C$38*6-6,1,0) -> 0 | F180: =+IFERROR(HLOOKUP($B180,Resumen!$F$3:$AM$14,12),0) -> 0 | G180: 5.820766091e-11 | H180: =IF(X180="",0,IF(F180=0,ROUND(SUM(J$2:J180)*X180,2),0)) -> 0 | I180: 0 | J180: =(Resumen!$C$10*(1-Resumen!$C$24)*(1+Incmat)^5)*C180 -> 0 | K180: =+IF(F180=1,PMT(X180,(Resumen!$C$36+Resumen!$C$26+Resumen!$C$14*6-B180+1),-Amortizacion!G180),0) -> 0 | L180: 0 | M180: =+IF(Resumen!$C$20="no",H180,0) -> 0 | N180: 5.820766091e-11 | O180: =+IF(AND(Resumen!$C$18="SI",Amortizacion!E180=1),SUM($H$2:J180)*25%,0) -> 0 | P180: 0 | Q180: 0 | R180: 0 | S180: =(Resumen!$C$10*(Resumen!$C$24)*(1+Incmat)^5)*$C180 -> 0 | T180: 0 | U180: 0 | V180: 0 | W180: 5.820766091e-11 | X180: =+IF(B180="","",Resumen!$C$34) ->  | Y180: 0 | Z180: 0 | AA180: 0 | AB180: =+IF(Resumen!$C$8="no",0,W180*((1+10%)^(0.0833333333333333)-1)) -> 0
A181: 180 | B181: =+IF(A181>Resumen!$C$40,"",A181) ->  | C181: =+IFERROR(HLOOKUP($B181,Resumen!$F$3:$AM$10,8,0),0) -> 0 | D181: =+IFERROR(HLOOKUP($B181,Resumen!$F$3:$AM$12,10),0) -> 0 | E181: =+IF(B181=Resumen!$C$38*6-6,1,0) -> 0 | F181: =+IFERROR(HLOOKUP($B181,Resumen!$F$3:$AM$14,12),0) -> 0 | G181: 5.820766091e-11 | H181: =IF(X181="",0,IF(F181=0,ROUND(SUM(J$2:J181)*X181,2),0)) -> 0 | I181: 0 | J181: =(Resumen!$C$10*(1-Resumen!$C$24)*(1+Incmat)^5)*C181 -> 0 | K181: =+IF(F181=1,PMT(X181,(Resumen!$C$36+Resumen!$C$26+Resumen!$C$14*6-B181+1),-Amortizacion!G181),0) -> 0 | L181: 0 | M181: =+IF(Resumen!$C$20="no",H181,0) -> 0 | N181: 5.820766091e-11 | O181: =+IF(AND(Resumen!$C$18="SI",Amortizacion!E181=1),SUM($H$2:J181)*25%,0) -> 0 | P181: 0 | Q181: 0 | R181: 0 | S181: =(Resumen!$C$10*(Resumen!$C$24)*(1+Incmat)^5)*$C181 -> 0 | T181: 0 | U181: 0 | V181: 0 | W181: 5.820766091e-11 | X181: =+IF(B181="","",Resumen!$C$34) ->  | Y181: 0 | Z181: 0 | AA181: 0 | AB181: =+IF(Resumen!$C$8="no",0,W181*((1+10%)^(0.0833333333333333)-1)) -> 0
A182: 181 | B182: =+IF(A182>Resumen!$C$40,"",A182) ->  | C182: =+IFERROR(HLOOKUP($B182,Resumen!$F$3:$AM$10,8,0),0) -> 0 | D182: =+IFERROR(HLOOKUP($B182,Resumen!$F$3:$AM$12,10),0) -> 0 | E182: =+IF(B182=Resumen!$C$38*6-6,1,0) -> 0 | F182: =+IFERROR(HLOOKUP($B182,Resumen!$F$3:$AM$14,12),0) -> 0 | G182: 5.820766091e-11 | H182: =IF(X182="",0,IF(F182=0,ROUND(SUM(J$2:J182)*X182,2),0)) -> 0 | I182: 0 | J182: =(Resumen!$C$10*(1-Resumen!$C$24)*(1+Incmat)^5)*C182 -> 0 | K182: =+IF(F182=1,PMT(X182,(Resumen!$C$36+Resumen!$C$26+Resumen!$C$14*6-B182+1),-Amortizacion!G182),0) -> 0 | L182: 0 | M182: =+IF(Resumen!$C$20="no",H182,0) -> 0 | N182: 5.820766091e-11 | O182: =+IF(AND(Resumen!$C$18="SI",Amortizacion!E182=1),SUM($H$2:J182)*25%,0) -> 0 | P182: 0 | Q182: 0 | R182: 0 | S182: =(Resumen!$C$10*(Resumen!$C$24)*(1+Incmat)^5)*$C182 -> 0 | T182: 0 | U182: 0 | V182: 0 | W182: 5.820766091e-11 | X182: =+IF(B182="","",Resumen!$C$34) ->  | Y182: 0 | Z182: 0 | AA182: 0 | AB182: =+IF(Resumen!$C$8="no",0,W182*((1+10%)^(0.0833333333333333)-1)) -> 0
A183: 182 | B183: =+IF(A183>Resumen!$C$40,"",A183) ->  | C183: =+IFERROR(HLOOKUP($B183,Resumen!$F$3:$AM$10,8,0),0) -> 0 | D183: =+IFERROR(HLOOKUP($B183,Resumen!$F$3:$AM$12,10),0) -> 0 | E183: =+IF(B183=Resumen!$C$38*6-6,1,0) -> 0 | F183: =+IFERROR(HLOOKUP($B183,Resumen!$F$3:$AM$14,12),0) -> 0 | G183: 5.820766091e-11 | H183: =IF(X183="",0,IF(F183=0,ROUND(SUM(J$2:J183)*X183,2),0)) -> 0 | I183: 0 | J183: =(Resumen!$C$10*(1-Resumen!$C$24)*(1+Incmat)^5)*C183 -> 0 | K183: =+IF(F183=1,PMT(X183,(Resumen!$C$36+Resumen!$C$26+Resumen!$C$14*6-B183+1),-Amortizacion!G183),0) -> 0 | L183: 0 | M183: =+IF(Resumen!$C$20="no",H183,0) -> 0 | N183: 5.820766091e-11 | O183: =+IF(AND(Resumen!$C$18="SI",Amortizacion!E183=1),SUM($H$2:J183)*25%,0) -> 0 | P183: 0 | Q183: 0 | R183: 0 | S183: =(Resumen!$C$10*(Resumen!$C$24)*(1+Incmat)^5)*$C183 -> 0 | T183: 0 | U183: 0 | V183: 0 | W183: 5.820766091e-11 | X183: =+IF(B183="","",Resumen!$C$34) ->  | Y183: 0 | Z183: 0 | AA183: 0 | AB183: =+IF(Resumen!$C$8="no",0,W183*((1+10%)^(0.0833333333333333)-1)) -> 0
A184: 183 | B184: =+IF(A184>Resumen!$C$40,"",A184) ->  | C184: =+IFERROR(HLOOKUP($B184,Resumen!$F$3:$AM$10,8,0),0) -> 0 | D184: =+IFERROR(HLOOKUP($B184,Resumen!$F$3:$AM$12,10),0) -> 0 | E184: =+IF(B184=Resumen!$C$38*6-6,1,0) -> 0 | F184: =+IFERROR(HLOOKUP($B184,Resumen!$F$3:$AM$14,12),0) -> 0 | G184: 5.820766091e-11 | H184: =IF(X184="",0,IF(F184=0,ROUND(SUM(J$2:J184)*X184,2),0)) -> 0 | I184: 0 | J184: =(Resumen!$C$10*(1-Resumen!$C$24)*(1+Incmat)^5)*C184 -> 0 | K184: =+IF(F184=1,PMT(X184,(Resumen!$C$36+Resumen!$C$26+Resumen!$C$14*6-B184+1),-Amortizacion!G184),0) -> 0 | L184: 0 | M184: =+IF(Resumen!$C$20="no",H184,0) -> 0 | N184: 5.820766091e-11 | O184: =+IF(AND(Resumen!$C$18="SI",Amortizacion!E184=1),SUM($H$2:J184)*25%,0) -> 0 | P184: 0 | Q184: 0 | R184: 0 | S184: =(Resumen!$C$10*(Resumen!$C$24)*(1+Incmat)^5)*$C184 -> 0 | T184: 0 | U184: 0 | V184: 0 | W184: 5.820766091e-11 | X184: =+IF(B184="","",Resumen!$C$34) ->  | Y184: 0 | Z184: 0 | AA184: 0 | AB184: =+IF(Resumen!$C$8="no",0,W184*((1+10%)^(0.0833333333333333)-1)) -> 0
A185: 184 | B185: =+IF(A185>Resumen!$C$40,"",A185) ->  | C185: =+IFERROR(HLOOKUP($B185,Resumen!$F$3:$AM$10,8,0),0) -> 0 | D185: =+IFERROR(HLOOKUP($B185,Resumen!$F$3:$AM$12,10),0) -> 0 | E185: =+IF(B185=Resumen!$C$38*6-6,1,0) -> 0 | F185: =+IFERROR(HLOOKUP($B185,Resumen!$F$3:$AM$14,12),0) -> 0 | G185: 5.820766091e-11 | H185: =IF(X185="",0,IF(F185=0,ROUND(SUM(J$2:J185)*X185,2),0)) -> 0 | I185: 0 | J185: =(Resumen!$C$10*(1-Resumen!$C$24)*(1+Incmat)^5)*C185 -> 0 | K185: =+IF(F185=1,PMT(X185,(Resumen!$C$36+Resumen!$C$26+Resumen!$C$14*6-B185+1),-Amortizacion!G185),0) -> 0 | L185: 0 | M185: =+IF(Resumen!$C$20="no",H185,0) -> 0 | N185: 5.820766091e-11 | O185: =+IF(AND(Resumen!$C$18="SI",Amortizacion!E185=1),SUM($H$2:J185)*25%,0) -> 0 | P185: 0 | Q185: 0 | R185: 0 | S185: =(Resumen!$C$10*(Resumen!$C$24)*(1+Incmat)^5)*$C185 -> 0 | T185: 0 | U185: 0 | V185: 0 | W185: 5.820766091e-11 | X185: =+IF(B185="","",Resumen!$C$34) ->  | Y185: 0 | Z185: 0 | AA185: 0 | AB185: =+IF(Resumen!$C$8="no",0,W185*((1+10%)^(0.0833333333333333)-1)) -> 0
A186: 185 | B186: =+IF(A186>Resumen!$C$40,"",A186) ->  | C186: =+IFERROR(HLOOKUP($B186,Resumen!$F$3:$AM$10,8,0),0) -> 0 | D186: =+IFERROR(HLOOKUP($B186,Resumen!$F$3:$AM$12,10),0) -> 0 | E186: =+IF(B186=Resumen!$C$38*6-6,1,0) -> 0 | F186: =+IFERROR(HLOOKUP($B186,Resumen!$F$3:$AM$14,12),0) -> 0 | G186: 5.820766091e-11 | H186: =IF(X186="",0,IF(F186=0,ROUND(SUM(J$2:J186)*X186,2),0)) -> 0 | I186: 0 | J186: =(Resumen!$C$10*(1-Resumen!$C$24)*(1+Incmat)^5)*C186 -> 0 | K186: =+IF(F186=1,PMT(X186,(Resumen!$C$36+Resumen!$C$26+Resumen!$C$14*6-B186+1),-Amortizacion!G186),0) -> 0 | L186: 0 | M186: =+IF(Resumen!$C$20="no",H186,0) -> 0 | N186: 5.820766091e-11 | O186: =+IF(AND(Resumen!$C$18="SI",Amortizacion!E186=1),SUM($H$2:J186)*25%,0) -> 0 | P186: 0 | Q186: 0 | R186: 0 | S186: =(Resumen!$C$10*(Resumen!$C$24)*(1+Incmat)^5)*$C186 -> 0 | T186: 0 | U186: 0 | V186: 0 | W186: 5.820766091e-11 | X186: =+IF(B186="","",Resumen!$C$34) ->  | Y186: 0 | Z186: 0 | AA186: 0 | AB186: =+IF(Resumen!$C$8="no",0,W186*((1+10%)^(0.0833333333333333)-1)) -> 0
A187: 186 | B187: =+IF(A187>Resumen!$C$40,"",A187) ->  | C187: =+IFERROR(HLOOKUP($B187,Resumen!$F$3:$AM$10,8,0),0) -> 0 | D187: =+IFERROR(HLOOKUP($B187,Resumen!$F$3:$AM$12,10),0) -> 0 | E187: =+IF(B187=Resumen!$C$38*6-6,1,0) -> 0 | F187: =+IFERROR(HLOOKUP($B187,Resumen!$F$3:$AM$14,12),0) -> 0 | G187: 5.820766091e-11 | H187: =IF(X187="",0,IF(F187=0,ROUND(SUM(J$2:J187)*X187,2),0)) -> 0 | I187: 0 | J187: =(Resumen!$C$10*(1-Resumen!$C$24)*(1+Incmat)^5)*C187 -> 0 | K187: =+IF(F187=1,PMT(X187,(Resumen!$C$36+Resumen!$C$26+Resumen!$C$14*6-B187+1),-Amortizacion!G187),0) -> 0 | L187: 0 | M187: =+IF(Resumen!$C$20="no",H187,0) -> 0 | N187: 5.820766091e-11 | O187: =+IF(AND(Resumen!$C$18="SI",Amortizacion!E187=1),SUM($H$2:J187)*25%,0) -> 0 | P187: 0 | Q187: 0 | R187: 0 | S187: =(Resumen!$C$10*(Resumen!$C$24)*(1+Incmat)^5)*$C187 -> 0 | T187: 0 | U187: 0 | V187: 0 | W187: 5.820766091e-11 | X187: =+IF(B187="","",Resumen!$C$34) ->  | Y187: 0 | Z187: 0 | AA187: 0 | AB187: =+IF(Resumen!$C$8="no",0,W187*((1+10%)^(0.0833333333333333)-1)) -> 0
A188: 187 | B188: =+IF(A188>Resumen!$C$40,"",A188) ->  | C188: =+IFERROR(HLOOKUP($B188,Resumen!$F$3:$AM$10,8,0),0) -> 0 | D188: =+IFERROR(HLOOKUP($B188,Resumen!$F$3:$AM$12,10),0) -> 0 | E188: =+IF(B188=Resumen!$C$38*6-6,1,0) -> 0 | F188: =+IFERROR(HLOOKUP($B188,Resumen!$F$3:$AM$14,12),0) -> 0 | G188: 5.820766091e-11 | H188: =IF(X188="",0,IF(F188=0,ROUND(SUM(J$2:J188)*X188,2),0)) -> 0 | I188: 0 | J188: =(Resumen!$C$10*(1-Resumen!$C$24)*(1+Incmat)^5)*C188 -> 0 | K188: =+IF(F188=1,PMT(X188,(Resumen!$C$36+Resumen!$C$26+Resumen!$C$14*6-B188+1),-Amortizacion!G188),0) -> 0 | L188: 0 | M188: =+IF(Resumen!$C$20="no",H188,0) -> 0 | N188: 5.820766091e-11 | O188: =+IF(AND(Resumen!$C$18="SI",Amortizacion!E188=1),SUM($H$2:J188)*25%,0) -> 0 | P188: 0 | Q188: 0 | R188: 0 | S188: =(Resumen!$C$10*(Resumen!$C$24)*(1+Incmat)^5)*$C188 -> 0 | T188: 0 | U188: 0 | V188: 0 | W188: 5.820766091e-11 | X188: =+IF(B188="","",Resumen!$C$34) ->  | Y188: 0 | Z188: 0 | AA188: 0 | AB188: =+IF(Resumen!$C$8="no",0,W188*((1+10%)^(0.0833333333333333)-1)) -> 0
A189: 188 | B189: =+IF(A189>Resumen!$C$40,"",A189) ->  | C189: =+IFERROR(HLOOKUP($B189,Resumen!$F$3:$AM$10,8,0),0) -> 0 | D189: =+IFERROR(HLOOKUP($B189,Resumen!$F$3:$AM$12,10),0) -> 0 | E189: =+IF(B189=Resumen!$C$38*6-6,1,0) -> 0 | F189: =+IFERROR(HLOOKUP($B189,Resumen!$F$3:$AM$14,12),0) -> 0 | G189: 5.820766091e-11 | H189: =IF(X189="",0,IF(F189=0,ROUND(SUM(J$2:J189)*X189,2),0)) -> 0 | I189: 0 | J189: =(Resumen!$C$10*(1-Resumen!$C$24)*(1+Incmat)^5)*C189 -> 0 | K189: =+IF(F189=1,PMT(X189,(Resumen!$C$36+Resumen!$C$26+Resumen!$C$14*6-B189+1),-Amortizacion!G189),0) -> 0 | L189: 0 | M189: =+IF(Resumen!$C$20="no",H189,0) -> 0 | N189: 5.820766091e-11 | O189: =+IF(AND(Resumen!$C$18="SI",Amortizacion!E189=1),SUM($H$2:J189)*25%,0) -> 0 | P189: 0 | Q189: 0 | R189: 0 | S189: =(Resumen!$C$10*(Resumen!$C$24)*(1+Incmat)^5)*$C189 -> 0 | T189: 0 | U189: 0 | V189: 0 | W189: 5.820766091e-11 | X189: =+IF(B189="","",Resumen!$C$34) ->  | Y189: 0 | Z189: 0 | AA189: 0 | AB189: =+IF(Resumen!$C$8="no",0,W189*((1+10%)^(0.0833333333333333)-1)) -> 0
A190: 189 | B190: =+IF(A190>Resumen!$C$40,"",A190) ->  | C190: =+IFERROR(HLOOKUP($B190,Resumen!$F$3:$AM$10,8,0),0) -> 0 | D190: =+IFERROR(HLOOKUP($B190,Resumen!$F$3:$AM$12,10),0) -> 0 | E190: =+IF(B190=Resumen!$C$38*6-6,1,0) -> 0 | F190: =+IFERROR(HLOOKUP($B190,Resumen!$F$3:$AM$14,12),0) -> 0 | G190: 5.820766091e-11 | H190: =IF(X190="",0,IF(F190=0,ROUND(SUM(J$2:J190)*X190,2),0)) -> 0 | I190: 0 | J190: =(Resumen!$C$10*(1-Resumen!$C$24)*(1+Incmat)^5)*C190 -> 0 | K190: =+IF(F190=1,PMT(X190,(Resumen!$C$36+Resumen!$C$26+Resumen!$C$14*6-B190+1),-Amortizacion!G190),0) -> 0 | L190: 0 | M190: =+IF(Resumen!$C$20="no",H190,0) -> 0 | N190: 5.820766091e-11 | O190: =+IF(AND(Resumen!$C$18="SI",Amortizacion!E190=1),SUM($H$2:J190)*25%,0) -> 0 | P190: 0 | Q190: 0 | R190: 0 | S190: =(Resumen!$C$10*(Resumen!$C$24)*(1+Incmat)^5)*$C190 -> 0 | T190: 0 | U190: 0 | V190: 0 | W190: 5.820766091e-11 | X190: =+IF(B190="","",Resumen!$C$34) ->  | Y190: 0 | Z190: 0 | AA190: 0 | AB190: =+IF(Resumen!$C$8="no",0,W190*((1+10%)^(0.0833333333333333)-1)) -> 0
A191: 190 | B191: =+IF(A191>Resumen!$C$40,"",A191) ->  | C191: =+IFERROR(HLOOKUP($B191,Resumen!$F$3:$AM$10,8,0),0) -> 0 | D191: =+IFERROR(HLOOKUP($B191,Resumen!$F$3:$AM$12,10),0) -> 0 | E191: =+IF(B191=Resumen!$C$38*6-6,1,0) -> 0 | F191: =+IFERROR(HLOOKUP($B191,Resumen!$F$3:$AM$14,12),0) -> 0 | G191: 5.820766091e-11 | H191: =IF(X191="",0,IF(F191=0,ROUND(SUM(J$2:J191)*X191,2),0)) -> 0 | I191: 0 | J191: =(Resumen!$C$10*(1-Resumen!$C$24)*(1+Incmat)^5)*C191 -> 0 | K191: =+IF(F191=1,PMT(X191,(Resumen!$C$36+Resumen!$C$26+Resumen!$C$14*6-B191+1),-Amortizacion!G191),0) -> 0 | L191: 0 | M191: =+IF(Resumen!$C$20="no",H191,0) -> 0 | N191: 5.820766091e-11 | O191: =+IF(AND(Resumen!$C$18="SI",Amortizacion!E191=1),SUM($H$2:J191)*25%,0) -> 0 | P191: 0 | Q191: 0 | R191: 0 | S191: =(Resumen!$C$10*(Resumen!$C$24)*(1+Incmat)^5)*$C191 -> 0 | T191: 0 | U191: 0 | V191: 0 | W191: 5.820766091e-11 | X191: =+IF(B191="","",Resumen!$C$34) ->  | Y191: 0 | Z191: 0 | AA191: 0 | AB191: =+IF(Resumen!$C$8="no",0,W191*((1+10%)^(0.0833333333333333)-1)) -> 0
A192: 191 | B192: =+IF(A192>Resumen!$C$40,"",A192) ->  | C192: =+IFERROR(HLOOKUP($B192,Resumen!$F$3:$AM$10,8,0),0) -> 0 | D192: =+IFERROR(HLOOKUP($B192,Resumen!$F$3:$AM$12,10),0) -> 0 | E192: =+IF(B192=Resumen!$C$38*6-6,1,0) -> 0 | F192: =+IFERROR(HLOOKUP($B192,Resumen!$F$3:$AM$14,12),0) -> 0 | G192: 5.820766091e-11 | H192: =IF(X192="",0,IF(F192=0,ROUND(SUM(J$2:J192)*X192,2),0)) -> 0 | I192: 0 | J192: =(Resumen!$C$10*(1-Resumen!$C$24)*(1+Incmat)^5)*C192 -> 0 | K192: =+IF(F192=1,PMT(X192,(Resumen!$C$36+Resumen!$C$26+Resumen!$C$14*6-B192+1),-Amortizacion!G192),0) -> 0 | L192: 0 | M192: =+IF(Resumen!$C$20="no",H192,0) -> 0 | N192: 5.820766091e-11 | O192: =+IF(AND(Resumen!$C$18="SI",Amortizacion!E192=1),SUM($H$2:J192)*25%,0) -> 0 | P192: 0 | Q192: 0 | R192: 0 | S192: =(Resumen!$C$10*(Resumen!$C$24)*(1+Incmat)^5)*$C192 -> 0 | T192: 0 | U192: 0 | V192: 0 | W192: 5.820766091e-11 | X192: =+IF(B192="","",Resumen!$C$34) ->  | Y192: 0 | Z192: 0 | AA192: 0 | AB192: =+IF(Resumen!$C$8="no",0,W192*((1+10%)^(0.0833333333333333)-1)) -> 0
A193: 192 | B193: =+IF(A193>Resumen!$C$40,"",A193) ->  | C193: =+IFERROR(HLOOKUP($B193,Resumen!$F$3:$AM$10,8,0),0) -> 0 | D193: =+IFERROR(HLOOKUP($B193,Resumen!$F$3:$AM$12,10),0) -> 0 | E193: =+IF(B193=Resumen!$C$38*6-6,1,0) -> 0 | F193: =+IFERROR(HLOOKUP($B193,Resumen!$F$3:$AM$14,12),0) -> 0 | G193: 5.820766091e-11 | H193: =IF(X193="",0,IF(F193=0,ROUND(SUM(J$2:J193)*X193,2),0)) -> 0 | I193: 0 | J193: =(Resumen!$C$10*(1-Resumen!$C$24)*(1+Incmat)^5)*C193 -> 0 | K193: =+IF(F193=1,PMT(X193,(Resumen!$C$36+Resumen!$C$26+Resumen!$C$14*6-B193+1),-Amortizacion!G193),0) -> 0 | L193: 0 | M193: =+IF(Resumen!$C$20="no",H193,0) -> 0 | N193: 5.820766091e-11 | O193: =+IF(AND(Resumen!$C$18="SI",Amortizacion!E193=1),SUM($H$2:J193)*25%,0) -> 0 | P193: 0 | Q193: 0 | R193: 0 | S193: =(Resumen!$C$10*(Resumen!$C$24)*(1+Incmat)^5)*$C193 -> 0 | T193: 0 | U193: 0 | V193: 0 | W193: 5.820766091e-11 | X193: =+IF(B193="","",Resumen!$C$34) ->  | Y193: 0 | Z193: 0 | AA193: 0 | AB193: =+IF(Resumen!$C$8="no",0,W193*((1+10%)^(0.0833333333333333)-1)) -> 0
A194: 193 | B194: =+IF(A194>Resumen!$C$40,"",A194) ->  | C194: =+IFERROR(HLOOKUP($B194,Resumen!$F$3:$AM$10,8,0),0) -> 0 | D194: =+IFERROR(HLOOKUP($B194,Resumen!$F$3:$AM$12,10),0) -> 0 | E194: =+IF(B194=Resumen!$C$38*6-6,1,0) -> 0 | F194: =+IFERROR(HLOOKUP($B194,Resumen!$F$3:$AM$14,12),0) -> 0 | G194: 5.820766091e-11 | H194: =IF(X194="",0,IF(F194=0,ROUND(SUM(J$2:J194)*X194,2),0)) -> 0 | I194: =+IF(X194="",0,IF(F194=1,G194*X194,0)) -> 0 | J194: =(Resumen!$C$10*(1-Resumen!$C$24)*(1+Incmat)^5)*C194 -> 0 | K194: =+IF(F194=1,PMT(X194,(Resumen!$C$36+Resumen!$C$26+Resumen!$C$14*6-B194+1),-Amortizacion!G194),0) -> 0 | L194: 0 | M194: =+IF(Resumen!$C$20="no",H194,0) -> 0 | N194: 5.820766091e-11 | O194: =+IF(AND(Resumen!$C$18="SI",Amortizacion!E194=1),SUM($H$2:J194)*25%,0) -> 0 | P194: 0 | Q194: 0 | R194: 0 | S194: =(Resumen!$C$10*(Resumen!$C$24)*(1+Incmat)^5)*$C194 -> 0 | T194: 0 | U194: 0 | V194: 0 | W194: 5.820766091e-11 | X194: =+IF(B194="","",Resumen!$C$34) ->  | Y194: =+J194+S194 -> 0 | Z194: 0 | AA194: 0 | AB194: =+IF(Resumen!$C$8="no",0,W194*((1+10%)^(0.0833333333333333)-1)) -> 0
A195: 194 | B195: =+IF(A195>Resumen!$C$40,"",A195) ->  | C195: =+IFERROR(HLOOKUP($B195,Resumen!$F$3:$AM$10,8,0),0) -> 0 | D195: =+IFERROR(HLOOKUP($B195,Resumen!$F$3:$AM$12,10),0) -> 0 | E195: =+IF(B195=Resumen!$C$38*6-6,1,0) -> 0 | F195: =+IFERROR(HLOOKUP($B195,Resumen!$F$3:$AM$14,12),0) -> 0 | G195: 5.820766091e-11 | H195: =IF(X195="",0,IF(F195=0,ROUND(SUM(J$2:J195)*X195,2),0)) -> 0 | I195: 0 | J195: =(Resumen!$C$10*(1-Resumen!$C$24)*(1+Incmat)^5)*C195 -> 0 | K195: =+IF(F195=1,PMT(X195,(Resumen!$C$36+Resumen!$C$26+Resumen!$C$14*6-B195+1),-Amortizacion!G195),0) -> 0 | L195: =+IF(I195="","",K195-I195) -> 0 | M195: =+IF(Resumen!$C$20="no",H195,0) -> 0 | N195: =+IF(F195=0,SUM(G195:K195)-M195,G195-L195) -> 5.820766091e-11 | O195: =+IF(AND(Resumen!$C$18="SI",Amortizacion!E195=1),SUM($H$2:J195)*25%,0) -> 0 | P195: 0 | Q195: 0 | R195: =+IF(X195="",0,Q195*X195) -> 0 | S195: =(Resumen!$C$10*(Resumen!$C$24)*(1+Incmat)^5)*$C195 -> 0 | T195: =+IF(X195="",0,IFERROR(PMT(X195,P195,-Q195),0)) -> 0 | U195: =+IFERROR(T195-R195,0) -> 0 | V195: =+Q195-U195 -> 0 | W195: 5.820766091e-11 | X195: =+IF(B195="","",Resumen!$C$34) ->  | Y195: 0 | Z195: =+T195+K195+M195 -> 0 | AA195: =+R195+M195+I195 -> 0 | AB195: =+IF(Resumen!$C$8="no",0,W195*((1+10%)^(0.0833333333333333)-1)) -> 0
A196: =+A195+1 -> 195 | B196: =+IF(A196>Resumen!$C$40,"",A196) ->  | C196: =+IFERROR(HLOOKUP($B196,Resumen!$F$3:$AM$10,8,0),0) -> 0 | D196: =+IFERROR(HLOOKUP($B196,Resumen!$F$3:$AM$12,10),0) -> 0 | E196: =+IF(B196=Resumen!$C$38*6-6,1,0) -> 0 | F196: =+IFERROR(HLOOKUP($B196,Resumen!$F$3:$AM$14,12),0) -> 0 | G196: 5.820766091e-11 | H196: =IF(X196="",0,IF(F196=0,ROUND(SUM(J$2:J196)*X196,2),0)) -> 0 | I196: 0 | J196: =(Resumen!$C$10*(1-Resumen!$C$24)*(1+Incmat)^5)*C196 -> 0 | K196: =+IF(F196=1,PMT(X196,(Resumen!$C$36+Resumen!$C$26+Resumen!$C$14*6-B196+1),-Amortizacion!G196),0) -> 0 | L196: 0 | M196: =+IF(Resumen!$C$20="no",H196,0) -> 0 | N196: 5.820766091e-11 | O196: =+IF(AND(Resumen!$C$18="SI",Amortizacion!E196=1),SUM($H$2:J196)*25%,0) -> 0 | P196: =+IF(S196<>0,6,IF(P195=0,0,P195-1)) -> 0 | Q196: =+V195+S196 -> 0 | R196: 0 | S196: =(Resumen!$C$10*(Resumen!$C$24)*(1+Incmat)^5)*$C196 -> 0 | T196: 0 | U196: 0 | V196: 0 | W196: =+N196+V196 -> 5.820766091e-11 | X196: =+IF(B196="","",Resumen!$C$34) ->  | Y196: 0 | Z196: 0 | AA196: 0 | AB196: =+IF(Resumen!$C$8="no",0,W196*((1+10%)^(0.0833333333333333)-1)) -> 0
A197: 196 | B197: =+IF(A197>Resumen!$C$40,"",A197) ->  | C197: =+IFERROR(HLOOKUP($B197,Resumen!$F$3:$AM$10,8,0),0) -> 0 | D197: =+IFERROR(HLOOKUP($B197,Resumen!$F$3:$AM$12,10),0) -> 0 | E197: =+IF(B197=Resumen!$C$38*6-6,1,0) -> 0 | F197: =+IFERROR(HLOOKUP($B197,Resumen!$F$3:$AM$14,12),0) -> 0 | G197: 5.820766091e-11 | H197: =IF(X197="",0,IF(F197=0,ROUND(SUM(J$2:J197)*X197,2),0)) -> 0 | I197: 0 | J197: =(Resumen!$C$10*(1-Resumen!$C$24)*(1+Incmat)^5)*C197 -> 0 | K197: =+IF(F197=1,PMT(X197,(Resumen!$C$36+Resumen!$C$26+Resumen!$C$14*6-B197+1),-Amortizacion!G197),0) -> 0 | L197: 0 | M197: =+IF(Resumen!$C$20="no",H197,0) -> 0 | N197: 5.820766091e-11 | O197: =+IF(AND(Resumen!$C$18="SI",Amortizacion!E197=1),SUM($H$2:J197)*25%,0) -> 0 | P197: 0 | Q197: 0 | R197: 0 | S197: =(Resumen!$C$10*(Resumen!$C$24)*(1+Incmat)^5)*$C197 -> 0 | T197: 0 | U197: 0 | V197: 0 | W197: 5.820766091e-11 | X197: =+IF(B197="","",Resumen!$C$34) ->  | Y197: 0 | Z197: 0 | AA197: 0 | AB197: =+IF(Resumen!$C$8="no",0,W197*((1+10%)^(0.0833333333333333)-1)) -> 0
A198: 197 | B198: =+IF(A198>Resumen!$C$40,"",A198) ->  | C198: =+IFERROR(HLOOKUP($B198,Resumen!$F$3:$AM$10,8,0),0) -> 0 | D198: =+IFERROR(HLOOKUP($B198,Resumen!$F$3:$AM$12,10),0) -> 0 | E198: =+IF(B198=Resumen!$C$38*6-6,1,0) -> 0 | F198: =+IFERROR(HLOOKUP($B198,Resumen!$F$3:$AM$14,12),0) -> 0 | G198: 5.820766091e-11 | H198: =IF(X198="",0,IF(F198=0,ROUND(SUM(J$2:J198)*X198,2),0)) -> 0 | I198: 0 | J198: =(Resumen!$C$10*(1-Resumen!$C$24)*(1+Incmat)^5)*C198 -> 0 | K198: =+IF(F198=1,PMT(X198,(Resumen!$C$36+Resumen!$C$26+Resumen!$C$14*6-B198+1),-Amortizacion!G198),0) -> 0 | L198: 0 | M198: =+IF(Resumen!$C$20="no",H198,0) -> 0 | N198: 5.820766091e-11 | O198: =+IF(AND(Resumen!$C$18="SI",Amortizacion!E198=1),SUM($H$2:J198)*25%,0) -> 0 | P198: 0 | Q198: 0 | R198: 0 | S198: =(Resumen!$C$10*(Resumen!$C$24)*(1+Incmat)^5)*$C198 -> 0 | T198: 0 | U198: 0 | V198: 0 | W198: 5.820766091e-11 | X198: =+IF(B198="","",Resumen!$C$34) ->  | Y198: 0 | Z198: 0 | AA198: 0 | AB198: =+IF(Resumen!$C$8="no",0,W198*((1+10%)^(0.0833333333333333)-1)) -> 0
A199: 198 | B199: =+IF(A199>Resumen!$C$40,"",A199) ->  | C199: =+IFERROR(HLOOKUP($B199,Resumen!$F$3:$AM$10,8,0),0) -> 0 | D199: =+IFERROR(HLOOKUP($B199,Resumen!$F$3:$AM$12,10),0) -> 0 | E199: =+IF(B199=Resumen!$C$38*6-6,1,0) -> 0 | F199: =+IFERROR(HLOOKUP($B199,Resumen!$F$3:$AM$14,12),0) -> 0 | G199: 5.820766091e-11 | H199: =IF(X199="",0,IF(F199=0,ROUND(SUM(J$2:J199)*X199,2),0)) -> 0 | I199: 0 | J199: =(Resumen!$C$10*(1-Resumen!$C$24)*(1+Incmat)^5)*C199 -> 0 | K199: =+IF(F199=1,PMT(X199,(Resumen!$C$36+Resumen!$C$26+Resumen!$C$14*6-B199+1),-Amortizacion!G199),0) -> 0 | L199: 0 | M199: =+IF(Resumen!$C$20="no",H199,0) -> 0 | N199: 5.820766091e-11 | O199: =+IF(AND(Resumen!$C$18="SI",Amortizacion!E199=1),SUM($H$2:J199)*25%,0) -> 0 | P199: 0 | Q199: 0 | R199: 0 | S199: =(Resumen!$C$10*(Resumen!$C$24)*(1+Incmat)^5)*$C199 -> 0 | T199: 0 | U199: 0 | V199: 0 | W199: 5.820766091e-11 | X199: =+IF(B199="","",Resumen!$C$34) ->  | Y199: 0 | Z199: 0 | AA199: 0 | AB199: =+IF(Resumen!$C$8="no",0,W199*((1+10%)^(0.0833333333333333)-1)) -> 0
A200: 199 | B200: =+IF(A200>Resumen!$C$40,"",A200) ->  | C200: =+IFERROR(HLOOKUP($B200,Resumen!$F$3:$AM$10,8,0),0) -> 0 | D200: =+IFERROR(HLOOKUP($B200,Resumen!$F$3:$AM$12,10),0) -> 0 | E200: =+IF(B200=Resumen!$C$38*6-6,1,0) -> 0 | F200: =+IFERROR(HLOOKUP($B200,Resumen!$F$3:$AM$14,12),0) -> 0 | G200: 5.820766091e-11 | H200: =IF(X200="",0,IF(F200=0,ROUND(SUM(J$2:J200)*X200,2),0)) -> 0 | I200: 0 | J200: =(Resumen!$C$10*(1-Resumen!$C$24)*(1+Incmat)^5)*C200 -> 0 | K200: =+IF(F200=1,PMT(X200,(Resumen!$C$36+Resumen!$C$26+Resumen!$C$14*6-B200+1),-Amortizacion!G200),0) -> 0 | L200: 0 | M200: =+IF(Resumen!$C$20="no",H200,0) -> 0 | N200: 5.820766091e-11 | O200: =+IF(AND(Resumen!$C$18="SI",Amortizacion!E200=1),SUM($H$2:J200)*25%,0) -> 0 | P200: 0 | Q200: 0 | R200: 0 | S200: =(Resumen!$C$10*(Resumen!$C$24)*(1+Incmat)^5)*$C200 -> 0 | T200: 0 | U200: 0 | V200: 0 | W200: 5.820766091e-11 | X200: =+IF(B200="","",Resumen!$C$34) ->  | Y200: 0 | Z200: 0 | AA200: 0 | AB200: =+IF(Resumen!$C$8="no",0,W200*((1+10%)^(0.0833333333333333)-1)) -> 0
... 34 more rows

Sheet Graf (hidden)
A2: Semestre | B2: Pagos de Matrícula | C2: Intereses causados | D2: Intereses del crédito | E2: Condonación 25% | F2: Abono a Capital | G2: Pago de intereses | H2: Subsidio a la tasa
A3: 1 | B3: =+SUM(Amortizacion!Y2:Y7) -> 5000000 | C3: =+SUM(Amortizacion!H2:H7) -> 250280.4 | D3: =+SUM(Amortizacion!I2:I7)+SUM(Amortizacion!R2:R7) -> 98451.15769 | E3: =-SUM(Amortizacion!O2:O7) -> 0 | F3: =-SUM(Amortizacion!L2:L7)-SUM(Amortizacion!U2:U7) -> -2000000 | G3: =-SUM(Amortizacion!AA2:AA7) -> -98451.15769 | H3: =+SUM(Amortizacion!AB2:AB7) -> 0
A4: 2 | B4: =+SUM(Amortizacion!Y8:Y13) -> 0 | C4: =+SUM(Amortizacion!H8:H13) -> 0 | D4: =+SUM(Amortizacion!I8:I13)+SUM(Amortizacion!R8:R13) -> 217879.9437 | E4: =-SUM(Amortizacion!O8:O13) -> 0 | F4: =-SUM(Amortizacion!L8:L13)-SUM(Amortizacion!U8:U13) -> -1557855.525 | G4: =-SUM(Amortizacion!AA8:AA13) -> -217879.9437 | H4: =+SUM(Amortizacion!AB8:AB13) -> 0
A5: 3 | B5: =+SUM(Amortizacion!Y14:Y19) -> 0 | C5: =+SUM(Amortizacion!H14:H19) -> 0 | D5: =+SUM(Amortizacion!I14:I19)+SUM(Amortizacion!R14:R19) -> 83310.59412 | E5: =-SUM(Amortizacion!O14:O19) -> 0 | F5: =-SUM(Amortizacion!L14:L19)-SUM(Amortizacion!U14:U19) -> -1692424.875 | G5: =-SUM(Amortizacion!AA14:AA19) -> -83310.59412 | H5: =+SUM(Amortizacion!AB14:AB19) -> 0
A6: 4 | B6: =+SUM(Amortizacion!Y20:Y25) -> 0 | C6: =+SUM(Amortizacion!H20:H25) -> 0 | D6: =+SUM(Amortizacion!I20:I25)+SUM(Amortizacion!R20:R25) -> 0 | E6: =-SUM(Amortizacion!O20:O25) -> 0 | F6: =-SUM(Amortizacion!L20:L25)-SUM(Amortizacion!U20:U25) -> 0 | G6: =-SUM(Amortizacion!AA20:AA25) -> 0 | H6: =+SUM(Amortizacion!AB20:AB25) -> 0
A7: 5 | B7: =+SUM(Amortizacion!Y26:Y31) -> 0 | C7: =+SUM(Amortizacion!H26:H31) -> 0 | D7: =+SUM(Amortizacion!I26:I31)+SUM(Amortizacion!R26:R31) -> 0 | E7: =-SUM(Amortizacion!O26:O31) -> 0 | F7: =-SUM(Amortizacion!L26:L31)-SUM(Amortizacion!U26:U31) -> 0 | G7: =-SUM(Amortizacion!AA26:AA31) -> 0 | H7: =+SUM(Amortizacion!AB26:AB31) -> 0
A8: 6 | B8: =+SUM(Amortizacion!Y32:Y37) -> 0 | C8: =+SUM(Amortizacion!H32:H37) -> 0 | D8: =+SUM(Amortizacion!I32:I37)+SUM(Amortizacion!R32:R37) -> 0 | E8: =-SUM(Amortizacion!O32:O37) -> 0 | F8: =-SUM(Amortizacion!L32:L37)-SUM(Amortizacion!U32:U37) -> 0 | G8: =-SUM(Amortizacion!AA32:AA37) -> 0 | H8: =+SUM(Amortizacion!AB32:AB37) -> 0
A9: 7 | B9: =+SUM(Amortizacion!Y38:Y43) -> 0 | C9: =+SUM(Amortizacion!H38:H43) -> 0 | D9: =+SUM(Amortizacion!I38:I43)+SUM(Amortizacion!R38:R43) -> 0 | E9: =-SUM(Amortizacion!O38:O43) -> 0 | F9: =-SUM(Amortizacion!L38:L43)-SUM(Amortizacion!U38:U43) -> 0 | G9: =-SUM(Amortizacion!AA38:AA43) -> 0 | H9: =+SUM(Amortizacion!AB38:AB43) -> 0
A10: 8 | B10: =+SUM(Amortizacion!Y44:Y49) -> 0 | C10: =+SUM(Amortizacion!H44:H49) -> 0 | D10: =+SUM(Amortizacion!I44:I49)+SUM(Amortizacion!R44:R49) -> 0 | E10: =-SUM(Amortizacion!O44:O49) -> 0 | F10: =-SUM(Amortizacion!L44:L49)-SUM(Amortizacion!U44:U49) -> 0 | G10: =-SUM(Amortizacion!AA44:AA49) -> 0 | H10: =+SUM(Amortizacion!AB44:AB49) -> 0
A11: 9 | B11: =+SUM(Amortizacion!Y50:Y55) -> 0 | C11: =+SUM(Amortizacion!H50:H55) -> 0 | D11: =+SUM(Amortizacion!I50:I55)+SUM(Amortizacion!R50:R55) -> 0 | E11: =-SUM(Amortizacion!O50:O55) -> 0 | F11: =-SUM(Amortizacion!L50:L55)-SUM(Amortizacion!U50:U55) -> 0 | G11: =-SUM(Amortizacion!AA50:AA55) -> 0 | H11: =+SUM(Amortizacion!AB50:AB55) -> 0
A12: 10 | B12: =+SUM(Amortizacion!Y56:Y61) -> 0 | C12: =+SUM(Amortizacion!H56:H61) -> 0 | D12: =+SUM(Amortizacion!I56:I61)+SUM(Amortizacion!R56:R61) -> 0 | E12: =-SUM(Amortizacion!O56:O61) -> 0 | F12: =-SUM(Amortizacion!L56:L61)-SUM(Amortizacion!U56:U61) -> 0 | G12: =-SUM(Amortizacion!AA56:AA61) -> 0 | H12: =+SUM(Amortizacion!AB56:AB61) -> 0
A13: 11 | B13: =+SUM(Amortizacion!Y62:Y67) -> 0 | C13: =+SUM(Amortizacion!H62:H67) -> 0 | D13: =+SUM(Amortizacion!I62:I67)+SUM(Amortizacion!R62:R67) -> 0 | E13: =-SUM(Amortizacion!O62:O67) -> 0 | F13: =-SUM(Amortizacion!L62:L67)-SUM(Amortizacion!U62:U67) -> 0 | G13: =-SUM(Amortizacion!AA62:AA67) -> 0 | H13: =+SUM(Amortizacion!AB62:AB67) -> 0
A14: 12 | B14: =+SUM(Amortizacion!Y68:Y73) -> 0 | C14: =+SUM(Amortizacion!H68:H73) -> 0 | D14: =+SUM(Amortizacion!I68:I73)+SUM(Amortizacion!R68:R73) -> 0 | E14: =-SUM(Amortizacion!O68:O73) -> 0 | F14: =-SUM(Amortizacion!L68:L73)-SUM(Amortizacion!U68:U73) -> 0 | G14: =-SUM(Amortizacion!AA68:AA73) -> 0 | H14: =+SUM(Amortizacion!AB68:AB73) -> 0
A15: 13 | B15: =+SUM(Amortizacion!Y74:Y79) -> 0 | C15: =+SUM(Amortizacion!H74:H79) -> 0 | D15: =+SUM(Amortizacion!I74:I79)+SUM(Amortizacion!R74:R79) -> 0 | E15: =-SUM(Amortizacion!O74:O79) -> 0 | F15: =-SUM(Amortizacion!L74:L79)-SUM(Amortizacion!U74:U79) -> 0 | G15: =-SUM(Amortizacion!AA74:AA79) -> 0 | H15: =+SUM(Amortizacion!AB74:AB79) -> 0
A16: 14 | B16: =+SUM(Amortizacion!Y80:Y85) -> 0 | C16: =+SUM(Amortizacion!H80:H85) -> 0 | D16: =+SUM(Amortizacion!I80:I85)+SUM(Amortizacion!R80:R85) -> 0 | E16: =-SUM(Amortizacion!O80:O85) -> 0 | F16: =-SUM(Amortizacion!L80:L85)-SUM(Amortizacion!U80:U85) -> 0 | G16: =-SUM(Amortizacion!AA80:AA85) -> 0 | H16: =+SUM(Amortizacion!AB80:AB85) -> 0
A17: 15 | B17: =+SUM(Amortizacion!Y86:Y91) -> 0 | C17: =+SUM(Amortizacion!H86:H91) -> 0 | D17: =+SUM(Amortizacion!I86:I91)+SUM(Amortizacion!R86:R91) -> 0 | E17: =-SUM(Amortizacion!O86:O91) -> 0 | F17: =-SUM(Amortizacion!L86:L91)-SUM(Amortizacion!U86:U91) -> 0 | G17: =-SUM(Amortizacion!AA86:AA91) -> 0 | H17: =+SUM(Amortizacion!AB86:AB91) -> 0
A18: 16 | B18: =+SUM(Amortizacion!Y92:Y97) -> 0 | C18: =+SUM(Amortizacion!H92:H97) -> 0 | D18: =+SUM(Amortizacion!I92:I97)+SUM(Amortizacion!R92:R97) -> 0 | E18: =-SUM(Amortizacion!O92:O97) -> 0 | F18: =-SUM(Amortizacion!L92:L97)-SUM(Amortizacion!U92:U97) -> 0 | G18: =-SUM(Amortizacion!AA92:AA97) -> 0 | H18: =+SUM(Amortizacion!AB92:AB97) -> 0
A19: 17 | B19: =+SUM(Amortizacion!Y98:Y103) -> 0 | C19: =+SUM(Amortizacion!H98:H103) -> 0 | D19: =+SUM(Amortizacion!I98:I103)+SUM(Amortizacion!R98:R103) -> 0 | E19: =-SUM(Amortizacion!O98:O103) -> 0 | F19: =-SUM(Amortizacion!L98:L103)-SUM(Amortizacion!U98:U103) -> 0 | G19: =-SUM(Amortizacion!AA98:AA103) -> 0 | H19: =+SUM(Amortizacion!AB98:AB103) -> 0
A20: 18 | B20: =+SUM(Amortizacion!Y104:Y109) -> 0 | C20: =+SUM(Amortizacion!H104:H109) -> 0 | D20: =+SUM(Amortizacion!I104:I109)+SUM(Amortizacion!R104:R109) -> 0 | E20: =-SUM(Amortizacion!O104:O109) -> 0 | F20: =-SUM(Amortizacion!L104:L109)-SUM(Amortizacion!U104:U109) -> 0 | G20: =-SUM(Amortizacion!AA104:AA109) -> 0 | H20: =+SUM(Amortizacion!AB104:AB109) -> 0
A21: 19 | B21: =+SUM(Amortizacion!Y110:Y115) -> 0 | C21: =+SUM(Amortizacion!H110:H115) -> 0 | D21: =+SUM(Amortizacion!I110:I115)+SUM(Amortizacion!R110:R115) -> 0 | E21: =-SUM(Amortizacion!O110:O115) -> 0 | F21: =-SUM(Amortizacion!L110:L115)-SUM(Amortizacion!U110:U115) -> 0 | G21: =-SUM(Amortizacion!AA110:AA115) -> 0 | H21: =+SUM(Amortizacion!AB110:AB115) -> 0
A22: 20 | B22: =+SUM(Amortizacion!Y116:Y121) -> 0 | C22: =+SUM(Amortizacion!H116:H121) -> 0 | D22: =+SUM(Amortizacion!I116:I121)+SUM(Amortizacion!R116:R121) -> 0 | E22: =-SUM(Amortizacion!O116:O121) -> 0 | F22: =-SUM(Amortizacion!L116:L121)-SUM(Amortizacion!U116:U121) -> 0 | G22: =-SUM(Amortizacion!AA116:AA121) -> 0 | H22: =+SUM(Amortizacion!AB116:AB121) -> 0
A23: 21 | B23: =+SUM(Amortizacion!Y122:Y127) -> 0 | C23: =+SUM(Amortizacion!H122:H127) -> 0 | D23: =+SUM(Amortizacion!I122:I127)+SUM(Amortizacion!R122:R127) -> 0 | E23: =-SUM(Amortizacion!O122:O127) -> 0 | F23: =-SUM(Amortizacion!L122:L127)-SUM(Amortizacion!U122:U127) -> 0 | G23: =-SUM(Amortizacion!AA122:AA127) -> 0 | H23: =+SUM(Amortizacion!AB122:AB127) -> 0
A24: 22 | B24: =+SUM(Amortizacion!Y128:Y133) -> 0 | C24: =+SUM(Amortizacion!H128:H133) -> 0 | D24: =+SUM(Amortizacion!I128:I133)+SUM(Amortizacion!R128:R133) -> 0 | E24: =-SUM(Amortizacion!O128:O133) -> 0 | F24: =-SUM(Amortizacion!L128:L133)-SUM(Amortizacion!U128:U133) -> 0 | G24: =-SUM(Amortizacion!AA128:AA133) -> 0 | H24: =+SUM(Amortizacion!AB128:AB133) -> 0
A25: 23 | B25: =+SUM(Amortizacion!Y134:Y139) -> 0 | C25: =+SUM(Amortizacion!H134:H139) -> 0 | D25: =+SUM(Amortizacion!I134:I139)+SUM(Amortizacion!R134:R139) -> 0 | E25: =-SUM(Amortizacion!O134:O139) -> 0 | F25: =-SUM(Amortizacion!L134:L139)-SUM(Amortizacion!U134:U139) -> 0 | G25: =-SUM(Amortizacion!AA134:AA139) -> 0 | H25: =+SUM(Amortizacion!AB134:AB139) -> 0
A26: 24 | B26: =+SUM(Amortizacion!Y140:Y145) -> 0 | C26: =+SUM(Amortizacion!H140:H145) -> 0 | D26: =+SUM(Amortizacion!I140:I145)+SUM(Amortizacion!R140:R145) -> 0 | E26: =-SUM(Amortizacion!O140:O145) -> 0 | F26: =-SUM(Amortizacion!L140:L145)-SUM(Amortizacion!U140:U145) -> 0 | G26: =-SUM(Amortizacion!AA140:AA145) -> 0 | H26: =+SUM(Amortizacion!AB140:AB145) -> 0
A27: 25 | B27: =+SUM(Amortizacion!Y146:Y151) -> 0 | C27: =+SUM(Amortizacion!H146:H151) -> 0 | D27: =+SUM(Amortizacion!I146:I151)+SUM(Amortizacion!R146:R151) -> 0 | E27: =-SUM(Amortizacion!O146:O151) -> 0 | F27: =-SUM(Amortizacion!L146:L151)-SUM(Amortizacion!U146:U151) -> 0 | G27: =-SUM(Amortizacion!AA146:AA151) -> 0 | H27: =+SUM(Amortizacion!AB146:AB151) -> 0
A28: 26 | B28: =+SUM(Amortizacion!Y152:Y157) -> 0 | C28: =+SUM(Amortizacion!H152:H157) -> 0 | D28: =+SUM(Amortizacion!I152:I157)+SUM(Amortizacion!R152:R157) -> 0 | E28: =-SUM(Amortizacion!O152:O157) -> 0 | F28: =-SUM(Amortizacion!L152:L157)-SUM(Amortizacion!U152:U157) -> 0 | G28: =-SUM(Amortizacion!AA152:AA157) -> 0 | H28: =+SUM(Amortizacion!AB152:AB157) -> 0
A29: 27 | B29: =+SUM(Amortizacion!Y158:Y163) -> 0 | C29: =+SUM(Amortizacion!H158:H163) -> 0 | D29: =+SUM(Amortizacion!I158:I163)+SUM(Amortizacion!R158:R163) -> 0 | E29: =-SUM(Amortizacion!O158:O163) -> 0 | F29: =-SUM(Amortizacion!L158:L163)-SUM(Amortizacion!U158:U163) -> 0 | G29: =-SUM(Amortizacion!AA158:AA163) -> 0 | H29: =+SUM(Amortizacion!AB158:AB163) -> 0
A30: 28 | B30: =+SUM(Amortizacion!Y164:Y169) -> 0 | C30: =+SUM(Amortizacion!H164:H169) -> 0 | D30: =+SUM(Amortizacion!I164:I169)+SUM(Amortizacion!R164:R169) -> 0 | E30: =-SUM(Amortizacion!O164:O169) -> 0 | F30: =-SUM(Amortizacion!L164:L169)-SUM(Amortizacion!U164:U169) -> 0 | G30: =-SUM(Amortizacion!AA164:AA169) -> 0 | H30: =+SUM(Amortizacion!AB164:AB169) -> 0
A31: 29 | B31: =+SUM(Amortizacion!Y170:Y175) -> 0 | C31: =+SUM(Amortizacion!H170:H175) -> 0 | D31: =+SUM(Amortizacion!I170:I175)+SUM(Amortizacion!R170:R175) -> 0 | E31: =-SUM(Amortizacion!O170:O175) -> 0 | F31: =-SUM(Amortizacion!L170:L175)-SUM(Amortizacion!U170:U175) -> 0 | G31: =-SUM(Amortizacion!AA170:AA175) -> 0 | H31: =+SUM(Amortizacion!AB170:AB175) -> 0
A32: 30 | B32: =+SUM(Amortizacion!Y176:Y181) -> 0 | C32: =+SUM(Amortizacion!H176:H181) -> 0 | D32: =+SUM(Amortizacion!I176:I181)+SUM(Amortizacion!R176:R181) -> 0 | E32: =-SUM(Amortizacion!O176:O181) -> 0 | F32: =-SUM(Amortizacion!L176:L181)-SUM(Amortizacion!U176:U181) -> 0 | G32: =-SUM(Amortizacion!AA176:AA181) -> 0 | H32: =+SUM(Amortizacion!AB176:AB181) -> 0
A33: 31 | B33: =+SUM(Amortizacion!Y182:Y187) -> 0 | C33: =+SUM(Amortizacion!H182:H187) -> 0 | D33: =+SUM(Amortizacion!I182:I187)+SUM(Amortizacion!R182:R187) -> 0 | E33: =-SUM(Amortizacion!O182:O187) -> 0 | F33: =-SUM(Amortizacion!L182:L187)-SUM(Amortizacion!U182:U187) -> 0 | G33: =-SUM(Amortizacion!AA182:AA187) -> 0 | H33: =+SUM(Amortizacion!AB182:AB187) -> 0
A34: 32 | B34: =+SUM(Amortizacion!Y188:Y193) -> 0 | C34: =+SUM(Amortizacion!H188:H193) -> 0 | D34: =+SUM(Amortizacion!I188:I193)+SUM(Amortizacion!R188:R193) -> 0 | E34: =-SUM(Amortizacion!O188:O193) -> 0 | F34: =-SUM(Amortizacion!L188:L193)-SUM(Amortizacion!U188:U193) -> 0 | G34: =-SUM(Amortizacion!AA188:AA193) -> 0 | H34: =+SUM(Amortizacion!AB188:AB193) -> 0
A35: 33 | B35: =+SUM(Amortizacion!Y194:Y199) -> 0 | C35: =+SUM(Amortizacion!H194:H199) -> 0 | D35: =+SUM(Amortizacion!I194:I199)+SUM(Amortizacion!R194:R199) -> 0 | E35: =-SUM(Amortizacion!O194:O199) -> 0 | F35: =-SUM(Amortizacion!L194:L199)-SUM(Amortizacion!U194:U199) -> 0 | G35: =-SUM(Amortizacion!AA194:AA199) -> 0 | H35: =+SUM(Amortizacion!AB194:AB199) -> 0
A36: 34 | B36: =+SUM(Amortizacion!Y200:Y205) -> 0 | C36: =+SUM(Amortizacion!H200:H205) -> 0 | D36: =+SUM(Amortizacion!I200:I205)+SUM(Amortizacion!R200:R205) -> 0 | E36: =-SUM(Amortizacion!O200:O205) -> 0 | F36: =-SUM(Amortizacion!L200:L205)-SUM(Amortizacion!U200:U205) -> 0 | G36: =-SUM(Amortizacion!AA200:AA205) -> 0 | H36: =+SUM(Amortizacion!AB200:AB205) -> 0
A37: 35 | B37: =+SUM(Amortizacion!Y206:Y211) -> 0 | C37: =+SUM(Amortizacion!H206:H211) -> 0 | D37: =+SUM(Amortizacion!I206:I211)+SUM(Amortizacion!R206:R211) -> 0 | E37: =-SUM(Amortizacion!O206:O211) -> 0 | F37: =-SUM(Amortizacion!L206:L211)-SUM(Amortizacion!U206:U211) -> 0 | G37: =-SUM(Amortizacion!AA206:AA211) -> 0 | H37: =+SUM(Amortizacion!AB206:AB211) -> 0
A38: 36 | B38: =+SUM(Amortizacion!Y212:Y217) -> 0 | C38: =+SUM(Amortizacion!H212:H217) -> 0 | D38: =+SUM(Amortizacion!I212:I217)+SUM(Amortizacion!R212:R217) -> 0 | E38: =-SUM(Amortizacion!O212:O217) -> 0 | F38: =-SUM(Amortizacion!L212:L217)-SUM(Amortizacion!U212:U217) -> 0 | G38: =-SUM(Amortizacion!AA212:AA217) -> 0 | H38: =+SUM(Amortizacion!AB212:AB217) -> 0
A39: 37 | B39: =+SUM(Amortizacion!Y218:Y223) -> 0 | C39: =+SUM(Amortizacion!H218:H223) -> 0 | D39: =+SUM(Amortizacion!I218:I223)+SUM(Amortizacion!R218:R223) -> 0 | E39: =-SUM(Amortizacion!O218:O223) -> 0 | F39: =-SUM(Amortizacion!L218:L223)-SUM(Amortizacion!U218:U223) -> 0 | G39: =-SUM(Amortizacion!AA218:AA223) -> 0 | H39: =+SUM(Amortizacion!AB218:AB223) -> 0
A40: 38 | B40: =+SUM(Amortizacion!Y224:Y229) -> 0 | C40: =+SUM(Amortizacion!H224:H229) -> 0 | D40: =+SUM(Amortizacion!I224:I229)+SUM(Amortizacion!R224:R229) -> 0 | E40: =-SUM(Amortizacion!O224:O229) -> 0 | F40: =-SUM(Amortizacion!L224:L229)-SUM(Amortizacion!U224:U229) -> 0 | G40: =-SUM(Amortizacion!AA224:AA229) -> 0 | H40: =+SUM(Amortizacion!AB224:AB229) -> 0
B41: =+SUM(B3:B40) -> 5000000 | C41: =+SUM(C3:C40) -> 250280.4 | D41: =+SUM(D3:D40) -> 399641.6955 | E41: =+SUM(E3:E40) -> 0 | F41: -5250280.4 | G41: -399641.6955 | H41: 0
D43: =+SUM(B41:D41) -> 5649922.096 | G43: =+G41+F41 -> -5649922.096
